Workbook

Sheet START

Sheet Instructions
D2: 2020
X4: Yes
X5: No
W7: Type of Entities Range:
X8: Parent Municipality
X9: Consolidated Information
W17: MTREF Range: | X17: 2008
X18: 2009
X19: 2010
X20: 2011
X21: 2012
X22: 2013
X23: 2014
X24: 2015
X25: 2016
X26: 2017
X27: 2018
X28: 2019
X29: 2020
X30: 2021
X31: 2022
W33: MTREF Linked: | X33: 10
W34: MTREF: | X34: =INDEX(X17:X31,X33,1) -> 2017
W36: Fin Year: | X36: =MTREF&"/"&RIGHT(MTREF,2)+1 -> 2017/18

Sheet Template names (hidden)
A1: Common sheet headings
A2: Head1 | B2: =HLOOKUP(MTREF,Headings,2) -> 2015/16 | C2: Prior year -1
A3: Head1A | B3: =HLOOKUP(MTREF,Headings,3) -> 2014/15 | C3: Prior year -2
A4: Head1B | B4: =HLOOKUP(MTREF,Headings,4) -> 2013/14 | C4: Prior year -3
A5: Head2 | B5: =HLOOKUP(MTREF,Headings,5) -> Current Year 2016/17 | C5: Year in which budget is being prepared
A6: Head2A | B6: =HLOOKUP(MTREF,Headings,6) -> 2016/17 | C6: Year in which budget is being prepared
A7: Head3 | B7: =HLOOKUP(MTREF,Headings,7) -> 2017/18 Medium Term Revenue & Expenditure Framework | C7: MTREF name
A8: Head4 | B8: LTFS | C8: Long term financial strategy
A9: Head5 | B9: Audited Outcome
A10: Head5A | B10: Outcome
A11: Head5B | B11: Pre-audit outcome
A12: Head6 | B12: Original Budget
A13: Head7 | B13: Adjusted Budget
A14: Head8 | B14: Full Year Forecast
A15: Head9 | B15: =HLOOKUP(MTREF,Headings,8) -> Budget Year 2017/18 | C15: 1st year of MTREF | D15: Year1
A16: Head10 | B16: =HLOOKUP(MTREF,Headings,9) -> Budget Year +1 2018/19 | C16: 2nd year of MTREF | D16: Year2
A17: Head11 | B17: =HLOOKUP(MTREF,Headings,10) -> Budget Year +2 2019/20 | C17: 3rd year of MTREF | D17: Year3
A18: Head12 | B18: =HLOOKUP(MTREF,Headings,11) -> Forecast 2020/21 | C18: 1st yr of long term forecast | D18: Year4
A19: Head13 | B19: =HLOOKUP(MTREF,Headings,12) -> Forecast 2021/22 | C19: Next yr of long term forecast | D19: Year5
A20: Head14 | B20: =HLOOKUP(MTREF,Headings,13) -> Forecast 2022/23 | C20: Next yr of long term forecast | D20: Year6
A21: Head15 | B21: =HLOOKUP(MTREF,Headings,14) -> Forecast 2023/24 | C21: Next yr of long term forecast | D21: Year7
A22: Head16 | B22: =HLOOKUP(MTREF,Headings,15) -> Forecast 2024/25 | C22: Next yr of long term forecast | D22: Year8
A23: Head17 | B23: =HLOOKUP(MTREF,Headings,16) -> Forecast 2025/26 | C23: Next yr of long term forecast | D23: Year9
A24: Head18 | B24: =HLOOKUP(MTREF,Headings,17) -> Forecast 2026/27 | C24: Next yr of long term forecast | D24: Year10
A25: Head19 | B25: =HLOOKUP(MTREF,Headings,18) -> Forecast 2027/28 | C25: Next yr of long term forecast | D25: Year11
A26: Head20 | B26: =HLOOKUP(MTREF,Headings,19) -> Forecast 2028/29 | C26: Next yr of long term forecast | D26: Year12
A27: Head21 | B27: =HLOOKUP(MTREF,Headings,20) -> Forecast 2029/30 | C27: Next yr of long term forecast | D27: Year13
A28: Head22 | B28: =HLOOKUP(MTREF,Headings,21) -> Forecast 2030/31 | C28: Next yr of long term forecast | D28: Year14
A29: Head23 | B29: =HLOOKUP(MTREF,Headings,22) -> Forecast 2031/32 | C29: Next yr of long term forecast | D29: Year15
A30: Head24 | B30: Description
A31: Head25
A32: Head26 | B32: Vote Description
A33: Head27 | B33: Ref
A34: Head27a | B34: References
A35: Head28 | B35: Surplus/(Deficit) for the year | D35: Result
A36: Head29 | B36: =HLOOKUP(MTREF,Headings,23) -> Annual target 2017/18
A37: Head30 | B37: =HLOOKUP(MTREF,Headings,24) -> Revised target 2017/18
A38: Head31 | B38: Quarter ended 30 September
A39: Head32 | B39: Quarter ended 31 December
A40: Head33 | B40: Quarter ended 31 March
A41: Head34 | B41: Quarter ended 30 June
A42: Head35 | B42: Variance explanation
A43: Head36 | B43: YTD Actual 31 Dec
A44: Head37 | B44: YTD Budget 31 Dec
A45: Head38 | B45: Monthly actual
A46: Head39 | B46: YTD actual
A47: Head40 | B47: YTD budget
A48: Head41 | B48: YTD variance
A49: Head42 | B49: Surplus/ (Deficit) for the yr/period
A50: Head43 | B50: =Head3&" Summary" -> 2017/18 Medium Term Revenue & Expenditure Framework Summary
A51: Head44 | B51: 2001 Census
A52: Head45 | B52: 2011 Census
A53: Head46 | B53: - Adjustments Budget - January 2007
A54: Head47 | B54: Previous target year to complete
A55: Head48 | B55: Present value
A56: Head49
A57: Head50 | B57: Other Adjusts.
A58: Head51 | B58: Accum. Funds
A59: Head52 | B59: Multi-year capital
A60: Head53 | B60: Unfore. Unavoid.
A61: Head54 | B61: Prior Adjusted
A62: Head55 | B62: Nat. or Prov. Govt
A63: Head56 | B63: Total Adjusts.
A64: SFPerf1 | B64: Budgeted Financial Performance
A65: SFPerf2 | B65: Forecast Financial Performance
A66: SFPos1 | B66: Budgeted Financial Position
A67: SFPos2 | B67: Forecast Financial Position
A68: Cash1 | B68: Budget Cash Flow
A69: Cash2 | B69: Forecast Cash Flow
A70: RandM | B70: Expenditure includes repairs & maintenance of R'000
A71: Depart1 | B71: Department 1 - | D71: DEP1
A72: Depart2 | B72: Department 2 - | D72: DEP2
A73: Depart3 | B73: Department 3 - | D73: DEP3
A74: Depart4 | B74: Department 4 - | D74: DEP4
A75: Depart5 | B75: Department 5 - | D75: DEP5
A76: Depart6 | B76: Department 6 - | D76: DEP6
A77: Depart7 | B77: Department 7 - | D77: DEP7
A78: Depart8 | B78: Department 8 - | D78: DEP8
A79: Depart9 | B79: Department 9 - | D79: DEP9
A80: Depart10 | B80: Department 10 - | D80: DEP10
A81: Depart11 | B81: Department 11 - | D81: DEP11
A82: Depart12 | B82: Department 12 - | D82: DEP12
A83: Depart13 | B83: Department 13 - | D83: DEP13
A84: Depart14 | B84: Department 14 - | D84: DEP14
A87: Base year of forecast column selection names
A88: Choose | B88: ACT
B89: APP
B90: ADJ
A92: Standard nomenclature
A93: Muni | B93: ='Lookup and lists'!B28 -> NC076 Thembelihle
A94: Municipal Entities | B94: 1 | C94: Type of report: | D94: 1
A95: =IF((MuniEntities=1)*(MuniType=2),"YES","NO") -> NO | B95: Does this municipality have entities (consolidated budget and entity budgets required)? YES/NO
A96: Entity 1 | B96: (Pty) Ltd Example 1 - Municipal entity - | D96: Ent1
A97: Entity 2 | B97: (Pty) Ltd Example 2 - Municipal entity - | D97: Ent2
A98: Entity 3 | B98: Municipal Entity Example 3 | D98: Ent3
A99: Budget approval tables | C99: Chart x-ref | D99: Sch/Tab/Ch | E99: Alternative for municipalities without entities | F99: Alternative for municipalities without entities
B100: =IF(Consolques="YES",E100,F100) -> Table A1 Budget Summary | D100: Table A1 | E100: =D100&"Consolidated Budget Summary" -> Table A1 Consolidated Budget Summary | F100: =D100&"Budget Summary" -> Table A1 Budget Summary
B101: Table A2 Budgeted Financial Performance (revenue and expenditure by functional classification) | C101: Charts 5, 6 | D101: Table A2 | E101: =D101&"Consolidated Budgeted Financial Performance (revenue and expenditure by functional classification)" -> Table A2 Consolidated Budgeted Financial Performance (revenue and expenditure by functional classification) | F101: =D101&"Budgeted Financial Performance (revenue and expenditure by functional classification)" -> Table A2 Budgeted Financial Performance (revenue and expenditure by functional classification)
B102: Table A3 Budgeted Financial Performance (revenue and expenditure by municipal vote) | D102: Table A3 | E102: =D102&"Consolidated Budgeted Financial Performance (revenue and expenditure by municipal vote)" -> Table A3 Consolidated Budgeted Financial Performance (revenue and expenditure by municipal vote) | F102: =D102&"Budgeted Financial Performance (revenue and expenditure by municipal vote)" -> Table A3 Budgeted Financial Performance (revenue and expenditure by municipal vote)
B103: Table A4 Budgeted Financial Performance (revenue and expenditure) | C103: Charts 1, 2, 3, 4 | D103: Table A4 | E103: =D103&"Consolidated Budgeted Financial Performance (revenue and expenditure)" -> Table A4 Consolidated Budgeted Financial Performance (revenue and expenditure) | F103: =D103&"Budgeted Financial Performance (revenue and expenditure)" -> Table A4 Budgeted Financial Performance (revenue and expenditure)
B104: Table A5 Budgeted Capital Expenditure by vote, functional classification and funding | C104: Charts 7, 8, 9, 10, 20 | D104: Table A5 | E104: =D104&"Consolidated Budgeted Capital Expenditure by vote, functional classification and funding" -> Table A5 Consolidated Budgeted Capital Expenditure by vote, functional classification and funding | F104: =D104&"Budgeted Capital Expenditure by vote, functional classification and funding" -> Table A5 Budgeted Capital Expenditure by vote, functional classification and funding
B105: Table A6 Budgeted Financial Position | D105: Table A6 | E105: =D105&"Consolidated Budgeted Financial Position" -> Table A6 Consolidated Budgeted Financial Position | F105: =D105&"Budgeted Financial Position" -> Table A6 Budgeted Financial Position
B106: Table A7 Budgeted Cash Flows | D106: Table A7 | E106: =D106&"Consolidated Budgeted Cash Flows" -> Table A7 Consolidated Budgeted Cash Flows | F106: =D106&"Budgeted Cash Flows" -> Table A7 Budgeted Cash Flows
B107: Table A8 Cash backed reserves/accumulated surplus reconciliation | D107: Table A8 | E107: =D107&"Consolidated Cash backed reserves/accumulated surplus reconciliation" -> Table A8 Consolidated Cash backed reserves/accumulated surplus reconciliation | F107: =D107&"Cash backed reserves/accumulated surplus reconciliation" -> Table A8 Cash backed reserves/accumulated surplus reconciliation
B108: Table A9 Asset Management | D108: Table A9 | E108: =D108&"Consolidated Asset Management" -> Table A9 Consolidated Asset Management | F108: =D108&"Asset Management" -> Table A9 Asset Management
B109: Table A10 Basic service delivery measurement | D109: Table A10 | E109: =D109&"Consolidated basic service delivery measurement" -> Table A10 Consolidated basic service delivery measurement | F109: =D109&"Basic service delivery measurement" -> Table A10 Basic service delivery measurement
A110: Supportinging Tables to the Budget Approval Tables | C110: =$C$99 -> Chart x-ref | D110: =$D$99 -> Sch/Tab/Ch
A111: Supporting Table SA1 | B111: =A111&" Supportinging detail to 'Budgeted Financial Performance'" -> Supporting Table SA1 Supportinging detail to 'Budgeted Financial Performance'
A112: Supporting Table SA2 | B112: =IF(Consolques="YES",E112,F112) -> Supporting Table SA2 Matrix Financial Performance Budget (revenue source/expenditure type and dept.) | E112: =A112&"Consolidated Matrix Financial Performance Budget (revenue source/expenditure type & dept.)" -> Supporting Table SA2 Consolidated Matrix Financial Performance Budget (revenue source/expenditure type & dept.) | F112: =A112&"Matrix Financial Performance Budget (revenue source/expenditure type and dept.)" -> Supporting Table SA2 Matrix Financial Performance Budget (revenue source/expenditure type and dept.)
A113: Supporting Table SA3 | B113: =A113&"Supportinging detail to 'Budgeted Financial Position'" -> Supporting Table SA3 Supportinging detail to 'Budgeted Financial Position'
A114: Supporting Table SA4 | B114: =A114&"Reconciliation of IDP strategic objectives and budget (revenue)" -> Supporting Table SA4 Reconciliation of IDP strategic objectives and budget (revenue) | C114: Chart 11
A115: Supporting Table SA5 | B115: =A115&"Reconciliation of IDP strategic objectives and budget (operating expenditure)" -> Supporting Table SA5 Reconciliation of IDP strategic objectives and budget (operating expenditure) | C115: Chart 12
A116: Supporting Table SA6 | B116: =A116&"Reconciliation of IDP strategic objectives and budget (capital expenditure)" -> Supporting Table SA6 Reconciliation of IDP strategic objectives and budget (capital expenditure) | C116: Chart 13
A117: Supporting Table SA7 | B117: =A117&" Measureable performance objectives" -> Supporting Table SA7 Measureable performance objectives
A118: Supporting Table SA8 | B118: =A118&" Performance indicators and benchmarks" -> Supporting Table SA8 Performance indicators and benchmarks | C118: Chts 15-19
A119: Supporting Table SA9 | B119: =A119&" Social, economic and demographic statistics and assumptions" -> Supporting Table SA9 Social, economic and demographic statistics and assumptions
A120: Supporting Table SA10 | B120: =A120&" Funding measurement" -> Supporting Table SA10 Funding measurement | C120: Chart 14
A121: Supporting Table SA11 | B121: =A121&" Property rates summary" -> Supporting Table SA11 Property rates summary
A122: Supporting Table SA12a | B122: =A122&" Property rates by category (current year)" -> Supporting Table SA12a Property rates by category (current year)
A123: Supporting Table SA12b | B123: =A123&" Property rates by category (budget year)" -> Supporting Table SA12b Property rates by category (budget year)
A124: Supporting Table SA13a | B124: =A124&" Service Tariffs by category" -> Supporting Table SA13a Service Tariffs by category
A125: Supporting Table SA13b | B125: =A125&" Service Tariffs by category - explanatory" -> Supporting Table SA13b Service Tariffs by category - explanatory
A126: Supporting Table SA14 | B126: =A126&" Household bills" -> Supporting Table SA14 Household bills
A127: Supporting Table SA15 | B127: =A127&" Investment particulars by type" -> Supporting Table SA15 Investment particulars by type
A128: Supporting Table SA16 | B128: =A128&" Investment particulars by maturity" -> Supporting Table SA16 Investment particulars by maturity
A129: Supporting Table SA17 | B129: =A129&" Borrowing" -> Supporting Table SA17 Borrowing
A130: Supporting Table SA18 | B130: =A130&" Transfers and grant receipts" -> Supporting Table SA18 Transfers and grant receipts
A131: Supporting Table SA19 | B131: =A131&" Expenditure on transfers and grant programme" -> Supporting Table SA19 Expenditure on transfers and grant programme
A132: Supporting Table SA20 | B132: =A132&" Reconciliation of transfers, grant receipts and unspent funds" -> Supporting Table SA20 Reconciliation of transfers, grant receipts and unspent funds
A133: Supporting Table SA21 | B133: =A133&" Transfers and grants made by the municipality" -> Supporting Table SA21 Transfers and grants made by the municipality
A134: Supporting Table SA22 | B134: =A134&" Summary councillor and staff benefits" -> Supporting Table SA22 Summary councillor and staff benefits
A135: Supporting Table SA23 | B135: =A135&" Salaries, allowances & benefits (political office bearers/councillors/senior managers)" -> Supporting Table SA23 Salaries, allowances & benefits (political office bearers/councillors/senior managers)
A136: Supporting Table SA24 | B136: =A136&" Summary of personnel numbers" -> Supporting Table SA24 Summary of personnel numbers
A137: Supporting Table SA25 | B137: =IF(Consolques="YES",E137,F137) -> Supporting Table SA25 Budgeted monthly revenue and expenditure | E137: =A137&" Consolidated budgeted monthly revenue and expenditure" -> Supporting Table SA25 Consolidated budgeted monthly revenue and expenditure | F137: =A137&" Budgeted monthly revenue and expenditure" -> Supporting Table SA25 Budgeted monthly revenue and expenditure
A138: Supporting Table SA26 | B138: Supporting Table SA26 Budgeted monthly revenue and expenditure (municipal vote) | E138: =A138&" Consolidated budgeted monthly revenue and expenditure (municipal vote)" -> Supporting Table SA26 Consolidated budgeted monthly revenue and expenditure (municipal vote) | F138: =A138&" Budgeted monthly revenue and expenditure (municipal vote)" -> Supporting Table SA26 Budgeted monthly revenue and expenditure (municipal vote)
A139: Supporting Table SA27 | B139: Supporting Table SA27 Budgeted monthly revenue and expenditure (functional classification) | E139: =A139&" Consolidated budgeted monthly revenue and expenditure (functional classification)" -> Supporting Table SA27 Consolidated budgeted monthly revenue and expenditure (functional classification) | F139: =A139&" Budgeted monthly revenue and expenditure (functional classification)" -> Supporting Table SA27 Budgeted monthly revenue and expenditure (functional classification)
A140: Supporting Table SA28 | B140: Supporting Table SA28 Budgeted monthly capital expenditure (municipal vote) | E140: =A140&" Consolidated budgeted monthly capital expenditure (municipal vote)" -> Supporting Table SA28 Consolidated budgeted monthly capital expenditure (municipal vote) | F140: =A140&" Budgeted monthly capital expenditure (municipal vote)" -> Supporting Table SA28 Budgeted monthly capital expenditure (municipal vote)
A141: Supporting Table SA29 | B141: Supporting Table SA29 Budgeted monthly capital expenditure (functional classification) | E141: =A141&" Consolidated budgeted monthly capital expenditure (functional classification)" -> Supporting Table SA29 Consolidated budgeted monthly capital expenditure (functional classification) | F141: =A141&" Budgeted monthly capital expenditure (functional classification)" -> Supporting Table SA29 Budgeted monthly capital expenditure (functional classification)
A142: Supporting Table SA30 | B142: Supporting Table SA30 Budgeted monthly cash flow | E142: =A142&" Consolidated budgeted monthly cash flow" -> Supporting Table SA30 Consolidated budgeted monthly cash flow | F142: =A142&" Budgeted monthly cash flow" -> Supporting Table SA30 Budgeted monthly cash flow
A143: Supporting Table SA31 | B143: NOT REQUIRED - municipality does not have entities | E143: =A143&" Aggregated entity budget" -> Supporting Table SA31 Aggregated entity budget | F143: NOT REQUIRED - municipality does not have entities
A144: Supporting Table SA32 | B144: =A144&" List of external mechanisms" -> Supporting Table SA32 List of external mechanisms
A145: Supporting Table SA33 | B145: =A145&" Contracts having future budgetary implications" -> Supporting Table SA33 Contracts having future budgetary implications
A146: Supporting Table SA34a | B146: =IF(Consolques="YES",E146,F146) -> Supporting Table SA34a Capital expenditure on new assets by asset class | E146: =A146&" Consolidated capital expenditure on new assets by asset class" -> Supporting Table SA34a Consolidated capital expenditure on new assets by asset class | F146: =A146&" Capital expenditure on new assets by asset class" -> Supporting Table SA34a Capital expenditure on new assets by asset class
A147: Supporting Table SA34b | B147: Supporting Table SA34b Capital expenditure on the renewal of existing assets by asset class | E147: =A147&" Consolidated capital expenditure on the renewal of existing assets by asset class" -> Supporting Table SA34b Consolidated capital expenditure on the renewal of existing assets by asset class | F147: =A147&" Capital expenditure on the renewal of existing assets by asset class" -> Supporting Table SA34b Capital expenditure on the renewal of existing assets by asset class
A148: Supporting Table SA34c | B148: Supporting Table SA34c Repairs and maintenance expenditure by asset class | E148: =A148&" Consolidated repairs and maintenance by asset class" -> Supporting Table SA34c Consolidated repairs and maintenance by asset class | F148: =A148&" Repairs and maintenance expenditure by asset class" -> Supporting Table SA34c Repairs and maintenance expenditure by asset class
A149: Supporting Table SA34d | B149: =IF(Consolques="YES",E149,F149) -> Supporting Table SA34d Depreciation by asset class | E149: =A149&" Consolidated Depreciation by asset class" -> Supporting Table SA34d Consolidated Depreciation by asset class | F149: =A149&" Depreciation by asset class" -> Supporting Table SA34d Depreciation by asset class
A150: Supporting Table SA34e | B150: =IF(Consolques="YES",E150,F150) -> Supporting Table SA34e Capital expenditure on the upgrading of existing assets by asset class | E150: =A150&" Consolidated capital expenditure on the upgrading of existing assets by asset class" -> Supporting Table SA34e Consolidated capital expenditure on the upgrading of existing assets by asset class | F150: =A150&" Capital expenditure on the upgrading of existing assets by asset class" -> Supporting Table SA34e Capital expenditure on the upgrading of existing assets by asset class
A151: Supporting Table SA35 | B151: Supporting Table SA35 Future financial implications of the capital budget | E151: =A151&" Consolidated future financial implications of the capital budget" -> Supporting Table SA35 Consolidated future financial implications of the capital budget | F151: =A151& " Future financial implications of the capital budget" -> Supporting Table SA35 Future financial implications of the capital budget
A152: Supporting Table SA36 | B152: Supporting Table SA36 Detailed capital budget | E152: =A152&" Consolidated detailed capital budget" -> Supporting Table SA36 Consolidated detailed capital budget | F152: =A152& " Detailed capital budget" -> Supporting Table SA36 Detailed capital budget
A153: Supporting Table SA37 | B153: Supporting Table SA37 Projects delayed from previous financial year/s | E153: =A153&" Consolidated projects delayed from previous financial year/s" -> Supporting Table SA37 Consolidated projects delayed from previous financial year/s | F153: =A153& " Projects delayed from previous financial year/s" -> Supporting Table SA37 Projects delayed from previous financial year/s
A154: Supporting Table SA38 | B154: =IF(Consolques="YES",E154,F154) -> Supporting Table SA38 Detailed operational projects | E154: =A154&" Consolidated detailed operational projects" -> Supporting Table SA38 Consolidated detailed operational projects | F154: =A154& " Detailed operational projects" -> Supporting Table SA38 Detailed operational projects
A156: Budget Charts | B156: Charts | C156: Cross reference
A157: Chart A1 | B157: =A157&"Revenue by Municipal Vote" -> Chart A1 Revenue by Municipal Vote
A158: Chart A2 | B158: =A158&"Expenditure by Municipal Vote" -> Chart A2 Expenditure by Municipal Vote
A159: Chart A3 | B159: =A159&"Revenue by Standard Classification" -> Chart A3 Revenue by Standard Classification | C159: A2
A160: Chart A4 | B160: =A160&"Expenditure by Standard Classification" -> Chart A4 Expenditure by Standard Classification | C160: A2
A161: Chart A5 | B161: =A161&"Revenue by Major Source (refer 'Minor' source for 'Other Revenue' allocation" -> Chart A5 Revenue by Major Source (refer 'Minor' source for 'Other Revenue' allocation | C161: A3
A162: Chart A6 | B162: =A162&"Revenue by Minor Source (Other)" -> Chart A6 Revenue by Minor Source (Other) | C162: A3
A163: Chart A7 | B163: =A163&"Expenditure by Major Type" -> Chart A7 Expenditure by Major Type | C163: A3
A164: Chart A8 | B164: =A164&"Expenditure by Minor Type (Other)" -> Chart A8 Expenditure by Minor Type (Other) | C164: A3
A165: Chart A9 | B165: =A165&"Capital Expenditure by Municipal Vote/Appropriation (Major)" -> Chart A9 Capital Expenditure by Municipal Vote/Appropriation (Major) | C165: A5
A166: Chart A10 | B166: =A166&"Capital Expenditure by Municipal Vote/Appropriation (Minor)" -> Chart A10 Capital Expenditure by Municipal Vote/Appropriation (Minor) | C166: A5
A167: Chart A11 | B167: =A166&"Capital Expenditure by Standard Classification" -> Chart A10 Capital Expenditure by Standard Classification | C167: A5
A168: Chart A12 | B168: =A168&"Capital expenditure performance trend" -> Chart A12 Capital expenditure performance trend | C168: A5
A169: Chart A13 | B169: =A169&"Capital funding by Source" -> Chart A13 Capital funding by Source | C169: A5
A170: Chart A14 | B170: =A170&"Cash flow trend" -> Chart A14 Cash flow trend | C170: A7
A171: Chart A15 | B171: =A171&"IDP Strategic Objective - Revenue" -> Chart A15 IDP Strategic Objective - Revenue | C171: Table A4
A172: Chart A16 | B172: =A172&"IDP Strategic Objective - Expenditure" -> Chart A16 IDP Strategic Objective - Expenditure | C172: Table A5
A173: Chart A17 | B173: =A173&"IDP Strategic Objective - Capital Expenditure" -> Chart A17 IDP Strategic Objective - Capital Expenditure | C173: Table A6
A174: Chart A18 | B174: =A174&"Debt (borrowing to Total Revenue)" -> Chart A18 Debt (borrowing to Total Revenue) | C174: Table A8
A175: Chart A19 | B175: =A175&"Debtors' trend analysis" -> Chart A19 Debtors' trend analysis | C175: Table A8
A176: Chart A20 | B176: =A176&"Distribution losses" -> Chart A20 Distribution losses | C176: Table A8
A177: Chart A21 | B177: =A177&"Borrowed funding of capital expenditure" -> Chart A21 Borrowed funding of capital expenditure | C177: Table A8
A178: Chart A22 | B178: =A178&"Expenditure analysis (% of Revenue)" -> Chart A22 Expenditure analysis (% of Revenue) | C178: Table A8
A179: Chart A23 | B179: =A179&"Increases in service charges" -> Chart A23 Increases in service charges | C179: Table A10

Sheet Lookup and lists (hidden)
A1: Description | B1: 2007 | C1: 2008 | D1: 2009 | E1: 2010 | F1: 2011 | G1: 2012 | H1: 2013 | I1: 2014 | J1: 2015 | K1: 2016 | L1: 2017 | M1: 2018 | N1: 2019 | O1: 2020 | Q1: Lists | Y1: Grants: | Z1: National - opex | AA1: Provincial - opex | AB1: National - capex | AC1: Provincial - capex
A2: ='Template names'!C2 -> Prior year -1 | B2: 2005/06 | C2: 2006/07 | D2: 2007/08 | E2: =E1-2&"/"&RIGHT(E1,2)-1 -> 2008/9 | F2: 2009/10 | G2: 2010/11 | H2: 2011/12 | I2: 2012/13 | J2: 2013/14 | K2: 2014/15 | L2: 2015/16 | M2: 2016/17 | N2: 2017/18 | O2: 2018/19 | Q2: Yes | R2: <1 | S2: <4 | T2: Market | U2: Land & impr. | V2: Yes | W2: Uniform | X2: Yrs | Z2: Local Government Equitable Share | AA2: Health subsidy | AB2: Municipal Infrastructure Grant (MIG) | AC2: Agriculture
A3: ='Template names'!C3 -> Prior year -2 | B3: 2004/05 | C3: 2005/06 | D3: 2006/07 | E3: =E1-3&"/"&RIGHT(E1,2)-2 -> 2007/8 | F3: 2008/9 | G3: 2009/10 | H3: 2010/11 | I3: 2011/12 | J3: 2012/13 | K3: 2013/14 | L3: 2014/15 | M3: 2015/16 | N3: 2016/17 | O3: 2017/18 | Q3: No | R3: 1 | S3: 4 | T3: Dep.Replace | U3: Land only | V3: No | W3: Variable | X3: Mths | Z3: RSC Levy Replacement | AA3: Ambulance subsidy | AB3: Public Transport and Systems | AC3: Education
A4: ='Template names'!C4 -> Prior year -3 | B4: 2003/04 | C4: 2004/05 | D4: 2005/06 | E4: =E1-4&"/"&RIGHT(E1,2)-3 -> 2006/7 | F4: 2007/8 | G4: 2008/9 | H4: 2009/10 | I4: 2010/11 | J4: 2011/12 | K4: 2012/13 | L4: 2013/14 | M4: 2014/15 | N4: 2015/16 | O4: 2016/17 | R4: 2 | S4: 5 | T4: Other | U4: Other | Z4: Finance Management | AA4: Housing | AB4: Rural Transport Services and Infrastructure | AC4: Health
A5: ='Template names'!C5 -> Year in which budget is being prepared | B5: Current Year 2006/07 | C5: Current Year 2007/08 | D5: Current Year 2008/09 | E5: ="Current Year "& E1-1&"/"&RIGHT(E1,2) -> Current Year 2009/10 | F5: Current Year 2010/11 | G5: Current Year 2011/12 | H5: Current Year 2012/13 | I5: Current Year 2013/14 | J5: Current Year 2014/15 | K5: Current Year 2015/16 | L5: Current Year 2016/17 | M5: Current Year 2017/18 | N5: Current Year 2018/19 | O5: Current Year 2019/20 | R5: 3 | S5: 6 | Z5: Municipal Systems Improvement | AA5: Sport and Recreation | AB5: Regional Bulk Infrastructure | AC5: Housing and Local Government
A6: ='Template names'!C6 -> Year in which budget is being prepared | B6: 2006/07 | C6: 2007/08 | D6: 2008/09 | E6: =E1-1&"/"&RIGHT(E1,2) -> 2009/10 | F6: 2010/11 | G6: 2011/12 | H6: 2012/13 | I6: 2013/14 | J6: 2014/15 | K6: 2015/16 | L6: 2016/17 | M6: 2017/18 | N6: 2018/19 | O6: 2019/20 | R6: 4 | S6: 6-10 | Z6: Water Services Operating Subsidy | AB6: Rural Households Infrastructure | AC6: Other Departments
A7: ='Template names'!C7 -> MTREF name | B7: 2007/08 Medium Term Revenue & Expenditure Framework | C7: 2008/09 Medium Term Revenue & Expenditure Framework | D7: 2009/10 Medium Term Revenue & Expenditure Framework | E7: =E1&"/"&RIGHT(E1,2)+1&" Medium Term Revenue & Expenditure Framework" -> 2010/11 Medium Term Revenue & Expenditure Framework | F7: 2011/12 Medium Term Revenue & Expenditure Framework | G7: 2012/13 Medium Term Revenue & Expenditure Framework | H7: 2013/14 Medium Term Revenue & Expenditure Framework | I7: 2014/15 Medium Term Revenue & Expenditure Framework | J7: 2015/16 Medium Term Revenue & Expenditure Framework | K7: 2016/17 Medium Term Revenue & Expenditure Framework | L7: 2017/18 Medium Term Revenue & Expenditure Framework | M7: 2018/19 Medium Term Revenue & Expenditure Framework | N7: 2019/20 Medium Term Revenue & Expenditure Framework | O7: 2020/21 Medium Term Revenue & Expenditure Framework | R7: 5 | S7: >10 | Z7: Energy Efficiency and Demand Management | AB7: Neighbourhood Development Partnership | AC7: Public Works, Roads, Transport
A8: ='Template names'!C15 -> 1st year of MTREF | B8: Budget Year 2007/08 | C8: Budget Year 2008/09 | D8: Budget Year 2009/10 | E8: ="Budget Year "&E1&"/"&RIGHT(E1,2)+1 -> Budget Year 2010/11 | F8: Budget Year 2011/12 | G8: Budget Year 2012/13 | H8: Budget Year 2013/14 | I8: Budget Year 2014/15 | J8: Budget Year 2015/16 | K8: Budget Year 2016/17 | L8: Budget Year 2017/18 | M8: Budget Year 2018/19 | N8: Budget Year 2019/20 | O8: Budget Year 2020/21 | R8: >5 | Z8: Integrated National Electrification Programme | AB8: 2010 FIFA World Cup Stadiums Development | AC8: Sport and Recreation
A9: ='Template names'!C16 -> 2nd year of MTREF | B9: Budget Year +1 2008/09 | C9: Budget Year +1 2009/10 | D9: Budget Year +1 2010/11 | E9: ="Budget Year +1 "&E1+1&"/"&RIGHT(E1,2)+2 -> Budget Year +1 2011/12 | F9: Budget Year +1 2012/13 | G9: Budget Year +1 2013/14 | H9: Budget Year +1 2014/15 | I9: Budget Year +1 2015/16 | J9: Budget Year +1 2016/17 | K9: Budget Year +1 2017/18 | L9: Budget Year +1 2018/19 | M9: Budget Year +1 2019/20 | N9: Budget Year +1 2020/21 | O9: Budget Year +1 2021/22 | Z9: Municipal Drought Relief
A10: ='Template names'!C17 -> 3rd year of MTREF | B10: Budget Year +2 2009/10 | C10: Budget Year +2 2010/11 | D10: Budget Year +2 2011/12 | E10: ="Budget Year +2 "&E1+2&"/"&RIGHT(E1,2)+3 -> Budget Year +2 2012/13 | F10: Budget Year +2 2013/14 | G10: Budget Year +2 2014/15 | H10: Budget Year +2 2015/16 | I10: Budget Year +2 2016/17 | J10: Budget Year +2 2017/18 | K10: Budget Year +2 2018/19 | L10: Budget Year +2 2019/20 | M10: Budget Year +2 2020/21 | N10: Budget Year +2 2021/22 | O10: Budget Year +2 2022/23 | Z10: 2010 FIFA World Cup Operating
A11: ='Template names'!C18 -> 1st yr of long term forecast | B11: Forecast 2010/11 | C11: Forecast 2011/12 | D11: Forecast 2012/13 | E11: ="Forecast "&E1+3&"/"&RIGHT(E1,2)+4 -> Forecast 2013/14 | F11: Forecast 2014/15 | G11: Forecast 2015/16 | H11: Forecast 2016/17 | I11: Forecast 2017/18 | J11: Forecast 2018/19 | K11: Forecast 2019/20 | L11: Forecast 2020/21 | M11: Forecast 2021/22 | N11: Forecast 2022/23 | O11: Forecast 2023/24 | Z11: Electricity Demand Side Management
A12: ='Template names'!C19 -> Next yr of long term forecast | B12: Forecast 2011/12 | C12: Forecast 2012/13 | D12: Forecast 2013/14 | E12: ="Forecast "&E1+4&"/"&RIGHT(E1,2)+5 -> Forecast 2014/15 | F12: Forecast 2015/16 | G12: Forecast 2016/17 | H12: Forecast 2017/18 | I12: Forecast 2018/19 | J12: Forecast 2019/20 | K12: Forecast 2020/21 | L12: Forecast 2021/22 | M12: Forecast 2022/23 | N12: Forecast 2023/24 | O12: Forecast 2024/25 | Z12: EPWP Incentive
A13: ='Template names'!C20 -> Next yr of long term forecast | B13: Forecast 2012/13 | C13: Forecast 2013/14 | D13: Forecast 2014/15 | E13: ="Forecast "&E1+5&"/"&RIGHT(E1,2)+6 -> Forecast 2015/16 | F13: Forecast 2016/17 | G13: Forecast 2017/18 | H13: Forecast 2018/19 | I13: Forecast 2019/20 | J13: Forecast 2020/21 | K13: Forecast 2021/22 | L13: Forecast 2022/23 | M13: Forecast 2023/24 | N13: Forecast 2024/25 | O13: Forecast 2025/26
A14: ='Template names'!C21 -> Next yr of long term forecast | B14: Forecast 2013/14 | C14: Forecast 2014/15 | D14: Forecast 2015/16 | E14: ="Forecast "&E1+6&"/"&RIGHT(E1,2)+7 -> Forecast 2016/17 | F14: Forecast 2017/18 | G14: Forecast 2018/19 | H14: Forecast 2019/20 | I14: Forecast 2020/21 | J14: Forecast 2021/22 | K14: Forecast 2022/23 | L14: Forecast 2023/24 | M14: Forecast 2024/25 | N14: Forecast 2025/26 | O14: Forecast 2026/27 | Z14: Asset Class | AA14: Asset sub-class old | AB14: Asset sub-class
A15: ='Template names'!C22 -> Next yr of long term forecast | B15: Forecast 2014/15 | C15: Forecast 2015/16 | D15: Forecast 2016/17 | E15: ="Forecast "&E1+7&"/"&RIGHT(E1,2)+8 -> Forecast 2017/18 | F15: Forecast 2018/19 | G15: Forecast 2019/20 | H15: Forecast 2020/21 | I15: Forecast 2021/22 | J15: Forecast 2022/23 | K15: Forecast 2023/24 | L15: Forecast 2024/25 | M15: Forecast 2025/26 | N15: Forecast 2026/27 | O15: Forecast 2027/28
A16: ='Template names'!C23 -> Next yr of long term forecast | B16: Forecast 2015/16 | C16: Forecast 2016/17 | D16: Forecast 2017/18 | E16: ="Forecast "&E1+8&"/"&RIGHT(E1,2)+9 -> Forecast 2018/19 | F16: Forecast 2019/20 | G16: Forecast 2020/21 | H16: Forecast 2021/22 | I16: Forecast 2022/23 | J16: Forecast 2023/24 | K16: Forecast 2024/25 | L16: Forecast 2025/26 | M16: Forecast 2026/27 | N16: Forecast 2027/28 | O16: Forecast 2028/29 | Z16: Roads Infrastructure | AA16: Roads, Pavements & Bridges | AB16: Roads
A17: ='Template names'!C24 -> Next yr of long term forecast | B17: Forecast 2016/17 | C17: Forecast 2017/18 | D17: Forecast 2018/19 | E17: ="Forecast "&E1+9&"/"&RIGHT(E1,2)+10 -> Forecast 2019/20 | F17: Forecast 2020/21 | G17: Forecast 2021/22 | H17: Forecast 2022/23 | I17: Forecast 2023/24 | J17: Forecast 2024/25 | K17: Forecast 2025/26 | L17: Forecast 2026/27 | M17: Forecast 2027/28 | N17: Forecast 2028/29 | O17: Forecast 2029/30 | Z17: Storm water Infrastructure | AA17: Storm water | AB17: Road Structures
A18: ='Template names'!C25 -> Next yr of long term forecast | B18: Forecast 2017/18 | C18: Forecast 2018/19 | D18: Forecast 2019/20 | E18: ="Forecast "&E1+10&"/"&RIGHT(E1,2)+11 -> Forecast 2020/21 | F18: Forecast 2021/22 | G18: Forecast 2022/23 | H18: Forecast 2023/24 | I18: Forecast 2024/25 | J18: Forecast 2025/26 | K18: Forecast 2026/27 | L18: Forecast 2027/28 | M18: Forecast 2028/29 | N18: Forecast 2029/30 | O18: Forecast 2030/31 | Z18: Electrical Infrastructure | AA18: Generation | AB18: Road Furniture
A19: ='Template names'!C26 -> Next yr of long term forecast | B19: Forecast 2018/19 | C19: Forecast 2019/20 | D19: Forecast 2020/21 | E19: ="Forecast "&E1+11&"/"&RIGHT(E1,2)+12 -> Forecast 2021/22 | F19: Forecast 2022/23 | G19: Forecast 2023/24 | H19: Forecast 2024/25 | I19: Forecast 2025/26 | J19: Forecast 2026/27 | K19: Forecast 2027/28 | L19: Forecast 2028/29 | M19: Forecast 2029/30 | N19: Forecast 2030/31 | O19: Forecast 2031/32 | Z19: Water Supply Infrastructure | AA19: Transmission & Reticulation | AB19: Capital Spares
A20: ='Template names'!C27 -> Next yr of long term forecast | B20: Forecast 2019/20 | C20: Forecast 2020/21 | D20: Forecast 2021/22 | E20: ="Forecast "&E1+12&"/"&RIGHT(E1,2)+13 -> Forecast 2022/23 | F20: Forecast 2023/24 | G20: Forecast 2024/25 | H20: Forecast 2025/26 | I20: Forecast 2026/27 | J20: Forecast 2027/28 | K20: Forecast 2028/29 | L20: Forecast 2029/30 | M20: Forecast 2030/31 | N20: Forecast 2031/32 | O20: Forecast 2032/33 | Z20: Sanitation Infrastructure | AA20: Street Lighting | AB20: Drainage Collection
A21: ='Template names'!C28 -> Next yr of long term forecast | B21: Forecast 2020/21 | C21: Forecast 2021/22 | D21: Forecast 2022/23 | E21: ="Forecast "&E1+13&"/"&RIGHT(E1,2)+14 -> Forecast 2023/24 | F21: Forecast 2024/25 | G21: Forecast 2025/26 | H21: Forecast 2026/27 | I21: Forecast 2027/28 | J21: Forecast 2028/29 | K21: Forecast 2029/30 | L21: Forecast 2030/31 | M21: Forecast 2031/32 | N21: Forecast 2032/33 | O21: Forecast 2033/34 | Z21: Solid Waste Infrastructure | AA21: Dams & Reservoirs | AB21: Storm water Conveyance
A22: ='Template names'!C29 -> Next yr of long term forecast | B22: Forecast 2021/22 | C22: Forecast 2022/23 | D22: Forecast 2023/24 | E22: ="Forecast "&E1+14&"/"&RIGHT(E1,2)+15 -> Forecast 2024/25 | F22: Forecast 2025/26 | G22: Forecast 2026/27 | H22: Forecast 2027/28 | I22: Forecast 2028/29 | J22: Forecast 2029/30 | K22: Forecast 2030/31 | L22: Forecast 2031/32 | M22: Forecast 2032/33 | N22: Forecast 2033/34 | O22: Forecast 2034/35 | Z22: Rail Infrastructure | AA22: Water purification | AB22: Attenuation
A23: Adjustments Budget | B23: Annual target 2007/08 | C23: Annual target 2008/09 | D23: Annual target 2009/10 | E23: ="Annual target " & E1&"/"&RIGHT(E1,2)+1 -> Annual target 2010/11 | F23: Annual target 2011/12 | G23: Annual target 2012/13 | H23: Annual target 2013/14 | I23: Annual target 2014/15 | J23: Annual target 2015/16 | K23: Annual target 2016/17 | L23: Annual target 2017/18 | M23: Annual target 2018/19 | N23: Annual target 2019/20 | O23: Annual target 2020/21 | Z23: Coastal Infrastructure | AA23: Reticulation | AB23: Power Plants
A24: =A23 -> Adjustments Budget | B24: Revised target 2007/08 | C24: Revised target 2008/09 | D24: Revised target 2009/10 | E24: ="Revised target "& E1&"/"&RIGHT(E1,2)+1 -> Revised target 2010/11 | F24: Revised target 2011/12 | G24: Revised target 2012/13 | H24: Revised target 2013/14 | I24: Revised target 2014/15 | J24: Revised target 2015/16 | K24: Revised target 2016/17 | L24: Revised target 2017/18 | M24: Revised target 2018/19 | N24: Revised target 2019/20 | O24: Revised target 2020/21 | Z24: Information and Communication Infrastructure | AA24: Sewerage purification | AB24: HV Substations
A25: NOTE: This sheet should not be directly amended - select headings from sheet 'S' | Z25: Community Facilities | AA25: Waste Management | AB25: HV Switching Station
Z26: Sport and Recreation Facilities | AA26: Transportation | AB26: HV Transmission Conductors
A27: Name link | B27: 192 | Z27: Heritage assets | AA27: Gas | AB27: MV Substations
A28: Name of Muni | B28: =INDEX(B29:B307,B27,1) -> NC076 Thembelihle | Z28: Revenue Generating | AA28: Parks & gardens | AB28: MV Switching Stations
B29: Choose name from list | C29: Set name on 'Instructions' sheet | Z29: Non-revenue Generating | AA29: Sportsfields & stadia | AB29: MV Networks
B30: BUF Buffalo City | C30: EC EASTERN CAPE | Z30: Operational Buildings | AA30: Swimming pools | AB30: LV Networks
B31: NMA Nelson Mandela Bay | C31: EC EASTERN CAPE | Z31: Housing | AA31: Community halls | AB31: Capital Spares
B32: EC101 Dr. Beyers Naude | C32: EC EASTERN CAPE | Z32: Biological or Cultivated Assets | AA32: Libraries | AB32: Dams and Weirs
B33: EC102 Blue Crane Route | C33: EC EASTERN CAPE | Z33: Servitudes | AA33: Recreational facilities | AB33: Boreholes
B34: EC104 Makana | C34: EC EASTERN CAPE | Z34: Licences and Rights | AA34: Fire, safety & emergency | AB34: Reservoirs
B35: EC105 Ndlambe | C35: EC EASTERN CAPE | Z35: Computer Equipment | AA35: Security and policing | AB35: Pump Stations
B36: EC106 Sundays River Valley | C36: EC EASTERN CAPE | Z36: Furniture and Office Equipment | AA36: Buses | AB36: Water Treatment Works
B37: EC108 Kouga | C37: EC EASTERN CAPE | Z37: Machinery and Equipment | AA37: Clinics | AB37: Bulk Mains
B38: EC109 Kou-Kamma | C38: EC EASTERN CAPE | Z38: Transport Assets | AA38: Museums & Art Galleries | AB38: Distribution
B39: DC10 Sarah Baartman | C39: EC EASTERN CAPE | Z39: Libraries | AA39: Cemeteries | AB39: Distribution Points
B40: EC121 Mbhashe | C40: EC EASTERN CAPE | Z40: Zoo's, Marine and Non-biological Animals | AA40: Social rental housing | AB40: PRV Stations
B41: EC122 Mnquma | C41: EC EASTERN CAPE | AA41: Buildings | AB41: Capital Spares
B42: EC123 Great Kei | C42: EC EASTERN CAPE | AA42: Housing development | AB42: Pump Station
B43: EC124 Amahlathi | C43: EC EASTERN CAPE | AA43: General vehicles | AB43: Reticulation
B44: EC126 Ngqushwa | C44: EC EASTERN CAPE | AA44: Specialised vehicles - Refuse | AB44: Waste Water Treatment Works
B45: EC129 Raymond Mhlaba | C45: EC EASTERN CAPE | AA45: Specialised vehicles - Fire | AB45: Outfall Sewers
B46: DC12 Amathole | C46: EC EASTERN CAPE | AA46: Specialised vehicles - Conservancy | AB46: Toilet Facilities
B47: EC131 Inxuba Yethemba | C47: EC EASTERN CAPE | AA47: Specialised vehicles - Ambulances | AB47: Capital Spares
B48: EC135 Intsika Yethu | C48: EC EASTERN CAPE | AA48: Plant & equipment | AB48: Landfill Sites
B49: EC136 Emalahleni (Ec) | C49: EC EASTERN CAPE | AA49: Computers - hardware/equipment | AB49: Waste Transfer Stations
B50: EC137 Engcobo | C50: EC EASTERN CAPE | AA50: Furniture and other office equipment | AB50: Waste Processing Facilities
B51: EC138 Sakhisizwe | C51: EC EASTERN CAPE | AA51: Abattoirs | AB51: Waste Drop-off Points
B52: EC139 Enoch Mgijima | C52: EC EASTERN CAPE | AA52: Markets | AB52: Waste Separation Facilities
B53: DC13 Chris Hani | C53: EC EASTERN CAPE | AA53: Civic Land and Buildings | AB53: Electricity Generation Facilities
B54: EC141 Elundini | C54: EC EASTERN CAPE | AA54: Other Buildings | AB54: Capital Spares
B55: EC142 Senqu | C55: EC EASTERN CAPE | AA55: Other Land | AB55: Rail Lines
B56: EC145 Walter Sisulu | C56: EC EASTERN CAPE | AA56: Surplus Assets - (Investment or Inventory) | AB56: Rail Structures
B57: DC14 Joe Gqabi | C57: EC EASTERN CAPE | AA57: Computers - software & programming | AB57: Rail Furniture
B58: EC153 Ngquza Hills | C58: EC EASTERN CAPE | AA58: Other | AB58: Drainage Collection
B59: EC154 Port St Johns | C59: EC EASTERN CAPE | AB59: Storm water Conveyance
B60: EC155 Nyandeni | C60: EC EASTERN CAPE | Z60: SA16 - Investments | AB60: Attenuation
B61: EC156 Mhlontlo | C61: EC EASTERN CAPE | Z61: Security | AA61: Interest rate | AB61: MV Substations
B62: EC157 King Sabata Dalindyebo | C62: EC EASTERN CAPE | Z62: Yes | AA62: Fixed | AB62: LV Networks
B63: DC15 O .R. Tambo | C63: EC EASTERN CAPE | Z63: No | AA63: Variable | AB63: Capital Spares
B64: EC441 Matatiele | C64: EC EASTERN CAPE | AB64: Sand Pumps
B65: EC442 Umzimvubu | C65: EC EASTERN CAPE | AB65: Piers
B66: EC443 Mbizana | C66: EC EASTERN CAPE | Z66: SA36, SA37 - Capital projects | AB66: Revetments
B67: EC444 Ntabankulu | C67: EC EASTERN CAPE | Z67: Yes | AB67: Promenades
B68: DC44 Alfred Nzo | C68: EC EASTERN CAPE | Z68: No | AB68: Capital Spares
B69: MAN Mangaung | C69: FS FREE STATE | AB69: Data Centres
B70: FS161 Letsemeng | C70: FS FREE STATE | AB70: Core Layers
B71: FS162 Kopanong | C71: FS FREE STATE | AB71: Distribution Layers
B72: FS163 Mohokare | C72: FS FREE STATE | AB72: Capital Spares
B73: DC16 Xhariep | C73: FS FREE STATE | AB73: Halls
B74: FS181 Masilonyana | C74: FS FREE STATE | AB74: Centres
B75: FS182 Tokologo | C75: FS FREE STATE | AB75: Crèches
B76: FS183 Tswelopele | C76: FS FREE STATE | AB76: Clinics/Care Centres
B77: FS184 Matjhabeng | C77: FS FREE STATE | AB77: Fire/Ambulance Stations
B78: FS185 Nala | C78: FS FREE STATE | AB78: Testing Stations
B79: DC18 Lejweleputswa | C79: FS FREE STATE | AB79: Museums
B80: FS191 Setsoto | C80: FS FREE STATE | AB80: Galleries
B81: FS192 Dihlabeng | C81: FS FREE STATE | AB81: Theatres
B82: FS193 Nketoana | C82: FS FREE STATE | AB82: Libraries
B83: FS194 Maluti-a-Phofung | C83: FS FREE STATE | AB83: Cemeteries/Crematoria
B84: FS195 Phumelela | C84: FS FREE STATE | AB84: Police
B85: FS196 Mantsopa | C85: FS FREE STATE | AB85: Purls
B86: DC19 Thabo Mofutsanyana | C86: FS FREE STATE | AB86: Public Open Space
B87: FS201 Moqhaka | C87: FS FREE STATE | AB87: Nature Reserves
B88: FS203 Ngwathe | C88: FS FREE STATE | AB88: Public Ablution Facilities
B89: FS204 Metsimaholo | C89: FS FREE STATE | AB89: Markets
B90: FS205 Mafube | C90: FS FREE STATE | AB90: Stalls
B91: DC20 Fezile Dabi | C91: FS FREE STATE | AB91: Abattoirs
B92: EKU Ekurhuleni Metro | C92: GT GAUTENG | AB92: Airports
B93: JHB City Of Johannesburg | C93: GT GAUTENG | AB93: Taxi Ranks/Bus Terminals
B94: TSH City Of Tshwane | C94: GT GAUTENG | AB94: Capital Spares
B95: GT421 Emfuleni | C95: GT GAUTENG | AB95: Indoor Facilities
B96: GT422 Midvaal | C96: GT GAUTENG | AB96: Outdoor Facilities
B97: GT423 Lesedi | C97: GT GAUTENG | AB97: Capital Spares
B98: DC42 Sedibeng | C98: GT GAUTENG | AB98: Monuments
B99: GT481 Mogale City | C99: GT GAUTENG | AB99: Historic Buildings
B100: GT484 Merafong City | C100: GT GAUTENG | AB100: Works of Art
B101: GT485 Rand West City | C101: GT GAUTENG | AB101: Conservation Areas
B102: DC48 West Rand | C102: GT GAUTENG | AB102: Other Heritage
B103: ETH eThekwini | C103: KZN KWAZULU-NATAL | AB103: Improved Property
B104: KZN212 Umdoni | C104: KZN KWAZULU-NATAL | AB104: Unimproved Property
B105: KZN213 Umzumbe | C105: KZN KWAZULU-NATAL | AB105: Municipal Offices
B106: KZN214 uMuziwabantu | C106: KZN KWAZULU-NATAL | AB106: Pay/Enquiry Points
B107: KZN216 Ray Nkonyeni | C107: KZN KWAZULU-NATAL | AB107: Building Plan Offices
B108: DC21 Ugu | C108: KZN KWAZULU-NATAL | AB108: Workshops
B109: KZN221 uMshwathi | C109: KZN KWAZULU-NATAL | AB109: Yards
B110: KZN222 uMngeni | C110: KZN KWAZULU-NATAL | AB110: Stores
B111: KZN223 Mpofana | C111: KZN KWAZULU-NATAL | AB111: Laboratories
B112: KZN224 Impendle | C112: KZN KWAZULU-NATAL | AB112: Training Centres
B113: KZN225 Msunduzi | C113: KZN KWAZULU-NATAL | AB113: Manufacturing Plant
B114: KZN226 Mkhambathini | C114: KZN KWAZULU-NATAL | AB114: Depots
B115: KZN227 Richmond | C115: KZN KWAZULU-NATAL | AB115: Capital Spares
B116: DC22 uMgungundlovu | C116: KZN KWAZULU-NATAL | AB116: Staff Housing
B117: KZN235 Okhahlamba | C117: KZN KWAZULU-NATAL | AB117: Social Housing
B118: KZN237 Inkosi Langalibalele | C118: KZN KWAZULU-NATAL | AB118: Capital Spares
B119: KZN238 Alfred Duma | C119: KZN KWAZULU-NATAL | AB119: Water Rights
B120: DC23 Uthukela | C120: KZN KWAZULU-NATAL | AB120: Effluent Licenses
B121: KZN241 Endumeni | C121: KZN KWAZULU-NATAL | AB121: Solid Waste Licenses
B122: KZN242 Nquthu | C122: KZN KWAZULU-NATAL | AB122: Computer Software and Applications
B123: KZN244 Msinga | C123: KZN KWAZULU-NATAL | AB123: Load Settlement Software Applications
B124: KZN245 Umvoti | C124: KZN KWAZULU-NATAL | AB124: Unspecified
B125: DC24 Umzinyathi | C125: KZN KWAZULU-NATAL
B126: KZN252 Newcastle | C126: KZN KWAZULU-NATAL
B127: KZN253 eMadlangeni | C127: KZN KWAZULU-NATAL
B128: KZN254 Dannhauser | C128: KZN KWAZULU-NATAL
B129: DC25 Amajuba | C129: KZN KWAZULU-NATAL
B130: KZN261 eDumbe | C130: KZN KWAZULU-NATAL
B131: KZN262 uPhongolo | C131: KZN KWAZULU-NATAL
B132: KZN263 Abaqulusi | C132: KZN KWAZULU-NATAL
B133: KZN265 Nongoma | C133: KZN KWAZULU-NATAL
B134: KZN266 Ulundi | C134: KZN KWAZULU-NATAL
B135: DC26 Zululand | C135: KZN KWAZULU-NATAL
B136: KZN271 Umhlabuyalingana | C136: KZN KWAZULU-NATAL
B137: KZN272 Jozini | C137: KZN KWAZULU-NATAL
B138: KZN275 Mtubatuba | C138: KZN KWAZULU-NATAL
B139: KZN276 The New Big 5 False Bay | C139: KZN KWAZULU-NATAL
B140: DC27 Umkhanyakude | C140: KZN KWAZULU-NATAL
B141: KZN281 Mfolozi | C141: KZN KWAZULU-NATAL
B142: KZN282 uMhlathuze | C142: KZN KWAZULU-NATAL
B143: KZN284 uMlalazi | C143: KZN KWAZULU-NATAL
B144: KZN285 Mthonjaneni | C144: KZN KWAZULU-NATAL
B145: KZN286 Nkandla | C145: KZN KWAZULU-NATAL
B146: DC28 King Cetshwayo | C146: KZN KWAZULU-NATAL
B147: KZN291 Mandeni | C147: KZN KWAZULU-NATAL
B148: KZN292 KwaDukuza | C148: KZN KWAZULU-NATAL
B149: KZN293 Ndwedwe | C149: KZN KWAZULU-NATAL
B150: KZN294 Maphumulo | C150: KZN KWAZULU-NATAL
B151: DC29 iLembe | C151: KZN KWAZULU-NATAL
B152: KZN433 Greater Kokstad | C152: KZN KWAZULU-NATAL
B153: KZN434 Ubuhlebezwe | C153: KZN KWAZULU-NATAL
B154: KZN435 Umzimkhulu | C154: KZN KWAZULU-NATAL
B155: KZN436 Dr Nkosazana Dlamini Zuma | C155: KZN KWAZULU-NATAL
B156: DC43 Harry Gwala | C156: KZN KWAZULU-NATAL
B157: LIM331 Greater Giyani | C157: LIM LIMPOPO
B158: LIM332 Greater Letaba | C158: LIM LIMPOPO
B159: LIM333 Greater Tzaneen | C159: LIM LIMPOPO
B160: LIM334 Ba-Phalaborwa | C160: LIM LIMPOPO
B161: LIM335 Maruleng | C161: LIM LIMPOPO
B162: DC33 Mopani | C162: LIM LIMPOPO
B163: LIM341 Musina | C163: LIM LIMPOPO
B164: LIM343 Thulamela | C164: LIM LIMPOPO
B165: LIM344 Makhado | C165: LIM LIMPOPO
B166: LIM345 Makhado-Thulamela | C166: LIM LIMPOPO
B167: DC34 Vhembe | C167: LIM LIMPOPO
B168: LIM351 Blouberg | C168: LIM LIMPOPO
B169: LIM353 Molemole | C169: LIM LIMPOPO
B170: LIM354 Polokwane | C170: LIM LIMPOPO
B171: LIM355 Lepelle-Nkumpi | C171: LIM LIMPOPO
B172: DC35 Capricorn | C172: LIM LIMPOPO
B173: LIM361 Thabazimbi | C173: LIM LIMPOPO
B174: LIM362 Lephalale | C174: LIM LIMPOPO
B175: LIM366 Bela Bela | C175: LIM LIMPOPO
B176: LIM367 Mogalakwena | C176: LIM LIMPOPO
B177: LIM368 Modimolle-Mookgopong | C177: LIM LIMPOPO
B178: DC36 Waterberg | C178: LIM LIMPOPO
B179: LIM471 Ephraim Mogale | C179: LIM LIMPOPO
B180: LIM472 Elias Motsoaledi | C180: LIM LIMPOPO
B181: LIM473 Makhuduthamaga | C181: LIM LIMPOPO
B182: LIM476 Fetakgomo-Tubatse | C182: LIM LIMPOPO
B183: DC47 Sekhukhune | C183: LIM LIMPOPO
B184: MP301 Albert Luthuli | C184: MP MPUMALANGA
B185: MP302 Msukaligwa | C185: MP MPUMALANGA
B186: MP303 Mkhondo | C186: MP MPUMALANGA
B187: MP304 Pixley Ka Seme (MP) | C187: MP MPUMALANGA
B188: MP305 Lekwa | C188: MP MPUMALANGA
B189: MP306 Dipaleseng | C189: MP MPUMALANGA
B190: MP307 Govan Mbeki | C190: MP MPUMALANGA
B191: DC30 Gert Sibande | C191: MP MPUMALANGA
B192: MP311 Victor Khanye | C192: MP MPUMALANGA
B193: MP312 Emalahleni (Mp) | C193: MP MPUMALANGA
B194: MP313 Steve Tshwete | C194: MP MPUMALANGA
B195: MP314 Emakhazeni | C195: MP MPUMALANGA
B196: MP315 Thembisile Hani | C196: MP MPUMALANGA
B197: MP316 Dr J.S. Moroka | C197: MP MPUMALANGA
B198: DC31 Nkangala | C198: MP MPUMALANGA
B199: MP321 Thaba Chweu | C199: MP MPUMALANGA
B200: MP324 Nkomazi | C200: MP MPUMALANGA
... 87 more rows

Sheet Org structure
A1: Organisational Structure Votes | C1: Organisational Structure Sub-Votes | E1: Display Sub-Votes
A2: =B2&" - "&C2 -> Vote 1 - Executive Council | B2: Vote 1 | C2: Executive Council
A3: =B13&" - "& C13 -> Vote 2 - Budget & Treasury | B3: 1.1 | C3: Council | D3: =CONCATENATE(B3, " - ", C3) -> 1.1 - Council | E3: 1.1 - Council
A4: =B24&" - "&C24 -> Vote 3 - Corporate Service | B4: 1.2 | C4: Municipal Manager | D4: 1.2 - Municipal Manager | E4: 1.2 - Municipal Manager
A5: =B35&" - "&C35 -> Vote 4 - Community & Social Service | D5: -
A6: =B46&" - "&C46 -> Vote 5 - Public Safety | D6: -
A7: =B57&" - "&C57 -> Vote 6 - Planning & Development | D7: -
A8: =B68&" - "&C68 -> Vote 7 - Road Transport | D8: -
A9: =B79&" - "&C79 -> Vote 8 - Electricity | D9: -
A10: =B90&" - "&C90 -> Vote 9 - Water | D10: -
A11: =B101&" - "&C101 -> Vote 10 - Waste Water Management | D11: -
A12: =B112&" - "&C112 -> Vote 11 - Waste Management | D12: -
B13: Vote 2 | C13: Budget & Treasury
B14: 2.1 | C14: Budget & Treasury | D14: =CONCATENATE(B14, " - ", C14) -> 2.1 - Budget & Treasury | E14: 2.1 - Budget & Treasury
A15: =B145&" - "&C145 -> Vote 14 - [NAME OF VOTE 14] | B15: 2.2 | C15: [Name of sub-vote] | D15: 2.2 - [Name of sub-vote]
A16: =B156&" - "&C156 -> Vote 15 - [NAME OF VOTE 15] | B16: 2.3 | C16: [Name of sub-vote] | D16: 2.3 - [Name of sub-vote]
B17: 2.4 | C17: [Name of sub-vote] | D17: 2.4 - [Name of sub-vote]
B18: 2.5 | C18: [Name of sub-vote] | D18: 2.5 - [Name of sub-vote]
B19: 2.6 | C19: [Name of sub-vote] | D19: 2.6 - [Name of sub-vote]
B20: 2.7 | C20: [Name of sub-vote] | D20: 2.7 - [Name of sub-vote]
B21: 2.8 | C21: [Name of sub-vote] | D21: 2.8 - [Name of sub-vote]
B22: 2.9 | C22: [Name of sub-vote] | D22: 2.9 - [Name of sub-vote]
B23: 2.10 | C23: [Name of sub-vote] | D23: 2.10 - [Name of sub-vote]
B24: Vote 3 | C24: Corporate Service
B25: 3.1 | C25: Administration | D25: =CONCATENATE(B25, " - ", C25) -> 3.1 - Administration | E25: 3.1 - Administration
B26: 3.2 | C26: Fixed Property & Buidling | D26: 3.2 - Fixed Property & Buidling | E26: 3.2 - Fixed Property & Buidling
B27: 3.3 | C27: [Name of sub-vote] | D27: 3.3 - [Name of sub-vote]
B28: 3.4 | C28: [Name of sub-vote] | D28: 3.4 - [Name of sub-vote]
B29: 3.5 | C29: [Name of sub-vote] | D29: 3.5 - [Name of sub-vote]
B30: 3.6 | C30: [Name of sub-vote] | D30: 3.6 - [Name of sub-vote]
B31: 3.7 | C31: [Name of sub-vote] | D31: 3.7 - [Name of sub-vote]
B32: 3.8 | C32: [Name of sub-vote] | D32: 3.8 - [Name of sub-vote]
B33: 3.9 | C33: [Name of sub-vote] | D33: 3.9 - [Name of sub-vote]
B34: 3.10 | C34: [Name of sub-vote] | D34: 3.10 - [Name of sub-vote]
B35: Vote 4 | C35: Community & Social Service
B36: 4.1 | C36: Library | D36: =CONCATENATE(B36, " - ", C36) -> 4.1 - Library | E36: 4.1 - Library
B37: 4.2 | C37: Community | D37: 4.2 - Community | E37: 4.2 - Community
B38: 4.3 | C38: [Name of sub-vote] | D38: 4.3 - [Name of sub-vote]
B39: 4.4 | C39: [Name of sub-vote] | D39: 4.4 - [Name of sub-vote]
B40: 4.5 | C40: [Name of sub-vote] | D40: 4.5 - [Name of sub-vote]
B41: 4.6 | C41: [Name of sub-vote] | D41: 4.6 - [Name of sub-vote]
B42: 4.7 | C42: [Name of sub-vote] | D42: 4.7 - [Name of sub-vote]
B43: 4.8 | C43: [Name of sub-vote] | D43: 4.8 - [Name of sub-vote]
B44: 4.9 | C44: [Name of sub-vote] | D44: 4.9 - [Name of sub-vote]
B45: 4.10 | C45: [Name of sub-vote] | D45: 4.10 - [Name of sub-vote]
B46: Vote 5 | C46: Public Safety
B47: 5.1 | C47: Disaster Management | D47: =CONCATENATE(B47, " - ", C47) -> 5.1 - Disaster Management | E47: 5.1 - Disaster Management
B48: 5.2 | C48: [Name of sub-vote] | D48: 5.2 - [Name of sub-vote]
B49: 5.3 | C49: [Name of sub-vote] | D49: 5.3 - [Name of sub-vote]
B50: 5.4 | C50: [Name of sub-vote] | D50: 5.4 - [Name of sub-vote]
B51: 5.5 | C51: [Name of sub-vote] | D51: 5.5 - [Name of sub-vote]
B52: 5.6 | C52: [Name of sub-vote] | D52: 5.6 - [Name of sub-vote]
B53: 5.7 | C53: [Name of sub-vote] | D53: 5.7 - [Name of sub-vote]
B54: 5.8 | C54: [Name of sub-vote] | D54: 5.8 - [Name of sub-vote]
B55: 5.9 | C55: [Name of sub-vote] | D55: 5.9 - [Name of sub-vote]
B56: 5.10 | C56: [Name of sub-vote] | D56: 5.10 - [Name of sub-vote]
B57: Vote 6 | C57: Planning & Development
B58: 6.1 | C58: Technical | D58: =CONCATENATE(B58, " - ", C58) -> 6.1 - Technical | E58: 6.1 - Technical
B59: 6.2 | C59: Support Service | D59: 6.2 - Support Service | E59: 6.2 - Support Service
B60: 6.3 | C60: PMU | D60: 6.3 - PMU | E60: 6.3 - PMU
B61: 6.4 | C61: [Name of sub-vote] | D61: 6.4 - [Name of sub-vote]
B62: 6.5 | C62: [Name of sub-vote] | D62: 6.5 - [Name of sub-vote]
B63: 6.6 | C63: [Name of sub-vote] | D63: 6.6 - [Name of sub-vote]
B64: 6.7 | C64: [Name of sub-vote] | D64: 6.7 - [Name of sub-vote]
B65: 6.8 | C65: [Name of sub-vote] | D65: 6.8 - [Name of sub-vote]
B66: 6.9 | C66: [Name of sub-vote] | D66: 6.9 - [Name of sub-vote]
B67: 6.10 | C67: [Name of sub-vote] | D67: 6.10 - [Name of sub-vote]
B68: Vote 7 | C68: Road Transport
B69: 7.1 | C69: Traffic | D69: =CONCATENATE(B69, " - ", C69) -> 7.1 - Traffic | E69: 7.1 - Traffic
B70: 7.2 | C70: [Name of sub-vote] | D70: 7.2 - [Name of sub-vote]
B71: 7.3 | C71: [Name of sub-vote] | D71: 7.3 - [Name of sub-vote]
B72: 7.4 | C72: [Name of sub-vote] | D72: 7.4 - [Name of sub-vote]
B73: 7.5 | C73: [Name of sub-vote] | D73: 7.5 - [Name of sub-vote]
B74: 7.6 | C74: [Name of sub-vote] | D74: 7.6 - [Name of sub-vote]
B75: 7.7 | C75: [Name of sub-vote] | D75: 7.7 - [Name of sub-vote]
B76: 7.8 | C76: [Name of sub-vote] | D76: 7.8 - [Name of sub-vote]
B77: 7.9 | C77: [Name of sub-vote] | D77: 7.9 - [Name of sub-vote]
B78: 7.10 | C78: [Name of sub-vote] | D78: 7.10 - [Name of sub-vote]
B79: Vote 8 | C79: Electricity
B80: 8.1 | C80: Electricity | D80: =CONCATENATE(B80, " - ", C80) -> 8.1 - Electricity | E80: 8.1 - Electricity
B81: 8.2 | C81: [Name of sub-vote] | D81: 8.2 - [Name of sub-vote]
B82: 8.3 | C82: [Name of sub-vote] | D82: 8.3 - [Name of sub-vote]
B83: 8.4 | C83: [Name of sub-vote] | D83: 8.4 - [Name of sub-vote]
B84: 8.5 | C84: [Name of sub-vote] | D84: 8.5 - [Name of sub-vote]
B85: 8.6 | C85: [Name of sub-vote] | D85: 8.6 - [Name of sub-vote]
B86: 8.7 | C86: [Name of sub-vote] | D86: 8.7 - [Name of sub-vote]
B87: 8.8 | C87: [Name of sub-vote] | D87: 8.8 - [Name of sub-vote]
B88: 8.9 | C88: [Name of sub-vote] | D88: 8.9 - [Name of sub-vote]
B89: 8.10 | C89: [Name of sub-vote] | D89: 8.10 - [Name of sub-vote]
B90: Vote 9 | C90: Water
B91: 9.1 | C91: Water | D91: =CONCATENATE(B91, " - ", C91) -> 9.1 - Water | E91: 9.1 - Water
B92: 9.2 | C92: [Name of sub-vote] | D92: 9.2 - [Name of sub-vote]
B93: 9.3 | C93: [Name of sub-vote] | D93: 9.3 - [Name of sub-vote]
B94: 9.4 | C94: [Name of sub-vote] | D94: 9.4 - [Name of sub-vote]
B95: 9.5 | C95: [Name of sub-vote] | D95: 9.5 - [Name of sub-vote]
B96: 9.6 | C96: [Name of sub-vote] | D96: 9.6 - [Name of sub-vote]
B97: 9.7 | C97: [Name of sub-vote] | D97: 9.7 - [Name of sub-vote]
B98: 9.8 | C98: [Name of sub-vote] | D98: 9.8 - [Name of sub-vote]
B99: 9.9 | C99: [Name of sub-vote] | D99: 9.9 - [Name of sub-vote]
B100: 9.10 | C100: [Name of sub-vote] | D100: 9.10 - [Name of sub-vote]
B101: Vote 10 | C101: Waste Water Management
B102: 10.1 | C102: Waste Water Management | D102: =CONCATENATE(B102, " - ", C102) -> 10.1 - Waste Water Management | E102: 10.1 - Waste Water Management
B103: 10.2 | C103: [Name of sub-vote] | D103: 10.2 - [Name of sub-vote]
B104: 10.3 | C104: [Name of sub-vote] | D104: 10.3 - [Name of sub-vote]
B105: 10.4 | C105: [Name of sub-vote] | D105: 10.4 - [Name of sub-vote]
B106: 10.5 | C106: [Name of sub-vote] | D106: 10.5 - [Name of sub-vote]
B107: 10.6 | C107: [Name of sub-vote] | D107: 10.6 - [Name of sub-vote]
B108: 10.7 | C108: [Name of sub-vote] | D108: 10.7 - [Name of sub-vote]
B109: 10.8 | C109: [Name of sub-vote] | D109: 10.8 - [Name of sub-vote]
B110: 10.9 | C110: [Name of sub-vote] | D110: 10.9 - [Name of sub-vote]
B111: 10.10 | C111: [Name of sub-vote] | D111: 10.10 - [Name of sub-vote]
B112: Vote 11 | C112: Waste Management
B113: 11.1 | C113: Waste Management | D113: =CONCATENATE(B113, " - ", C113) -> 11.1 - Waste Management | E113: 11.1 - Waste Management
B114: 11.2 | C114: [Name of sub-vote] | D114: 11.2 - [Name of sub-vote]
B115: 11.3 | C115: [Name of sub-vote] | D115: 11.3 - [Name of sub-vote]
B116: 11.4 | C116: [Name of sub-vote] | D116: 11.4 - [Name of sub-vote]
B117: 11.5 | C117: [Name of sub-vote] | D117: 11.5 - [Name of sub-vote]
B118: 11.6 | C118: [Name of sub-vote] | D118: 11.6 - [Name of sub-vote]
B119: 11.7 | C119: [Name of sub-vote] | D119: 11.7 - [Name of sub-vote]
B120: 11.8 | C120: [Name of sub-vote] | D120: 11.8 - [Name of sub-vote]
B121: 11.9 | C121: [Name of sub-vote] | D121: 11.9 - [Name of sub-vote]
B122: 11.10 | C122: [Name of sub-vote] | D122: 11.10 - [Name of sub-vote]
B123: Vote 12 | C123: [NAME OF VOTE 12]
B124: 12.1 | C124: [Name of sub-vote] | D124: =CONCATENATE(B124, " - ", C124) -> 12.1 - [Name of sub-vote] | E124: 12.1 - [Name of sub-vote]
B125: 12.2 | C125: [Name of sub-vote] | D125: 12.2 - [Name of sub-vote]
B126: 12.3 | C126: [Name of sub-vote] | D126: 12.3 - [Name of sub-vote]
B127: 12.4 | C127: [Name of sub-vote] | D127: 12.4 - [Name of sub-vote]
B128: 12.5 | C128: [Name of sub-vote] | D128: 12.5 - [Name of sub-vote]
B129: 12.6 | C129: [Name of sub-vote] | D129: 12.6 - [Name of sub-vote]
B130: 12.7 | C130: [Name of sub-vote] | D130: 12.7 - [Name of sub-vote]
B131: 12.8 | C131: [Name of sub-vote] | D131: 12.8 - [Name of sub-vote]
B132: 12.9 | C132: [Name of sub-vote] | D132: 12.9 - [Name of sub-vote]
B133: 12.10 | C133: [Name of sub-vote] | D133: 12.10 - [Name of sub-vote]
B134: Vote 13 | C134: [NAME OF VOTE 13]
B135: 13.1 | C135: [Name of sub-vote] | D135: =CONCATENATE(B135, " - ", C135) -> 13.1 - [Name of sub-vote] | E135: 13.1 - [Name of sub-vote]
B136: 13.2 | C136: [Name of sub-vote] | D136: 13.2 - [Name of sub-vote]
B137: 13.3 | C137: [Name of sub-vote] | D137: 13.3 - [Name of sub-vote]
B138: 13.4 | C138: [Name of sub-vote] | D138: 13.4 - [Name of sub-vote]
B139: 13.5 | C139: [Name of sub-vote] | D139: 13.5 - [Name of sub-vote]
B140: 13.6 | C140: [Name of sub-vote] | D140: 13.6 - [Name of sub-vote]
B141: 13.7 | C141: [Name of sub-vote] | D141: 13.7 - [Name of sub-vote]
B142: 13.8 | C142: [Name of sub-vote] | D142: 13.8 - [Name of sub-vote]
B143: 13.9 | C143: [Name of sub-vote] | D143: 13.9 - [Name of sub-vote]
B144: 13.10 | C144: [Name of sub-vote] | D144: 13.10 - [Name of sub-vote]
B145: Vote 14 | C145: [NAME OF VOTE 14]
B146: 14.1 | C146: [Name of sub-vote] | D146: =CONCATENATE(B146, " - ", C146) -> 14.1 - [Name of sub-vote] | E146: 14.1 - [Name of sub-vote]
B147: 14.2 | C147: [Name of sub-vote] | D147: 14.2 - [Name of sub-vote]
B148: 14.3 | C148: [Name of sub-vote] | D148: 14.3 - [Name of sub-vote]
B149: 14.4 | C149: [Name of sub-vote] | D149: 14.4 - [Name of sub-vote]
B150: 14.5 | C150: [Name of sub-vote] | D150: 14.5 - [Name of sub-vote]
B151: 14.6 | C151: [Name of sub-vote] | D151: 14.6 - [Name of sub-vote]
B152: 14.7 | C152: [Name of sub-vote] | D152: 14.7 - [Name of sub-vote]
B153: 14.8 | C153: [Name of sub-vote] | D153: 14.8 - [Name of sub-vote]
B154: 14.9 | C154: [Name of sub-vote] | D154: 14.9 - [Name of sub-vote]
B155: 14.10 | C155: [Name of sub-vote] | D155: 14.10 - [Name of sub-vote]
B156: Vote 15 | C156: [NAME OF VOTE 15]
B157: 15.1 | C157: [Name of sub-vote] | D157: =CONCATENATE(B157, " - ", C157) -> 15.1 - [Name of sub-vote] | E157: 15.1 - [Name of sub-vote]
B158: 15.2 | C158: [Name of sub-vote] | D158: 15.2 - [Name of sub-vote]
B159: 15.3 | C159: [Name of sub-vote] | D159: 15.3 - [Name of sub-vote]
B160: 15.4 | C160: [Name of sub-vote] | D160: 15.4 - [Name of sub-vote]
B161: 15.5 | C161: [Name of sub-vote] | D161: 15.5 - [Name of sub-vote]
B162: 15.6 | C162: [Name of sub-vote] | D162: 15.6 - [Name of sub-vote]
B163: 15.7 | C163: [Name of sub-vote] | D163: 15.7 - [Name of sub-vote]
B164: 15.8 | C164: [Name of sub-vote] | D164: 15.8 - [Name of sub-vote]
B165: 15.9 | C165: [Name of sub-vote] | D165: 15.9 - [Name of sub-vote]
B166: 15.10 | C166: [Name of sub-vote] | D166: 15.10 - [Name of sub-vote]

Sheet Contacts
A1: =muni&" - "&" Contact Information" -> NC076 Thembelihle - Contact Information
A3: A. GENERAL INFORMATION
A4: Municipality | B4: =muni -> NC076 Thembelihle | C4: =IF(B4="Choose name from List","Set name on 'Instructions' sheet", "") -> 
A6: Grade | B6: 2 | C6: 1 Grade in terms of the Remuneration of Public Office Bearers Act.
A8: Province | B8: =IF(B4>" ",VLOOKUP(B4,'Lookup and lists'!B29:C307,2, FALSE)," ") -> NC NORTHERN CAPE
A10: Web Address | B10: www.thembelihlemunicipality.gov.za
A12: e-mail Address | B12: mmogale@thembelihlemunicipality.gov.za
A14: B. CONTACT INFORMATION
A15: Postal address:
A16: P.O. Box | B16: Private Bag X3
A17: City / Town | B17: Hopetown
A18: Postal Code
A20: Street address
A21: Building | B21: Thembelihle Municipality
A22: Street No. & Name | B22: Church Street and Market Street
A23: City / Town | B23: Hopetown
A24: Postal Code
A26: General Contacts
A27: Telephone number | B27: 053 203 0005/8
A28: Fax number | B28: 053 203 0409
A30: C. POLITICAL LEADERSHIP
A31: Speaker: | C31: Secretary/PA to the Speaker:
A32: ID Number | C32: ID Number
A33: Title | C33: Title
A34: Name | C34: Name
A35: Telephone number | C35: Telephone number
A36: Cell number | C36: Cell number
A37: Fax number | C37: Fax number
A38: E-mail address | C38: E-mail address
A40: Mayor/Executive Mayor: | C40: Secretary/PA to the Mayor/Executive Mayor:
A41: ID Number | C41: ID Number
A42: Title | C42: Title
A43: Name | B43: B Mpamba | C43: Name | D43: N Marosane
A44: Telephone number | B44: 0532030052 | C44: Telephone number | D44: 0532030005
A45: Cell number | B45: 0716796002 | C45: Cell number | D45: 0605001759
A46: Fax number | B46: 0532030083 | C46: Fax number | D46: 0532030490
A47: E-mail address | B47: bmpamba@thembelihlemunicipality.gov.za | C47: E-mail address | D47: nmarosane@thembelihlemunicipality.gov.za
A49: Deputy Mayor/Executive Mayor: | C49: Secretary/PA to the Deputy Mayor/Executive Mayor:
A50: ID Number | C50: ID Number
A51: Title | C51: Title
A52: Name | C52: Name | D52: C Mogalie
A53: Telephone number | C53: Telephone number | D53: 0532030005
A54: Cell number | C54: Cell number | D54: 0605001759
A55: Fax number | C55: Fax number | D55: 0532030490
A56: E-mail address | C56: E-mail address | D56: cmogalie@thembelihlemunicipality.gov.za
A58: D. MANAGEMENT LEADERSHIP
A59: Municipal Manager: | C59: Secretary/PA to the Municipal Manager:
A60: ID Number | C60: ID Number
A61: Title | B61: Mr. | C61: Title
A62: Name | B62: M Mogale | C62: Name | D62: C Mogalie
A63: Telephone number | B63: 053 203 0005 | C63: Telephone number | D63: 0532030005
A64: Cell number | B64: 060 500 1759 | C64: Cell number | D64: 0605001759
A65: Fax number | B65: 053 203 0490 | C65: Fax number | D65: 0532030490
A66: E-mail address | B66: mmogale@thembelihlemunicipality.gov.za | C66: E-mail address | D66: cmogalie@thembelihlemunicipality.gov.za
A68: Chief Financial Officer | C68: Secretary/PA to the Chief Financial Officer
A69: ID Number | C69: ID Number
A70: Title | C70: Title
A71: Name | B71: NOGOLI JAXA | C71: Name
A72: Telephone number | B72: 053 203 0005 | C72: Telephone number
A73: Cell number | C73: Cell number
A74: Fax number | B74: 053 203 0409 | C74: Fax number
A75: E-mail address | B75: njaxa@thembelihlemunicipality.gov.za | C75: E-mail address
A77: Official responsible for submitting financial information | C77: Official responsible for submitting financial information
A78: ID Number | C78: ID Number
A79: Title | B79: Mr. | C79: Title
A80: Name | B80: E Mouton | C80: Name
A81: Telephone number | B81: 053 203 0005 | C81: Telephone number
A82: Cell number | B82: 078 710 3762 | C82: Cell number
A83: Fax number | B83: 053 203 0490 | C83: Fax number
A84: E-mail address | B84: emouton@thembelihle.gov.za | C84: E-mail address
A85: Official responsible for submitting financial information | C85: Official responsible for submitting financial information
A86: ID Number | C86: ID Number
A87: Title | C87: Title
A88: Name | C88: Name
A89: Telephone number | C89: Telephone number
A90: Cell number | C90: Cell number
A91: Fax number | C91: Fax number
A92: E-mail address | C92: E-mail address
A93: Official responsible for submitting financial information | C93: Official responsible for submitting financial information
A94: ID Number | C94: ID Number
A95: Title | C95: Title
A96: Name | C96: Name
A97: Telephone number | C97: Telephone number
A98: Cell number | C98: Cell number
A99: Fax number | C99: Fax number
A100: E-mail address | C100: E-mail address
A101: Official responsible for submitting financial information | C101: Official responsible for submitting financial information
A102: ID Number | C102: ID Number
A103: Title | C103: Title
A104: Name | C104: Name
A105: Telephone number | C105: Telephone number
A106: Cell number | C106: Cell number
A107: Fax number | C107: Fax number
A108: E-mail address | C108: E-mail address
A109: Official responsible for submitting financial information | C109: Official responsible for submitting financial information
A110: ID Number | C110: ID Number
A111: Title | C111: Title
A112: Name | C112: Name
A113: Telephone number | C113: Telephone number
A114: Cell number | C114: Cell number
A115: Fax number | C115: Fax number
A116: E-mail address | C116: E-mail address
A117: Official responsible for submitting financial information | C117: Official responsible for submitting financial information
A118: ID Number | C118: ID Number
A119: Title | C119: Title
A120: Name | C120: Name
A121: Telephone number | C121: Telephone number
A122: Cell number | C122: Cell number
A123: Fax number | C123: Fax number
A124: E-mail address | C124: E-mail address
A125: Official responsible for submitting financial information | C125: Official responsible for submitting financial information
A126: ID Number | C126: ID Number
A127: Title | C127: Title
A128: Name | C128: Name
A129: Telephone number | C129: Telephone number
A130: Cell number | C130: Cell number
A131: Fax number | C131: Fax number
A132: E-mail address | C132: E-mail address
A133: Official responsible for submitting financial information
A134: ID Number
A135: Title
A136: Name
A137: Telephone number
A138: Cell number
A139: Fax number
A140: E-mail address

Sheet A1-Sum
A1: =muni&" - "&Approve1 -> NC076 Thembelihle - Table A1 Budget Summary
A2: =desc -> Description | B2: =head1b -> 2013/14 | C2: =head1A -> 2014/15 | D2: =Head1 -> 2015/16 | E2: =Head2 -> Current Year 2016/17 | I2: =Head3 -> 2017/18 Medium Term Revenue & Expenditure Framework
A3: R thousands | B3: =Head5 -> Audited Outcome | C3: =Head5 -> Audited Outcome | D3: =Head5 -> Audited Outcome | E3: =Head6 -> Original Budget | F3: =Head7 -> Adjusted Budget | G3: =Head8 -> Full Year Forecast | H3: =Head5b -> Pre-audit outcome | I3: =Head9 -> Budget Year 2017/18 | J3: =Head10 -> Budget Year +1 2018/19 | K3: =Head11 -> Budget Year +2 2019/20
A4: Financial Performance
A5: Property rates | B5: ='A4-FinPerf RE'!C5 -> 2288849 | C5: ='A4-FinPerf RE'!D5 -> 2598663 | D5: ='A4-FinPerf RE'!E5 -> 3137037 | E5: ='A4-FinPerf RE'!F5 -> 3578412 | F5: ='A4-FinPerf RE'!G5 -> 7522551.47 | G5: ='A4-FinPerf RE'!H5 -> 7522551.47 | H5: ='A4-FinPerf RE'!I5 -> 7522551.47 | I5: ='A4-FinPerf RE'!J5 -> 7571102.187 | J5: ='A4-FinPerf RE'!K5 -> 8017797.216 | K5: ='A4-FinPerf RE'!L5 -> 8482829.455
A6: Service charges | B6: =SUM('A4-FinPerf RE'!C6:C10) -> 15174507 | C6: =SUM('A4-FinPerf RE'!D6:D10) -> 16230103 | D6: =SUM('A4-FinPerf RE'!E6:E10) -> 19939730 | E6: =SUM('A4-FinPerf RE'!F6:F10) -> 19163914 | F6: =SUM('A4-FinPerf RE'!G6:G10) -> 21629008 | G6: =SUM('A4-FinPerf RE'!H6:H10) -> 21629008 | H6: =SUM('A4-FinPerf RE'!I6:I10) -> 21629008 | I6: =SUM('A4-FinPerf RE'!J6:J10) -> 22751563.1 | J6: =SUM('A4-FinPerf RE'!K6:K10) -> 25779338.34 | K6: =SUM('A4-FinPerf RE'!L6:L10) -> 28913795.49
A7: Investment revenue | B7: ='A4-FinPerf RE'!C12 -> 662951 | C7: ='A4-FinPerf RE'!D12 -> 390984 | D7: ='A4-FinPerf RE'!E12 -> 179874 | E7: ='A4-FinPerf RE'!F12 -> 333000 | F7: ='A4-FinPerf RE'!G12 -> 570285 | G7: ='A4-FinPerf RE'!H12 -> 572572 | H7: ='A4-FinPerf RE'!I12 -> 572572 | I7: ='A4-FinPerf RE'!J12 -> 590334.7659 | J7: ='A4-FinPerf RE'!K12 -> 625164.5171 | K7: ='A4-FinPerf RE'!L12 -> 661424.0591
A8: Transfers recognised - operational | B8: ='A4-FinPerf RE'!C18 -> 24215079 | C8: ='A4-FinPerf RE'!D18 -> 22424069 | D8: ='A4-FinPerf RE'!E18 -> 23051951 | E8: ='A4-FinPerf RE'!F18 -> 24032000 | F8: ='A4-FinPerf RE'!G18 -> 24032000 | G8: ='A4-FinPerf RE'!H18 -> 31443438 | H8: ='A4-FinPerf RE'!I18 -> 31443438 | I8: ='A4-FinPerf RE'!J18 -> 26023200 | J8: ='A4-FinPerf RE'!K18 -> 28451064 | K8: ='A4-FinPerf RE'!L18 -> 30321637.97
A9: Other own revenue | B9: ='A4-FinPerf RE'!C11+'A4-FinPerf RE'!C13+'A4-FinPerf RE'!C14+'A4-FinPerf RE'!C15+'A4-FinPerf RE'!C16+'A4-FinPerf RE'!C17+'A4-FinPerf RE'!C19+'A4-FinPerf RE'!C20 -> 3123527 | C9: ='A4-FinPerf RE'!D11+'A4-FinPerf RE'!D13+'A4-FinPerf RE'!D14+'A4-FinPerf RE'!D15+'A4-FinPerf RE'!D16+'A4-FinPerf RE'!D17+'A4-FinPerf RE'!D19+'A4-FinPerf RE'!D20 -> 6860531 | D9: ='A4-FinPerf RE'!E11+'A4-FinPerf RE'!E13+'A4-FinPerf RE'!E14+'A4-FinPerf RE'!E15+'A4-FinPerf RE'!E16+'A4-FinPerf RE'!E17+'A4-FinPerf RE'!E19+'A4-FinPerf RE'!E20 -> 1737781 | E9: ='A4-FinPerf RE'!F11+'A4-FinPerf RE'!F13+'A4-FinPerf RE'!F14+'A4-FinPerf RE'!F15+'A4-FinPerf RE'!F16+'A4-FinPerf RE'!F17+'A4-FinPerf RE'!F19+'A4-FinPerf RE'!F20 -> 10931941 | F9: ='A4-FinPerf RE'!G11+'A4-FinPerf RE'!G13+'A4-FinPerf RE'!G14+'A4-FinPerf RE'!G15+'A4-FinPerf RE'!G16+'A4-FinPerf RE'!G17+'A4-FinPerf RE'!G19+'A4-FinPerf RE'!G20 -> 5353174.75 | G9: ='A4-FinPerf RE'!H11+'A4-FinPerf RE'!H13+'A4-FinPerf RE'!H14+'A4-FinPerf RE'!H15+'A4-FinPerf RE'!H16+'A4-FinPerf RE'!H17+'A4-FinPerf RE'!H19+'A4-FinPerf RE'!H20 -> 3555455 | H9: ='A4-FinPerf RE'!I11+'A4-FinPerf RE'!I13+'A4-FinPerf RE'!I14+'A4-FinPerf RE'!I15+'A4-FinPerf RE'!I16+'A4-FinPerf RE'!I17+'A4-FinPerf RE'!I19+'A4-FinPerf RE'!I20 -> 3555455 | I9: ='A4-FinPerf RE'!J11+'A4-FinPerf RE'!J13+'A4-FinPerf RE'!J14+'A4-FinPerf RE'!J15+'A4-FinPerf RE'!J16+'A4-FinPerf RE'!J17+'A4-FinPerf RE'!J19+'A4-FinPerf RE'!J20 -> 10578264.97 | J9: ='A4-FinPerf RE'!K11+'A4-FinPerf RE'!K13+'A4-FinPerf RE'!K14+'A4-FinPerf RE'!K15+'A4-FinPerf RE'!K16+'A4-FinPerf RE'!K17+'A4-FinPerf RE'!K19+'A4-FinPerf RE'!K20 -> 7330343.552 | K9: ='A4-FinPerf RE'!L11+'A4-FinPerf RE'!L13+'A4-FinPerf RE'!L14+'A4-FinPerf RE'!L15+'A4-FinPerf RE'!L16+'A4-FinPerf RE'!L17+'A4-FinPerf RE'!L19+'A4-FinPerf RE'!L20 -> 6062703.478
A10: ='A4-FinPerf RE'!A21 -> Total Revenue (excluding capital transfers and contributions) | B10: =SUM(B5:B9) -> 45464913 | C10: 48504350 | D10: 48046373 | E10: 58039267 | F10: 59107019.22 | G10: 64723024.47 | H10: 64723024.47 | I10: 67514465.03 | J10: 70203707.62 | K10: 74442390.46
A11: Employee costs | B11: ='A4-FinPerf RE'!C24 -> 18712277 | C11: ='A4-FinPerf RE'!D24 -> 22187621 | D11: ='A4-FinPerf RE'!E24 -> 25517732 | E11: ='A4-FinPerf RE'!F24 -> 25124699 | F11: ='A4-FinPerf RE'!G24 -> 27392016.28 | G11: ='A4-FinPerf RE'!H24 -> 30147222.48 | H11: ='A4-FinPerf RE'!I24 -> 30147222.48 | I11: ='A4-FinPerf RE'!J24 -> 26961026.11 | J11: ='A4-FinPerf RE'!K24 -> 28836930.51 | K11: ='A4-FinPerf RE'!L24 -> 30818181.18
A12: Remuneration of councillors | B12: ='A4-FinPerf RE'!C25 -> 1948796 | C12: ='A4-FinPerf RE'!D25 -> 2498083 | D12: ='A4-FinPerf RE'!E25 -> 2524362 | E12: ='A4-FinPerf RE'!F25 -> 3004000 | F12: ='A4-FinPerf RE'!G25 -> 2681898 | G12: ='A4-FinPerf RE'!H25 -> 2158652 | H12: ='A4-FinPerf RE'!I25 -> 2158652 | I12: ='A4-FinPerf RE'!J25 -> 2639699.203 | J12: ='A4-FinPerf RE'!K25 -> 2818496 | K12: ='A4-FinPerf RE'!L25 -> 3006615
A13: Depreciation & asset impairment | B13: ='A4-FinPerf RE'!C27 -> 8220930 | C13: ='A4-FinPerf RE'!D27 -> 8936295 | D13: ='A4-FinPerf RE'!E27 -> 8142078 | E13: ='A4-FinPerf RE'!F27 -> 7781705 | F13: ='A4-FinPerf RE'!G27 -> 8142078 | G13: ='A4-FinPerf RE'!H27 -> 8142078 | H13: ='A4-FinPerf RE'!I27 -> 8142078 | I13: ='A4-FinPerf RE'!J27 -> 8256388.721 | J13: ='A4-FinPerf RE'!K27 -> 8743515.655 | K13: ='A4-FinPerf RE'!L27 -> 9250639.563
A14: Finance charges | B14: ='A4-FinPerf RE'!C28 -> 1086378 | C14: ='A4-FinPerf RE'!D28 -> 3476067 | D14: ='A4-FinPerf RE'!E28 -> 680000 | E14: ='A4-FinPerf RE'!F28 -> 680000 | F14: ='A4-FinPerf RE'!G28 -> 858675 | G14: ='A4-FinPerf RE'!H28 -> 1273798 | H14: ='A4-FinPerf RE'!I28 -> 1273798 | I14: ='A4-FinPerf RE'!J28 -> 541110 | J14: ='A4-FinPerf RE'!K28 -> 573035.49 | K14: ='A4-FinPerf RE'!L28 -> 606271.5484
A15: Materials and bulk purchases | B15: ='A4-FinPerf RE'!C29+'A4-FinPerf RE'!C30 -> 10661281 | C15: ='A4-FinPerf RE'!D29+'A4-FinPerf RE'!D30 -> 11563148 | D15: ='A4-FinPerf RE'!E29+'A4-FinPerf RE'!E30 -> 12367711 | E15: ='A4-FinPerf RE'!F29+'A4-FinPerf RE'!F30 -> 13968815 | F15: ='A4-FinPerf RE'!G29+'A4-FinPerf RE'!G30 -> 13441357 | G15: ='A4-FinPerf RE'!H29+'A4-FinPerf RE'!H30 -> 14499309 | H15: ='A4-FinPerf RE'!I29+'A4-FinPerf RE'!I30 -> 14499309 | I15: ='A4-FinPerf RE'!J29+'A4-FinPerf RE'!J30 -> 13690679.54 | J15: ='A4-FinPerf RE'!K29+'A4-FinPerf RE'!K30 -> 14498429.64 | K15: ='A4-FinPerf RE'!L29+'A4-FinPerf RE'!L30 -> 15339338.55
A16: Transfers and grants | B16: ='A4-FinPerf RE'!C32 -> 128500 | C16: ='A4-FinPerf RE'!D32 -> 163500 | D16: ='A4-FinPerf RE'!E32 -> 0 | E16: ='A4-FinPerf RE'!F32 -> 0 | F16: ='A4-FinPerf RE'!G32 -> 162000 | G16: ='A4-FinPerf RE'!H32 -> 81000 | H16: ='A4-FinPerf RE'!I32 -> 0 | I16: ='A4-FinPerf RE'!J32 -> 894957.744 | J16: ='A4-FinPerf RE'!K32 -> 947760.2509 | K16: ='A4-FinPerf RE'!L32 -> 1002730.345
A17: Other expenditure | B17: ='A4-FinPerf RE'!C26+'A4-FinPerf RE'!C31+'A4-FinPerf RE'!C33+'A4-FinPerf RE'!C34 -> 13342856 | C17: ='A4-FinPerf RE'!D26+'A4-FinPerf RE'!D31+'A4-FinPerf RE'!D33+'A4-FinPerf RE'!D34 -> 19971434 | D17: ='A4-FinPerf RE'!E26+'A4-FinPerf RE'!E31+'A4-FinPerf RE'!E33+'A4-FinPerf RE'!E34 -> 18967325 | E17: ='A4-FinPerf RE'!F26+'A4-FinPerf RE'!F31+'A4-FinPerf RE'!F33+'A4-FinPerf RE'!F34 -> 13040645 | F17: ='A4-FinPerf RE'!G26+'A4-FinPerf RE'!G31+'A4-FinPerf RE'!G33+'A4-FinPerf RE'!G34 -> 14687038.98 | G17: ='A4-FinPerf RE'!H26+'A4-FinPerf RE'!H31+'A4-FinPerf RE'!H33+'A4-FinPerf RE'!H34 -> 12165220 | H17: ='A4-FinPerf RE'!I26+'A4-FinPerf RE'!I31+'A4-FinPerf RE'!I33+'A4-FinPerf RE'!I34 -> 12165220 | I17: ='A4-FinPerf RE'!J26+'A4-FinPerf RE'!J31+'A4-FinPerf RE'!J33+'A4-FinPerf RE'!J34 -> 12817705.47 | J17: ='A4-FinPerf RE'!K26+'A4-FinPerf RE'!K31+'A4-FinPerf RE'!K33+'A4-FinPerf RE'!K34 -> 13700126.03 | K17: ='A4-FinPerf RE'!L26+'A4-FinPerf RE'!L31+'A4-FinPerf RE'!L33+'A4-FinPerf RE'!L34 -> 14459368.43
A18: ='A4-FinPerf RE'!A35 -> Total Expenditure | B18: =SUM(B11:B17) -> 54101018 | C18: =SUM(C11:C17) -> 68796148 | D18: 68199208 | E18: 63599864 | F18: 67365063.26 | G18: 68467279.48 | H18: 68386279.48 | I18: 65801566.79 | J18: 70118293.57 | K18: 74483144.62
A19: ='A4-FinPerf RE'!A37 -> Surplus/(Deficit) | B19: =B10-B18 -> -8636105 | C19: -20291798 | D19: -20152835 | E19: -5560597 | F19: -8258044.04 | G19: -3744255.01 | H19: -3663255.01 | I19: 1712898.238 | J19: 85414.04931 | K19: -40754.16679
A20: ='A4-FinPerf RE'!A38 -> Transfers and subsidies - capital (monetary allocations) (National / Provincial and District) | B20: ='A4-FinPerf RE'!C38 -> 9627636 | C20: ='A4-FinPerf RE'!D38 -> 23168164 | D20: ='A4-FinPerf RE'!E38 -> 26444451 | E20: ='A4-FinPerf RE'!F38 -> 14283100 | F20: ='A4-FinPerf RE'!G38 -> 13408100 | G20: ='A4-FinPerf RE'!H38 -> 6908904 | H20: ='A4-FinPerf RE'!I38 -> 6908904 | I20: ='A4-FinPerf RE'!J38 -> 14054800 | J20: ='A4-FinPerf RE'!K38 -> 9814000 | K20: ='A4-FinPerf RE'!L38 -> 10110000
A21: Contributions recognised - capital & contributed assets | B21: ='A4-FinPerf RE'!C39+'A4-FinPerf RE'!C40 -> 0 | C21: ='A4-FinPerf RE'!D39+'A4-FinPerf RE'!D40 -> 0 | D21: ='A4-FinPerf RE'!E39+'A4-FinPerf RE'!E40 -> 0 | E21: ='A4-FinPerf RE'!F39+'A4-FinPerf RE'!F40 -> 0 | F21: ='A4-FinPerf RE'!G39+'A4-FinPerf RE'!G40 -> 0 | G21: ='A4-FinPerf RE'!H39+'A4-FinPerf RE'!H40 -> 0 | H21: ='A4-FinPerf RE'!I39+'A4-FinPerf RE'!I40 -> 0 | I21: ='A4-FinPerf RE'!J39+'A4-FinPerf RE'!J40 -> 0 | J21: ='A4-FinPerf RE'!K39+'A4-FinPerf RE'!K40 -> 0 | K21: ='A4-FinPerf RE'!L39+'A4-FinPerf RE'!L40 -> 0
A22: ='A4-FinPerf RE'!A41 -> Surplus/(Deficit) after capital transfers & contributions | B22: =B19+SUM(B20:B21) -> 991531 | C22: =C19+SUM(C20:C21) -> 2876366 | D22: 6291616 | E22: 8722503 | F22: 5150055.96 | G22: 3164648.99 | H22: 3245648.99 | I22: 15767698.24 | J22: 9899414.049 | K22: 10069245.83
A23: ='A4-FinPerf RE'!A46 -> Share of surplus/ (deficit) of associate | B23: ='A4-FinPerf RE'!C46 -> 0 | C23: ='A4-FinPerf RE'!D46 -> 0 | D23: ='A4-FinPerf RE'!E46 -> 0 | E23: ='A4-FinPerf RE'!F46 -> 0 | F23: ='A4-FinPerf RE'!G46 -> 0 | G23: ='A4-FinPerf RE'!H46 -> 0 | H23: ='A4-FinPerf RE'!I46 -> 0 | I23: ='A4-FinPerf RE'!J46 -> 0 | J23: ='A4-FinPerf RE'!K46 -> 0 | K23: ='A4-FinPerf RE'!L46 -> 0
A24: ='A4-FinPerf RE'!A47 -> Surplus/(Deficit) for the year | B24: =B22+B23 -> 991531 | C24: =C22+C23 -> 2876366 | D24: 6291616 | E24: 8722503 | F24: 5150055.96 | G24: 3164648.99 | H24: 3245648.99 | I24: 15767698.24 | J24: 9899414.049 | K24: 10069245.83
A26: Capital expenditure & funds sources
A27: Capital expenditure | B27: ='A5-Capex'!C63 -> 0 | C27: ='A5-Capex'!D63 -> 0 | D27: ='A5-Capex'!E63 -> 26015331 | E27: ='A5-Capex'!F63 -> 14323100 | F27: ='A5-Capex'!G63 -> 13933100 | G27: ='A5-Capex'!H63 -> 15299000 | H27: ='A5-Capex'!I63 -> 15299000 | I27: ='A5-Capex'!J63 -> 14054800 | J27: ='A5-Capex'!K63 -> 9814000 | K27: ='A5-Capex'!L63 -> 10110000
A28: Transfers recognised - capital | B28: ='A5-Capex'!C70 -> 0 | C28: ='A5-Capex'!D70 -> 0 | D28: ='A5-Capex'!E70 -> 26015331 | E28: ='A5-Capex'!F70 -> 14323100 | F28: ='A5-Capex'!G70 -> 13368100 | G28: ='A5-Capex'!H70 -> 14734000 | H28: ='A5-Capex'!I70 -> 14734000 | I28: ='A5-Capex'!J70 -> 14054800 | J28: ='A5-Capex'!K70 -> 13548751 | K28: ='A5-Capex'!L70 -> 14100104.3
A29: ='A5-Capex'!A71 -> Public contributions & donations | B29: ='A5-Capex'!C71 -> 0 | C29: ='A5-Capex'!D71 -> 0 | D29: ='A5-Capex'!E71 -> 0 | E29: ='A5-Capex'!F71 -> 0 | F29: ='A5-Capex'!G71 -> 0 | G29: ='A5-Capex'!H71 -> 0 | H29: ='A5-Capex'!I71 -> 0 | I29: ='A5-Capex'!J71 -> 0 | J29: ='A5-Capex'!K71 -> 0 | K29: ='A5-Capex'!L71 -> 0
A30: ='A5-Capex'!A72 -> Borrowing | B30: ='A5-Capex'!C72 -> 0 | C30: ='A5-Capex'!D72 -> 0 | D30: ='A5-Capex'!E72 -> 0 | E30: ='A5-Capex'!F72 -> 0 | F30: ='A5-Capex'!G72 -> 0 | G30: ='A5-Capex'!H72 -> 0 | H30: ='A5-Capex'!I72 -> 0 | I30: ='A5-Capex'!J72 -> 0 | J30: ='A5-Capex'!K72 -> 0 | K30: ='A5-Capex'!L72 -> 0
A31: ='A5-Capex'!A73 -> Internally generated funds | B31: ='A5-Capex'!C73 -> 0 | C31: ='A5-Capex'!D73 -> 0 | D31: ='A5-Capex'!E73 -> 0 | E31: ='A5-Capex'!F73 -> 0 | F31: ='A5-Capex'!G73 -> 565000 | G31: ='A5-Capex'!H73 -> 565000 | H31: ='A5-Capex'!I73 -> 565000 | I31: ='A5-Capex'!J73 -> 0 | J31: ='A5-Capex'!K73 -> 0 | K31: ='A5-Capex'!L73 -> 0
A32: Total sources of capital funds | B32: =SUM(B28:B31) -> 0 | C32: 0 | D32: 26015331 | E32: 14323100 | F32: 13933100 | G32: 15299000 | H32: 15299000 | I32: 14054800 | J32: 13548751 | K32: 14100104.3
A34: Financial position
A35: ='A6-FinPos'!A12 -> Total current assets | B35: ='A6-FinPos'!C12 -> 13165398 | C35: ='A6-FinPos'!D12 -> 7381295 | D35: ='A6-FinPos'!E12 -> 8188367 | E35: ='A6-FinPos'!F12 -> 28741136 | F35: ='A6-FinPos'!G12 -> 21954149.37 | G35: ='A6-FinPos'!H12 -> 16484257.89 | H35: ='A6-FinPos'!I12 -> 16484257.89 | I35: ='A6-FinPos'!J12 -> 24492889 | J35: ='A6-FinPos'!K12 -> 22881687 | K35: ='A6-FinPos'!L12 -> 28420512.28
A36: ='A6-FinPos'!A24 -> Total non current assets | B36: ='A6-FinPos'!C24 -> 217569298 | C36: ='A6-FinPos'!D24 -> 229723272 | D36: ='A6-FinPos'!E24 -> 239014664 | E36: ='A6-FinPos'!F24 -> 244962226 | F36: ='A6-FinPos'!G24 -> 244601753 | G36: ='A6-FinPos'!H24 -> 244810463 | H36: ='A6-FinPos'!I24 -> 244810463 | I36: ='A6-FinPos'!J24 -> 252743931 | J36: ='A6-FinPos'!K24 -> 253259375 | K36: ='A6-FinPos'!L24 -> 254655861
A37: ='A6-FinPos'!A34 -> Total current liabilities | B37: ='A6-FinPos'!C34 -> 46426951 | C37: ='A6-FinPos'!D34 -> 50788917 | D37: ='A6-FinPos'!E34 -> 61428723 | E37: ='A6-FinPos'!F34 -> 42536598 | F37: ='A6-FinPos'!G34 -> 42553200 | G37: ='A6-FinPos'!H34 -> 32918738 | H37: ='A6-FinPos'!I34 -> 32918738 | I37: ='A6-FinPos'!J34 -> 62506154 | J37: ='A6-FinPos'!K34 -> 38650544 | K37: ='A6-FinPos'!L34 -> 38650544
A38: ='A6-FinPos'!A39 -> Total non current liabilities | B38: ='A6-FinPos'!C39 -> 10529412 | C38: ='A6-FinPos'!D39 -> 9495881 | D38: ='A6-FinPos'!E39 -> 8986893 | E38: ='A6-FinPos'!F39 -> 12186960 | F38: ='A6-FinPos'!G39 -> 11927139.5 | G38: ='A6-FinPos'!H39 -> 11927139.5 | H38: ='A6-FinPos'!I39 -> 11927139.5 | I38: ='A6-FinPos'!J39 -> 12186960 | J38: ='A6-FinPos'!K39 -> 9937813 | K38: ='A6-FinPos'!L39 -> 10932108
A39: Community wealth/Equity | B39: ='A6-FinPos'!C48 -> 173778334 | C39: ='A6-FinPos'!D48 -> 176819769 | D39: ='A6-FinPos'!E48 -> 182790889 | E39: ='A6-FinPos'!F48 -> 226761509 | F39: ='A6-FinPos'!G48 -> 219857416.1 | G39: ='A6-FinPos'!H48 -> 190124725 | H39: ='A6-FinPos'!I48 -> 190124725 | I39: ='A6-FinPos'!J48 -> 230713581 | J39: ='A6-FinPos'!K48 -> 229468621 | K39: ='A6-FinPos'!L48 -> 229468621
A41: Cash flows
A42: Net cash from (used) operating | B42: ='A7-CFlow'!C17 -> 11617987 | C42: ='A7-CFlow'!D17 -> 13535071 | D42: ='A7-CFlow'!E17 -> 27183324 | E42: ='A7-CFlow'!F17 -> 12025354.22 | F42: ='A7-CFlow'!G17 -> 7824701 | G42: ='A7-CFlow'!H17 -> 8251868 | H42: ='A7-CFlow'!I17 -> 8251868 | I42: ='A7-CFlow'!J17 -> 12789904.22 | J42: ='A7-CFlow'!K17 -> 13236713.12 | K42: ='A7-CFlow'!L17 -> 14216405.41
A43: Net cash from (used) investing | B43: ='A7-CFlow'!C27 -> -8841988 | C43: ='A7-CFlow'!D27 -> -20630890 | D43: ='A7-CFlow'!E27 -> -3270428 | E43: ='A7-CFlow'!F27 -> -9323100 | F43: ='A7-CFlow'!G27 -> -13448100 | G43: ='A7-CFlow'!H27 -> -6592016 | H43: ='A7-CFlow'!I27 -> -6592016 | I43: ='A7-CFlow'!J27 -> -7751350 | J43: ='A7-CFlow'!K27 -> -11948751 | K43: ='A7-CFlow'!L27 -> -14100104.3
A44: Net cash from (used) financing | B44: ='A7-CFlow'!C36 -> -571916 | C44: ='A7-CFlow'!D36 -> -1044440 | D44: ='A7-CFlow'!E36 -> -1044440 | E44: ='A7-CFlow'!F36 -> -270000 | F44: ='A7-CFlow'!G36 -> -270000 | G44: ='A7-CFlow'!H36 -> -1050970 | H44: ='A7-CFlow'!I36 -> -1050970 | I44: ='A7-CFlow'!J36 -> -270000 | J44: ='A7-CFlow'!K36 -> -270000 | K44: ='A7-CFlow'!L36 -> -270000
A45: =LEFT('A7-CFlow'!A40,37) -> Cash/cash equivalents at the year end | B45: ='A7-CFlow'!C40 -> 8862798 | C45: ='A7-CFlow'!D40 -> 722539 | D45: ='A7-CFlow'!E40 -> 23590995 | E45: ='A7-CFlow'!F40 -> 12384254.22 | F45: ='A7-CFlow'!G40 -> 4545910 | G45: ='A7-CFlow'!H40 -> 791750 | H45: ='A7-CFlow'!I40 -> 791750 | I45: ='A7-CFlow'!J40 -> 4768554.22 | J45: ='A7-CFlow'!K40 -> 5786516.34 | K45: ='A7-CFlow'!L40 -> 5632817.45
A47: Cash backing/surplus reconciliation
A48: ='A8-ResRecon'!A4 -> Cash and investments available | B48: ='A8-ResRecon'!C8 -> 8862798 | C48: ='A8-ResRecon'!D8 -> 722539 | D48: ='A8-ResRecon'!E8 -> 3260992 | E48: ='A8-ResRecon'!F8 -> 12424254 | F48: ='A8-ResRecon'!G8 -> 8520135 | G48: ='A8-ResRecon'!H8 -> 3456651.52 | H48: ='A8-ResRecon'!I8 -> 3456651.52 | I48: ='A8-ResRecon'!J8 -> 8176007 | J48: ='A8-ResRecon'!K8 -> 4135021 | K48: ='A8-ResRecon'!L8 -> 6119831.08
A49: ='A8-ResRecon'!A10 -> Application of cash and investments | B49: ='A8-ResRecon'!C18 -> 30874631 | C49: ='A8-ResRecon'!D18 -> 37271447 | D49: ='A8-ResRecon'!E18 -> 46933080 | E49: ='A8-ResRecon'!F18 -> 10511000 | F49: ='A8-ResRecon'!G18 -> 15878000 | G49: ='A8-ResRecon'!H18 -> 11986000 | H49: ='A8-ResRecon'!I18 -> 11986000 | I49: ='A8-ResRecon'!J18 -> 34134000 | J49: ='A8-ResRecon'!K18 -> 10101000 | K49: ='A8-ResRecon'!L18 -> 8241000
A50: Balance - surplus (shortfall) | B50: =B48-B49 -> -22011833 | C50: =C48-C49 -> -36548908 | D50: -43672088 | E50: 1913254 | F50: -7357865 | G50: -8529348.48 | H50: -8529348.48 | I50: -25957993 | J50: -5965979 | K50: -2121168.92
A52: Asset management
A53: Asset register summary (WDV) | B53: ='A9-Asset'!C165 -> 191669650 | C53: ='A9-Asset'!D165 -> 207923076 | D53: ='A9-Asset'!E165 -> 192047291 | E53: ='A9-Asset'!F165 -> 233850486 | F53: ='A9-Asset'!G165 -> 226064792.7 | G53: ='A9-Asset'!H165 -> 226064792.7 | H53: ='A9-Asset'!I165 -> 245776860.8 | I53: ='A9-Asset'!I165 -> 245776860.8 | J53: ='A9-Asset'!J165 -> 257819927 | K53: ='A9-Asset'!K165 -> 270195283.5
A54: ='A9-Asset'!A168 -> Depreciation | B54: ='A9-Asset'!C168 -> 6989870 | C54: ='A9-Asset'!D168 -> 7628704 | D54: ='A9-Asset'!E168 -> 8029265.89 | E54: ='A9-Asset'!F168 -> 6781705 | F54: ='A9-Asset'!G168 -> 7781705 | G54: ='A9-Asset'!H168 -> 7781705 | H54: ='A9-Asset'!I168 -> 8291362 | I54: ='A9-Asset'!I168 -> 8291362 | J54: ='A9-Asset'!J168 -> 9110955 | K54: ='A9-Asset'!K168 -> 8829446
A55: Renewal of Existing Assets | B55: ='A9-Asset'!C37 -> 0 | C55: ='A9-Asset'!D37 -> 0 | D55: ='A9-Asset'!E37 -> 0 | E55: ='A9-Asset'!F37 -> 0 | F55: ='A9-Asset'!G37 -> 0 | G55: ='A9-Asset'!H37 -> 0 | H55: ='A9-Asset'!H37 -> 0 | I55: ='A9-Asset'!I37 -> 0 | J55: ='A9-Asset'!J37 -> 0 | K55: ='A9-Asset'!K37 -> 0
A56: Repairs and Maintenance | B56: ='A9-Asset'!C169 -> 837974 | C56: ='A9-Asset'!D169 -> 754782 | D56: ='A9-Asset'!E169 -> 505963 | E56: ='A9-Asset'!F169 -> 1796029 | F56: ='A9-Asset'!G169 -> 2364400 | G56: ='A9-Asset'!H169 -> 2218758 | H56: ='A9-Asset'!I169 -> 1198749.691 | I56: ='A9-Asset'!I169 -> 1198749.691 | J56: ='A9-Asset'!J169 -> 1269475.923 | K56: ='A9-Asset'!K169 -> 1343105.526
A58: Free services
A59: Cost of Free Basic Services provided | B59: ='A10-SerDel'!C60 -> 0 | C59: ='A10-SerDel'!D60 -> 0 | D59: ='A10-SerDel'!E60 -> 0 | E59: ='A10-SerDel'!F60 -> 1730987 | F59: ='A10-SerDel'!G60 -> 0 | G59: ='A10-SerDel'!H60 -> 0 | H59: ='A10-SerDel'!I60 -> 0 | I59: ='A10-SerDel'!I60 -> 0 | J59: ='A10-SerDel'!J60 -> 0 | K59: ='A10-SerDel'!K60 -> 0
A60: Revenue cost of free services provided | B60: ='A10-SerDel'!C79 -> 596040 | C60: ='A10-SerDel'!D79 -> 376389 | D60: ='A10-SerDel'!E79 -> 356091 | E60: ='A10-SerDel'!F79 -> 1732386 | F60: ='A10-SerDel'!G79 -> 3423485.83 | G60: ='A10-SerDel'!H79 -> 3423485.83 | H60: ='A10-SerDel'!I79 -> 3462438.902 | I60: ='A10-SerDel'!I79 -> 3462438.902 | J60: ='A10-SerDel'!J79 -> 3666722.797 | K60: ='A10-SerDel'!K79 -> 3879392.719
A61: Households below minimum service level
A62: ='A10-SerDel'!A5 -> Water: | B62: ='A10-SerDel'!C14 -> 0 | C62: ='A10-SerDel'!D14 -> 0 | D62: ='A10-SerDel'!E14 -> 0 | E62: ='A10-SerDel'!F14 -> 0 | F62: ='A10-SerDel'!G14 -> 0 | G62: ='A10-SerDel'!H14 -> 0 | H62: ='A10-SerDel'!I14 -> 0 | I62: ='A10-SerDel'!I14 -> 0 | J62: ='A10-SerDel'!J14 -> 0 | K62: ='A10-SerDel'!K14 -> 0
A63: ='A10-SerDel'!A16 -> Sanitation/sewerage: | B63: ='A10-SerDel'!C26 -> 0 | C63: ='A10-SerDel'!D26 -> 0 | D63: ='A10-SerDel'!E26 -> 0 | E63: ='A10-SerDel'!F26 -> 1101 | F63: ='A10-SerDel'!G26 -> 1101 | G63: ='A10-SerDel'!H26 -> 1101 | H63: ='A10-SerDel'!I26 -> 1101 | I63: ='A10-SerDel'!I26 -> 1101 | J63: ='A10-SerDel'!J26 -> 1101 | K63: ='A10-SerDel'!K26 -> 1101
A64: ='A10-SerDel'!A28 -> Energy: | B64: ='A10-SerDel'!C35 -> 0 | C64: ='A10-SerDel'!D35 -> 0 | D64: ='A10-SerDel'!E35 -> 0 | E64: ='A10-SerDel'!F35 -> 1875 | F64: ='A10-SerDel'!G35 -> 1875 | G64: ='A10-SerDel'!H35 -> 1875 | H64: ='A10-SerDel'!I35 -> 1875 | I64: ='A10-SerDel'!I35 -> 1875 | J64: ='A10-SerDel'!J35 -> 1875 | K64: ='A10-SerDel'!K35 -> 1875
A65: ='A10-SerDel'!A37 -> Refuse: | B65: ='A10-SerDel'!C45 -> 0 | C65: ='A10-SerDel'!D45 -> 0 | D65: ='A10-SerDel'!E45 -> 0 | E65: ='A10-SerDel'!F45 -> 0 | F65: ='A10-SerDel'!G45 -> 0 | G65: ='A10-SerDel'!H45 -> 0 | H65: ='A10-SerDel'!I45 -> 0 | I65: ='A10-SerDel'!I45 -> 0 | J65: ='A10-SerDel'!J45 -> 0 | K65: ='A10-SerDel'!K45 -> 0

Sheet A2-FinPerf SC
A1: =muni&" - "&Approve3 -> NC076 Thembelihle - Table A2 Budgeted Financial Performance (revenue and expenditure by functional classification)
A2: ="Functional Classification "&desc -> Functional Classification Description | B2: =head27 -> Ref | C2: =head1b -> 2013/14 | D2: =head1A -> 2014/15 | E2: =Head1 -> 2015/16 | F2: =Head2 -> Current Year 2016/17 | I2: =Head3 -> 2017/18 Medium Term Revenue & Expenditure Framework
A3: R thousand | B3: 1 | C3: =Head5 -> Audited Outcome | D3: =Head5 -> Audited Outcome | E3: =Head5 -> Audited Outcome | F3: =Head6 -> Original Budget | G3: =Head7 -> Adjusted Budget | H3: =Head8 -> Full Year Forecast | I3: =Head9 -> Budget Year 2017/18 | J3: =Head10 -> Budget Year +1 2018/19 | K3: =Head11 -> Budget Year +2 2019/20
A4: Revenue - Functional
A5: Governance and administration | C5: =SUM(C6:C8) -> 21019951 | D5: =SUM(D6:D8) -> 25104362 | E5: 28007617.67 | F5: 28711053 | G5: 28497675 | H5: 49510243 | I5: 34867406.7 | J5: 33799248.69 | K5: 34315355.12
A6: Executive and council | C6: =A2A!C6 -> 15396608 | D6: =A2A!D6 -> 17595711 | E6: =A2A!E6 -> 20157066.26 | F6: =A2A!F6 -> 16490361 | G6: =A2A!G6 -> 16760361 | H6: =A2A!H6 -> 28543748 | I6: =A2A!I6 -> 17241731.91 | J6: =A2A!J6 -> 19035009.09 | K6: =A2A!K6 -> 20278389.62
A7: Finance and administration | C7: =A2A!C9 -> 5623343 | D7: =A2A!D9 -> 7508651 | E7: =A2A!E9 -> 7850551.41 | F7: =A2A!F9 -> 12220692 | G7: =A2A!G9 -> 11737314 | H7: =A2A!H9 -> 20966495 | I7: =A2A!I9 -> 17625674.79 | J7: =A2A!J9 -> 14764239.6 | K7: =A2A!K9 -> 14036965.5
A8: Internal audit | C8: =A2A!C24 -> 0 | D8: =A2A!D24 -> 0 | E8: =A2A!E24 -> 0 | F8: =A2A!F24 -> 0 | G8: =A2A!G24 -> 0 | H8: =A2A!H24 -> 0 | I8: =A2A!I24 -> 0 | J8: =A2A!J24 -> 0 | K8: =A2A!K24 -> 0
A9: Community and public safety | C9: =SUM(C10:C14) -> 1728071 | D9: =SUM(D10:D14) -> 1319507 | E9: 1870345 | F9: 2618406 | G9: 3660515 | H9: 892204 | I9: 2846070.151 | J9: 3013988.29 | K9: 3188799.61
A10: Community and social services | C10: =A2A!C27 -> 1728071 | D10: =A2A!D27 -> 1319507 | E10: =A2A!E27 -> 1870345 | F10: =A2A!F27 -> 2618406 | G10: =A2A!G27 -> 3660515 | H10: =A2A!H27 -> 892204 | I10: =A2A!I27 -> 2846070.151 | J10: =A2A!J27 -> 3013988.29 | K10: =A2A!K27 -> 3188799.61
A11: Sport and recreation | C11: =A2A!C49 -> 0 | D11: =A2A!D49 -> 0 | E11: =A2A!E49 -> 0 | F11: =A2A!F49 -> 0 | G11: =A2A!G49 -> 0 | H11: =A2A!H49 -> 0 | I11: =A2A!I49 -> 0 | J11: =A2A!J49 -> 0 | K11: =A2A!K49 -> 0
A12: Public safety | C12: =A2A!C55 -> 0 | D12: =A2A!D55 -> 0 | E12: =A2A!E55 -> 0 | F12: =A2A!F55 -> 0 | G12: =A2A!G55 -> 0 | H12: =A2A!H55 -> 0 | I12: =A2A!I55 -> 0 | J12: =A2A!J55 -> 0 | K12: =A2A!K55 -> 0
A13: Housing | C13: =A2A!C62 -> 0 | D13: =A2A!D62 -> 0 | E13: =A2A!E62 -> 0 | F13: =A2A!F62 -> 0 | G13: =A2A!G62 -> 0 | H13: =A2A!H62 -> 0 | I13: =A2A!I62 -> 0 | J13: =A2A!J62 -> 0 | K13: =A2A!K62 -> 0
A14: Health | C14: =A2A!C65 -> 0 | D14: =A2A!D65 -> 0 | E14: =A2A!E65 -> 0 | F14: =A2A!F65 -> 0 | G14: =A2A!G65 -> 0 | H14: =A2A!H65 -> 0 | I14: =A2A!I65 -> 0 | J14: =A2A!J65 -> 0 | K14: =A2A!K65 -> 0
A15: Economic and environmental services | C15: =SUM(C16:C18) -> 7413692 | D15: =SUM(D16:D18) -> 22767364 | E15: 15806591 | F15: 12904018 | G15: 11306829.75 | H15: 1663330 | I15: 14442564.87 | J15: 15245229.2 | K15: 15858360.49
A16: Planning and development | C16: =A2A!C74 -> 6922737 | D16: =A2A!D74 -> 17587121 | E16: =A2A!E74 -> 14902109 | F16: =A2A!F74 -> 10049021 | G16: =A2A!G74 -> 9165582 | H16: =A2A!H74 -> 1215758 | I16: =A2A!I74 -> 10565912.86 | J16: =A2A!J74 -> 10908854.72 | K16: =A2A!K74 -> 11270476.29
A17: Road transport | C17: =A2A!C85 -> 490955 | D17: =A2A!D85 -> 5180243 | E17: =A2A!E85 -> 904482 | F17: =A2A!F85 -> 2854997 | G17: =A2A!G85 -> 2141247.75 | H17: =A2A!H85 -> 447572 | I17: =A2A!I85 -> 3876652.016 | J17: =A2A!J85 -> 4336374.485 | K17: =A2A!K85 -> 4587884.206
A18: Environmental protection | C18: =A2A!C92 -> 0 | D18: =A2A!D92 -> 0 | E18: =A2A!E92 -> 0 | F18: =A2A!F92 -> 0 | G18: =A2A!G92 -> 0 | H18: =A2A!H92 -> 0 | I18: =A2A!I92 -> 0 | J18: =A2A!J92 -> 0 | K18: =A2A!K92 -> 0
A19: Trading services | C19: =SUM(C20:C23) -> 24930835 | D19: =SUM(D20:D23) -> 22481281 | E19: 31730927 | F19: 31163809 | G19: 29248387.33 | H19: 20369732 | I19: 34625060.55 | J19: =SUM(J20:J23) -> 38366812.76 | K19: 42242467.08
A20: Energy sources | C20: =A2A!C100 -> 11408966 | D20: =A2A!D100 -> 10278671 | E20: =A2A!E100 -> 11126933 | F20: =A2A!F100 -> 12768245 | G20: =A2A!G100 -> 12776018 | H20: =A2A!H100 -> 12318624 | I20: =A2A!I100 -> 15561717.57 | J20: =A2A!J100 -> 17379482.12 | K20: =A2A!K100 -> 19406094.26
A21: Water management | C21: =A2A!C104 -> 9727658 | D21: =A2A!D104 -> 8816602 | E21: =A2A!E104 -> 16458771 | F21: =A2A!F104 -> 12231282 | G21: =A2A!G104 -> 8977426 | H21: =A2A!H104 -> 3554142 | I21: =A2A!I104 -> 11124914.25 | J21: =A2A!J104 -> 12197339.58 | K21: =A2A!K104 -> 13383851.27
A22: Waste water management | C22: =A2A!C108 -> 2483818 | D22: =A2A!D108 -> 2149927 | E22: =A2A!E108 -> 2730552 | F22: =A2A!F108 -> 4042277 | G22: =A2A!G108 -> 4912733.333 | H22: =A2A!H108 -> 2947640 | I22: =A2A!I108 -> 5159311.955 | J22: =A2A!J108 -> 5713189.294 | K22: =A2A!K108 -> 6044554.273
A23: Waste management | C23: =A2A!C113 -> 1310393 | D23: =A2A!D113 -> 1236081 | E23: =A2A!E113 -> 1414671 | F23: =A2A!F113 -> 2122005 | G23: =A2A!G113 -> 2582210 | H23: =A2A!H113 -> 1549326 | I23: =A2A!I113 -> 2779116.775 | J23: =A2A!J113 -> 3076801.767 | K23: =A2A!K113 -> 3407967.278
A24: Other | B24: 4 | C24: =A2A!C118 -> 0 | D24: =A2A!D118 -> 0 | E24: =A2A!E118 -> 0 | F24: =A2A!F118 -> 0 | G24: =A2A!G118 -> 0 | H24: =A2A!H118 -> 0 | I24: =A2A!I118 -> 0 | J24: =A2A!J118 -> 0 | K24: =A2A!K118 -> 0
A25: ="Total "&A4 -> Total Revenue - Functional | B25: 2 | C25: =C5+C9+C15+C19+C24 -> 55092549 | D25: =D5+D9+D15+D19+D24 -> 71672514 | E25: =E5+E9+E15+E19+E24 -> 77415480.67 | F25: 75397286 | G25: 72713407.08 | H25: 72435509 | I25: =I5+I9+I15+I19+I24 -> 86781102.27 | J25: 90425278.95 | K25: 95604982.3
A27: Expenditure - Functional
A28: Governance and administration | C28: =SUM(C29:C31) -> 22056493 | D28: =SUM(D29:D31) -> 32852598 | E28: 32269267 | F28: 25369136 | G28: 28995880 | H28: 51124082 | I28: 30671836.1 | J28: 32208927.83 | K28: 33947245.51
A29: Executive and council | C29: =A2A!C129 -> 6154456 | D29: =A2A!D129 -> 7301161 | E29: =A2A!E129 -> 7857430 | F29: =A2A!F129 -> 6130927 | G29: =A2A!G129 -> 5862710 | H29: =A2A!H129 -> 7627152 | I29: =A2A!I129 -> 8832368.99 | J29: =A2A!J129 -> 9403061.672 | K29: =A2A!K129 -> 10001443.38
A30: Finance and administration | C30: =A2A!C132 -> 15902037 | D30: =A2A!D132 -> 25551437 | E30: =A2A!E132 -> 24411837 | F30: =A2A!F132 -> 19238209 | G30: =A2A!G132 -> 23133170 | H30: =A2A!H132 -> 43496930 | I30: =A2A!I132 -> 21839467.11 | J30: =A2A!J132 -> 22805866.16 | K30: =A2A!K132 -> 23945802.13
A31: Internal audit | C31: =A2A!C147 -> 0 | D31: =A2A!D147 -> 0 | E31: =A2A!E147 -> 0 | F31: =A2A!F147 -> 0 | G31: =A2A!G147 -> 0 | H31: =A2A!H147 -> 0 | I31: =A2A!I147 -> 0 | J31: =A2A!J147 -> 0 | K31: =A2A!K147 -> 0
A32: Community and public safety | C32: =SUM(C33:C37) -> 1465958 | D32: =SUM(D33:D37) -> 1269910 | E32: 1540648 | F32: 1884163 | G32: 2132835 | H32: 2167644 | I32: 2417053.132 | J32: 2620251.122 | K32: 2842789.206
A33: Community and social services | C33: =A2A!C150 -> 1465958 | D33: =A2A!D150 -> 1269910 | E33: =A2A!E150 -> 1540648 | F33: =A2A!F150 -> 1884163 | G33: =A2A!G150 -> 2132835 | H33: =A2A!H150 -> 2167644 | I33: =A2A!I150 -> 2417053.132 | J33: =A2A!J150 -> 2620251.122 | K33: =A2A!K150 -> 2842789.206
A34: Sport and recreation | C34: =A2A!C172 -> 0 | D34: =A2A!D172 -> 0 | E34: =A2A!E172 -> 0 | F34: =A2A!F172 -> 0 | G34: =A2A!G172 -> 0 | H34: =A2A!H172 -> 0 | I34: =A2A!I172 -> 0 | J34: =A2A!J172 -> 0 | K34: =A2A!K172 -> 0
A35: Public safety | C35: =A2A!C178 -> 0 | D35: =A2A!D178 -> 0 | E35: =A2A!E178 -> 0 | F35: =A2A!F178 -> 0 | G35: =A2A!G178 -> 0 | H35: =A2A!H178 -> 0 | I35: =A2A!I178 -> 0 | J35: =A2A!J178 -> 0 | K35: =A2A!K178 -> 0
A36: Housing | C36: =A2A!C184 -> 0 | D36: =A2A!D184 -> 0 | E36: =A2A!E184 -> 0 | F36: =A2A!F184 -> 0 | G36: =A2A!G184 -> 0 | H36: =A2A!H184 -> 0 | I36: =A2A!I184 -> 0 | J36: =A2A!J184 -> 0 | K36: =A2A!K184 -> 0
A37: Health | C37: =A2A!C187 -> 0 | D37: =A2A!D187 -> 0 | E37: =A2A!E187 -> 0 | F37: =A2A!F187 -> 0 | G37: =A2A!G187 -> 0 | H37: =A2A!H187 -> 0 | I37: =A2A!I187 -> 0 | J37: =A2A!J187 -> 0 | K37: =A2A!K187 -> 0
A38: Economic and environmental services | C38: =SUM(C39:C41) -> 11792908 | D38: =SUM(D39:D41) -> 13160284 | E38: 12965221 | F38: 11604337 | G38: 12527425 | H38: 10627110 | I38: 12072090.65 | J38: 12740829.27 | K38: 13374518.47
A39: Planning and development | C39: =A2A!C196 -> 9905230 | D39: =A2A!D196 -> 11613555 | E39: =A2A!E196 -> 11127595 | F39: =A2A!F196 -> 9959402 | G39: =A2A!G196 -> 10632490 | H39: =A2A!H196 -> 8236590 | I39: =A2A!I196 -> 10317074.6 | J39: =A2A!J196 -> 10871836.45 | K39: =A2A!K196 -> 11385973.51
A40: Road transport | C40: =A2A!C207 -> 1887678 | D40: =A2A!D207 -> 1546729 | E40: =A2A!E207 -> 1837626 | F40: =A2A!F207 -> 1644935 | G40: =A2A!G207 -> 1894935 | H40: =A2A!H207 -> 2390520 | I40: =A2A!I207 -> 1755016.052 | J40: =A2A!J207 -> 1868992.824 | K40: =A2A!K207 -> 1988544.96
A41: Environmental protection | C41: =A2A!C214 -> 0 | D41: =A2A!D214 -> 0 | E41: =A2A!E214 -> 0 | F41: =A2A!F214 -> 0 | G41: =A2A!G214 -> 0 | H41: =A2A!H214 -> 0 | I41: =A2A!I214 -> 0 | J41: =A2A!J214 -> 0 | K41: =A2A!K214 -> 0
A42: Trading services | C42: =SUM(C43:C46) -> 18657159 | D42: =SUM(D43:D46) -> 21349856 | E42: 23355125 | F42: =SUM(F43:F46) -> 27817310 | G42: 27239502 | H42: 9352126 | I42: 28439789.51 | J42: 29919330.57 | K42: =SUM(K43:K46) -> 31464130.25
A43: Energy sources | C43: =A2A!C222 -> 9145490 | D43: =A2A!D222 -> 10803524 | E43: =A2A!E222 -> 14104651 | F43: =A2A!F222 -> 15954662 | G43: =A2A!G222 -> 14746758 | H43: =A2A!H222 -> 1534312 | I43: =A2A!I222 -> 16132864.84 | J43: =A2A!J222 -> 16967754.92 | K43: =A2A!K222 -> 17837557.68
A44: Water management | C44: =A2A!C226 -> 4801958 | D44: =A2A!D226 -> 7081995 | E44: =A2A!E226 -> 5905234 | F44: =A2A!F226 -> 6592668 | G44: =A2A!G226 -> 6107709 | H44: =A2A!H226 -> 5315742 | I44: =A2A!I226 -> 6888874.519 | J44: =A2A!J226 -> 7254075.223 | K44: =A2A!K226 -> 7636712.357
A45: Waste water management | C45: =A2A!C230 -> 2157241 | D45: =A2A!D230 -> 2008905 | E45: =A2A!E230 -> 2023453 | F45: =A2A!F230 -> 2995090 | G45: =A2A!G230 -> 3216873 | H45: =A2A!H230 -> 1099272 | I45: =A2A!I230 -> 3016349.271 | J45: =A2A!J230 -> 3170525.638 | K45: =A2A!K230 -> 3331728.618
A46: Waste management | C46: =A2A!C235 -> 2552470 | D46: =A2A!D235 -> 1455432 | E46: =A2A!E235 -> 1321787 | F46: =A2A!F235 -> 2274890 | G46: =A2A!G235 -> 3168162 | H46: =A2A!H235 -> 1402800 | I46: =A2A!I235 -> 2401700.881 | J46: =A2A!J235 -> 2526974.789 | K46: =A2A!K235 -> 2658131.591
A47: Other | B47: 4 | C47: =A2A!C240 -> 0 | D47: =A2A!D240 -> 0 | E47: =A2A!E240 -> 0 | F47: =A2A!F240 -> 0 | G47: =A2A!G240 -> 0 | H47: =A2A!H240 -> 0 | I47: =A2A!I240 -> 0 | J47: =A2A!J240 -> 0 | K47: =A2A!K240 -> 0
A48: ="Total "&A27 -> Total Expenditure - Functional | B48: 3 | C48: =C28+C32+C38+C42+C47 -> 53972518 | D48: =D28+D32+D38+D42+D47 -> 68632648 | E48: =E28+E32+E38+E42+E47 -> 70130261 | F48: =F28+F32+F38+F42+F47 -> 66674946 | G48: 70895642 | H48: 73270962 | I48: 73600769.4 | J48: 77489338.79 | K48: 81628683.43
A49: =result -> Surplus/(Deficit) for the year | C49: =C25-C48 -> 1120031 | D49: =D25-D48 -> 3039866 | E49: 7285219.67 | F49: 8722340 | G49: 1817765.083 | H49: -835453 | I49: 13180332.87 | J49: 12935940.15 | K49: 13976298.87
A50: =head27a -> References
A51: 1. Government Finance Statistics Functions and Sub-functions are standardised to assist the compilation of national and international accounts for comparison purposes
A52: 2. Total Revenue by functional classification must reconcile to Total Operating Revenue shown in Budgeted Financial Performance (revenue and expenditure)
A53: 3. Total Expenditure by Functional Classification must reconcile to Total Operating Expenditure shown in Budgeted Financial Performance (revenue and expenditure)
A54: 4. All amounts must be classified under a functional classification . The GFS function 'Other' is only for Abbatoirs, Air Transport, Forestry, Licensing and Regulation, Markets and Tourism - and if used must be supported by footnotes. Nothing else may be placed under 'Other'. Assign associate share to relevant classification.
A57: check oprev balance | C57: =C25-'A4-FinPerf RE'!C59 -> 0 | D57: =D25-'A4-FinPerf RE'!D59 -> 0 | E57: =E25-'A4-FinPerf RE'!E59 -> 2924656.67 | F57: =F25-'A4-FinPerf RE'!F59 -> 3074919 | G57: =G25-'A4-FinPerf RE'!G59 -> 198287.8633 | H57: =H25-'A4-FinPerf RE'!H59 -> 803580.53 | I57: =I25-'A4-FinPerf RE'!J59 -> 5211837.241 | J57: =J25-'A4-FinPerf RE'!K59 -> 10407571.32 | K57: =K25-'A4-FinPerf RE'!L59 -> 11052591.84
A58: check opexp balance | C58: =C48-'A4-FinPerf RE'!C35 -> -128500 | D58: =D48-'A4-FinPerf RE'!D35 -> -163500 | E58: =E48-'A4-FinPerf RE'!E35 -> 1931053 | F58: =F48-'A4-FinPerf RE'!F35 -> 3075082 | G58: =G48-'A4-FinPerf RE'!G35 -> 3530578.74 | H58: =H48-'A4-FinPerf RE'!H35 -> 4803682.52 | I58: =I48-'A4-FinPerf RE'!J35 -> 7799202.606 | J58: =J48-'A4-FinPerf RE'!K35 -> 7371045.22 | K58: =K48-'A4-FinPerf RE'!L35 -> 7145538.806

Sheet A2A
A1: =muni&" - "&Approve3 -> NC076 Thembelihle - Table A2 Budgeted Financial Performance (revenue and expenditure by functional classification)
A2: ="Functional Classification "&desc -> Functional Classification Description | B2: =head27 -> Ref | C2: =head1b -> 2013/14 | D2: =head1A -> 2014/15 | E2: =Head1 -> 2015/16 | F2: =Head2 -> Current Year 2016/17 | I2: =Head3 -> 2017/18 Medium Term Revenue & Expenditure Framework
A3: R thousand | B3: 1 | C3: =Head5 -> Audited Outcome | D3: =Head5 -> Audited Outcome | E3: =Head5 -> Audited Outcome | F3: =Head6 -> Original Budget | G3: =Head7 -> Adjusted Budget | H3: =Head8 -> Full Year Forecast | I3: =Head9 -> Budget Year 2017/18 | J3: =Head10 -> Budget Year +1 2018/19 | K3: =Head11 -> Budget Year +2 2019/20
A4: Revenue - Functional
A5: Municipal governance and administration | C5: =C6+C9+C24 -> 21019951 | D5: =D6+D9+D24 -> 25104362 | E5: 28007617.67 | F5: 28711053 | G5: 28497675 | H5: 49510243 | I5: 34867406.7 | J5: 33799248.69 | K5: 34315355.12
A6: Executive and council | C6: =SUM(C7:C8) -> 15396608 | D6: =SUM(D7:D8) -> 17595711 | E6: 20157066.26 | F6: 16490361 | G6: 16760361 | H6: 28543748 | I6: 17241731.91 | J6: 19035009.09 | K6: 20278389.62
A7: Mayor and Council | C7: 15396608 | D7: 17595711 | E7: 18813911.66 | F7: 16490361 | G7: 16760361 | H7: 28534002 | I7: 17241731.91 | J7: 19035009.09 | K7: 20278389.62
A8: Municipal Manager, Town Secretary and Chief Executive | E8: 1343154.6 | H8: 9746
A9: Finance and administration | C9: =SUM(C10:C23) -> 5623343 | D9: 7508651 | E9: 7850551.41 | F9: 12220692 | G9: 11737314 | H9: 20966495 | I9: 17625674.79 | J9: 14764239.6 | K9: 14036965.5
A10: Administrative and Corporate Support | C10: 66169 | E10: 147990.62 | F10: 525376 | G10: 868850 | H10: 12050002 | I10: 557423.902 | J10: 590311.9123 | K10: 624550.0032
A11: Asset Management
A12: Budget and Treasury Office | C12: 5022921 | D12: 5593046 | E12: 6763717.58 | F12: 6388236 | G12: 10251444 | H12: 8022401 | I12: 11040975.67 | J12: 11809038.24 | K12: 12603162.46
A13: Finance
A14: Fleet Management
A15: Human Resources
A16: Information Technology
A17: Legal Services
A18: Marketing, Customer Relations, Publicity and Media Co-ordination
A19: Property Services | C19: 534253 | D19: 1915605 | E19: 938843.21 | F19: 5307080 | G19: 617020 | H19: 894092 | I19: 6027275.211 | J19: 2364889.449 | K19: 809253.0366
A20: Risk Management
A21: Security Services
A22: Supply Chain Management
A23: Valuation Service
A24: Internal audit | C24: =SUM(C25:C25) -> 0 | D24: 0 | E24: 0 | F24: 0 | G24: 0 | H24: 0 | I24: 0 | J24: 0 | K24: 0
A25: Governance Function
A26: Community and public safety | C26: =C27+C49+C55+C62+C65 -> 1728071 | D26: =D27+D49+D55+D62+D65 -> 1319507 | E26: 1870345 | F26: 2618406 | G26: 3660515 | H26: 892204 | I26: 2846070.151 | J26: 3013988.29 | K26: 3188799.61
A27: Community and social services | C27: =SUM(C28:C48) -> 1728071 | D27: =SUM(D28:D48) -> 1319507 | E27: 1870345 | F27: 2618406 | G27: 3660515 | H27: 892204 | I27: 2846070.151 | J27: 3013988.29 | K27: 3188799.61
A28: Aged Care
A29: Agricultural
A30: Animal Care and Diseases
A31: Cemeteries, Funeral Parlours and Crematoriums
A32: Child Care Facilities
A33: Community Halls and Facilities | C33: 340000 | E33: 1373935 | F33: 1409606 | G33: 896990 | H33: 892204 | I33: 1555977.351 | J33: 1647780.014 | K33: 1743351.255
A34: Consumer Protection
A35: Cultural Matters
A36: Disaster Management
A37: Education
A38: Indigenous and Customary Law
A39: Industrial Promotion
A40: Language Policy
A41: Libraries and Archives | C41: 1388071 | D41: 1319507 | E41: 496410 | F41: 1208800 | G41: 2763525 | H41: 0 | I41: 1290092.8 | J41: 1366208.275 | K41: 1445448.355
A42: Literacy Programmes
A43: Media Services
A44: Museums and Art Galleries
A45: Population Development
A46: Provincial Cultural Matters
A47: Theatres
A48: Zoo's
A49: Sport and recreation | C49: =SUM(C50:C54) -> 0 | D49: =SUM(D50:D54) -> 0 | E49: 0 | F49: 0 | G49: 0 | H49: 0 | I49: 0 | J49: 0 | K49: 0
A50: Beaches and Jetties
A51: Casinos, Racing, Gambling, Wagering
A52: Community Parks (including Nurseries)
A53: Recreational Facilities
A54: Sports Grounds and Stadiums
A55: Public safety | C55: =SUM(C56:C61) -> 0 | D55: =SUM(D56:D61) -> 0 | E55: 0 | F55: 0 | G55: 0 | H55: 0 | I55: 0 | J55: 0 | K55: 0
A56: Civil Defence
A57: Cleansing
A58: Control of Public Nuisances
A59: Fencing and Fences
A60: Fire Fighting and Protection
A61: Licensing and Control of Animals
A62: Housing | C62: =SUM(C63:C64) -> 0 | D62: =SUM(D63:D64) -> 0 | E62: 0 | F62: 0 | G62: 0 | H62: 0 | I62: 0 | J62: 0 | K62: 0
A63: Housing
A64: Informal Settlements
A65: Health | C65: =SUM(C66:C72) -> 0 | D65: =SUM(D66:D72) -> 0 | E65: 0 | F65: 0 | G65: 0 | H65: 0 | I65: 0 | J65: 0 | K65: 0
A66: Ambulance
A67: Health Services
A68: Laboratory Services
A69: Food Control
A70: Health Surveillance and Prevention of Communicable Diseases including immunizations
A71: Vector Control
A72: Chemical Safety
A73: Economic and environmental services | C73: =C74+C85+C92 -> 7413692 | D73: =D74+D85+D92 -> 22767364 | E73: 15806591 | F73: 12904018 | G73: 11306829.75 | H73: 1663330 | I73: 14442564.87 | J73: 15245229.2 | K73: 15858360.49
A74: Planning and development | C74: =SUM(C75:C84) -> 6922737 | D74: =SUM(D75:D84) -> 17587121 | E74: 14902109 | F74: 10049021 | G74: 9165582 | H74: 1215758 | I74: 10565912.86 | J74: 10908854.72 | K74: 11270476.29
A75: Billboards
A76: Corporate Wide Strategic Planning (IDPs, LEDs)
A77: Central City Improvement District
A78: Development Facilitation
A79: Economic Development/Planning | C79: 6862737 | D79: 17587121 | E79: 14448615 | F79: 9567100 | G79: 8692100 | H79: 1195880 | I79: 10056350 | J79: 10368751 | K79: 10729304.3
A80: Regional Planning and Development
A81: Town Planning, Building Regulations and Enforcement, and City Engineer | C81: 60000 | E81: 24374 | F81: 31021 | G81: 22582 | H81: 19878 | I81: 32912.8566 | J81: 34854.71514 | K81: 36876.28862
A82: Project Management Unit | E82: 429120 | F82: 450900 | G82: 450900 | H82: 0 | I82: 476650 | J82: 505249 | K82: 504295.7
A83: Provincial Planning
A84: Support to Local Municipalities
A85: Road transport | C85: =SUM(C86:C91) -> 490955 | D85: =SUM(D86:D91) -> 5180243 | E85: =SUM(E86:E91) -> 904482 | F85: 2854997 | G85: 2141247.75 | H85: 447572 | I85: 3876652.016 | J85: 4336374.485 | K85: 4587884.206
A86: Police Forces, Traffic and Street Parking Control | C86: 490955 | D86: 5180243 | E86: 904482 | F86: 2854997 | G86: 2141247.75 | H86: 447572 | I86: 3876652.016 | J86: 4336374.485 | K86: 4587884.206
A87: Pounds
A88: Public Transport
A89: Road and Traffic Regulation
A90: Roads
A91: Taxi Ranks
A92: Environmental protection | C92: =SUM(C93:C98) -> 0 | D92: =SUM(D93:D98) -> 0 | E92: 0 | F92: 0 | G92: 0 | H92: 0 | I92: 0 | J92: 0 | K92: 0
A93: Biodiversity and Landscape
A94: Coastal Protection
A95: Indigenous Forests
A96: Nature Conservation
A97: Pollution Control
A98: Soil Conservation
A99: Trading services | C99: =C100+C104+C108+C113 -> 24930835 | D99: =D100+D104+D108+D113 -> 22481281 | E99: 31730927 | F99: 31163809 | G99: 29248387.33 | H99: 20369732 | I99: 34625060.55 | J99: 38366812.76 | K99: =K100+K104+K108+K113 -> 42242467.08
A100: Energy sources | C100: =SUM(C101:C103) -> 11408966 | D100: =SUM(D101:D103) -> 10278671 | E100: 11126933 | F100: 12768245 | G100: 12776018 | H100: 12318624 | I100: 15561717.57 | J100: 17379482.12 | K100: 19406094.26
A101: Electricity | C101: 11408966 | D101: 10278671 | E101: 11126933 | F101: 12768245 | G101: 12776018 | H101: 12318624 | I101: 15561717.57 | J101: 17379482.12 | K101: 19406094.26
A102: Street Lighting and Signal Systems
A103: Nonelectric Energy
A104: Water management | C104: =SUM(C105:C107) -> 9727658 | D104: =SUM(D105:D107) -> 8816602 | E104: 16458771 | F104: 12231282 | G104: 8977426 | H104: 3554142 | I104: 11124914.25 | J104: 12197339.58 | K104: 13383851.27
A105: Water Treatment
A106: Water Distribution | C106: 9727658 | D106: 8816602 | E106: 16458771 | F106: 12231282 | G106: 8977426 | H106: 3554142 | I106: 11124914.25 | J106: 12197339.58 | K106: 13383851.27
A107: Water Storage
A108: Waste water management | C108: =SUM(C109:C112) -> 2483818 | D108: =SUM(D109:D112) -> 2149927 | E108: 2730552 | F108: 4042277 | G108: 4912733.333 | H108: 2947640 | I108: 5159311.955 | J108: 5713189.294 | K108: 6044554.273
A109: Public Toilets
A110: Sewerage | C110: 2483818 | D110: 2149927 | E110: 2730552 | F110: 4042277 | G110: 4912733.333 | H110: 2947640 | I110: 5159311.955 | J110: 5713189.294 | K110: 6044554.273
A111: Storm Water Management
A112: Waste Water Treatment
A113: Waste management | C113: =SUM(C114:C117) -> 1310393 | D113: =SUM(D114:D117) -> 1236081 | E113: 1414671 | F113: 2122005 | G113: 2582210 | H113: 1549326 | I113: 2779116.775 | J113: 3076801.767 | K113: 3407967.278
A114: Recycling
A115: Solid Waste Disposal (Landfill Sites)
A116: Solid Waste Removal | C116: 1310393 | D116: 1236081 | E116: 1414671 | F116: 2122005 | G116: 2582210 | H116: 1549326 | I116: 2779116.775 | J116: 3076801.767 | K116: 3407967.278
A117: Street Cleaning
A118: Other | C118: =SUM(C119:C124) -> 0 | D118: =SUM(D119:D124) -> 0 | E118: 0 | F118: 0 | G118: 0 | H118: 0 | I118: 0 | J118: 0 | K118: 0
A119: Abattoirs
A120: Air Transport
A121: Forestry
A122: Licensing and Regulation
A123: Markets
A124: Tourism
A125: ="Total "&A4 -> Total Revenue - Functional | B125: 2 | C125: =C5+C26+C73+C99+C118 -> 55092549 | D125: 71672514 | E125: 77415480.67 | F125: 75397286 | G125: 72713407.08 | H125: 72435509 | I125: 86781102.27 | J125: 90425278.95 | K125: 95604982.3
A127: Expenditure - Functional
A128: =A5 -> Municipal governance and administration | C128: =C129+C132+C147 -> 22056493 | D128: 32852598 | E128: 32269267 | F128: 25369136 | G128: 28995880 | H128: 51124082 | I128: 30671836.1 | J128: 32208927.83 | K128: 33947245.51
A129: Executive and council | C129: =SUM(C130:C131) -> 6154456 | D129: 7301161 | E129: 7857430 | F129: 6130927 | G129: 5862710 | H129: 7627152 | I129: 8832368.99 | J129: 9403061.672 | K129: 10001443.38
A130: Mayor and Council | C130: 6154456 | D130: 7301161 | E130: 6085267 | F130: 4356453 | G130: 4210718 | H130: 6175007 | I130: 6938059.095 | J130: 7395921.64 | K130: 7876749.83
A131: Municipal Manager, Town Secretary and Chief Executive | E131: 1772163 | F131: 1774474 | G131: 1651992 | H131: 1452145 | I131: 1894309.895 | J131: 2007140.032 | K131: 2124693.551
A132: Finance and administration | C132: =SUM(C133:C146) -> 15902037 | D132: =SUM(D133:D146) -> 25551437 | E132: 24411837 | F132: 19238209 | G132: 23133170 | H132: 43496930 | I132: 21839467.11 | J132: 22805866.16 | K132: 23945802.13
A133: Administrative and Corporate Support | E133: 5082234 | F133: 4405996 | G133: 5711714 | H133: 15052830 | I133: 5216110.341 | J133: 5481810.929 | K133: 5834049.566
A134: Asset Management
A135: Budget and Treasury Office | C135: 10616613 | D135: 17868472 | E135: 17858172 | F135: 13542480 | G135: 15714750 | H135: 27063599 | I135: 15254949.79 | J135: 15937511.23 | K135: 16706327.01
A136: Finance
A137: Fleet Management
A138: Human Resources
A139: Information Technology
A140: Legal Services
A141: Marketing, Customer Relations, Publicity and Media Co-ordination
A142: Property Services | C142: 5285424 | D142: 7682965 | E142: 1471431 | F142: 1289733 | G142: 1706706 | H142: 1380501 | I142: 1368406.988 | J142: 1386544 | K142: 1405425.552
A143: Risk Management
A144: Security Services
A145: Supply Chain Management
A146: Valuation Service
A147: Internal audit | C147: =SUM(C148:C148) -> 0 | D147: 0 | E147: 0 | F147: 0 | G147: 0 | H147: 0 | I147: 0 | J147: 0 | K147: 0
A148: Governance Function
A149: Community and public safety | C149: =C150+C172+C178+C184+C187 -> 1465958 | D149: 1269910 | E149: 1540648 | F149: 1884163 | G149: 2132835 | H149: 2167644 | I149: 2417053.132 | J149: 2620251.122 | K149: 2842789.206
A150: Community and social services | C150: =SUM(C151:C171) -> 1465958 | D150: =SUM(D151:D171) -> 1269910 | E150: 1540648 | F150: 1884163 | G150: 2132835 | H150: 2167644 | I150: 2417053.132 | J150: 2620251.122 | K150: 2842789.206
A151: Aged Care
A152: =A29 -> Agricultural
A153: Animal Care and Diseases
A154: Cemeteries, Funeral Parlours and Crematoriums
A155: Child Care Facilities
A156: Community Halls and Facilities | E156: 249437 | F156: 530256 | G156: 427958 | H156: 427958 | I156: 538811.5791 | J156: 547591.4622 | K156: 556731.7671
A157: Consumer Protection
A158: Cultural Matters
A159: Disaster Management | C159: 22957 | D159: 17113 | F159: 35275 | G159: 35275 | I159: 37427.00757 | J159: 39635.20102 | K159: 41934.04268
A160: Education
A161: Indigenous and Customary Law
A162: Industrial Promotion
A163: Language Policy
A164: Libraries and Archives | C164: 1443001 | D164: 1252797 | E164: 1291211 | F164: 1318632 | G164: 1669602 | H164: 1739686 | I164: 1840814.546 | J164: 2033024.459 | K164: 2244123.396
A165: Literacy Programmes
A166: Media Services
A167: Museums and Art Galleries
A168: Population Development
A169: Provincial Cultural Matters
A170: Theatres
A171: Zoo's
A172: =A49 -> Sport and recreation | C172: =SUM(C173:C177) -> 0 | D172: 0 | E172: 0 | F172: 0 | G172: 0 | H172: 0 | I172: 0 | J172: 0 | K172: 0
A173: =A50 -> Beaches and Jetties
A174: =A51 -> Casinos, Racing, Gambling, Wagering
A175: =A53 -> Recreational Facilities
A176: =A54 -> Sports Grounds and Stadiums
A177: =A55 -> Public safety
A178: =A55 -> Public safety | C178: =SUM(C179:C183) -> 0 | D178: 0 | E178: 0 | F178: 0 | G178: 0 | H178: 0 | I178: 0 | J178: 0 | K178: 0
A179: =A56 -> Civil Defence
A180: =A57 -> Cleansing
A181: =A59 -> Fencing and Fences
A182: Fire Fighting and Protection
A183: Licensing and Control of Animals
A184: Housing | C184: =SUM(C185:C186) -> 0 | D184: 0 | E184: 0 | F184: 0 | G184: 0 | H184: 0 | I184: 0 | J184: 0 | K184: 0
A185: Housing
A186: Informal Settlements
A187: Health | C187: =SUM(C188:C194) -> 0 | D187: =SUM(D188:D194) -> 0 | E187: 0 | F187: 0 | G187: 0 | H187: 0 | I187: 0 | J187: 0 | K187: 0
A188: =A66 -> Ambulance
A189: Health Services
A190: Laboratory Services
A191: Food Control
A192: Health Surveillance and Prevention of Communicable Diseases including immunizations
A193: Vector Control
A194: Chemical Safety
A195: =A73 -> Economic and environmental services | C195: =C196+C207+C214 -> 11792908 | D195: 13160284 | E195: 12965221 | F195: 11604337 | G195: 12527425 | H195: 10627110 | I195: 12072090.65 | J195: 12740829.27 | K195: 13374518.47
A196: =A74 -> Planning and development | C196: =SUM(C197:C206) -> 9905230 | D196: =SUM(D197:D206) -> 11613555 | E196: 11127595 | F196: 9959402 | G196: 10632490 | H196: 8236590 | I196: 10317074.6 | J196: 10871836.45 | K196: 11385973.51
A197: =A75 -> Billboards
A198: Corporate Wide Strategic Planning (IDPs, LEDs)
A199: Central City Improvement District
A200: Development Facilitation
A201: Economic Development/Planning | C201: 9905230 | D201: 11613555 | E201: 1155491 | F201: 1307170 | G201: 730086 | H201: 765362 | I201: 1328270.387 | J201: 1409168.745 | K201: 1493605.535
... 54 more rows

Sheet A3-FinPerf V
A1: =muni&" - "&Approve2 -> NC076 Thembelihle - Table A3 Budgeted Financial Performance (revenue and expenditure by municipal vote)
A2: =Vdesc -> Vote Description | B2: =head27 -> Ref | C2: =head1b -> 2013/14 | D2: =head1A -> 2014/15 | E2: =Head1 -> 2015/16 | F2: =Head2 -> Current Year 2016/17 | I2: =Head3 -> 2017/18 Medium Term Revenue & Expenditure Framework | L2: =Head4 -> LTFS
A3: R thousand | C3: =Head5 -> Audited Outcome | D3: =Head5 -> Audited Outcome | E3: =Head5 -> Audited Outcome | F3: =Head6 -> Original Budget | G3: =Head7 -> Adjusted Budget | H3: =Head8 -> Full Year Forecast | I3: =Head9 -> Budget Year 2017/18 | J3: =Head10 -> Budget Year +1 2018/19 | K3: =Head11 -> Budget Year +2 2019/20 | L3: =Head12 -> Forecast 2020/21 | M3: =Head13 -> Forecast 2021/22 | N3: =Head14 -> Forecast 2022/23 | O3: =Head15 -> Forecast 2023/24 | P3: =Head16 -> Forecast 2024/25 | Q3: =Head17 -> Forecast 2025/26 | R3: =Head18 -> Forecast 2026/27 | S3: =Head19 -> Forecast 2027/28 | T3: =Head20 -> Forecast 2028/29 | U3: =Head21 -> Forecast 2029/30 | V3: =Head22 -> Forecast 2030/31 | W3: =Head23 -> Forecast 2031/32
A4: Revenue by Vote | B4: 1
A5: =A3A!A5 -> Vote 1 - Executive Council | C5: =A3A!C5 -> 15396608 | D5: =A3A!D5 -> 17595711 | E5: =A3A!E5 -> 20157067 | F5: =A3A!F5 -> 16490361 | G5: =A3A!G5 -> 16760361 | H5: =A3A!H5 -> 18676000 | I5: =A3A!I5 -> 17241731.91 | J5: =A3A!J5 -> 19035009.09 | K5: =A3A!K5 -> 20278389.62
A6: =A3A!A16 -> Vote 2 - Budget & Treasury | C6: =A3A!C16 -> 5022921 | D6: =A3A!D16 -> 5593046 | E6: =A3A!E16 -> 6763718 | F6: =A3A!F16 -> 6388236 | G6: =A3A!G16 -> 10251444 | H6: =A3A!H16 -> 8022401 | I6: =A3A!I16 -> 11040975.67 | J6: =A3A!J16 -> 11809038.24 | K6: =A3A!K16 -> 12603162.46
A7: =A3A!A27 -> Vote 3 - Corporate Service | C7: =A3A!C27 -> 600422 | D7: =A3A!D27 -> 1915605 | E7: =A3A!E27 -> 1086834 | F7: =A3A!F27 -> 5832456 | G7: =A3A!G27 -> 1485950 | H7: =A3A!H27 -> 1123455 | I7: =A3A!I27 -> 6584699.113 | J7: =A3A!J27 -> 2955201.361 | K7: =A3A!K27 -> 1433803.04
A8: =A3A!A38 -> Vote 4 - Community & Social Service | C8: =A3A!C38 -> 1728071 | D8: =A3A!D38 -> 1319507 | E8: =A3A!E38 -> 1870345 | F8: =A3A!F38 -> 2618406 | G8: =A3A!G38 -> 3660515 | H8: =A3A!H38 -> 936900 | I8: =A3A!I38 -> 2846070.151 | J8: =A3A!J38 -> 3013988.29 | K8: =A3A!K38 -> 3188799.61
A9: =A3A!A49 -> Vote 5 - Public Safety | C9: =A3A!C49 -> 0 | D9: =A3A!D49 -> 0 | E9: =A3A!E49 -> 0 | F9: =A3A!F49 -> 0 | G9: =A3A!G49 -> 0 | H9: =A3A!H49 -> 0 | I9: =A3A!I49 -> 0 | J9: =A3A!J49 -> 0 | K9: =A3A!K49 -> 0
A10: =A3A!A60 -> Vote 6 - Planning & Development | C10: =A3A!C60 -> 6922737 | D10: =A3A!D60 -> 17587121 | E10: =A3A!E60 -> 14902109 | F10: =A3A!F60 -> 10049021 | G10: =A3A!G60 -> 9165582 | H10: =A3A!H60 -> 10311010 | I10: =A3A!I60 -> 10565912.86 | J10: =A3A!J60 -> 10908854.72 | K10: =A3A!K60 -> 11270476.29
A11: =A3A!A71 -> Vote 7 - Road Transport | C11: =A3A!C71 -> 490955 | D11: =A3A!D71 -> 5180243 | E11: =A3A!E71 -> 904482 | F11: =A3A!F71 -> 2854997 | G11: =A3A!G71 -> 2141247.75 | H11: =A3A!H71 -> 2231078 | I11: =A3A!I71 -> 3876652.016 | J11: =A3A!J71 -> 4336374.485 | K11: =A3A!K71 -> 4587884.206
A12: =A3A!A82 -> Vote 8 - Electricity | C12: =A3A!C82 -> 11408966 | D12: =A3A!D82 -> 10278671 | E12: =A3A!E82 -> 11126933 | F12: =A3A!F82 -> 12768245 | G12: =A3A!G82 -> 12776018 | H12: =A3A!H82 -> 12148845 | I12: =A3A!I82 -> 15561717.57 | J12: =A3A!J82 -> 17379482.12 | K12: =A3A!K82 -> 19406094.26
A13: =A3A!A93 -> Vote 9 - Water | C13: =A3A!C93 -> 9727658 | D13: =A3A!D93 -> 8816602 | E13: =A3A!E93 -> 16458771 | F13: =A3A!F93 -> 12231282 | G13: =A3A!G93 -> 8977426 | H13: =A3A!H93 -> 16459359 | I13: =A3A!I93 -> 11124914.25 | J13: =A3A!J93 -> 12197339.58 | K13: =A3A!K93 -> 13383851.27
A14: =A3A!A104 -> Vote 10 - Waste Water Management | C14: =A3A!C104 -> 2483818 | D14: =A3A!D104 -> 2149927 | E14: =A3A!E104 -> 2730552 | F14: =A3A!F104 -> 4042277 | G14: =A3A!G104 -> 4912733.333 | H14: =A3A!H104 -> 2779964 | I14: =A3A!I104 -> 5159311.955 | J14: =A3A!J104 -> 5713189.294 | K14: =A3A!K104 -> 6044554.273
A15: =A3A!A115 -> Vote 11 - Waste Management | C15: =A3A!C115 -> 1310393 | D15: =A3A!D115 -> 1236081 | E15: =A3A!E115 -> 1414671 | F15: =A3A!F115 -> 2122005 | G15: =A3A!G115 -> 2582210 | H15: =A3A!H115 -> 1450367 | I15: =A3A!I115 -> 2779116.775 | J15: =A3A!J115 -> 3076801.767 | K15: =A3A!K115 -> 3407967.278 | L15: =A5A!L115 -> 0
A16: =A3A!A126 -> 0 | C16: =A3A!C126 -> 0 | D16: =A3A!D126 -> 0 | E16: =A3A!E126 -> 0 | F16: =A3A!F126 -> 0 | G16: =A3A!G126 -> 0 | H16: =A3A!H126 -> 0 | I16: =A3A!I126 -> 0 | J16: =A3A!J126 -> 0 | K16: =A3A!K126 -> 0 | L16: =A5A!L126 -> 0
A17: =A3A!A137 -> 0 | C17: =A3A!C137 -> 0 | D17: =A3A!D137 -> 0 | E17: =A3A!E137 -> 0 | F17: =A3A!F137 -> 0 | G17: =A3A!G137 -> 0 | H17: =A3A!H137 -> 0 | I17: =A3A!I137 -> 0 | J17: =A3A!J137 -> 0 | K17: =A3A!K137 -> 0 | L17: =A5A!L137 -> 0
A18: =A3A!A148 -> Vote 14 - [NAME OF VOTE 14] | C18: =A3A!C148 -> 0 | D18: =A3A!D148 -> 0 | E18: =A3A!E148 -> 0 | F18: =A3A!F148 -> 0 | G18: =A3A!G148 -> 0 | H18: =A3A!H148 -> 0 | I18: =A3A!I148 -> 0 | J18: =A3A!J148 -> 0 | K18: =A3A!K148 -> 0 | L18: =A5A!L148 -> 0
A19: =A3A!A159 -> Vote 15 - [NAME OF VOTE 15] | C19: =A3A!C159 -> 0 | D19: =A3A!D159 -> 0 | E19: =A3A!E159 -> 0 | F19: =A3A!F159 -> 0 | G19: =A3A!G159 -> 0 | H19: =A3A!H159 -> 0 | I19: =A3A!I159 -> 0 | J19: =A3A!J159 -> 0 | K19: =A3A!K159 -> 0 | L19: =A5A!L159 -> 0
A20: Total Revenue by Vote | B20: 2 | C20: =SUM(C5:C19) -> 55092549 | D20: =SUM(D5:D19) -> 71672514 | E20: 77415482 | F20: 75397286 | G20: 72713487.08 | H20: 74139379 | I20: 86781102.27 | J20: 90425278.95 | K20: 95604982.3
A22: Expenditure by Vote to be appropriated | B22: 1
A23: =A3A!A173 -> Vote 1 - Executive Council | C23: =A3A!C173 -> 6154456 | D23: =A3A!D173 -> 7301161 | E23: =A3A!E173 -> 7857430 | F23: =A3A!F173 -> 6130927.176 | G23: =A3A!G173 -> 5862710 | H23: =A3A!H173 -> 7627152 | I23: =A3A!I173 -> 8832368.99 | J23: =A3A!J173 -> 9403061.672 | K23: =A3A!K173 -> 10001443.38
A24: =A3A!A184 -> Vote 2 - Budget & Treasury | C24: =A3A!C184 -> 10616613 | D24: =A3A!D184 -> 17868472 | E24: =A3A!E184 -> 17858172 | F24: =A3A!F184 -> 13542480 | G24: =A3A!G184 -> 15714750 | H24: =A3A!H184 -> 27063599 | I24: =A3A!I184 -> 15254949.79 | J24: =A3A!J184 -> 15937511.23 | K24: =A3A!K184 -> 16706327.01
A25: =A3A!A195 -> Vote 3 - Corporate Service | C25: =A3A!C195 -> 5285424 | D25: =A3A!D195 -> 7682965 | E25: =A3A!E195 -> 6553665 | F25: =A3A!F195 -> 5695729 | G25: =A3A!G195 -> 7418420 | H25: =A3A!H195 -> 6271842 | I25: =A3A!I195 -> 6584517.329 | J25: =A3A!J195 -> 6868354.929 | K25: =A3A!K195 -> 7239475.118
A26: =A3A!A206 -> Vote 4 - Community & Social Service | C26: =A3A!C206 -> 1443001 | D26: =A3A!D206 -> 1252797 | E26: =A3A!E206 -> 1540648 | F26: =A3A!F206 -> 1848888.267 | G26: =A3A!G206 -> 2097560 | H26: =A3A!H206 -> 1425438 | I26: =A3A!I206 -> 2379626.125 | J26: =A3A!J206 -> 2580615.921 | K26: =A3A!K206 -> 2800855.163
A27: =A3A!A217 -> Vote 5 - Public Safety | C27: =A3A!C217 -> 22957 | D27: =A3A!D217 -> 17113 | E27: =A3A!E217 -> 30481 | F27: =A3A!F217 -> 35275.2192 | G27: =A3A!G217 -> 35275 | H27: =A3A!H217 -> 18175 | I27: =A3A!I217 -> 37427.00757 | J27: =A3A!J217 -> 39635.20102 | K27: =A3A!K217 -> 41934.04268
A28: =A3A!A228 -> Vote 6 - Planning & Development | C28: =A3A!C228 -> 9905230 | D28: =A3A!D228 -> 11613555 | E28: =A3A!E228 -> 11097114 | F28: =A3A!F228 -> 9959402 | G28: =A3A!G228 -> 10632491 | H28: =A3A!H228 -> 11093304 | I28: =A3A!I228 -> 10317074.6 | J28: =A3A!J228 -> 10871836.45 | K28: =A3A!K228 -> 11385973.51
A29: =A3A!A239 -> Vote 7 - Road Transport | C29: =A3A!C239 -> 1887678 | D29: =A3A!D239 -> 1546729 | E29: =A3A!E239 -> 1837626 | F29: =A3A!F239 -> 1644935.645 | G29: =A3A!G239 -> 1894935 | H29: =A3A!H239 -> 2787049 | I29: =A3A!I239 -> 1755016.052 | J29: =A3A!J239 -> 1868992.824 | K29: =A3A!K239 -> 1988544.96
A30: =A3A!A250 -> Vote 8 - Electricity | C30: =A3A!C250 -> 9145490 | D30: =A3A!D250 -> 10803524 | E30: =A3A!E250 -> 14104651 | F30: =A3A!F250 -> 15954662 | G30: =A3A!G250 -> 14746758 | H30: =A3A!H250 -> 14171108 | I30: =A3A!I250 -> 16132864.84 | J30: =A3A!J250 -> 16967754.92 | K30: =A3A!K250 -> 17837557.68
A31: =A3A!A261 -> Vote 9 - Water | C31: =A3A!C261 -> 4801958 | D31: =A3A!D261 -> 7081995 | E31: =A3A!E261 -> 5905234 | F31: =A3A!F261 -> 6592668 | G31: =A3A!G261 -> 6107709 | H31: =A3A!H261 -> 5895872 | I31: =A3A!I261 -> 6888874.519 | J31: =A3A!J261 -> 7254075.223 | K31: =A3A!K261 -> 7636712.357
A32: =A3A!A272 -> Vote 10 - Waste Water Management | C32: =A3A!C272 -> 2157241 | D32: =A3A!D272 -> 2008905 | E32: =A3A!E272 -> 2023453 | F32: =A3A!F272 -> 2995090 | G32: =A3A!G272 -> 3216873 | H32: =A3A!H272 -> 2094280 | I32: =A3A!I272 -> 3016349.271 | J32: =A3A!J272 -> 3170525.638 | K32: =A3A!K272 -> 3331728.618
A33: =A3A!A283 -> Vote 11 - Waste Management | C33: =A3A!C283 -> 2552470 | D33: =A3A!D283 -> 1455432 | E33: =A3A!E283 -> 1321787 | F33: =A3A!F283 -> 2274890 | G33: =A3A!G283 -> 3168162 | H33: =A3A!H283 -> 2234175 | I33: =A3A!I283 -> 2401700.881 | J33: =A3A!J283 -> 2526974.789 | K33: =A3A!K283 -> 2658131.591 | L33: =A3A!L284 -> 0
A34: =A3A!A294 -> 0 | C34: =A3A!C294 -> 0 | D34: =A3A!D294 -> 0 | E34: =A3A!E294 -> 0 | F34: =A3A!F294 -> 0 | G34: =A3A!G294 -> 0 | H34: =A3A!H294 -> 0 | I34: =A3A!I294 -> 0 | J34: =A3A!J294 -> 0 | K34: =A3A!K294 -> 0 | L34: =A3A!L295 -> 0
A35: =A3A!A305 -> 0 | C35: =A3A!C305 -> 0 | D35: =A3A!D305 -> 0 | E35: =A3A!E305 -> 0 | F35: =A3A!F305 -> 0 | G35: =A3A!G305 -> 0 | H35: =A3A!H305 -> 0 | I35: =A3A!I305 -> 0 | J35: =A3A!J305 -> 0 | K35: =A3A!K305 -> 0 | L35: =A3A!L306 -> 0
A36: =A3A!A316 -> Vote 14 - [NAME OF VOTE 14] | C36: =A3A!C316 -> 0 | D36: =A3A!D316 -> 0 | E36: =A3A!E316 -> 0 | F36: =A3A!F316 -> 0 | G36: =A3A!G316 -> 0 | H36: =A3A!H316 -> 0 | I36: =A3A!I316 -> 0 | J36: =A3A!J316 -> 0 | K36: =A3A!K316 -> 0 | L36: =A3A!L317 -> 0
A37: =A3A!A327 -> Vote 15 - [NAME OF VOTE 15] | C37: =A3A!C327 -> 0 | D37: =A3A!D327 -> 0 | E37: =A3A!E327 -> 0 | F37: =A3A!F327 -> 0 | G37: =A3A!G327 -> 0 | H37: =A3A!H327 -> 0 | I37: =A3A!I327 -> 0 | J37: =A3A!J327 -> 0 | K37: =A3A!K327 -> 0 | L37: =A3A!L328 -> 0
A38: Total Expenditure by Vote | B38: 2 | C38: =SUM(C23:C37) -> 53972518 | D38: =SUM(D23:D37) -> 68632648 | E38: 70130261 | F38: 66674947.31 | G38: 70895643 | H38: 80681994 | I38: 73600769.4 | J38: 77489338.79 | K38: 81628683.43 | L38: =SUM(L23:L29) -> 0 | M38: 0 | N38: 0 | O38: 0 | P38: 0 | Q38: 0 | R38: 0 | S38: 0 | T38: 0 | U38: 0 | V38: 0 | W38: 0
A39: =result -> Surplus/(Deficit) for the year | B39: 2 | C39: =C20-C38 -> 1120031 | D39: 3039866 | E39: 7285221 | F39: 8722338.692 | G39: 1817844.083 | H39: -6542615 | I39: 13180332.87 | J39: 12935940.15 | K39: 13976298.87 | L39: 0 | M39: 0 | N39: 0 | O39: 0 | P39: 0 | Q39: 0 | R39: 0 | S39: 0 | T39: 0 | U39: 0 | V39: 0 | W39: 0
A40: =head27a -> References
A41: 1. Insert 'Vote'; e.g. department, if different to functional classification structure
A42: 2. Must reconcile to Budgeted Financial Performance (revenue and expenditure)
A43: 3. Assign share in 'associate' to relevant Vote
A45: ="check "&A39 -> check Surplus/(Deficit) for the year | C45: =C39-A3A!C340 -> 0 | D45: =D39-A3A!D340 -> 0 | E45: =E39-A3A!E340 -> 0 | F45: =F39-A3A!F340 -> 0 | G45: =G39-A3A!G340 -> 0 | H45: =H39-A3A!H340 -> 0 | I45: =I39-A3A!I340 -> -1.490116119e-08 | J45: =J39-A3A!J340 -> 0 | K45: =K39-A3A!K340 -> 0

Sheet A3A
A1: =muni&" - "&Approve2&"A" -> NC076 Thembelihle - Table A3 Budgeted Financial Performance (revenue and expenditure by municipal vote)A
A2: =Vdesc -> Vote Description | B2: =head27 -> Ref | C2: =head1b -> 2013/14 | D2: =head1A -> 2014/15 | E2: =Head1 -> 2015/16 | F2: =Head2 -> Current Year 2016/17 | I2: =Head3 -> 2017/18 Medium Term Revenue & Expenditure Framework | L2: =Head4 -> LTFS
A3: R thousand | C3: =Head5 -> Audited Outcome | D3: =Head5 -> Audited Outcome | E3: =Head5 -> Audited Outcome | F3: =Head6 -> Original Budget | G3: =Head7 -> Adjusted Budget | H3: =Head8 -> Full Year Forecast | I3: =Head9 -> Budget Year 2017/18 | J3: =Head10 -> Budget Year +1 2018/19 | K3: =Head11 -> Budget Year +2 2019/20 | L3: =Head12 -> Forecast 2020/21 | M3: =Head13 -> Forecast 2021/22 | N3: =Head14 -> Forecast 2022/23 | O3: =Head15 -> Forecast 2023/24 | P3: =Head16 -> Forecast 2024/25 | Q3: =Head17 -> Forecast 2025/26 | R3: =Head18 -> Forecast 2026/27 | S3: =Head19 -> Forecast 2027/28 | T3: =Head20 -> Forecast 2028/29 | U3: =Head21 -> Forecast 2029/30 | V3: =Head22 -> Forecast 2030/31 | W3: =Head23 -> Forecast 2031/32
A4: Revenue by Vote | B4: 1
A5: ='Org structure'!A2 -> Vote 1 - Executive Council | C5: =SUM(C6:C15) -> 15396608 | D5: =SUM(D6:D15) -> 17595711 | E5: 20157067 | F5: 16490361 | G5: 16760361 | H5: 18676000 | I5: 17241731.91 | J5: 19035009.09 | K5: 20278389.62
A6: ='Org structure'!E3 -> 1.1 - Council | C6: 15396608 | D6: 17595711 | E6: 18813912 | F6: 16490361 | G6: 16760361 | H6: 18676000 | I6: 17241731.91 | J6: 19035009.09 | K6: 20278389.62
A7: ='Org structure'!E4 -> 1.2 - Municipal Manager | E7: 1343155
A8: ='Org structure'!E5 -> 0
A9: ='Org structure'!E6 -> 0
A10: ='Org structure'!E7 -> 0
A11: ='Org structure'!E8 -> 0
A12: ='Org structure'!E9 -> 0
A13: ='Org structure'!E10 -> 0
A14: ='Org structure'!E11 -> 0
A15: ='Org structure'!E12 -> 0
A16: ='Org structure'!A3 -> Vote 2 - Budget & Treasury | C16: =SUM(C17:C26) -> 5022921 | D16: =SUM(D17:D26) -> 5593046 | E16: 6763718 | F16: 6388236 | G16: 10251444 | H16: 8022401 | I16: 11040975.67 | J16: 11809038.24 | K16: 12603162.46
A17: ='Org structure'!E14 -> 2.1 - Budget & Treasury | C17: 5022921 | D17: 5593046 | E17: 6763718 | F17: 6388236 | G17: 10251444 | H17: 8022401 | I17: 11040975.67 | J17: 11809038.24 | K17: 12603162.46
A18: ='Org structure'!E15 -> 0
A19: ='Org structure'!E16 -> 0
A20: ='Org structure'!E17 -> 0
A21: ='Org structure'!E18 -> 0
A22: ='Org structure'!E19 -> 0
A23: ='Org structure'!E20 -> 0
A24: ='Org structure'!E21 -> 0
A25: ='Org structure'!E22 -> 0
A26: ='Org structure'!E23 -> 0
A27: ='Org structure'!A4 -> Vote 3 - Corporate Service | C27: =SUM(C28:C37) -> 600422 | D27: 1915605 | E27: 1086834 | F27: 5832456 | G27: 1485950 | H27: 1123455 | I27: 6584699.113 | J27: 2955201.361 | K27: 1433803.04
A28: ='Org structure'!E25 -> 3.1 - Administration | C28: 66169 | E28: 147991 | F28: 525376 | G28: 868850 | H28: 354418 | I28: 557423.902 | J28: 590311.9123 | K28: 624550.0032
A29: ='Org structure'!E26 -> 3.2 - Fixed Property & Buidling | C29: 534253 | D29: 1915605 | E29: 938843 | F29: 5307080 | G29: 617100 | H29: 769037 | I29: 6027275.211 | J29: 2364889.449 | K29: 809253.0366
A30: ='Org structure'!E27 -> 0
A31: ='Org structure'!E28 -> 0
A32: ='Org structure'!E29 -> 0
A33: ='Org structure'!E30 -> 0
A34: ='Org structure'!E31 -> 0
A35: ='Org structure'!E32 -> 0
A36: ='Org structure'!E33 -> 0
A37: ='Org structure'!E34 -> 0
A38: ='Org structure'!A5 -> Vote 4 - Community & Social Service | C38: =SUM(C39:C48) -> 1728071 | D38: 1319507 | E38: 1870345 | F38: 2618406 | G38: 3660515 | H38: 936900 | I38: 2846070.151 | J38: 3013988.29 | K38: 3188799.61
A39: ='Org structure'!E36 -> 4.1 - Library | C39: 1388071 | D39: 1319507 | E39: 496410 | F39: 1208800 | G39: 2763525 | H39: 603000 | I39: 1290092.8 | J39: 1366208.275 | K39: 1445448.355
A40: ='Org structure'!E37 -> 4.2 - Community | C40: 340000 | E40: 1373935 | F40: 1409606 | G40: 896990 | H40: 333900 | I40: 1555977.351 | J40: 1647780.014 | K40: 1743351.255
A41: ='Org structure'!E38 -> 0
A42: ='Org structure'!E39 -> 0
A43: ='Org structure'!E40 -> 0
A44: ='Org structure'!E41 -> 0
A45: ='Org structure'!E42 -> 0
A46: ='Org structure'!E43 -> 0
A47: ='Org structure'!E44 -> 0
A48: ='Org structure'!E45 -> 0
A49: ='Org structure'!A6 -> Vote 5 - Public Safety | C49: =SUM(C50:C59) -> 0 | D49: =SUM(D50:D59) -> 0 | E49: 0 | F49: 0 | G49: 0 | H49: 0 | I49: 0 | J49: 0 | K49: 0
A50: ='Org structure'!E47 -> 5.1 - Disaster Management
A51: ='Org structure'!E48 -> 0
A52: ='Org structure'!E49 -> 0
A53: ='Org structure'!E50 -> 0
A54: ='Org structure'!E51 -> 0
A55: ='Org structure'!E52 -> 0
A56: ='Org structure'!E53 -> 0
A57: ='Org structure'!E54 -> 0
A58: ='Org structure'!E55 -> 0
A59: ='Org structure'!E56 -> 0
A60: ='Org structure'!A7 -> Vote 6 - Planning & Development | C60: =SUM(C61:C70) -> 6922737 | D60: =SUM(D61:D70) -> 17587121 | E60: 14902109 | F60: 10049021 | G60: 9165582 | H60: 10311010 | I60: 10565912.86 | J60: 10908854.72 | K60: 11270476.29
A61: ='Org structure'!E58 -> 6.1 - Technical | C61: 60000 | E61: 24374 | F61: 31021 | G61: 22582 | H61: 22010 | I61: 32912.8566 | J61: 34854.71514 | K61: 36876.28862
A62: ='Org structure'!E59 -> 6.2 - Support Service | C62: 6862737 | D62: 17587121 | E62: 14448615 | F62: 9567100 | G62: 8692100 | H62: 9824550 | I62: 10056350 | J62: 10368751 | K62: 10729304.3
A63: ='Org structure'!E60 -> 6.3 - PMU | E63: 429120 | F63: 450900 | G63: 450900 | H63: 464450 | I63: 476650 | J63: 505249 | K63: 504295.7
A64: ='Org structure'!E61 -> 0
A65: ='Org structure'!E62 -> 0
A66: ='Org structure'!E63 -> 0
A67: ='Org structure'!E64 -> 0
A68: ='Org structure'!E65 -> 0
A69: ='Org structure'!E66 -> 0
A70: ='Org structure'!E67 -> 0
A71: ='Org structure'!A8 -> Vote 7 - Road Transport | C71: =SUM(C72:C81) -> 490955 | D71: 5180243 | E71: 904482 | F71: 2854997 | G71: 2141247.75 | H71: 2231078 | I71: 3876652.016 | J71: 4336374.485 | K71: 4587884.206
A72: ='Org structure'!E69 -> 7.1 - Traffic | C72: 490955 | D72: 5180243 | E72: 904482 | F72: 2854997 | G72: 2141247.75 | H72: 2231078 | I72: 3876652.016 | J72: 4336374.485 | K72: 4587884.206
A73: ='Org structure'!E70 -> 0
A74: ='Org structure'!E71 -> 0
A75: ='Org structure'!E72 -> 0
A76: ='Org structure'!E73 -> 0
A77: ='Org structure'!E74 -> 0
A78: ='Org structure'!E75 -> 0
A79: ='Org structure'!E76 -> 0
A80: ='Org structure'!E77 -> 0
A81: ='Org structure'!E78 -> 0
A82: ='Org structure'!A9 -> Vote 8 - Electricity | C82: =SUM(C83:C92) -> 11408966 | D82: 10278671 | E82: 11126933 | F82: 12768245 | G82: 12776018 | H82: 12148845 | I82: 15561717.57 | J82: 17379482.12 | K82: 19406094.26
A83: ='Org structure'!E80 -> 8.1 - Electricity | C83: 11408966 | D83: 10278671 | E83: 11126933 | F83: 12768245 | G83: 12776018 | H83: 12148845 | I83: 15561717.57 | J83: 17379482.12 | K83: 19406094.26
A84: ='Org structure'!E81 -> 0
A85: ='Org structure'!E82 -> 0
A86: ='Org structure'!E83 -> 0
A87: ='Org structure'!E84 -> 0
A88: ='Org structure'!E85 -> 0
A89: ='Org structure'!E86 -> 0
A90: ='Org structure'!E87 -> 0
A91: ='Org structure'!E88 -> 0
A92: ='Org structure'!E89 -> 0
A93: ='Org structure'!A10 -> Vote 9 - Water | C93: =SUM(C94:C103) -> 9727658 | D93: =SUM(D94:D103) -> 8816602 | E93: 16458771 | F93: 12231282 | G93: 8977426 | H93: 16459359 | I93: 11124914.25 | J93: 12197339.58 | K93: 13383851.27
A94: ='Org structure'!E91 -> 9.1 - Water | C94: 9727658 | D94: 8816602 | E94: 16458771 | F94: 12231282 | G94: 8977426 | H94: 16459359 | I94: 11124914.25 | J94: 12197339.58 | K94: 13383851.27
A95: ='Org structure'!E92 -> 0
A96: ='Org structure'!E93 -> 0
A97: ='Org structure'!E94 -> 0
A98: ='Org structure'!E95 -> 0
A99: ='Org structure'!E96 -> 0
A100: ='Org structure'!E97 -> 0
A101: ='Org structure'!E98 -> 0
A102: ='Org structure'!E99 -> 0
A103: ='Org structure'!E100 -> 0
A104: ='Org structure'!A11 -> Vote 10 - Waste Water Management | C104: =SUM(C105:C114) -> 2483818 | D104: =SUM(D105:D114) -> 2149927 | E104: 2730552 | F104: 4042277 | G104: 4912733.333 | H104: 2779964 | I104: 5159311.955 | J104: 5713189.294 | K104: 6044554.273
A105: ='Org structure'!E102 -> 10.1 - Waste Water Management | C105: 2483818 | D105: 2149927 | E105: 2730552 | F105: 4042277 | G105: 4912733.333 | H105: 2779964 | I105: 5159311.955 | J105: 5713189.294 | K105: 6044554.273
A106: ='Org structure'!E103 -> 0
A107: ='Org structure'!E104 -> 0
A108: ='Org structure'!E105 -> 0
A109: ='Org structure'!E106 -> 0
A110: ='Org structure'!E107 -> 0
A111: ='Org structure'!E108 -> 0
A112: ='Org structure'!E109 -> 0
A113: ='Org structure'!E110 -> 0
A114: ='Org structure'!E111 -> 0
A115: ='Org structure'!A12 -> Vote 11 - Waste Management | C115: =SUM(C116:C125) -> 1310393 | D115: =SUM(D116:D125) -> 1236081 | E115: 1414671 | F115: 2122005 | G115: 2582210 | H115: 1450367 | I115: 2779116.775 | J115: 3076801.767 | K115: 3407967.278
A116: ='Org structure'!E113 -> 11.1 - Waste Management | C116: 1310393 | D116: 1236081 | E116: 1414671 | F116: 2122005 | G116: 2582210 | H116: 1450367 | I116: 2779116.775 | J116: 3076801.767 | K116: 3407967.278
A117: ='Org structure'!E114 -> 0
A118: ='Org structure'!E115 -> 0
A119: ='Org structure'!E116 -> 0
A120: ='Org structure'!E117 -> 0
A121: ='Org structure'!E118 -> 0
A122: ='Org structure'!E119 -> 0
A123: ='Org structure'!E120 -> 0
A124: ='Org structure'!E121 -> 0
A125: ='Org structure'!E122 -> 0
A126: ='Org structure'!A13 -> 0 | C126: =SUM(C127:C136) -> 0 | D126: =SUM(D127:D136) -> 0 | E126: 0 | F126: 0 | G126: 0 | H126: 0 | I126: 0 | J126: 0 | K126: 0
A127: ='Org structure'!E124 -> 12.1 - [Name of sub-vote]
A128: ='Org structure'!E125 -> 0
A129: ='Org structure'!E126 -> 0
A130: ='Org structure'!E127 -> 0
A131: ='Org structure'!E128 -> 0
A132: ='Org structure'!E129 -> 0
A133: ='Org structure'!E130 -> 0
A134: ='Org structure'!E131 -> 0
A135: ='Org structure'!E132 -> 0
A136: ='Org structure'!E133 -> 0
A137: ='Org structure'!A14 -> 0 | C137: =SUM(C138:C147) -> 0 | D137: =SUM(D138:D147) -> 0 | E137: 0 | F137: 0 | G137: 0 | H137: 0 | I137: 0 | J137: 0 | K137: 0
A138: ='Org structure'!E135 -> 13.1 - [Name of sub-vote]
A139: ='Org structure'!E136 -> 0
A140: ='Org structure'!E137 -> 0
A141: ='Org structure'!E138 -> 0
A142: ='Org structure'!E139 -> 0
A143: ='Org structure'!E140 -> 0
A144: ='Org structure'!E141 -> 0
A145: ='Org structure'!E142 -> 0
A146: ='Org structure'!E143 -> 0
A147: ='Org structure'!E144 -> 0
A148: ='Org structure'!A15 -> Vote 14 - [NAME OF VOTE 14] | C148: =SUM(C149:C158) -> 0 | D148: =SUM(D149:D158) -> 0 | E148: 0 | F148: 0 | G148: 0 | H148: 0 | I148: 0 | J148: 0 | K148: 0
A149: ='Org structure'!E146 -> 14.1 - [Name of sub-vote]
A150: ='Org structure'!E147 -> 0
A151: ='Org structure'!E148 -> 0
A152: ='Org structure'!E149 -> 0
A153: ='Org structure'!E150 -> 0
A154: ='Org structure'!E151 -> 0
A155: ='Org structure'!E152 -> 0
A156: ='Org structure'!E153 -> 0
A157: ='Org structure'!E154 -> 0
A158: ='Org structure'!E155 -> 0
A159: ='Org structure'!A16 -> Vote 15 - [NAME OF VOTE 15] | C159: =SUM(C160:C169) -> 0 | D159: =SUM(D160:D169) -> 0 | E159: 0 | F159: 0 | G159: 0 | H159: 0 | I159: 0 | J159: 0 | K159: 0
A160: ='Org structure'!E157 -> 15.1 - [Name of sub-vote]
A161: ='Org structure'!E158 -> 0
A162: ='Org structure'!E159 -> 0
A163: ='Org structure'!E160 -> 0
A164: ='Org structure'!E161 -> 0
A165: ='Org structure'!E162 -> 0
A166: ='Org structure'!E163 -> 0
A167: ='Org structure'!E164 -> 0
A168: ='Org structure'!E165 -> 0
A169: ='Org structure'!E166 -> 0
A170: Total Revenue by Vote | B170: 2 | C170: =C5+C16+C27+C38+C49+C60+C71+C82+C93+C104+C115+C126+C137+C148+C159 -> 55092549 | D170: 71672514 | E170: 77415482 | F170: 75397286 | G170: 72713487.08 | H170: 74139379 | I170: 86781102.27 | J170: 90425278.95 | K170: 95604982.3 | L170: =SUM(L78:L81) -> 0 | M170: 0 | N170: 0 | O170: 0 | P170: 0 | Q170: 0 | R170: 0 | S170: 0 | T170: 0 | U170: 0 | V170: 0 | W170: 0
A172: Expenditure by Vote | B172: 1
A173: =A5 -> Vote 1 - Executive Council | C173: =SUM(C174:C183) -> 6154456 | D173: 7301161 | E173: 7857430 | F173: 6130927.176 | G173: 5862710 | H173: 7627152 | I173: 8832368.99 | J173: 9403061.672 | K173: 10001443.38
A174: 1.1 - Council | C174: 6154456 | D174: 7301161 | E174: 6085267 | F174: 4356453 | G174: 4210718 | H174: 6175007 | I174: 6938059.095 | J174: 7395921.64 | K174: 7876749.83
A175: 1.2 - Municipal Manager | E175: 1772163 | F175: 1774474.176 | G175: 1651992 | H175: 1452145 | I175: 1894309.895 | J175: 2007140.032 | K175: 2124693.551
A176: 0
A177: 0
A178: 0
A179: 0
A180: 0
A181: 0
A182: 0
A183: 0
A184: Vote 2 - Budget & Treasury | C184: =SUM(C185:C194) -> 10616613 | D184: =SUM(D185:D194) -> 17868472 | E184: =SUM(E185:E194) -> 17858172 | F184: 13542480 | G184: 15714750 | H184: 27063599 | I184: 15254949.79 | J184: 15937511.23 | K184: 16706327.01
A185: 2.1 - Budget & Treasury | C185: 10616613 | D185: 17868472 | E185: 17858172 | F185: 13542480 | G185: 15714750 | H185: 27063599 | I185: 15254949.79 | J185: 15937511.23 | K185: 16706327.01
A186: 0
A187: 0
A188: 0
A189: 0
A190: 0
A191: 0
A192: 0
A193: 0
A194: 0
A195: Vote 3 - Corporate Service | C195: =SUM(C196:C205) -> 5285424 | D195: 7682965 | E195: 6553665 | F195: 5695729 | G195: 7418420 | H195: 6271842 | I195: 6584517.329 | J195: 6868354.929 | K195: 7239475.118
A196: 3.1 - Administration | E196: 5082234 | F196: 4405996 | G196: 4822967 | H196: 4891341 | I196: 5216110.341 | J196: 5481810.929 | K196: 5834049.566
A197: 3.2 - Fixed Property & Buidling | C197: 5285424 | D197: 7682965 | E197: 1471431 | F197: 1289733 | G197: 2595453 | H197: 1380501 | I197: 1368406.988 | J197: 1386544 | K197: 1405425.552
A198: 0
A199: 0
A200: 0
A201: 0
... 144 more rows

Sheet A4-FinPerf RE
A1: =muni&" - "&Approve4 -> NC076 Thembelihle - Table A4 Budgeted Financial Performance (revenue and expenditure)
A2: =desc -> Description | B2: =head27 -> Ref | C2: =head1b -> 2013/14 | D2: =head1A -> 2014/15 | E2: =Head1 -> 2015/16 | F2: =Head2 -> Current Year 2016/17 | J2: =Head3 -> 2017/18 Medium Term Revenue & Expenditure Framework | M2: =Head4 -> LTFS
A3: R thousand | B3: 1 | C3: =Head5 -> Audited Outcome | D3: =Head5 -> Audited Outcome | E3: =Head5 -> Audited Outcome | F3: =Head6 -> Original Budget | G3: =Head7 -> Adjusted Budget | H3: =Head8 -> Full Year Forecast | I3: =Head5b -> Pre-audit outcome | J3: =Head9 -> Budget Year 2017/18 | K3: =Head10 -> Budget Year +1 2018/19 | L3: =Head11 -> Budget Year +2 2019/20 | M3: =Head12 -> Forecast 2020/21 | N3: =Head13 -> Forecast 2021/22 | O3: =Head14 -> Forecast 2022/23 | P3: =Head15 -> Forecast 2023/24 | Q3: =Head16 -> Forecast 2024/25 | R3: =Head17 -> Forecast 2025/26 | S3: =Head18 -> Forecast 2026/27 | T3: =Head19 -> Forecast 2027/28 | U3: =Head20 -> Forecast 2028/29 | V3: =Head21 -> Forecast 2029/30 | W3: =Head22 -> Forecast 2030/31 | X3: =Head23 -> Forecast 2031/32
A4: Revenue By Source
A5: Property rates | B5: 2 | C5: ='SA1'!C9 -> 2288849 | D5: ='SA1'!D9 -> 2598663 | E5: ='SA1'!E9 -> 3137037 | F5: ='SA1'!F9 -> 3578412 | G5: ='SA1'!G9 -> 7522551.47 | H5: ='SA1'!H9 -> 7522551.47 | I5: ='SA1'!I9 -> 7522551.47 | J5: ='SA1'!J9 -> 7571102.187 | K5: ='SA1'!K9 -> 8017797.216 | L5: ='SA1'!L9 -> 8482829.455
A6: Service charges - electricity revenue | B6: 2 | C6: ='SA1'!C15 -> 8729140 | D6: ='SA1'!D15 -> 10795362 | E6: ='SA1'!E15 -> 12106030 | F6: ='SA1'!F15 -> 11746295 | G6: ='SA1'!G15 -> 12192556.96 | H6: ='SA1'!H15 -> 12192556.96 | I6: ='SA1'!I15 -> 12192556.96 | J6: ='SA1'!J15 -> 13261195.05 | K6: ='SA1'!K15 -> 14933788.14 | L6: ='SA1'!L15 -> 16815906.39
A7: Service charges - water revenue | B7: 2 | C7: ='SA1'!C21 -> 3007067 | D7: ='SA1'!D21 -> 2069661 | E7: ='SA1'!E21 -> 3742162 | F7: ='SA1'!F21 -> 5062117 | G7: ='SA1'!G21 -> 3884955.39 | H7: ='SA1'!H21 -> 3884955.39 | I7: ='SA1'!I21 -> 3884955.39 | J7: ='SA1'!J21 -> 5604220.13 | K7: ='SA1'!K21 -> 6346924.51 | L7: ='SA1'!L21 -> 7185632.12
A8: Service charges - sanitation revenue | B8: 2 | C8: ='SA1'!C27 -> 2244953 | D8: ='SA1'!D27 -> 2249844 | E8: ='SA1'!E27 -> 2695917 | F8: ='SA1'!F27 -> 1596584 | G8: ='SA1'!G27 -> 3612692.33 | H8: ='SA1'!H27 -> 3612692.33 | I8: ='SA1'!I27 -> 3612692.33 | J8: ='SA1'!J27 -> 2571862.757 | K8: ='SA1'!K27 -> 2973080.593 | L8: ='SA1'!L27 -> 3145519.267
A9: Service charges - refuse revenue | B9: 2 | C9: ='SA1'!C34 -> 1193347 | D9: ='SA1'!D34 -> 1115236 | E9: ='SA1'!E34 -> 1395621 | F9: ='SA1'!F34 -> 758918 | G9: ='SA1'!G34 -> 1938803.32 | H9: ='SA1'!H34 -> 1938803.32 | I9: ='SA1'!I34 -> 1938803.32 | J9: ='SA1'!J34 -> 1314285.169 | K9: ='SA1'!K34 -> 1525545.097 | L9: ='SA1'!L34 -> 1766737.721
A10: Service charges - other | F10: 0 | G10: 0 | H10: 0 | I10: =H10 -> 0 | J10: 0 | K10: 0 | L10: 0
A11: Rental of facilities and equipment | C11: 304422 | D11: 433232 | E11: 834606 | F11: 325000 | G11: 635020 | H11: 929238 | I11: 929238 | J11: 801922.0621 | K11: 849235.4637 | L11: 898491.1206
A12: Interest earned - external investments | C12: 662951 | D12: 390984 | E12: 179874 | F12: 333000 | G12: 570285 | H12: 572572 | I12: 572572 | J12: 590334.7659 | K12: 625164.5171 | L12: 661424.0591
A13: Interest earned - outstanding debtors | C13: 785471 | D13: 807643 | E13: 0 | F13: 580000 | G13: 330641 | H13: 330666 | I13: 330666 | J13: 509857.6071 | K13: 539939.2059 | L13: 571255.6798
A14: Dividends received | F14: 0 | G14: 0 | H14: 0 | I14: 0 | J14: 0 | K14: 0 | L14: 0
A15: Fines, penalties and forfeits | C15: 923798 | D15: 3879093 | E15: 620345 | F15: 2571000 | G15: 1857250.75 | H15: 33780 | I15: 33780 | J15: 3579966.721 | K15: 4022184.758 | L15: 4255471.474
A16: Licences and permits | C16: 253215 | D16: 213078 | E16: 282830 | F16: 287000 | G16: 663808 | H16: 191238 | I16: 191238 | J16: 301212.5823 | K16: 318984.1246 | L16: 337485.2038
A17: Agency services | F17: 0 | G17: 81622 | H17: 285700 | I17: 285700 | J17: 80306
A18: Transfers and subsidies | C18: 24215079 | D18: 22424069 | E18: 23051951 | F18: 24032000 | G18: 24032000 | H18: 31443438 | I18: =H18 -> 31443438 | J18: ='SA18'!I27 -> 26023200 | K18: ='SA18'!J27 -> 28451064 | L18: ='SA18'!K27 -> 30321637.97
A19: Other revenue | B19: 2 | C19: ='SA1'!C49 -> 673714 | D19: ='SA1'!D49 -> 1527485 | E19: ='SA1'!E49 -> 0 | F19: ='SA1'!F49 -> 2168941 | G19: ='SA1'!G49 -> 1784833 | H19: ='SA1'!H49 -> 1784833 | I19: ='SA1'!I49 -> 1784833 | J19: ='SA1'!J49 -> 0 | K19: ='SA1'!K49 -> 0 | L19: ='SA1'!L49 -> 0
A20: Gains on disposal of PPE | C20: 182907 | F20: 5000000 | G20: 0 | J20: 5305000 | K20: 1600000
A21: Total Revenue (excluding capital transfers and contributions) | C21: =SUM(C5:C20) -> 45464913 | D21: 48504350 | E21: 48046373 | F21: 58039267 | G21: 59107019.22 | H21: 64723024.47 | I21: 64723024.47 | J21: 67514465.03 | K21: 70203707.62 | L21: 74442390.46 | M21: 0 | N21: 0 | O21: 0 | P21: 0 | Q21: 0 | R21: 0 | S21: 0 | T21: 0 | U21: 0 | V21: 0 | W21: 0 | X21: 0
A23: Expenditure By Type
A24: Employee related costs | B24: 2 | C24: ='SA1'!C67 -> 18712277 | D24: ='SA1'!D67 -> 22187621 | E24: ='SA1'!E67 -> 25517732 | F24: ='SA1'!F67 -> 25124699 | G24: ='SA1'!G67 -> 27392016.28 | H24: ='SA1'!H67 -> 30147222.48 | I24: ='SA1'!I67 -> 30147222.48 | J24: ='SA1'!J67 -> 26961026.11 | K24: ='SA1'!K67 -> 28836930.51 | L24: ='SA1'!L67 -> 30818181.18
A25: Remuneration of councillors | C25: 1948796 | D25: 2498083 | E25: 2524362 | F25: 3004000 | G25: 2681898 | H25: 2158652 | I25: 2158652 | J25: ='SA22'!I13 -> 2639699.203 | K25: ='SA22'!J13 -> 2818496 | L25: ='SA22'!K13 -> 3006615
A26: Debt impairment | B26: 3 | C26: 4483320 | D26: 6689570 | E26: 1515802 | F26: 4012000 | G26: 4243158.98 | H26: 274030 | I26: 274030 | J26: ='SA3'!J18 -> 4011658 | K26: 4507494.715 | L26: 4768929.408
A27: Depreciation & asset impairment | B27: 2 | C27: ='SA1'!C83 -> 8220930 | D27: ='SA1'!D83 -> 8936295 | E27: ='SA1'!E83 -> 8142078 | F27: ='SA1'!F83 -> 7781705 | G27: ='SA1'!G83 -> 8142078 | H27: ='SA1'!H83 -> 8142078 | I27: ='SA1'!I83 -> 8142078 | J27: ='SA1'!J83 -> 8256388.721 | K27: ='SA1'!K83 -> 8743515.655 | L27: ='SA1'!L83 -> 9250639.563
A28: Finance charges | C28: 1086378 | D28: 3476067 | E28: 680000 | F28: 680000 | G28: 858675 | H28: 1273798 | I28: 1273798 | J28: 541110 | K28: 573035.49 | L28: 606271.5484
A29: Bulk purchases | B29: 2 | C29: ='SA1'!C88 -> 9571786 | D29: ='SA1'!D88 -> 10372009 | E29: ='SA1'!E88 -> 11805195 | F29: ='SA1'!F88 -> 12132815 | G29: ='SA1'!G88 -> 12132815 | H29: ='SA1'!H88 -> 12132815 | I29: ='SA1'!I88 -> 12132815 | J29: ='SA1'!J88 -> 12488129.6 | K29: ='SA1'!K88 -> 13224929.25 | L29: ='SA1'!L88 -> 13991975.15
A30: Other materials | B30: 8 | C30: 1089495 | D30: 1191139 | E30: 562516 | F30: 1836000 | G30: 1308542 | H30: 2366494 | I30: 2366494 | J30: 1202549.938 | K30: 1273500.385 | L30: 1347363.407
A31: Contracted services | C31: ='SA1'!C127 -> 63811 | D31: ='SA1'!D127 -> 91531 | E31: ='SA1'!E127 -> 50731 | F31: ='SA1'!F127 -> 221204 | G31: ='SA1'!G127 -> 1775480 | H31: ='SA1'!H127 -> 1775480 | I31: ='SA1'!I127 -> 1775480 | J31: ='SA1'!J127 -> 577208.9632 | K31: ='SA1'!K127 -> 611264.292 | L31: ='SA1'!L127 -> 646717.621
A32: Transfers and subsidies | C32: ='SA1'!C93 -> 128500 | D32: ='SA1'!D93 -> 163500 | E32: ='SA1'!E93 -> 0 | F32: ='SA1'!F93 -> 0 | G32: ='SA1'!G93 -> 162000 | H32: ='SA1'!H93 -> 81000 | I32: ='SA1'!I93 -> 0 | J32: ='SA1'!J93 -> 894957.744 | K32: ='SA1'!K93 -> 947760.2509 | L32: ='SA1'!L93 -> 1002730.345
A33: Other expenditure | B33: 4, 5 | C33: ='SA1'!C157 -> 8795725 | D33: ='SA1'!D157 -> 12997802 | E33: ='SA1'!E157 -> 17165629 | F33: ='SA1'!F157 -> 8807441 | G33: ='SA1'!G157 -> 8668400 | H33: ='SA1'!H157 -> 10115710 | I33: ='SA1'!I157 -> 10115710 | J33: ='SA1'!J157 -> 8228838.507 | K33: ='SA1'!K157 -> 8581367.022 | L33: ='SA1'!L157 -> 9043721.4
A34: Loss on disposal of PPE | D34: 192531 | E34: 235163 | H34: 0
A35: Total Expenditure | C35: =SUM(C24:C34) -> 54101018 | D35: =SUM(D24:D34) -> 68796148 | E35: 68199208 | F35: 63599864 | G35: 67365063.26 | H35: 68467279.48 | I35: 68386279.48 | J35: 65801566.79 | K35: 70118293.57 | L35: 74483144.62 | M35: =SUM(M24:M34) -> 0 | N35: 0 | O35: 0 | P35: 0 | Q35: 0 | R35: 0 | S35: 0 | T35: 0 | U35: 0 | V35: 0 | W35: 0 | X35: 0
A37: Surplus/(Deficit) | C37: =C21-C35 -> -8636105 | D37: -20291798 | E37: -20152835 | F37: -5560597 | G37: -8258044.04 | H37: -3744255.01 | I37: -3663255.01 | J37: 1712898.238 | K37: 85414.04931 | L37: -40754.16679 | M37: =M21+M35 -> 0 | N37: 0 | O37: 0 | P37: 0 | Q37: 0 | R37: 0 | S37: 0 | T37: 0 | U37: 0 | V37: 0 | W37: 0 | X37: 0
A38: Transfers and subsidies - capital (monetary allocations) (National / Provincial and District) | C38: 9627636 | D38: 23168164 | E38: 26444451 | F38: 14283100 | G38: 13408100 | H38: 6908904 | I38: 6908904 | J38: ='SA19'!I45 -> 14054800 | K38: ='SA19'!J45 -> 9814000 | L38: ='SA19'!K45 -> 10110000
A39: Transfers and subsidies - capital (monetary allocations) (National / Provincial Departmental Agencies, Households, Non-profit Institutions, Private Enterprises, Public Corporatons, Higher Educational Institutions) | B39: 6 | C39: ='SA1'!C76 -> 0 | D39: ='SA1'!D76 -> 0 | E39: ='SA1'!E76 -> 0 | F39: ='SA1'!F76 -> 0 | G39: ='SA1'!G76 -> 0 | H39: ='SA1'!H76 -> 0 | I39: ='SA1'!I76 -> 0 | J39: ='SA1'!J76 -> 0 | K39: ='SA1'!K76 -> 0 | L39: ='SA1'!L76 -> 0
A40: Transfers and subsidies - capital (in-kind - all)
A41: Surplus/(Deficit) after capital transfers & contributions | C41: =SUM(C37:C40) -> 991531 | D41: 2876366 | E41: 6291616 | F41: 8722503 | G41: 5150055.96 | H41: 3164648.99 | I41: 3245648.99 | J41: 15767698.24 | K41: 9899414.049 | L41: 10069245.83
A42: Taxation
A43: Surplus/(Deficit) after taxation | C43: =C41-C42 -> 991531 | D43: 2876366 | E43: 6291616 | F43: 8722503 | G43: 5150055.96 | H43: 3164648.99 | I43: 3245648.99 | J43: 15767698.24 | K43: 9899414.049 | L43: 10069245.83
A44: Attributable to minorities
A45: Surplus/(Deficit) attributable to municipality | C45: =SUM(C43:C44) -> 991531 | D45: 2876366 | E45: 6291616 | F45: 8722503 | G45: 5150055.96 | H45: 3164648.99 | I45: 3245648.99 | J45: 15767698.24 | K45: 9899414.049 | L45: 10069245.83
A46: Share of surplus/ (deficit) of associate | B46: 7
A47: =result -> Surplus/(Deficit) for the year | C47: =SUM(C45:C46) -> 991531 | D47: 2876366 | E47: 6291616 | F47: 8722503 | G47: 5150055.96 | H47: 3164648.99 | I47: 3245648.99 | J47: 15767698.24 | K47: 9899414.049 | L47: 10069245.83 | M47: =M25+M46 -> 0 | N47: 0 | O47: 0 | P47: 0 | Q47: 0 | R47: 0 | S47: 0 | T47: 0 | U47: 0 | V47: 0 | W47: 0 | X47: 0
A48: =head27a -> References
A49: 1. Classifications are revenue sources and expenditure type
A50: 2. Detail to be provided in Table SA1
A51: 3. Previously described as 'bad or doubtful debts' - amounts shown should reflect the change in the provision for debt impairment
A52: 4. Expenditure type components previously shown under repairs and maintenance should be allocated back to the originating expenditure group/item; e.g. employee costs
A53: 5. Repairs & maintenance detailed in Table A9 and Table SA34c
A54: 6. Contributions are funds provided by external organisations to assist with infrastructure development; e.g. developer contributions (detail to be provided in Table SA1)
A55: 7. Equity method ( Includes Joint Ventures)
A56: 8. All materials not part of 'bulk' e.g road making materials, pipe, cable etc.
A57: check balance | C57: =C45-'A3-FinPerf V'!C39 -> -128500 | D57: =D45-'A3-FinPerf V'!D39 -> -163500 | E57: =E45-'A3-FinPerf V'!E39 -> -993605 | F57: =F45-'A3-FinPerf V'!F39 -> 164.3076 | G57: =G45-'A3-FinPerf V'!G39 -> 3332211.877 | H57: =H45-'A3-FinPerf V'!H39 -> 9707263.99 | J57: =J45-'A3-FinPerf V'!I39 -> 2587365.364 | K57: =K45-'A3-FinPerf V'!J39 -> -3036526.105 | L57: =L45-'A3-FinPerf V'!K39 -> -3907053.037
A59: Total revenue | C59: =C21+SUM(C38:C40) -> 55092549 | D59: 71672514 | E59: 74490824 | F59: 72322367 | G59: 72515119.22 | H59: 71631928.47 | I59: 71631928.47 | J59: 81569265.03 | K59: 80017707.62 | L59: 84552390.46

Sheet A5-Capex
A1: =muni&" - "&Approve5 -> NC076 Thembelihle - Table A5 Budgeted Capital Expenditure by vote, functional classification and funding
A2: =Vdesc -> Vote Description | B2: =head27 -> Ref | C2: =head1b -> 2013/14 | D2: =head1A -> 2014/15 | E2: =Head1 -> 2015/16 | F2: =Head2 -> Current Year 2016/17 | J2: =Head3 -> 2017/18 Medium Term Revenue & Expenditure Framework
A3: R thousand | B3: 1 | C3: =Head5 -> Audited Outcome | D3: =Head5 -> Audited Outcome | E3: =Head5 -> Audited Outcome | F3: =Head6 -> Original Budget | G3: =Head7 -> Adjusted Budget | H3: =Head8 -> Full Year Forecast | I3: =Head5b -> Pre-audit outcome | J3: =Head9 -> Budget Year 2017/18 | K3: =Head10 -> Budget Year +1 2018/19 | L3: =Head11 -> Budget Year +2 2019/20
A4: Capital expenditure - Vote
A5: Multi-year expenditure to be appropriated | B5: 2
A6: =A5A!A6 -> Vote 1 - Executive Council | C6: =A5A!C6 -> 0 | D6: =A5A!D6 -> 0 | E6: =A5A!E6 -> 0 | F6: =A5A!F6 -> 0 | G6: =A5A!G6 -> 0 | H6: =A5A!H6 -> 0 | I6: =A5A!I6 -> 0 | J6: =A5A!J6 -> 0 | K6: =A5A!K6 -> 0 | L6: =A5A!L6 -> 0
A7: =A5A!A17 -> Vote 2 - Budget & Treasury | C7: =A5A!C17 -> 0 | D7: =A5A!D17 -> 0 | E7: =A5A!E17 -> 0 | F7: =A5A!F17 -> 0 | G7: =A5A!G17 -> 0 | H7: =A5A!H17 -> 0 | I7: =A5A!I17 -> 0 | J7: =A5A!J17 -> 0 | K7: =A5A!K17 -> 0 | L7: =A5A!L17 -> 0
A8: =A5A!A28 -> Vote 3 - Corporate Service | C8: =A5A!C28 -> 0 | D8: =A5A!D28 -> 0 | E8: =A5A!E28 -> 0 | F8: =A5A!F28 -> 0 | G8: =A5A!G28 -> 0 | H8: =A5A!H28 -> 0 | I8: =A5A!I28 -> 0 | J8: =A5A!J28 -> 0 | K8: =A5A!K28 -> 0 | L8: =A5A!L28 -> 0
A9: =A5A!A39 -> Vote 4 - Community & Social Service | C9: =A5A!C39 -> 0 | D9: =A5A!D39 -> 0 | E9: =A5A!E39 -> 0 | F9: =A5A!F39 -> 0 | G9: =A5A!G39 -> 0 | H9: =A5A!H39 -> 0 | I9: =A5A!I39 -> 0 | J9: =A5A!J39 -> 0 | K9: =A5A!K39 -> 0 | L9: =A5A!L39 -> 0
A10: =A5A!A50 -> Vote 5 - Public Safety | C10: =A5A!C50 -> 0 | D10: =A5A!D50 -> 0 | E10: =A5A!E50 -> 0 | F10: =A5A!F50 -> 0 | G10: =A5A!G50 -> 0 | H10: =A5A!H50 -> 0 | I10: =A5A!I50 -> 0 | J10: =A5A!J50 -> 0 | K10: =A5A!K50 -> 0 | L10: =A5A!L50 -> 0
A11: =A5A!A61 -> Vote 6 - Planning & Development | C11: =A5A!C61 -> 7683015 | D11: =A5A!D61 -> 386500 | E11: =A5A!E61 -> 8824550 | F11: =A5A!F61 -> 8567100 | G11: =A5A!G61 -> 7692100 | H11: =A5A!H61 -> 7692100 | I11: =A5A!I61 -> 7692100 | J11: =A5A!J61 -> 9054800 | K11: =A5A!K61 -> 9814000 | L11: =A5A!L61 -> 10110000
A12: =A5A!A72 -> Vote 7 - Road Transport | C12: =A5A!C72 -> 0 | D12: =A5A!D72 -> 0 | E12: =A5A!E72 -> 0 | F12: =A5A!F72 -> 0 | G12: =A5A!G72 -> 0 | H12: =A5A!H72 -> 0 | I12: =A5A!I72 -> 0 | J12: =A5A!J72 -> 0 | K12: =A5A!K72 -> 0 | L12: =A5A!L72 -> 0
A13: =A5A!A83 -> Vote 8 - Electricity | C13: =A5A!C83 -> 0 | D13: =A5A!D83 -> 0 | E13: =A5A!E83 -> 0 | F13: =A5A!F83 -> 0 | G13: =A5A!G83 -> 0 | H13: =A5A!H83 -> 0 | I13: =A5A!I83 -> 0 | J13: =A5A!J83 -> 0 | K13: =A5A!K83 -> 0 | L13: =A5A!L83 -> 0
A14: =A5A!A94 -> Vote 9 - Water | C14: =A5A!C94 -> 0 | D14: =A5A!D94 -> 0 | E14: =A5A!E94 -> 0 | F14: =A5A!F94 -> 0 | G14: =A5A!G94 -> 565000 | H14: =A5A!H94 -> 565000 | I14: =A5A!I94 -> 565000 | J14: =A5A!J94 -> 0 | K14: =A5A!K94 -> 0 | L14: =A5A!L94 -> 0
A15: =A5A!A105 -> Vote 10 - Waste Water Management | C15: =A5A!C105 -> 0 | D15: =A5A!D105 -> 0 | E15: =A5A!E105 -> 0 | F15: =A5A!F105 -> 0 | G15: =A5A!G105 -> 0 | H15: =A5A!H105 -> 0 | I15: =A5A!I105 -> 0 | J15: =A5A!J105 -> 0 | K15: =A5A!K105 -> 0 | L15: =A5A!L105 -> 0
A16: =A5A!A116 -> Vote 11 - Waste Management | C16: =A5A!C116 -> 0 | D16: =A5A!D116 -> 0 | E16: =A5A!E116 -> 0 | F16: =A5A!F116 -> 0 | G16: =A5A!G116 -> 0 | H16: =A5A!H116 -> 0 | I16: =A5A!I116 -> 0 | J16: =A5A!J116 -> 0 | K16: =A5A!K116 -> 0 | L16: =A5A!L116 -> 0
A17: =A5A!A127 -> 0 | C17: =A5A!C127 -> 0 | D17: =A5A!D127 -> 0 | E17: =A5A!E127 -> 0 | F17: =A5A!F127 -> 0 | G17: =A5A!G127 -> 0 | H17: =A5A!H127 -> 0 | I17: =A5A!I127 -> 0 | J17: =A5A!J127 -> 0 | K17: =A5A!K127 -> 0 | L17: =A5A!L127 -> 0
A18: =A5A!A138 -> 0 | C18: =A5A!C138 -> 0 | D18: =A5A!D138 -> 0 | E18: =A5A!E138 -> 0 | F18: =A5A!F138 -> 0 | G18: =A5A!G138 -> 0 | H18: =A5A!H138 -> 0 | I18: =A5A!I138 -> 0 | J18: =A5A!J138 -> 0 | K18: =A5A!K138 -> 0 | L18: =A5A!L138 -> 0
A19: =A5A!A149 -> Vote 14 - [NAME OF VOTE 14] | C19: =A5A!C149 -> 0 | D19: =A5A!D149 -> 0 | E19: =A5A!E149 -> 0 | F19: =A5A!F149 -> 0 | G19: =A5A!G149 -> 0 | H19: =A5A!H149 -> 0 | I19: =A5A!I149 -> 0 | J19: =A5A!J149 -> 0 | K19: =A5A!K149 -> 0 | L19: =A5A!L149 -> 0
A20: =A5A!A160 -> Vote 15 - [NAME OF VOTE 15] | C20: =A5A!C160 -> 0 | D20: =A5A!D160 -> 0 | E20: =A5A!E160 -> 0 | F20: =A5A!F160 -> 0 | G20: =A5A!G160 -> 0 | H20: =A5A!H160 -> 0 | I20: =A5A!I160 -> 0 | J20: =A5A!J160 -> 0 | K20: =A5A!K160 -> 0 | L20: =A5A!L160 -> 0
A21: Capital multi-year expenditure sub-total | B21: 7 | C21: =SUM(C6:C20) -> 7683015 | D21: =SUM(D6:D20) -> 386500 | E21: 8824550 | F21: 8567100 | G21: 8257100 | H21: =SUM(H6:H20) -> 8257100 | I21: 8257100 | J21: 9054800 | K21: 9814000 | L21: 10110000
A23: Single-year expenditure to be appropriated | B23: 2
A24: =A6 -> Vote 1 - Executive Council | C24: =A5A!C175 -> 0 | D24: =A5A!D175 -> 0 | E24: =A5A!E175 -> 0 | F24: =A5A!F175 -> 0 | G24: =A5A!G175 -> 0 | H24: =A5A!H175 -> 0 | I24: =A5A!I175 -> 0 | J24: =A5A!J175 -> 0 | K24: =A5A!K175 -> 0 | L24: =A5A!L175 -> 0
A25: =A7 -> Vote 2 - Budget & Treasury | C25: =A5A!C186 -> 13198 | D25: =A5A!D186 -> 451331 | E25: =A5A!E186 -> 0 | F25: =A5A!F186 -> 40000 | G25: =A5A!G186 -> -40000 | H25: =A5A!H186 -> 0 | I25: =A5A!I186 -> -40000 | J25: =A5A!J186 -> 0 | K25: =A5A!K186 -> 0 | L25: =A5A!L186 -> 0
A26: Vote 3 - Corporate Service | C26: =A5A!C197 -> 0 | D26: =A5A!D197 -> 0 | E26: =A5A!E197 -> 0 | F26: =A5A!F197 -> 0 | G26: =A5A!G197 -> 0 | H26: =A5A!H197 -> 0 | I26: =A5A!I197 -> 0 | J26: =A5A!J197 -> 0 | K26: =A5A!K197 -> 0 | L26: =A5A!L197 -> 0
A27: Vote 4 - Community & Social Service | C27: =A5A!C208 -> 204835 | D27: =A5A!D208 -> 0 | E27: =A5A!E208 -> 0 | F27: =A5A!F208 -> 0 | G27: =A5A!G208 -> 0 | H27: =A5A!H208 -> 0 | I27: =A5A!I208 -> 0 | J27: =A5A!J208 -> 0 | K27: =A5A!K208 -> 0 | L27: =A5A!L208 -> 0
A28: Vote 5 - Public Safety | C28: =A5A!C219 -> 0 | D28: =A5A!D219 -> 0 | E28: =A5A!E219 -> 0 | F28: =A5A!F219 -> 0 | G28: =A5A!G219 -> 0 | H28: =A5A!H219 -> 0 | I28: =A5A!I219 -> 0 | J28: =A5A!J219 -> 0 | K28: =A5A!K219 -> 0 | L28: =A5A!L219 -> 0
A29: Vote 6 - Planning & Development | C29: =A5A!C230 -> 0 | D29: =A5A!D230 -> 28732 | E29: =A5A!E230 -> 0 | F29: =A5A!F230 -> 0 | G29: =A5A!G230 -> 0 | H29: =A5A!H230 -> 0 | I29: =A5A!I230 -> 0 | J29: =A5A!J230 -> 0 | K29: =A5A!K230 -> 0 | L29: =A5A!L230 -> 0
A30: Vote 7 - Road Transport | C30: =A5A!C241 -> 0 | D30: =A5A!D241 -> 0 | E30: =A5A!E241 -> 0 | F30: =A5A!F241 -> 0 | G30: =A5A!G241 -> 0 | H30: =A5A!H241 -> 0 | I30: =A5A!I241 -> 0 | J30: =A5A!J241 -> 0 | K30: =A5A!K241 -> 0 | L30: =A5A!L241 -> 0
A31: Vote 8 - Electricity | C31: =A5A!C252 -> 1080666 | D31: =A5A!D252 -> 1053994 | E31: =A5A!E252 -> 0 | F31: =A5A!F252 -> 0 | G31: =A5A!G252 -> 0 | H31: =A5A!H252 -> 0 | I31: =A5A!I252 -> 0 | J31: =A5A!J252 -> 1000000 | K31: =A5A!K252 -> 0 | L31: =A5A!L252 -> 0
A32: Vote 9 - Water | C32: =A5A!C263 -> 1273678 | D32: =A5A!D263 -> 18682611 | E32: =A5A!E263 -> 12646763 | F32: =A5A!F263 -> 5716000 | G32: =A5A!G263 -> 5716000 | H32: =A5A!H263 -> 5716000 | I32: =A5A!I263 -> 5716000 | J32: =A5A!J263 -> 4000000 | K32: =A5A!K263 -> 0 | L32: =A5A!L263 -> 0
A33: Vote 10 - Waste Water Management | C33: =A5A!C274 -> 681543 | D33: =A5A!D274 -> 11164 | E33: =A5A!E274 -> 0 | F33: =A5A!F274 -> 0 | G33: =A5A!G274 -> 0 | H33: =A5A!H274 -> 0 | I33: =A5A!I274 -> 0 | J33: =A5A!J274 -> 0 | K33: =A5A!K274 -> 0 | L33: =A5A!L274 -> 0
A34: Vote 11 - Waste Management | C34: =A5A!C285 -> 11164 | D34: =A5A!D285 -> 0 | E34: =A5A!E285 -> 0 | F34: =A5A!F285 -> 0 | G34: =A5A!G285 -> 0 | H34: =A5A!H285 -> 0 | I34: =A5A!I285 -> 0 | J34: =A5A!J285 -> 0 | K34: =A5A!K285 -> 0 | L34: =A5A!L285 -> 0
A35: 0 | C35: =A5A!C296 -> 0 | D35: =A5A!D296 -> 0 | E35: =A5A!E296 -> 0 | F35: =A5A!F296 -> 0 | G35: =A5A!G296 -> 0 | H35: =A5A!H296 -> 0 | I35: =A5A!I296 -> 0 | J35: =A5A!J296 -> 0 | K35: =A5A!K296 -> 0 | L35: =A5A!L296 -> 0
A36: 0 | C36: =A5A!C307 -> 0 | D36: =A5A!D307 -> 0 | E36: =A5A!E307 -> 0 | F36: =A5A!F307 -> 0 | G36: =A5A!G307 -> 0 | H36: =A5A!H307 -> 0 | I36: =A5A!I307 -> 0 | J36: =A5A!J307 -> 0 | K36: =A5A!K307 -> 0 | L36: =A5A!L307 -> 0
A37: Vote 14 - [NAME OF VOTE 14] | C37: =A5A!C318 -> 0 | D37: =A5A!D318 -> 0 | E37: =A5A!E318 -> 0 | F37: =A5A!F318 -> 0 | G37: =A5A!G318 -> 0 | H37: =A5A!H318 -> 0 | I37: =A5A!I318 -> 0 | J37: =A5A!J318 -> 0 | K37: =A5A!K318 -> 0 | L37: =A5A!L318 -> 0
A38: =A20 -> Vote 15 - [NAME OF VOTE 15] | C38: =A5A!C329 -> 0 | D38: =A5A!D329 -> 0 | E38: =A5A!E329 -> 0 | F38: =A5A!F329 -> 0 | G38: =A5A!G329 -> 0 | H38: =A5A!H329 -> 0 | I38: =A5A!I329 -> 0 | J38: =A5A!J329 -> 0 | K38: =A5A!K329 -> 0 | L38: =A5A!L329 -> 0
A39: Capital single-year expenditure sub-total | C39: =SUM(C24:C38) -> 3265084 | D39: =SUM(D24:D38) -> 20227832 | E39: 12646763 | F39: 5756000 | G39: 5676000 | H39: 5716000 | I39: 5676000 | J39: 5000000 | K39: 0 | L39: 0
A40: Total Capital Expenditure - Vote | C40: =C39+C21 -> 10948099 | D40: =D39+D21 -> 20614332 | E40: 21471313 | F40: 14323100 | G40: 13933100 | H40: 13973100 | I40: 13933100 | J40: 14054800 | K40: 9814000 | L40: 10110000
A42: Capital Expenditure - Functional
A43: Governance and administration | C43: =SUM(C44:C46) -> 0 | D43: =SUM(D44:D46) -> 0 | E43: 0 | F43: 40000 | G43: -40000 | H43: 0 | I43: 0 | J43: 0 | K43: 0 | L43: 0
A44: Executive and council
A45: Finance and administration | F45: 40000 | G45: -40000 | H45: 0
A46: Internal audit
A47: Community and public safety | C47: =SUM(C48:C52) -> 0 | D47: =SUM(D48:D52) -> 0 | E47: 0 | F47: 0 | G47: 0 | H47: 0 | I47: 0 | J47: 0 | K47: 0 | L47: 0
A48: Community and social services
A49: Sport and recreation
A50: Public safety
A51: Housing
A52: Health
A53: Economic and environmental services | C53: =SUM(C54:C56) -> 0 | D53: =SUM(D54:D56) -> 0 | E53: 13368568 | F53: 8567100 | G53: 7692100 | H53: 9018000 | I53: 9018000 | J53: 9054800 | K53: 9814000 | L53: 10110000
A54: Planning and development | E54: 13368568 | F54: 8567100 | G54: 7692100 | H54: 9018000 | I54: 9018000 | J54: =9533000-478200 -> 9054800 | K54: 9814000 | L54: 10110000
A55: Road transport
A56: Environmental protection
A57: Trading services | C57: =SUM(C58:C61) -> 0 | D57: =SUM(D58:D61) -> 0 | E57: 12646763 | F57: 5716000 | G57: 6281000 | H57: 6281000 | I57: 6281000 | J57: 5000000 | K57: 0 | L57: 0
A58: Energy sources | J58: 1000000
A59: Water management | E59: 12646763 | F59: 5716000 | G59: =5716000+565000 -> 6281000 | H59: 6281000 | I59: 6281000 | J59: 4000000
A60: Waste water management
A61: Waste management
A62: Other
A63: Total Capital Expenditure - Functional | B63: 3 | C63: =C43+C47+C53+C57+C62 -> 0 | D63: =D43+D47+D53+D57+D62 -> 0 | E63: 26015331 | F63: 14323100 | G63: 13933100 | H63: 15299000 | I63: 15299000 | J63: 14054800 | K63: 9814000 | L63: =L43+L47+L53+L57+L62 -> 10110000
A65: Funded by:
A66: National Government | E66: 26015331 | F66: =14283100+40000 -> 14323100 | G66: =13408100-40000 -> 13368100 | H66: =14774000-40000 -> 14734000 | I66: =14774000-40000 -> 14734000 | J66: ='SA19'!I45 -> 14054800 | K66: 13548751 | L66: 14100104.3
A67: Provincial Government
A68: District Municipality
A69: Other transfers and grants
A70: Transfers recognised - capital | B70: 4 | C70: =SUM(C66:C69) -> 0 | D70: 0 | E70: 26015331 | F70: 14323100 | G70: 13368100 | H70: 14734000 | I70: 14734000 | J70: 14054800 | K70: 13548751 | L70: 14100104.3
A71: Public contributions & donations | B71: 5
A72: Borrowing | B72: 6
A73: Internally generated funds | G73: 565000 | H73: 565000 | I73: 565000
A74: Total Capital Funding | B74: 7 | C74: =SUM(C70:C73) -> 0 | D74: 0 | E74: 26015331 | F74: 14323100 | G74: 13933100 | H74: 15299000 | I74: 15299000 | J74: 14054800 | K74: 13548751 | L74: 14100104.3
A75: =head27a -> References
A76: 1. Municipalities may choose to appropriate for capital expenditure for three years or for one year (if one year appropriation projected expenditure required for yr2 and yr3).
A77: 2. Include capital component of PPP unitary payment. Note that capital transfers are only appropriated to municipalities for the budget year
A78: 3. Capital expenditure by functional classification must reconcile to the appropriations by vote
A79: 4. Must reconcile to supporting table SA20 and to Budgeted Financial Performance (revenue and expenditure)
A80: 5. Must reconcile to Budgeted Financial Performance (revenue and expenditure)
A81: 6. Include finance leases and PPP capital funding component of unitary payment - total borrowing/repayments to reconcile to changes in Table SA17
A82: 7. Total Capital Funding must balance with Total Capital Expenditure
A83: 8. Include any capitalised interest (MFMA section 46) as part of relevant capital budget
A85: check balance | C85: =IF((C63-C74)=0,0,"Unbalanced") -> 0 | D85: =IF((D63-D74)=0,0,"Unbalanced") -> 0 | E85: 0 | F85: 0 | G85: 0 | H85: 0 | I85: 0 | J85: 0 | K85: Unbalanced | L85: Unbalanced

Sheet A5A
A1: =muni&" - "&Approve5 -> NC076 Thembelihle - Table A5 Budgeted Capital Expenditure by vote, functional classification and funding
A2: =Vdesc -> Vote Description | B2: =head27 -> Ref | C2: =head1b -> 2013/14 | D2: =head1A -> 2014/15 | E2: =Head1 -> 2015/16 | F2: =Head2 -> Current Year 2016/17 | J2: =Head3 -> 2017/18 Medium Term Revenue & Expenditure Framework | N2: ="Multi-year appropriation for "&Head9& " in the "&Head2A&" Annual Budget" -> Multi-year appropriation for Budget Year 2017/18 in the 2016/17 Annual Budget | R2: ="Multi-year appropriation for "&RIGHT(Head10,7)& " in the "&Head2A&" Annual Budget" -> Multi-year appropriation for 2018/19 in the 2016/17 Annual Budget | V2: New multi-year appropriations (funds for new and existing projects)
A3: R thousand | B3: 1 | C3: =Head5 -> Audited Outcome | D3: =Head5 -> Audited Outcome | E3: =Head5 -> Audited Outcome | F3: =Head6 -> Original Budget | G3: =Head7 -> Adjusted Budget | H3: =Head8 -> Full Year Forecast | I3: =Head5b -> Pre-audit outcome | J3: =Head9 -> Budget Year 2017/18 | K3: =Head10 -> Budget Year +1 2018/19 | L3: =Head11 -> Budget Year +2 2019/20 | N3: ="Appropriation for "&RIGHT(Head9,7) -> Appropriation for 2017/18 | O3: ="Adjustments in "&Head2A -> Adjustments in 2016/17 | P3: ="Downward adjustments for "&RIGHT(Head9,7) -> Downward adjustments for 2017/18 | Q3: Appropriation carried forward | R3: ="Appropriation for "&RIGHT(Head9,7) -> Appropriation for 2017/18 | S3: ="Adjustments in "&Head2A -> Adjustments in 2016/17 | T3: ="Downward adjustments for "&RIGHT(Head9,7) -> Downward adjustments for 2017/18 | U3: Appropriation carried forward | V3: =Head9 -> Budget Year 2017/18 | W3: =Head10 -> Budget Year +1 2018/19 | X3: =Head11 -> Budget Year +2 2019/20
A4: Capital expenditure - Municipal Vote
A5: Multi-year expenditure appropriation | B5: 2
A6: ='Org structure'!A2 -> Vote 1 - Executive Council | C6: =SUM(C7:C16) -> 0 | D6: =SUM(D7:D16) -> 0 | E6: 0 | F6: 0 | G6: 0 | H6: 0 | I6: =SUM(I7:I16) -> 0 | J6: 0 | K6: 0 | L6: 0 | N6: =SUM(N7:N16) -> 0 | O6: 0 | P6: 0 | Q6: 0 | R6: 0 | S6: 0 | T6: 0 | U6: 0 | V6: =SUM(V7:V16) -> 0 | W6: =SUM(W7:W16) -> 0 | X6: =SUM(X7:X16) -> 0
A7: ='Org structure'!E3 -> 1.1 - Council | J7: =Q7+V7 -> 0 | K7: =U7+W7 -> 0 | L7: =X7 -> 0 | Q7: =SUM(N7:P7) -> 0 | U7: =SUM(R7:T7) -> 0
A8: ='Org structure'!E4 -> 1.2 - Municipal Manager | J8: =Q8+V8 -> 0 | K8: =U8+W8 -> 0 | L8: =X8 -> 0 | Q8: =SUM(N8:P8) -> 0 | U8: =SUM(R8:T8) -> 0
A9: ='Org structure'!E5 -> 0 | J9: =Q9+V9 -> 0 | K9: =U9+W9 -> 0 | L9: 0 | Q9: 0 | U9: 0
A10: ='Org structure'!E6 -> 0 | J10: 0 | K10: 0 | L10: 0 | Q10: 0 | U10: 0
A11: ='Org structure'!E7 -> 0 | J11: 0 | K11: 0 | L11: =X11 -> 0 | Q11: 0 | U11: 0
A12: ='Org structure'!E8 -> 0 | J12: 0 | K12: 0 | L12: 0 | Q12: 0 | U12: 0
A13: ='Org structure'!E9 -> 0 | J13: 0 | K13: 0 | L13: 0 | Q13: 0 | U13: 0
A14: ='Org structure'!E10 -> 0 | J14: 0 | K14: 0 | L14: 0 | Q14: 0 | U14: 0
A15: ='Org structure'!E11 -> 0 | J15: 0 | K15: 0 | L15: 0 | Q15: 0 | U15: 0
A16: ='Org structure'!E12 -> 0 | J16: 0 | K16: 0 | L16: 0 | Q16: 0 | U16: 0
A17: ='Org structure'!A3 -> Vote 2 - Budget & Treasury | C17: =SUM(C18:C27) -> 0 | D17: =SUM(D18:D27) -> 0 | E17: 0 | F17: 0 | G17: 0 | H17: 0 | I17: =SUM(I18:I27) -> 0 | J17: 0 | K17: 0 | L17: 0 | N17: =SUM(N18:N27) -> 0 | O17: 0 | P17: 0 | Q17: 0 | R17: 0 | S17: 0 | T17: 0 | U17: 0 | V17: 0 | W17: 0 | X17: 0
A18: ='Org structure'!E14 -> 2.1 - Budget & Treasury | J18: =Q18+V18 -> 0 | K18: =U18+W18 -> 0 | L18: =X18 -> 0 | Q18: =SUM(N18:P18) -> 0 | U18: 0
A19: ='Org structure'!E15 -> 0 | J19: =Q19+V19 -> 0 | K19: =U19+W19 -> 0 | L19: 0 | Q19: 0 | U19: 0
A20: ='Org structure'!E16 -> 0 | J20: 0 | K20: 0 | L20: 0 | Q20: 0 | U20: 0
A21: ='Org structure'!E17 -> 0 | J21: 0 | K21: =U21+W21 -> 0 | L21: 0 | Q21: 0 | U21: 0
A22: ='Org structure'!E18 -> 0 | J22: 0 | K22: 0 | L22: 0 | Q22: 0 | U22: 0
A23: ='Org structure'!E19 -> 0 | J23: 0 | K23: 0 | L23: 0 | Q23: 0 | U23: 0
A24: ='Org structure'!E20 -> 0 | J24: 0 | K24: 0 | L24: 0 | Q24: 0 | U24: 0
A25: ='Org structure'!E21 -> 0 | J25: 0 | K25: 0 | L25: 0 | Q25: 0 | U25: 0
A26: ='Org structure'!E22 -> 0 | J26: 0 | K26: 0 | L26: 0 | Q26: 0 | U26: 0
A27: ='Org structure'!E23 -> 0 | J27: 0 | K27: 0 | L27: 0 | Q27: 0 | U27: 0
A28: ='Org structure'!A4 -> Vote 3 - Corporate Service | C28: =SUM(C29:C38) -> 0 | D28: =SUM(D29:D38) -> 0 | E28: 0 | F28: 0 | G28: 0 | H28: 0 | I28: =SUM(I29:I38) -> 0 | J28: 0 | K28: 0 | L28: 0 | N28: =SUM(N29:N38) -> 0 | O28: 0 | P28: 0 | Q28: 0 | R28: 0 | S28: 0 | T28: 0 | U28: 0 | V28: 0 | W28: 0 | X28: 0
A29: ='Org structure'!E25 -> 3.1 - Administration | J29: =Q29+V29 -> 0 | K29: =U29+W29 -> 0 | L29: =X29 -> 0 | Q29: =SUM(N29:P29) -> 0 | U29: 0
A30: ='Org structure'!E26 -> 3.2 - Fixed Property & Buidling | J30: 0 | K30: 0 | L30: 0 | Q30: 0 | U30: 0
A31: ='Org structure'!E27 -> 0 | J31: 0 | K31: 0 | L31: 0 | Q31: 0 | U31: =SUM(R31:T31) -> 0
A32: ='Org structure'!E28 -> 0 | J32: 0 | K32: =U32+W32 -> 0 | L32: 0 | Q32: 0 | U32: 0
A33: ='Org structure'!E29 -> 0 | J33: =Q33+V33 -> 0 | K33: 0 | L33: 0 | Q33: 0 | U33: 0
A34: ='Org structure'!E30 -> 0 | J34: 0 | K34: 0 | L34: 0 | Q34: 0 | U34: 0
A35: ='Org structure'!E31 -> 0 | J35: 0 | K35: 0 | L35: 0 | Q35: 0 | U35: 0
A36: ='Org structure'!E32 -> 0 | J36: 0 | K36: 0 | L36: 0 | Q36: 0 | U36: 0
A37: ='Org structure'!E33 -> 0 | J37: 0 | K37: 0 | L37: 0 | Q37: 0 | U37: 0
A38: ='Org structure'!E34 -> 0 | J38: 0 | K38: 0 | L38: 0 | Q38: 0 | U38: 0
A39: ='Org structure'!A5 -> Vote 4 - Community & Social Service | C39: =SUM(C40:C49) -> 0 | D39: =SUM(D40:D49) -> 0 | E39: 0 | F39: 0 | G39: 0 | H39: 0 | I39: =SUM(I40:I49) -> 0 | J39: 0 | K39: 0 | L39: 0 | N39: =SUM(N40:N49) -> 0 | O39: 0 | P39: 0 | Q39: 0 | R39: 0 | S39: 0 | T39: 0 | U39: 0 | V39: 0 | W39: 0 | X39: 0
A40: ='Org structure'!E36 -> 4.1 - Library | J40: =Q40+V40 -> 0 | K40: =U40+W40 -> 0 | L40: =X40 -> 0 | Q40: =SUM(N40:P40) -> 0 | U40: 0
A41: ='Org structure'!E37 -> 4.2 - Community | J41: 0 | K41: 0 | L41: 0 | Q41: 0 | U41: 0
A42: ='Org structure'!E38 -> 0 | J42: 0 | K42: 0 | L42: 0 | Q42: 0 | U42: 0
A43: ='Org structure'!E39 -> 0 | J43: 0 | K43: 0 | L43: 0 | Q43: 0 | U43: 0
A44: ='Org structure'!E40 -> 0 | J44: 0 | K44: 0 | L44: 0 | Q44: 0 | U44: 0
A45: ='Org structure'!E41 -> 0 | J45: 0 | K45: 0 | L45: 0 | Q45: 0 | U45: 0
A46: ='Org structure'!E42 -> 0 | J46: 0 | K46: 0 | L46: 0 | Q46: 0 | U46: 0
A47: ='Org structure'!E43 -> 0 | J47: 0 | K47: 0 | L47: 0 | Q47: 0 | U47: 0
A48: ='Org structure'!E44 -> 0 | J48: 0 | K48: 0 | L48: 0 | Q48: 0 | U48: 0
A49: ='Org structure'!E45 -> 0 | J49: 0 | K49: 0 | L49: 0 | Q49: 0 | U49: 0
A50: ='Org structure'!A6 -> Vote 5 - Public Safety | C50: =SUM(C51:C60) -> 0 | D50: =SUM(D51:D60) -> 0 | E50: 0 | F50: 0 | G50: 0 | H50: 0 | I50: =SUM(I51:I60) -> 0 | J50: 0 | K50: 0 | L50: 0 | N50: =SUM(N51:N60) -> 0 | O50: 0 | P50: 0 | Q50: 0 | R50: 0 | S50: 0 | T50: 0 | U50: 0 | V50: 0 | W50: 0 | X50: 0
A51: ='Org structure'!E47 -> 5.1 - Disaster Management | J51: =Q51+V51 -> 0 | K51: =U51+W51 -> 0 | L51: =X51 -> 0 | Q51: =SUM(N51:P51) -> 0 | U51: 0
A52: ='Org structure'!E48 -> 0 | J52: 0 | K52: 0 | L52: 0 | Q52: 0 | U52: 0
A53: ='Org structure'!E49 -> 0 | J53: 0 | K53: 0 | L53: 0 | Q53: 0 | U53: 0
A54: ='Org structure'!E50 -> 0 | J54: 0 | K54: 0 | L54: 0 | Q54: 0 | U54: 0
A55: ='Org structure'!E51 -> 0 | J55: 0 | K55: 0 | L55: 0 | Q55: 0 | U55: 0
A56: ='Org structure'!E52 -> 0 | J56: 0 | K56: 0 | L56: 0 | Q56: 0 | U56: 0
A57: ='Org structure'!E53 -> 0 | J57: 0 | K57: 0 | L57: 0 | Q57: 0 | U57: 0
A58: ='Org structure'!E54 -> 0 | J58: 0 | K58: 0 | L58: 0 | Q58: 0 | U58: 0
A59: ='Org structure'!E55 -> 0 | J59: 0 | K59: 0 | L59: 0 | Q59: 0 | U59: 0
A60: ='Org structure'!E56 -> 0 | J60: 0 | K60: 0 | L60: 0 | Q60: 0 | U60: 0
A61: ='Org structure'!A7 -> Vote 6 - Planning & Development | C61: =SUM(C62:C71) -> 7683015 | D61: =SUM(D62:D71) -> 386500 | E61: 8824550 | F61: 8567100 | G61: 7692100 | H61: 7692100 | I61: =SUM(I62:I71) -> 7692100 | J61: 9054800 | K61: 9814000 | L61: 10110000 | N61: =SUM(N62:N71) -> 0 | O61: 0 | P61: 0 | Q61: 0 | R61: 0 | S61: 0 | T61: 0 | U61: 0 | V61: 9054800 | W61: 9814000 | X61: 10110000
A62: ='Org structure'!E58 -> 6.1 - Technical | J62: =Q62+V62 -> 0 | K62: =U62+W62 -> 0 | L62: =X62 -> 0 | Q62: =SUM(N62:P62) -> 0 | U62: 0
A63: ='Org structure'!E59 -> 6.2 - Support Service | C63: 7683015 | D63: 386500 | E63: 8824550 | F63: 8567100 | G63: 7692100 | H63: =G63 -> 7692100 | I63: =H63 -> 7692100 | J63: =Q63+V63 -> 9054800 | K63: 9814000 | L63: 10110000 | N63: 0 | Q63: 0 | U63: 0 | V63: =9533000-478200 -> 9054800 | W63: 9814000 | X63: 10110000
A64: ='Org structure'!E60 -> 6.3 - PMU | J64: 0 | K64: 0 | L64: 0 | Q64: 0 | U64: 0
A65: ='Org structure'!E61 -> 0 | J65: 0 | K65: 0 | L65: 0 | Q65: 0 | U65: 0
A66: ='Org structure'!E62 -> 0 | J66: 0 | K66: 0 | L66: 0 | Q66: 0 | U66: 0
A67: ='Org structure'!E63 -> 0 | J67: 0 | K67: 0 | L67: 0 | Q67: 0 | U67: 0
A68: ='Org structure'!E64 -> 0 | J68: 0 | K68: 0 | L68: 0 | Q68: 0 | U68: 0
A69: ='Org structure'!E65 -> 0 | J69: 0 | K69: 0 | L69: 0 | Q69: 0 | U69: 0
A70: ='Org structure'!E66 -> 0 | J70: 0 | K70: 0 | L70: 0 | Q70: 0 | U70: 0
A71: ='Org structure'!E67 -> 0 | J71: 0 | K71: 0 | L71: 0 | Q71: 0 | U71: 0
A72: ='Org structure'!A8 -> Vote 7 - Road Transport | C72: =SUM(C73:C82) -> 0 | D72: 0 | E72: 0 | F72: 0 | G72: 0 | H72: 0 | I72: 0 | J72: 0 | K72: 0 | L72: 0 | N72: =SUM(N73:N82) -> 0 | O72: 0 | P72: 0 | Q72: 0 | R72: 0 | S72: 0 | T72: 0 | U72: 0 | V72: 0 | W72: 0 | X72: 0
A73: ='Org structure'!E69 -> 7.1 - Traffic | J73: =Q73+V73 -> 0 | K73: =U73+W73 -> 0 | L73: =X73 -> 0 | Q73: =SUM(N73:P73) -> 0 | U73: =SUM(R73:T73) -> 0
A74: ='Org structure'!E70 -> 0 | J74: 0 | K74: 0 | L74: 0 | Q74: 0 | U74: 0
A75: ='Org structure'!E71 -> 0 | J75: 0 | K75: 0 | L75: 0 | Q75: 0 | U75: 0
A76: ='Org structure'!E72 -> 0 | J76: 0 | K76: 0 | L76: 0 | Q76: 0 | U76: 0
A77: ='Org structure'!E73 -> 0 | J77: 0 | K77: 0 | L77: 0 | Q77: 0 | U77: 0
A78: ='Org structure'!E74 -> 0 | J78: 0 | K78: 0 | L78: 0 | Q78: 0 | U78: 0
A79: ='Org structure'!E75 -> 0 | J79: 0 | K79: 0 | L79: 0 | Q79: 0 | U79: 0
A80: ='Org structure'!E76 -> 0 | J80: 0 | K80: 0 | L80: 0 | Q80: 0 | U80: 0
A81: ='Org structure'!E77 -> 0 | J81: 0 | K81: 0 | L81: 0 | Q81: 0 | U81: 0
A82: ='Org structure'!E78 -> 0 | J82: 0 | K82: 0 | L82: 0 | Q82: 0 | U82: 0
A83: ='Org structure'!A9 -> Vote 8 - Electricity | C83: =SUM(C84:C93) -> 0 | D83: 0 | E83: 0 | F83: 0 | G83: 0 | H83: 0 | I83: 0 | J83: 0 | K83: 0 | L83: 0 | N83: =SUM(N84:N93) -> 0 | O83: 0 | P83: 0 | Q83: 0 | R83: 0 | S83: 0 | T83: 0 | U83: 0 | V83: 0 | W83: 0 | X83: 0
A84: ='Org structure'!E80 -> 8.1 - Electricity | J84: =Q84+V84 -> 0 | K84: =U84+W84 -> 0 | L84: =X84 -> 0 | Q84: =SUM(N84:P84) -> 0 | U84: 0
A85: ='Org structure'!E81 -> 0 | J85: 0 | K85: 0 | L85: 0 | Q85: 0 | U85: 0
A86: ='Org structure'!E82 -> 0 | J86: 0 | K86: 0 | L86: 0 | Q86: 0 | U86: 0
A87: ='Org structure'!E83 -> 0 | J87: 0 | K87: 0 | L87: 0 | Q87: 0 | U87: 0
A88: ='Org structure'!E84 -> 0 | J88: 0 | K88: 0 | L88: 0 | Q88: 0 | U88: 0
A89: ='Org structure'!E85 -> 0 | J89: 0 | K89: 0 | L89: 0 | Q89: 0 | U89: 0
A90: ='Org structure'!E86 -> 0 | J90: 0 | K90: 0 | L90: 0 | Q90: 0 | U90: 0
A91: ='Org structure'!E87 -> 0 | J91: 0 | K91: 0 | L91: 0 | Q91: 0 | U91: 0
A92: ='Org structure'!E88 -> 0 | J92: 0 | K92: 0 | L92: 0 | Q92: 0 | U92: 0
A93: ='Org structure'!E89 -> 0 | J93: 0 | K93: 0 | L93: 0 | Q93: 0 | U93: 0
A94: ='Org structure'!A10 -> Vote 9 - Water | C94: =SUM(C95:C104) -> 0 | D94: =SUM(D95:D104) -> 0 | E94: 0 | F94: 0 | G94: 565000 | H94: 565000 | I94: 565000 | J94: 0 | K94: 0 | L94: 0 | N94: =SUM(N95:N104) -> 0 | O94: 0 | P94: 0 | Q94: 0 | R94: 0 | S94: 0 | T94: 0 | U94: 0 | V94: 0 | W94: 0 | X94: 0
A95: ='Org structure'!E91 -> 9.1 - Water | G95: =565000 -> 565000 | H95: =565000 -> 565000 | I95: 565000 | J95: =Q95+V95 -> 0 | K95: =U95+W95 -> 0 | L95: =X95 -> 0 | Q95: =SUM(N95:P95) -> 0 | U95: 0
A96: ='Org structure'!E92 -> 0 | J96: 0 | K96: 0 | L96: 0 | Q96: 0 | U96: 0
A97: ='Org structure'!E93 -> 0 | J97: 0 | K97: 0 | L97: 0 | Q97: 0 | U97: 0
A98: ='Org structure'!E94 -> 0 | J98: 0 | K98: 0 | L98: 0 | Q98: 0 | U98: 0
A99: ='Org structure'!E95 -> 0 | J99: 0 | K99: 0 | L99: 0 | Q99: 0 | U99: 0
A100: ='Org structure'!E96 -> 0 | J100: 0 | K100: 0 | L100: 0 | Q100: 0 | U100: 0
A101: ='Org structure'!E97 -> 0 | J101: 0 | K101: 0 | L101: 0 | Q101: 0 | U101: 0
A102: ='Org structure'!E98 -> 0 | J102: 0 | K102: 0 | L102: 0 | Q102: 0 | U102: 0
A103: ='Org structure'!E99 -> 0 | J103: 0 | K103: 0 | L103: 0 | Q103: 0 | U103: 0
A104: ='Org structure'!E100 -> 0 | J104: 0 | K104: 0 | L104: 0 | Q104: 0 | U104: 0
A105: ='Org structure'!A11 -> Vote 10 - Waste Water Management | C105: =SUM(C106:C115) -> 0 | D105: =SUM(D106:D115) -> 0 | E105: 0 | F105: 0 | G105: 0 | H105: 0 | I105: 0 | J105: 0 | K105: 0 | L105: 0 | N105: =SUM(N106:N115) -> 0 | O105: 0 | P105: 0 | Q105: 0 | R105: 0 | S105: 0 | T105: 0 | U105: 0 | V105: 0 | W105: 0 | X105: 0
A106: ='Org structure'!E102 -> 10.1 - Waste Water Management | J106: =Q106+V106 -> 0 | K106: =U106+W106 -> 0 | L106: =X106 -> 0 | Q106: =SUM(N106:P106) -> 0 | U106: 0
A107: ='Org structure'!E103 -> 0 | J107: 0 | K107: 0 | L107: 0 | Q107: 0 | U107: 0
A108: ='Org structure'!E104 -> 0 | J108: 0 | K108: 0 | L108: 0 | Q108: 0 | U108: 0
A109: ='Org structure'!E105 -> 0 | J109: 0 | K109: 0 | L109: 0 | Q109: 0 | U109: 0
A110: ='Org structure'!E106 -> 0 | J110: 0 | K110: 0 | L110: 0 | Q110: 0 | U110: 0
A111: ='Org structure'!E107 -> 0 | J111: 0 | K111: 0 | L111: 0 | Q111: 0 | U111: 0
A112: ='Org structure'!E108 -> 0 | J112: 0 | K112: 0 | L112: 0 | Q112: 0 | U112: 0
A113: ='Org structure'!E109 -> 0 | J113: 0 | K113: 0 | L113: 0 | Q113: 0 | U113: 0
A114: ='Org structure'!E110 -> 0 | J114: 0 | K114: 0 | L114: 0 | Q114: 0 | U114: 0
A115: ='Org structure'!E111 -> 0 | J115: 0 | K115: 0 | L115: 0 | Q115: 0 | U115: 0
A116: ='Org structure'!A12 -> Vote 11 - Waste Management | C116: =SUM(C117:C126) -> 0 | D116: 0 | E116: 0 | F116: 0 | G116: 0 | H116: 0 | I116: 0 | J116: 0 | K116: 0 | L116: 0 | N116: =SUM(N117:N126) -> 0 | O116: 0 | P116: 0 | Q116: 0 | R116: 0 | S116: 0 | T116: 0 | U116: 0 | V116: 0 | W116: 0 | X116: 0
A117: ='Org structure'!E113 -> 11.1 - Waste Management | J117: =Q117+V117 -> 0 | K117: =U117+W117 -> 0 | L117: =X117 -> 0 | Q117: =SUM(N117:P117) -> 0 | U117: 0
A118: ='Org structure'!E114 -> 0 | J118: 0 | K118: 0 | L118: 0 | Q118: 0 | U118: 0
A119: ='Org structure'!E115 -> 0 | J119: 0 | K119: 0 | L119: 0 | Q119: 0 | U119: 0
A120: ='Org structure'!E116 -> 0 | J120: 0 | K120: 0 | L120: 0 | Q120: 0 | U120: 0
A121: ='Org structure'!E117 -> 0 | J121: 0 | K121: 0 | L121: 0 | Q121: 0 | U121: 0
A122: ='Org structure'!E118 -> 0 | J122: 0 | K122: 0 | L122: 0 | Q122: 0 | U122: 0
A123: ='Org structure'!E119 -> 0 | J123: 0 | K123: 0 | L123: 0 | Q123: 0 | U123: 0
A124: ='Org structure'!E120 -> 0 | J124: 0 | K124: 0 | L124: 0 | Q124: 0 | U124: 0
A125: ='Org structure'!E121 -> 0 | J125: 0 | K125: 0 | L125: 0 | Q125: 0 | U125: 0
A126: ='Org structure'!E122 -> 0 | J126: 0 | K126: 0 | L126: 0 | Q126: 0 | U126: 0
A127: ='Org structure'!A13 -> 0 | C127: =SUM(C128:C137) -> 0 | D127: 0 | E127: 0 | F127: 0 | G127: 0 | H127: 0 | I127: 0 | J127: 0 | K127: 0 | L127: 0 | N127: =SUM(N128:N137) -> 0 | O127: 0 | P127: 0 | Q127: 0 | R127: 0 | S127: 0 | T127: 0 | U127: 0 | V127: 0 | W127: 0 | X127: 0
A128: ='Org structure'!E124 -> 12.1 - [Name of sub-vote] | J128: =Q128+V128 -> 0 | K128: =U128+W128 -> 0 | L128: =X128 -> 0 | Q128: =SUM(N128:P128) -> 0 | U128: 0
A129: ='Org structure'!E125 -> 0 | J129: 0 | K129: 0 | L129: 0 | Q129: 0 | U129: 0
A130: ='Org structure'!E126 -> 0 | J130: 0 | K130: 0 | L130: 0 | Q130: 0 | U130: 0
A131: ='Org structure'!E127 -> 0 | J131: 0 | K131: 0 | L131: 0 | Q131: 0 | U131: 0
A132: ='Org structure'!E128 -> 0 | J132: 0 | K132: 0 | L132: 0 | Q132: 0 | U132: 0
A133: ='Org structure'!E129 -> 0 | J133: =Q133+V133 -> 0 | K133: 0 | L133: 0 | Q133: 0 | U133: 0
A134: ='Org structure'!E130 -> 0 | J134: 0 | K134: 0 | L134: 0 | Q134: 0 | U134: 0
A135: ='Org structure'!E131 -> 0 | J135: 0 | K135: 0 | L135: 0 | Q135: 0 | U135: 0
A136: ='Org structure'!E132 -> 0 | J136: 0 | K136: 0 | L136: 0 | Q136: 0 | U136: =SUM(R136:T136) -> 0
A137: ='Org structure'!E133 -> 0 | J137: 0 | K137: 0 | L137: 0 | Q137: 0 | U137: 0
A138: ='Org structure'!A14 -> 0 | C138: =SUM(C139:C148) -> 0 | D138: 0 | E138: 0 | F138: 0 | G138: 0 | H138: 0 | I138: 0 | J138: 0 | K138: 0 | L138: 0 | N138: =SUM(N139:N148) -> 0 | O138: 0 | P138: 0 | Q138: 0 | R138: 0 | S138: 0 | T138: 0 | U138: 0 | V138: 0 | W138: 0 | X138: 0
A139: ='Org structure'!E135 -> 13.1 - [Name of sub-vote] | J139: =Q139+V139 -> 0 | K139: =U139+W139 -> 0 | L139: =X139 -> 0 | Q139: =SUM(N139:P139) -> 0 | U139: 0
A140: ='Org structure'!E136 -> 0 | J140: 0 | K140: 0 | L140: 0 | Q140: 0 | U140: 0
A141: ='Org structure'!E137 -> 0 | J141: 0 | K141: 0 | L141: 0 | Q141: 0 | U141: 0
A142: ='Org structure'!E138 -> 0 | J142: 0 | K142: 0 | L142: 0 | Q142: 0 | U142: 0
A143: ='Org structure'!E139 -> 0 | J143: 0 | K143: 0 | L143: 0 | Q143: 0 | U143: 0
A144: ='Org structure'!E140 -> 0 | J144: 0 | K144: 0 | L144: 0 | Q144: 0 | U144: 0
A145: ='Org structure'!E141 -> 0 | J145: 0 | K145: 0 | L145: 0 | Q145: 0 | U145: 0
A146: ='Org structure'!E142 -> 0 | J146: 0 | K146: 0 | L146: 0 | Q146: 0 | U146: 0
A147: ='Org structure'!E143 -> 0 | J147: 0 | K147: 0 | L147: 0 | Q147: 0 | U147: 0
A148: ='Org structure'!E144 -> 0 | J148: 0 | K148: 0 | L148: 0 | Q148: 0 | U148: 0
A149: ='Org structure'!A15 -> Vote 14 - [NAME OF VOTE 14] | C149: =SUM(C150:C159) -> 0 | D149: 0 | E149: 0 | F149: 0 | G149: 0 | H149: 0 | I149: 0 | J149: 0 | K149: 0 | L149: 0 | N149: =SUM(N150:N159) -> 0 | O149: 0 | P149: 0 | Q149: 0 | R149: 0 | S149: 0 | T149: 0 | U149: 0 | V149: 0 | W149: 0 | X149: 0
A150: ='Org structure'!E146 -> 14.1 - [Name of sub-vote] | J150: =Q150+V150 -> 0 | K150: =U150+W150 -> 0 | L150: =X150 -> 0 | Q150: =SUM(N150:P150) -> 0 | U150: 0
A151: ='Org structure'!E147 -> 0 | J151: 0 | K151: 0 | L151: 0 | Q151: 0 | U151: 0
A152: ='Org structure'!E148 -> 0 | J152: 0 | K152: 0 | L152: 0 | Q152: 0 | U152: 0
A153: ='Org structure'!E149 -> 0 | J153: 0 | K153: 0 | L153: 0 | Q153: 0 | U153: 0
A154: ='Org structure'!E150 -> 0 | J154: 0 | K154: 0 | L154: 0 | Q154: 0 | U154: 0
A155: ='Org structure'!E151 -> 0 | J155: 0 | K155: 0 | L155: 0 | Q155: 0 | U155: 0
A156: ='Org structure'!E152 -> 0 | J156: 0 | K156: 0 | L156: 0 | Q156: 0 | U156: 0
A157: ='Org structure'!E153 -> 0 | J157: 0 | K157: 0 | L157: 0 | Q157: 0 | U157: 0
A158: ='Org structure'!E154 -> 0 | J158: 0 | K158: 0 | L158: 0 | Q158: 0 | U158: 0
A159: ='Org structure'!E155 -> 0 | J159: 0 | K159: 0 | L159: 0 | Q159: 0 | U159: 0
A160: ='Org structure'!A16 -> Vote 15 - [NAME OF VOTE 15] | C160: =SUM(C161:C170) -> 0 | D160: 0 | E160: 0 | F160: 0 | G160: 0 | H160: 0 | I160: 0 | J160: 0 | K160: 0 | L160: 0 | N160: =SUM(N161:N170) -> 0 | O160: 0 | P160: 0 | Q160: 0 | R160: 0 | S160: 0 | T160: 0 | U160: 0 | V160: 0 | W160: 0 | X160: 0
A161: ='Org structure'!E157 -> 15.1 - [Name of sub-vote] | J161: =Q161+V161 -> 0 | K161: =U161+W161 -> 0 | L161: =X161 -> 0 | Q161: =SUM(N161:P161) -> 0 | U161: 0
A162: ='Org structure'!E158 -> 0 | J162: 0 | K162: 0 | L162: 0 | Q162: 0 | U162: 0
A163: ='Org structure'!E159 -> 0 | J163: 0 | K163: 0 | L163: 0 | Q163: 0 | U163: 0
A164: ='Org structure'!E160 -> 0 | J164: 0 | K164: 0 | L164: 0 | Q164: 0 | U164: 0
A165: ='Org structure'!E161 -> 0 | J165: 0 | K165: 0 | L165: 0 | Q165: 0 | U165: 0
A166: ='Org structure'!E162 -> 0 | J166: 0 | K166: 0 | L166: 0 | Q166: 0 | U166: 0
A167: ='Org structure'!E163 -> 0 | J167: 0 | K167: 0 | L167: 0 | Q167: 0 | U167: 0
A168: ='Org structure'!E164 -> 0 | J168: 0 | K168: 0 | L168: 0 | Q168: 0 | U168: 0
A169: ='Org structure'!E165 -> 0 | J169: 0 | K169: 0 | L169: 0 | Q169: 0 | U169: 0
A170: ='Org structure'!E166 -> 0 | J170: 0 | K170: 0 | L170: 0 | Q170: 0 | U170: 0
A171: Capital multi-year expenditure sub-total | C171: =C6+C17+C28+C39+C50+C61+C72+C83+C94+C105+C116+C127+C138+C149+C160 -> 7683015 | D171: =D6+D17+D28+D39+D50+D61+D72+D83+D94+D105+D116+D127+D138+D149+D160 -> 386500 | E171: 8824550 | F171: 8567100 | G171: 8257100 | H171: 8257100 | I171: 8257100 | J171: 9054800 | K171: 9814000 | L171: 10110000 | N171: =N6+N17+N28+N39+N50+N61+N72+N83+N94+N105+N116+N127+N138+N149+N160 -> 0 | O171: 0 | P171: 0 | Q171: 0 | R171: 0 | S171: 0 | U171: 0 | V171: =V6+V17+V28+V39+V50+V61+V72+V83+V94+V105+V116+V127+V138+V149+V160 -> 9054800 | W171: =W6+W17+W28+W39+W50+W61+W72+W83+W94+W105+W116+W127+W138+W149+W160 -> 9814000
A173: Capital expenditure - Municipal Vote
A174: Single-year expenditure appropriation | B174: 2
A175: =A6 -> Vote 1 - Executive Council | C175: =SUM(C176:C185) -> 0 | D175: 0 | E175: 0 | F175: 0 | G175: 0 | H175: 0 | I175: 0 | J175: 0 | K175: 0 | L175: 0
A176: =A7 -> 1.1 - Council
A177: 1.2 - Municipal Manager
A178: 0
A179: 0
A180: 0
A181: 0
A182: 0
A183: 0
A184: 0
A185: 0
A186: Vote 2 - Budget & Treasury | C186: =SUM(C187:C196) -> 13198 | D186: 451331 | E186: 0 | F186: 40000 | G186: -40000 | H186: 0 | I186: -40000 | J186: 0 | K186: 0 | L186: 0
A187: 2.1 - Budget & Treasury | C187: 13198 | D187: 451331 | F187: 40000 | G187: =-40000 -> -40000 | H187: 0 | I187: =-40000 -> -40000
A188: 0
A189: 0
A190: 0
A191: 0
A192: 0
A193: 0
A194: 0
A195: 0
A196: 0
A197: Vote 3 - Corporate Service | C197: =SUM(C198:C207) -> 0 | D197: 0 | E197: 0 | F197: 0 | G197: 0 | H197: 0 | I197: 0 | J197: 0 | K197: 0 | L197: 0
A198: 3.1 - Administration
A199: 3.2 - Fixed Property & Buidling
A200: 0
A201: 0
... 140 more rows

Sheet A6-FinPos
A1: =muni&" - "&Approve6 -> NC076 Thembelihle - Table A6 Budgeted Financial Position
A2: =desc -> Description | B2: =head27 -> Ref | C2: =head1b -> 2013/14 | D2: =head1A -> 2014/15 | E2: =Head1 -> 2015/16 | F2: =Head2 -> Current Year 2016/17 | J2: =Head3 -> 2017/18 Medium Term Revenue & Expenditure Framework
A3: R thousand | C3: =Head5 -> Audited Outcome | D3: =Head5 -> Audited Outcome | E3: =Head5 -> Audited Outcome | F3: =Head6 -> Original Budget | G3: =Head7 -> Adjusted Budget | H3: =Head8 -> Full Year Forecast | I3: =Head5b -> Pre-audit outcome | J3: =Head9 -> Budget Year 2017/18 | K3: =Head10 -> Budget Year +1 2018/19 | L3: =Head11 -> Budget Year +2 2019/20
A4: ASSETS
A5: Current assets
A6: Cash | C6: 8862798 | D6: 722539 | E6: 3260992 | F6: 12424254 | G6: 8520135 | H6: 3456651.52 | I6: 3456651.52 | J6: 8176007 | K6: 4135021 | L6: =K6*1.48 -> 6119831.08
A7: Call investment deposits | B7: 1 | C7: ='SA3'!C9 -> 0 | D7: ='SA3'!D9 -> 0 | E7: ='SA3'!E9 -> 0 | F7: ='SA3'!F9 -> 0 | G7: ='SA3'!G9 -> 0 | H7: ='SA3'!H9 -> 0 | I7: ='SA3'!I9 -> 0 | J7: ='SA3'!J9 -> 0 | K7: ='SA3'!K9 -> 0 | L7: ='SA3'!L9 -> 0
A8: Consumer debtors | B8: 1 | C8: ='SA3'!C14 -> 2748505 | D8: ='SA3'!D14 -> 2981023 | E8: ='SA3'!E14 -> 4189903 | F8: ='SA3'!F14 -> 12688342 | G8: ='SA3'!G14 -> 9804866.374 | H8: ='SA3'!H14 -> 9804866.374 | I8: ='SA3'!I14 -> 9804866.374 | J8: ='SA3'!J14 -> 12688342 | K8: ='SA3'!K14 -> 15093626 | L8: ='SA3'!L14 -> 16929942
A9: Other debtors | C9: 1409156 | D9: 3676092 | E9: 688577 | F9: 3578540 | G9: 3579000 | H9: 3221100 | I9: 3221100 | J9: 3578540 | K9: 3578540 | L9: =K9*1.48 -> 5296239.2
A10: Current portion of long-term receivables
A11: Inventory | B11: 2 | C11: 144939 | D11: 1641 | E11: 48895 | F11: 50000 | G11: 50148 | H11: 1640 | I11: 1640 | J11: 50000 | K11: =J11*1.49 -> 74500 | L11: 74500
A12: Total current assets | C12: =SUM(C6:C11) -> 13165398 | D12: 7381295 | E12: 8188367 | F12: 28741136 | G12: 21954149.37 | H12: 16484257.89 | I12: 16484257.89 | J12: 24492889 | K12: 22881687 | L12: 28420512.28
A14: Non current assets
A15: Long-term receivables | C15: 438559 | D15: 455117 | E15: 456641 | F15: 460000 | G15: 460000 | H15: 468710 | I15: 468710 | J15: 460000 | K15: 460000 | L15: =K15*1.48 -> 680800
A16: Investments | G16: 0
A17: Investment property | C17: 7077190 | D17: 7729100 | E17: 7675033 | F17: 7729100 | G17: 7729000 | H17: 7729000 | I17: 7729000 | J17: 7729100 | K17: 7729100 | L17: =K17*1.01 -> 7806391
A18: Investment in Associate
A19: Property, plant and equipment | B19: 3 | C19: ='SA3'!C26 -> 209778838 | D19: ='SA3'!D26 -> 221339162 | E19: ='SA3'!E26 -> 230614022 | F19: ='SA3'!F26 -> 236773126 | G19: ='SA3'!G26 -> 236412753 | H19: ='SA3'!H26 -> 236412753 | I19: ='SA3'!I26 -> 236412753 | J19: ='SA3'!J26 -> 244554831 | K19: ='SA3'!K26 -> 245070275 | L19: ='SA3'!L26 -> 246168670
A20: Agricultural
A21: Biological
A22: Intangible | C22: 274711 | D22: 199893 | E22: 268968 | H22: 200000 | I22: 200000
A23: Other non-current assets
A24: Total non current assets | C24: =SUM(C15:C23) -> 217569298 | D24: =SUM(D15:D23) -> 229723272 | E24: =SUM(E15:E23) -> 239014664 | F24: 244962226 | G24: 244601753 | H24: 244810463 | I24: 244810463 | J24: 252743931 | K24: 253259375 | L24: 254655861
A25: TOTAL ASSETS | C25: =C12+C24 -> 230734696 | D25: =D12+D24 -> 237104567 | E25: =E12+E24 -> 247203031 | F25: =F12+F24 -> 273703362 | G25: 266555902.4 | H25: 261294720.9 | I25: 261294720.9 | J25: 277236820 | K25: 276141062 | L25: 283076373.3
A27: LIABILITIES
A28: Current liabilities
A29: Bank overdraft | B29: 1
A30: Borrowing | B30: 4 | C30: ='SA3'!C32 -> 698272 | D30: ='SA3'!D32 -> 1087166 | E30: ='SA3'!E32 -> 912983 | F30: ='SA3'!F32 -> 270000 | G30: ='SA3'!G32 -> 286200 | H30: ='SA3'!H32 -> 286200 | I30: ='SA3'!I32 -> 286200 | J30: ='SA3'!J32 -> 270000 | K30: ='SA3'!K32 -> 270000 | L30: ='SA3'!L32 -> 270000
A31: Consumer deposits | C31: 476128 | D31: 474099 | E31: 522760 | F31: 693715 | G31: 694000 | H31: 553997 | I31: 553997 | J31: 576128 | K31: 574099 | L31: 574099
A32: Trade and other payables | B32: 4 | C32: ='SA3'!C38 -> 38592525 | D32: ='SA3'!D38 -> 41421207 | E32: ='SA3'!E38 -> 52148080 | F32: ='SA3'!F38 -> 24000000 | G32: ='SA3'!G38 -> 24000000 | H32: ='SA3'!H38 -> 24000000 | I32: ='SA3'!I38 -> 24000000 | J32: ='SA3'!J38 -> 45000000 | K32: ='SA3'!K38 -> 22000000 | L32: ='SA3'!L38 -> 22000000
A33: Provisions | C33: 6660026 | D33: 7806445 | E33: 7844900 | F33: 17572883 | G33: 17573000 | H33: 8078541 | I33: 8078541 | J33: 16660026 | K33: 15806445 | L33: 15806445
A34: Total current liabilities | C34: =SUM(C29:C33) -> 46426951 | D34: 50788917 | E34: 61428723 | F34: 42536598 | G34: 42553200 | H34: 32918738 | I34: 32918738 | J34: 62506154 | K34: 38650544 | L34: 38650544
A36: Non current liabilities
A37: Borrowing | C37: ='SA3'!C43 -> 6182412 | D37: ='SA3'!D43 -> 4749078 | E37: ='SA3'!E43 -> 3817684 | F37: ='SA3'!F43 -> 4984385 | G37: ='SA3'!G43 -> 4185470 | H37: ='SA3'!H43 -> 4185470 | I37: ='SA3'!I43 -> 4185470 | J37: ='SA3'!J43 -> 4984385 | K37: ='SA3'!K43 -> 4224385 | L37: ='SA3'!L43 -> 3504385
A38: Provisions | C38: ='SA3'!C50 -> 4347000 | D38: ='SA3'!D50 -> 4746803 | E38: ='SA3'!E50 -> 5169209 | F38: ='SA3'!F50 -> 7202575 | G38: ='SA3'!G50 -> 7741669.5 | H38: ='SA3'!H50 -> 7741669.5 | I38: ='SA3'!I50 -> 7741669.5 | J38: ='SA3'!J50 -> 7202575 | K38: ='SA3'!K50 -> 5713428 | L38: ='SA3'!L50 -> 7427723
A39: Total non current liabilities | C39: =SUM(C37:C38) -> 10529412 | D39: =SUM(D37:D38) -> 9495881 | E39: =SUM(E37:E38) -> 8986893 | F39: =SUM(F37:F38) -> 12186960 | G39: 11927139.5 | H39: 11927139.5 | I39: 11927139.5 | J39: 12186960 | K39: =SUM(K37:K38) -> 9937813 | L39: 10932108
A40: TOTAL LIABILITIES | C40: =C34+C39 -> 56956363 | D40: =D34+D39 -> 60284798 | E40: =E34+E39 -> 70415616 | F40: =F34+F39 -> 54723558 | G40: 54480339.5 | H40: 44845877.5 | I40: 44845877.5 | J40: 74693114 | K40: =K34+K39 -> 48588357 | L40: 49582652
A42: NET ASSETS | B42: 5 | C42: =C25-C40 -> 173778333 | D42: 176819769 | E42: 176787415 | F42: 218979804 | G42: 212075562.9 | H42: 216448843.4 | I42: 216448843.4 | J42: 202543706 | K42: 227552705 | L42: 233493721.3
A44: COMMUNITY WEALTH/EQUITY
A45: Accumulated Surplus/(Deficit) | C45: 173778334 | D45: 176819769 | E45: 182790889 | F45: 226761509 | G45: 219857416.1 | H45: 190124725 | I45: 190124725 | J45: 230713581 | K45: 229468621 | L45: 229468621
A46: Reserves | B46: 4 | C46: ='SA3'!C69 -> 0 | D46: ='SA3'!D69 -> 0 | E46: ='SA3'!E69 -> 0 | F46: ='SA3'!F69 -> 0 | G46: ='SA3'!G69 -> 0 | H46: ='SA3'!H69 -> 0 | I46: ='SA3'!I69 -> 0 | J46: ='SA3'!J69 -> 0 | K46: ='SA3'!K69 -> 0 | L46: ='SA3'!L69 -> 0
A48: TOTAL COMMUNITY WEALTH/EQUITY | B48: 5 | C48: =SUM(C45:C47) -> 173778334 | D48: =SUM(D45:D47) -> 176819769 | E48: 182790889 | F48: 226761509 | G48: 219857416.1 | H48: 190124725 | I48: 190124725 | J48: 230713581 | K48: 229468621 | L48: 229468621
A49: =head27a -> References
A50: 1. Detail to be provided in Table SA3
A51: 2. Include completed low cost housing to be transferred to beneficiaries within 12 months
A52: 3. Include 'Construction-work-in-progress' (disclosed separately in annual financial statements)
A53: 4. Detail to be provided in Table SA3. Includes reserves to be funded by statute.
A54: 5. Net assets must balance with Total Community Wealth/Equity
A55: check balance | C55: =IF((C42-C48)=0,0,"Unbalanced") -> Unbalanced | D55: =IF((D42-D48)=0,0,"Unbalanced") -> 0 | E55: Unbalanced | F55: Unbalanced | G55: Unbalanced | H55: Unbalanced | I55: Unbalanced | J55: Unbalanced | K55: Unbalanced | L55: Unbalanced
A71: Test | C71: =IF(C25<>C40,"Unbalanced",0) -> Unbalanced | D71: =IF(D25<>D40,"Unbalanced",0) -> Unbalanced | E71: Unbalanced | F71: Unbalanced | G71: Unbalanced | H71: Unbalanced | I71: Unbalanced | J71: Unbalanced | K71: Unbalanced | L71: Unbalanced

Sheet A7-CFlow
A1: =muni&" - "&Approve7 -> NC076 Thembelihle - Table A7 Budgeted Cash Flows
A2: =desc -> Description | B2: =head27 -> Ref | C2: =head1b -> 2013/14 | D2: =head1A -> 2014/15 | E2: =Head1 -> 2015/16 | F2: =Head2 -> Current Year 2016/17 | J2: =Head3 -> 2017/18 Medium Term Revenue & Expenditure Framework
A3: R thousand | C3: =Head5 -> Audited Outcome | D3: =Head5 -> Audited Outcome | E3: =Head5 -> Audited Outcome | F3: =Head6 -> Original Budget | G3: =Head7 -> Adjusted Budget | H3: =Head8 -> Full Year Forecast | I3: =Head5b -> Pre-audit outcome | J3: =Head9 -> Budget Year 2017/18 | K3: =Head10 -> Budget Year +1 2018/19 | L3: =Head11 -> Budget Year +2 2019/20
A4: CASH FLOW FROM OPERATING ACTIVITIES
A5: Receipts
A6: Property rates | C6: 1225351 | D6: 653258 | E6: 3137037 | F6: 2504888.4 | G6: 3599758 | H6: 3599758 | I6: 3599758 | J6: ='SA30'!N5 -> 2504888.4 | K6: ='SA30'!O5 -> 2660191.1 | L6: ='SA30'!P5 -> 2817142.3
A7: Service charges | C7: 19197172 | D7: 12783112 | E7: 20073891 | F7: 15428387.1 | G7: 15890934 | H7: 15890934 | I7: 15890934 | J7: ='SA30'!N6+'SA30'!N7+'SA30'!N8+'SA30'!N9+'SA30'!N10 -> 15428387.1 | K7: ='SA30'!O6+'SA30'!O7+'SA30'!O8+'SA30'!O9+'SA30'!O10 -> 16410511.6 | L7: ='SA30'!P6+'SA30'!P7+'SA30'!P8+'SA30'!P9+'SA30'!P10 -> 17408857.2
A8: Other revenue | C8: 2781945 | D8: 1148062 | E8: 1044091 | F8: 5190132.34 | G8: 753156 | H8: 9627108 | I8: 9627108 | J8: ='SA30'!N11+'SA30'!N15+'SA30'!N16+'SA30'!N17+'SA30'!N19 -> 5190132.34 | K8: ='SA30'!O11+'SA30'!O15+'SA30'!O16+'SA30'!O17+'SA30'!O19 -> 5512480.12 | L8: ='SA30'!P11+'SA30'!P15+'SA30'!P16+'SA30'!P17+'SA30'!P19 -> 5877506.74
A9: Government - operating | B9: 1 | C9: 24215079 | D9: 20437277 | E9: 23051951 | F9: 24031900 | G9: 24031900 | H9: 53938706 | I9: 53938706 | J9: ='SA30'!N18 -> 26023200 | K9: ='SA30'!O18 -> 28451064 | L9: ='SA30'!P18 -> 30321637.97
A10: Government - capital | B10: 1 | C10: 6976887 | D10: 17229143 | E10: 26444451 | F10: 14283100 | G10: 13408100 | H10: 11350000 | I10: 11350000 | J10: ='SA30'!N23 -> 13056350 | K10: ='SA30'!O23 -> 13548751 | L10: ='SA30'!P23 -> 14100104.3
A11: Interest | C11: 662951 | D11: 390984 | E11: 179674 | F11: 843707 | G11: 903238 | H11: 0 | I11: 0 | J11: ='SA30'!N12+'SA30'!N13 -> 843707 | K11: ='SA30'!O12+'SA30'!O13 -> 896017.56 | L11: ='SA30'!P12+'SA30'!P13 -> 928033.28
A12: Dividends | E12: 0 | G12: 0 | H12: 0 | I12: 0 | J12: ='SA30'!N14 -> 0 | K12: ='SA30'!O14 -> 0 | L12: ='SA30'!P14 -> 0
A13: Payments
A14: Suppliers and employees | C14: -42491452 | D14: -35729335 | E14: -41203575 | F14: -49576322.62 | G14: -50256761 | H14: -80338866 | I14: -80338866 | J14: =-('SA30'!N35+'SA30'!N36+'SA30'!N38+'SA30'!N39+'SA30'!N40+'SA30'!N41+'SA30'!N44+'SA30'!N50) -> -49576322.62 | K14: =-('SA30'!O35+'SA30'!O36+'SA30'!O38+'SA30'!O39+'SA30'!O40+'SA30'!O41+'SA30'!O44+'SA30'!O50) -> -53471409.26 | L14: =-('SA30'!P35+'SA30'!P36+'SA30'!P38+'SA30'!P39+'SA30'!P40+'SA30'!P41+'SA30'!P44+'SA30'!P50) -> -56420500.38
A15: Finance charges | C15: -949946 | D15: -3377430 | E15: -5544196 | F15: -680438 | G15: -505624 | H15: -505624 | I15: -505624 | J15: =-('SA30'!N37) -> -680438 | K15: =-('SA30'!O37) -> -770893 | L15: =-('SA30'!P37) -> -816376
A16: Transfers and Grants | B16: 1 | G16: 0 | H16: -5310148 | I16: -5310148 | J16: =-('SA30'!N42+'SA30'!N43) -> 0 | K16: =-('SA30'!O42+'SA30'!O43) -> 0 | L16: =-('SA30'!P42+'SA30'!P43) -> 0
A17: NET CASH FROM/(USED) OPERATING ACTIVITIES | C17: =SUM(C6:C12)+SUM(C14:C16) -> 11617987 | D17: 13535071 | E17: 27183324 | F17: 12025354.22 | G17: 7824701 | H17: 8251868 | I17: 8251868 | J17: 12789904.22 | K17: 13236713.12 | L17: 14216405.41
A19: CASH FLOWS FROM INVESTING ACTIVITIES
A20: Receipts
A21: Proceeds on disposal of PPE | E21: 17360462 | F21: 5000000 | G21: 0 | H21: 0 | I21: 0 | J21: ='SA30'!N24+'SA30'!N25 -> 5305000 | K21: ='SA30'!O24+'SA30'!O25 -> 1600000 | L21: ='SA30'!P24+'SA30'!P25 -> 0
A22: Decrease (Increase) in non-current debtors | H22: 316926 | I22: 316926 | J22: ='SA30'!N29 -> 0 | K22: ='SA30'!O29 -> 0 | L22: ='SA30'!P29 -> 0
A23: Decrease (increase) other non-current receivables | H23: 0 | I23: 0 | J23: ='SA30'!N30 -> 0 | K23: ='SA30'!O30 -> 0 | L23: ='SA30'!P30 -> 0
A24: Decrease (increase) in non-current investments | H24: 0 | I24: 0 | J24: ='SA30'!N31 -> 0 | K24: ='SA30'!O31 -> 0 | L24: ='SA30'!P31 -> 0
A25: Payments
A26: Capital assets | C26: -8841988 | D26: -20630890 | E26: -20630890 | F26: -14323100 | G26: -13448100 | H26: -6908942 | I26: -6908942 | J26: =-('SA30'!N48) -> -13056350 | K26: =-('SA30'!O48) -> -13548751 | L26: =-('SA30'!P48) -> -14100104.3
A27: NET CASH FROM/(USED) INVESTING ACTIVITIES | C27: =SUM(C21:C24)+C26 -> -8841988 | D27: =SUM(D21:D24)+D26 -> -20630890 | E27: -3270428 | F27: -9323100 | G27: -13448100 | H27: -6592016 | I27: -6592016 | J27: -7751350 | K27: -11948751 | L27: -14100104.3
A29: CASH FLOWS FROM FINANCING ACTIVITIES
A30: Receipts
A31: Short term loans | E31: 0 | H31: 0 | I31: 0 | J31: ='SA30'!N26 -> 0 | K31: ='SA30'!O26 -> 0 | L31: ='SA30'!P26 -> 0
A32: Borrowing long term/refinancing | E32: 0 | H32: 0 | I32: 0 | J32: ='SA30'!N27 -> 0 | K32: ='SA30'!O27 -> 0 | L32: ='SA30'!P27 -> 0
A33: Increase (decrease) in consumer deposits | E33: 0 | H33: 125528 | I33: 125528 | J33: ='SA30'!N28 -> 0 | K33: ='SA30'!O28 -> 0 | L33: ='SA30'!P28 -> 0
A34: Payments
A35: Repayment of borrowing | C35: -571916 | D35: -1044440 | E35: -1044440 | F35: -270000 | G35: -270000 | H35: -1176498 | I35: -1176498 | J35: =-('SA30'!N49) -> -270000 | K35: =-('SA30'!O49) -> -270000 | L35: =-('SA30'!P49) -> -270000
A36: NET CASH FROM/(USED) FINANCING ACTIVITIES | C36: =SUM(C31:C33)+C35 -> -571916 | D36: =SUM(D31:D33)+D35 -> -1044440 | E36: -1044440 | F36: -270000 | G36: -270000 | H36: -1050970 | I36: -1050970 | J36: -270000 | K36: -270000 | L36: -270000
A38: NET INCREASE/ (DECREASE) IN CASH HELD | C38: =C17+C27+C36 -> 2204083 | D38: =D17+D27+D36 -> -8140259 | E38: 22868456 | F38: 2432254.22 | G38: -5893399 | H38: 608882 | I38: 608882 | J38: 4768554.22 | K38: 1017962.12 | L38: -153698.89
A39: Cash/cash equivalents at the year begin: | B39: 2 | C39: 6658715 | D39: 8862798 | E39: 722539 | F39: 9952000 | G39: 10439309 | H39: 182868 | I39: 182868 | J39: ='SA30'!N54 -> 0 | K39: =J40 -> 4768554.22 | L39: =K40 -> 5786516.34
A40: Cash/cash equivalents at the year end: | B40: 2 | C40: =C38+C39 -> 8862798 | D40: =D38+D39 -> 722539 | E40: =E38+E39 -> 23590995 | F40: =F38+F39 -> 12384254.22 | G40: 4545910 | H40: 791750 | I40: 791750 | J40: 4768554.22 | K40: 5786516.34 | L40: 5632817.45
A41: =head27a -> References
A42: 1. Local/District municipalities to include transfers from/to District/Local Municipalities
A43: 2. Cash equivalents includes investments with maturities of 3 months or less
A44: 3. The MTREF is populated directly from SA30.
A45: Total receipts | C45: =SUM(C6:C12)+SUM(C21:C23) -> 55059385 | D45: 52641836 | E45: 91291557 | F45: 67282114.84 | G45: 58587086 | H45: 94723432 | I45: 94723432 | J45: 68351664.84 | K45: 69079015.38 | L45: 71453281.79
A46: Total payments | C46: =SUM(C14:C16)+C26 -> -52283386 | D46: =SUM(D14:D16)+D26 -> -59737655 | E46: -67378661 | F46: -64579860.62 | G46: -64210485 | H46: -93063580 | I46: -93063580 | J46: -63313110.62 | K46: -67791053.26 | L46: -71336980.68
C47: =C45+C46 -> 2775999 | D47: =D45+D46 -> -7095819 | E47: 23912896 | F47: 2702254.22 | G47: -5623399 | H47: 1659852 | I47: 1659852 | J47: 5038554.22 | K47: 1287962.12 | L47: 116301.11
A48: Borrowings & investments & c.deposits | C48: =C24+C32+C33 -> 0 | D48: =D24+D32+D33 -> 0 | E48: 0 | F48: 0 | G48: 0 | H48: 125528 | I48: 125528 | J48: 0 | K48: 0 | L48: 0
A49: =A35 -> Repayment of borrowing | C49: =C35 -> -571916 | D49: =D35 -> -1044440 | E49: -1044440 | F49: -270000 | G49: -270000 | H49: -1176498 | I49: =I35 -> -1176498 | J49: -270000 | K49: -270000 | L49: -270000
C50: =C47+C48+C49 -> 2204083 | D50: =D47+D48+D49 -> -8140259 | E50: 22868456 | F50: 2432254.22 | G50: -5893399 | H50: 608882 | I50: 608882 | J50: 4768554.22 | K50: 1017962.12 | L50: -153698.89
C51: =C38-C50 -> 0 | D51: 0 | E51: 0 | F51: 0 | G51: 0 | H51: 0 | I51: 0 | J51: 0 | K51: -7.450580597e-09 | L51: -3.725290298e-09

Sheet A8-ResRecon
A1: =muni&" - "&Approve8 -> NC076 Thembelihle - Table A8 Cash backed reserves/accumulated surplus reconciliation
A2: =desc -> Description | B2: =head27 -> Ref | C2: =head1b -> 2013/14 | D2: =head1A -> 2014/15 | E2: =Head1 -> 2015/16 | F2: =Head2 -> Current Year 2016/17 | J2: =Head3 -> 2017/18 Medium Term Revenue & Expenditure Framework
A3: R thousand | C3: =Head5 -> Audited Outcome | D3: =Head5 -> Audited Outcome | E3: =Head5 -> Audited Outcome | F3: =Head6 -> Original Budget | G3: =Head7 -> Adjusted Budget | H3: =Head8 -> Full Year Forecast | I3: =Head5b -> Pre-audit outcome | J3: =Head9 -> Budget Year 2017/18 | K3: =Head10 -> Budget Year +1 2018/19 | L3: =Head11 -> Budget Year +2 2019/20
A4: Cash and investments available
A5: =LEFT('A7-CFlow'!A40,37) -> Cash/cash equivalents at the year end | B5: 1 | C5: ='A7-CFlow'!C40 -> 8862798 | D5: ='A7-CFlow'!D40 -> 722539 | E5: ='A7-CFlow'!E40 -> 23590995 | F5: ='A7-CFlow'!F40 -> 12384254.22 | G5: ='A7-CFlow'!G40 -> 4545910 | H5: ='A7-CFlow'!H40 -> 791750 | I5: ='A7-CFlow'!I40 -> 791750 | J5: ='A7-CFlow'!J40 -> 4768554.22 | K5: ='A7-CFlow'!K40 -> 5786516.34 | L5: ='A7-CFlow'!L40 -> 5632817.45
A6: Other current investments > 90 days | C6: ='A6-FinPos'!C6+'A6-FinPos'!C7-'A6-FinPos'!C29-'A8-ResRecon'!C5 -> 0 | D6: ='A6-FinPos'!D6+'A6-FinPos'!D7-'A6-FinPos'!D29-'A8-ResRecon'!D5 -> 0 | E6: ='A6-FinPos'!E6+'A6-FinPos'!E7-'A6-FinPos'!E29-'A8-ResRecon'!E5 -> -20330003 | F6: ='A6-FinPos'!F6+'A6-FinPos'!F7-'A6-FinPos'!F29-'A8-ResRecon'!F5 -> 39999.78 | G6: ='A6-FinPos'!G6+'A6-FinPos'!G7-'A6-FinPos'!G29-'A8-ResRecon'!G5 -> 3974225 | H6: ='A6-FinPos'!H6+'A6-FinPos'!H7-'A6-FinPos'!H29-'A8-ResRecon'!H5 -> 2664901.52 | I6: ='A6-FinPos'!I6+'A6-FinPos'!I7-'A6-FinPos'!I29-'A8-ResRecon'!I5 -> 2664901.52 | J6: ='A6-FinPos'!J6+'A6-FinPos'!J7-'A6-FinPos'!J29-'A8-ResRecon'!J5 -> 3407452.78 | K6: ='A6-FinPos'!K6+'A6-FinPos'!K7-'A6-FinPos'!K29-'A8-ResRecon'!K5 -> -1651495.34 | L6: ='A6-FinPos'!L6+'A6-FinPos'!L7-'A6-FinPos'!L29-'A8-ResRecon'!L5 -> 487013.63
A7: ='A6-FinPos'!A14&" - "&'A6-FinPos'!A16 -> Non current assets - Investments | B7: 1 | C7: ='A6-FinPos'!C16 -> 0 | D7: ='A6-FinPos'!D16 -> 0 | E7: ='A6-FinPos'!E16 -> 0 | F7: ='A6-FinPos'!F16 -> 0 | G7: ='A6-FinPos'!G16 -> 0 | H7: ='A6-FinPos'!H16 -> 0 | I7: ='A6-FinPos'!I16 -> 0 | J7: ='A6-FinPos'!J16 -> 0 | K7: ='A6-FinPos'!K16 -> 0 | L7: ='A6-FinPos'!L16 -> 0
A8: Cash and investments available: | C8: =SUM(C5:C7) -> 8862798 | D8: =SUM(D5:D7) -> 722539 | E8: 3260992 | F8: 12424254 | G8: 8520135 | H8: 3456651.52 | I8: 3456651.52 | J8: 8176007 | K8: 4135021 | L8: 6119831.08
A10: Application of cash and investments
A11: ='SA3'!A36 -> Unspent conditional transfers | C11: ='SA3'!C36 -> 11620201 | D11: ='SA3'!D36 -> 6785456 | E11: ='SA3'!E36 -> 1389682 | F11: ='SA3'!F36 -> 0 | G11: ='SA3'!G36 -> 0 | H11: ='SA3'!H36 -> 0 | I11: ='SA3'!I36 -> 0 | J11: ='SA3'!J36 -> 0 | K11: ='SA3'!K36 -> 0 | L11: ='SA3'!L36 -> 0
A12: Unspent borrowing | C12: ='SA17'!C67 -> 0 | D12: ='SA17'!D67 -> 0 | E12: ='SA17'!E67 -> 0 | F12: ='SA17'!F67 -> 0 | G12: ='SA17'!G67 -> 0 | H12: ='SA17'!H67 -> 0 | J12: ='SA17'!I67 -> 0 | K12: ='SA17'!J67 -> 0 | L12: ='SA17'!K67 -> 0
A13: Statutory requirements | B13: 2
A14: Other working capital requirements | B14: 3 | C14: =-C32 -> 19254430 | D14: =-D32 -> 30485991 | E14: 45543398 | F14: =-F32 -> 10511000 | G14: 15878000 | H14: 11986000 | I14: 11986000 | J14: 34134000 | K14: 10101000 | L14: 8241000
A15: Other provisions
A16: Long term investments committed | B16: 4 | C16: =C52 -> 0 | D16: =D52 -> 0 | E16: 0 | F16: 0 | G16: 0 | H16: 0 | I16: 0 | J16: 0 | K16: 0 | L16: 0
A17: Reserves to be backed by cash/investments | B17: 5
A18: ="Total "&A10&":" -> Total Application of cash and investments: | C18: =SUM(C11:C17) -> 30874631 | D18: =SUM(D11:D17) -> 37271447 | E18: 46933080 | F18: 10511000 | G18: 15878000 | H18: 11986000 | I18: 11986000 | J18: 34134000 | K18: 10101000 | L18: 8241000
A19: Surplus(shortfall) | C19: =C8-C18 -> -22011833 | D19: =D8-D18 -> -36548908 | E19: -43672088 | F19: 1913254 | G19: -7357865 | H19: -8529348.48 | I19: -8529348.48 | J19: -25957993 | K19: -5965979 | L19: -2121168.92
A20: =head27a -> References
A21: 1. Must reconcile with Budgeted Cash Flows
A22: 2. For example: VAT, taxation
A23: 3. Council approval for policy required - include sufficient working capital (e.g. allowing for a % of current debtors > 90 days as uncollectable)
A24: 4. For example: sinking fund requirements for borrowing
A25: 5. Council approval required for each reserve created and basis of cash backing of reserves
A28: Other working capital requirements
A29: Debtors | C29: =IF(ISERROR(ROUND(C35*C36,-3)),0,(ROUND(C35*C36,-3))) -> 5227000 | D29: =IF(ISERROR(ROUND(D35*D36,-3)),0,(ROUND(D35*D36,-3))) -> 4038000 | E29: 5215000 | F29: 13489000 | G29: 8122000 | H29: 12014000 | I29: 12014000 | J29: 10866000 | K29: 11899000 | L29: 13759000
A31: Creditors due | C31: ='SA3'!C35 -> 24481430 | D31: ='SA3'!D35 -> 34523991 | E31: ='SA3'!E35 -> 50758398 | F31: ='SA3'!F35 -> 24000000 | G31: ='SA3'!G35 -> 24000000 | H31: ='SA3'!H35 -> 24000000 | I31: ='SA3'!I35 -> 24000000 | J31: ='SA3'!J35 -> 45000000 | K31: ='SA3'!K35 -> 22000000 | L31: ='SA3'!L35 -> 22000000
A32: Total | C32: =C29-C31 -> -19254430 | D32: =D29-D31 -> -30485991 | E32: -45543398 | F32: -10511000 | G32: -15878000 | H32: -11986000 | I32: -11986000 | J32: -34134000 | K32: -10101000 | L32: -8241000
A34: Debtors collection assumptions
A35: Balance outstanding - debtors | C35: ='A6-FinPos'!C8+'A6-FinPos'!C9+'A6-FinPos'!C15 -> 4596220 | D35: ='A6-FinPos'!D8+'A6-FinPos'!D9+'A6-FinPos'!D15 -> 7112232 | E35: ='A6-FinPos'!E8+'A6-FinPos'!E9+'A6-FinPos'!E15 -> 5335121 | F35: ='A6-FinPos'!F8+'A6-FinPos'!F9+'A6-FinPos'!F15 -> 16726882 | G35: ='A6-FinPos'!G8+'A6-FinPos'!G9+'A6-FinPos'!G15 -> 13843866.37 | H35: ='A6-FinPos'!H8+'A6-FinPos'!H9+'A6-FinPos'!H15 -> 13494676.37 | I35: ='A6-FinPos'!I8+'A6-FinPos'!I9+'A6-FinPos'!I15 -> 13494676.37 | J35: ='A6-FinPos'!J8+'A6-FinPos'!J9+'A6-FinPos'!J15 -> 16726882 | K35: ='A6-FinPos'!K8+'A6-FinPos'!K9+'A6-FinPos'!K15 -> 19132166 | L35: ='A6-FinPos'!L8+'A6-FinPos'!L9+'A6-FinPos'!L15 -> 22906981.2
A36: Estimate of debtors collection rate | C36: =IF(ISERROR('SA10'!D10),0,('SA10'!D10)) -> 1.137252269 | D36: =IF(ISERROR('SA10'!E10),0,('SA10'!E10)) -> 0.5677240603 | E36: =IF(ISERROR('SA10'!F10),0,('SA10'!F10)) -> 0.977451574 | F36: =IF(ISERROR('SA10'!G10),0,('SA10'!G10)) -> 0.8064167025 | G36: =IF(ISERROR('SA10'!H10),0,('SA10'!H10)) -> 0.586697694 | H36: =IF(ISERROR('SA10'!I10),0,('SA10'!I10)) -> 0.8902616296 | I36: =IF(ISERROR('SA10'!J10),0,('SA10'!J10)) -> 0.8902616296 | J36: =IF(ISERROR('SA10'!K10),0,('SA10'!K10)) -> 0.6496081903 | K36: =IF(ISERROR('SA10'!L10),0,('SA10'!L10)) -> 0.621926401 | L36: =IF(ISERROR('SA10'!M10),0,('SA10'!M10)) -> 0.6006421909
K39: `
A40: =A16 -> Long term investments committed
A41: Balance (Insert description; eg sinking fund)
C52: =SUM(C41:C51) -> 0 | D52: =SUM(D41:D51) -> 0 | E52: 0 | F52: 0 | G52: 0 | H52: 0 | I52: 0 | J52: 0 | K52: 0 | L52: 0
A53: =A17 -> Reserves to be backed by cash/investments
A54: ='SA3'!A64 -> Housing Development Fund | C54: ='SA3'!C64 -> 0 | D54: ='SA3'!D64 -> 0 | E54: ='SA3'!E64 -> 0 | F54: ='SA3'!F64 -> 0 | G54: ='SA3'!G64 -> 0 | H54: ='SA3'!H64 -> 0 | I54: ='SA3'!I64 -> 0 | J54: ='SA3'!J64 -> 0 | K54: ='SA3'!K64 -> 0 | L54: ='SA3'!L64 -> 0
A55: ='SA3'!A65 -> Capital replacement
A56: ='SA3'!A66 -> Self-insurance
A57: Other (list)
C67: =SUM(C54:C65) -> 0 | D67: 0 | E67: 0 | F67: 0 | G67: 0 | H67: 0 | I67: 0 | J67: 0 | K67: 0 | L67: 0

Sheet A9-Asset
A1: =muni&" - "&Approve9 -> NC076 Thembelihle - Table A9 Asset Management
A2: =desc -> Description | B2: =head27 -> Ref | C2: =head1b -> 2013/14 | D2: =head1A -> 2014/15 | E2: =Head1 -> 2015/16 | F2: =Head2 -> Current Year 2016/17 | I2: =Head3 -> 2017/18 Medium Term Revenue & Expenditure Framework
A3: R thousand | C3: =Head5 -> Audited Outcome | D3: =Head5 -> Audited Outcome | E3: =Head5 -> Audited Outcome | F3: =Head6 -> Original Budget | G3: =Head7 -> Adjusted Budget | H3: =Head8 -> Full Year Forecast | I3: =Head9 -> Budget Year 2017/18 | J3: =Head10 -> Budget Year +1 2018/19 | K3: =Head11 -> Budget Year +2 2019/20
A4: CAPITAL EXPENDITURE
A5: Total New Assets | B5: 1 | C5: =C15+C18+C19+C22+C25+C26+SUM(C29:C35) -> 3047051 | D5: =D15+D18+D19+D22+D25+D26+SUM(D29:D35) -> 19834556 | E5: 26015331 | F5: 14323100 | G5: 13933100 | H5: 13973100 | I5: 13056350 | J5: 13548751 | K5: 14100104.3
A6: Roads Infrastructure | C6: =SA34a!C7 -> 0 | D6: =SA34a!D7 -> 0 | E6: =SA34a!E7 -> 13368568 | F6: =SA34a!F7 -> 8567100 | G6: =SA34a!G7 -> 7692100 | H6: =SA34a!H7 -> 7692100 | I6: =SA34a!I7 -> 9056350 | J6: =SA34a!J7 -> 9308751 | K6: =SA34a!K7 -> 9605704.3
A7: Storm water Infrastructure | C7: =SA34a!C12 -> 0 | D7: =SA34a!D12 -> 0 | E7: =SA34a!E12 -> 0 | F7: =SA34a!F12 -> 0 | G7: =SA34a!G12 -> 0 | H7: =SA34a!H12 -> 0 | I7: =SA34a!I12 -> 0 | J7: =SA34a!J12 -> 0 | K7: =SA34a!K12 -> 0
A8: Electrical Infrastructure | C8: =SA34a!C16 -> 1080666 | D8: =SA34a!D16 -> 1053994 | E8: =SA34a!E16 -> 0 | F8: =SA34a!F16 -> 0 | G8: =SA34a!G16 -> 0 | H8: =SA34a!H16 -> 0 | I8: =SA34a!I16 -> 0 | J8: =SA34a!J16 -> 0 | K8: =SA34a!K16 -> 0
A9: Water Supply Infrastructure | C9: =SA34a!C26 -> 1273678 | D9: =SA34a!D26 -> 18682611 | E9: =SA34a!E26 -> 12646763 | F9: =SA34a!F26 -> 5716000 | G9: =SA34a!G26 -> 6281000 | H9: =SA34a!H26 -> 6281000 | I9: =SA34a!I26 -> 4000000 | J9: =SA34a!J26 -> 4240000 | K9: =SA34a!K26 -> 4494400
A10: Sanitation Infrastructure | C10: =SA34a!C37 -> 681543 | D10: =SA34a!D37 -> 11164 | E10: =SA34a!E37 -> 0 | F10: =SA34a!F37 -> 0 | G10: =SA34a!G37 -> 0 | H10: =SA34a!H37 -> 0 | I10: =SA34a!I37 -> 0 | J10: =SA34a!J37 -> 0 | K10: =SA34a!K37 -> 0
A11: Solid Waste Infrastructure | C11: =SA34a!C44 -> 11164 | D11: =SA34a!D44 -> 0 | E11: =SA34a!E44 -> 0 | F11: =SA34a!F44 -> 0 | G11: =SA34a!G44 -> 0 | H11: =SA34a!H44 -> 0 | I11: =SA34a!I44 -> 0 | J11: =SA34a!J44 -> 0 | K11: =SA34a!K44 -> 0
A12: Rail Infrastructure | C12: =SA34a!C52 -> 0 | D12: =SA34a!D52 -> 0 | E12: =SA34a!E52 -> 0 | F12: =SA34a!F52 -> 0 | G12: =SA34a!G52 -> 0 | H12: =SA34a!H52 -> 0 | I12: =SA34a!I52 -> 0 | J12: =SA34a!J52 -> 0 | K12: =SA34a!K52 -> 0
A13: Coastal Infrastructure | C13: =SA34a!C62 -> 0 | D13: =SA34a!D62 -> 0 | E13: =SA34a!E62 -> 0 | F13: =SA34a!F62 -> 0 | G13: =SA34a!G62 -> 0 | H13: =SA34a!H62 -> 0 | I13: =SA34a!I62 -> 0 | J13: =SA34a!J62 -> 0 | K13: =SA34a!K62 -> 0
A14: Information and Communication Infrastructure | C14: =SA34a!C68 -> 0 | D14: =SA34a!D68 -> 0 | E14: =SA34a!E68 -> 0 | F14: =SA34a!F68 -> 0 | G14: =SA34a!G68 -> 0 | H14: =SA34a!H68 -> 0 | I14: =SA34a!I68 -> 0 | J14: =SA34a!J68 -> 0 | K14: =SA34a!K68 -> 0
A15: Infrastructure | C15: =SUM(C6:C14) -> 3047051 | D15: =SUM(D6:D14) -> 19747769 | E15: 26015331 | F15: 14283100 | G15: 13973100 | H15: 13973100 | I15: 13056350 | J15: 13548751 | K15: 14100104.3
A16: Community Facilities | C16: =SA34a!C75 -> 0 | D16: =SA34a!D75 -> 0 | E16: =SA34a!E75 -> 0 | F16: =SA34a!F75 -> 0 | G16: =SA34a!G75 -> 0 | H16: =SA34a!H75 -> 0 | I16: =SA34a!I75 -> 0 | J16: =SA34a!J75 -> 0 | K16: =SA34a!K75 -> 0
A17: Sport and Recreation Facilities | C17: =SA34a!C98 -> 0 | D17: =SA34a!D98 -> 0 | E17: =SA34a!E98 -> 0 | F17: =SA34a!F98 -> 0 | G17: =SA34a!G98 -> 0 | H17: =SA34a!H98 -> 0 | I17: =SA34a!I98 -> 0 | J17: =SA34a!J98 -> 0 | K17: =SA34a!K98 -> 0
A18: Community Assets | C18: =SUM(C16:C17) -> 0 | D18: =SUM(D16:D17) -> 0 | E18: 0 | F18: 0 | G18: 0 | H18: 0 | I18: 0 | J18: 0 | K18: 0
A19: Heritage Assets | C19: =SA34a!C103 -> 0 | D19: =SA34a!D103 -> 0 | E19: =SA34a!E103 -> 0 | F19: =SA34a!F103 -> 0 | G19: =SA34a!G103 -> 0 | H19: =SA34a!H103 -> 0 | I19: =SA34a!I103 -> 0 | J19: =SA34a!J103 -> 0 | K19: =SA34a!K103 -> 0
A20: Revenue Generating | C20: =SA34a!C111 -> 0 | D20: =SA34a!D111 -> 0 | E20: =SA34a!E111 -> 0 | F20: =SA34a!F111 -> 0 | G20: =SA34a!G111 -> 0 | H20: =SA34a!H111 -> 0 | I20: =SA34a!I111 -> 0 | J20: =SA34a!J111 -> 0 | K20: =SA34a!K111 -> 0
A21: Non-revenue Generating | C21: =SA34a!C114 -> 0 | D21: =SA34a!D114 -> 0 | E21: =SA34a!E114 -> 0 | F21: =SA34a!F114 -> 0 | G21: =SA34a!G114 -> 0 | H21: =SA34a!H114 -> 0 | I21: =SA34a!I114 -> 0 | J21: =SA34a!J114 -> 0 | K21: =SA34a!K114 -> 0
A22: Investment properties | C22: =SUM(C20:C21) -> 0 | D22: =SUM(D20:D21) -> 0 | E22: 0 | F22: 0 | G22: 0 | H22: 0 | I22: 0 | J22: 0 | K22: 0
A23: Operational Buildings | C23: =SA34a!C119 -> 0 | D23: =SA34a!D119 -> 0 | E23: =SA34a!E119 -> 0 | F23: =SA34a!F119 -> 0 | G23: =SA34a!G119 -> 0 | H23: =SA34a!H119 -> 0 | I23: =SA34a!I119 -> 0 | J23: =SA34a!J119 -> 0 | K23: =SA34a!K119 -> 0
A24: Housing | C24: =SA34a!C131 -> 0 | D24: =SA34a!D131 -> 0 | E24: =SA34a!E131 -> 0 | F24: =SA34a!F131 -> 0 | G24: =SA34a!G131 -> 0 | H24: =SA34a!H131 -> 0 | I24: =SA34a!I131 -> 0 | J24: =SA34a!J131 -> 0 | K24: =SA34a!K131 -> 0
A25: Other Assets | C25: =SUM(C23:C24) -> 0 | D25: =SUM(D23:D24) -> 0 | E25: 0 | F25: 0 | G25: 0 | H25: 0 | I25: 0 | J25: 0 | K25: 0
A26: Biological or Cultivated Assets | C26: =SA34a!C136 -> 0 | D26: =SA34a!D136 -> 0 | E26: =SA34a!E136 -> 0 | F26: =SA34a!F136 -> 0 | G26: =SA34a!G136 -> 0 | H26: =SA34a!H136 -> 0 | I26: =SA34a!I136 -> 0 | J26: =SA34a!J136 -> 0 | K26: =SA34a!K136 -> 0
A27: Servitudes | C27: =SA34a!C140 -> 0 | D27: =SA34a!D140 -> 0 | E27: =SA34a!E140 -> 0 | F27: =SA34a!F140 -> 0 | G27: =SA34a!G140 -> 0 | H27: =SA34a!H140 -> 0 | I27: =SA34a!I140 -> 0 | J27: =SA34a!J140 -> 0 | K27: =SA34a!K140 -> 0
A28: Licences and Rights | C28: =SA34a!C141 -> 0 | D28: =SA34a!D141 -> 86787 | E28: =SA34a!E141 -> 0 | F28: =SA34a!F141 -> 0 | G28: =SA34a!G141 -> 0 | H28: =SA34a!H141 -> 0 | I28: =SA34a!I141 -> 0 | J28: =SA34a!J141 -> 0 | K28: =SA34a!K141 -> 0
A29: Intangible Assets | C29: =SUM(C27:C28) -> 0 | D29: =SUM(D27:D28) -> 86787 | E29: 0 | F29: 0 | G29: 0 | H29: 0 | I29: 0 | J29: 0 | K29: 0
A30: Computer Equipment | C30: =SA34a!C149 -> 0 | D30: =SA34a!D149 -> 0 | E30: =SA34a!E149 -> 0 | F30: =SA34a!F149 -> 40000 | G30: =SA34a!G149 -> -40000 | H30: =SA34a!H149 -> 0 | I30: =SA34a!I149 -> 0 | J30: =SA34a!J149 -> 0 | K30: =SA34a!K149 -> 0
A31: Furniture and Office Equipment | C31: =SA34a!C152 -> 0 | D31: =SA34a!D152 -> 0 | E31: =SA34a!E152 -> 0 | F31: =SA34a!F152 -> 0 | G31: =SA34a!G152 -> 0 | H31: =SA34a!H152 -> 0 | I31: =SA34a!I152 -> 0 | J31: =SA34a!J152 -> 0 | K31: =SA34a!K152 -> 0
A32: Machinery and Equipment | C32: =SA34a!C155 -> 0 | D32: =SA34a!D155 -> 0 | E32: =SA34a!E155 -> 0 | F32: =SA34a!F155 -> 0 | G32: =SA34a!G155 -> 0 | H32: =SA34a!H155 -> 0 | I32: =SA34a!I155 -> 0 | J32: =SA34a!J155 -> 0 | K32: =SA34a!K155 -> 0
A33: Transport Assets | C33: =SA34a!C158 -> 0 | D33: =SA34a!D158 -> 0 | E33: =SA34a!E158 -> 0 | F33: =SA34a!F158 -> 0 | G33: =SA34a!G158 -> 0 | H33: =SA34a!H158 -> 0 | I33: =SA34a!I158 -> 0 | J33: =SA34a!J158 -> 0 | K33: =SA34a!K158 -> 0
A34: Libraries | C34: =SA34a!C161 -> 0 | D34: =SA34a!D161 -> 0 | E34: =SA34a!E161 -> 0 | F34: =SA34a!F161 -> 0 | G34: =SA34a!G161 -> 0 | H34: =SA34a!H161 -> 0 | I34: =SA34a!I161 -> 0 | J34: =SA34a!J161 -> 0 | K34: =SA34a!K161 -> 0
A35: Zoo's, Marine and Non-biological Animals | C35: =SA34a!C164 -> 0 | D35: =SA34a!D164 -> 0 | E35: =SA34a!E164 -> 0 | F35: =SA34a!F164 -> 0 | G35: =SA34a!G164 -> 0 | H35: =SA34a!H164 -> 0 | I35: =SA34a!I164 -> 0 | J35: =SA34a!J164 -> 0 | K35: =SA34a!K164 -> 0
A37: Total Renewal of Existing Assets | B37: 2 | C37: =C47+C50+C51+C54+C57+C58+SUM(C61:C67) -> 0 | D37: =D47+D50+D51+D54+D57+D58+SUM(D61:D67) -> 0 | E37: 0 | F37: 0 | G37: 0 | H37: 0 | I37: 0 | J37: 0 | K37: 0
A38: Roads Infrastructure | C38: =SA34b!C7 -> 0 | D38: =SA34b!D7 -> 0 | E38: =SA34b!E7 -> 0 | F38: =SA34b!F7 -> 0 | G38: =SA34b!G7 -> 0 | H38: =SA34b!H7 -> 0 | I38: =SA34b!I7 -> 0 | J38: =SA34b!J7 -> 0 | K38: =SA34b!K7 -> 0
A39: Storm water Infrastructure | C39: =SA34b!C12 -> 0 | D39: =SA34b!D12 -> 0 | E39: =SA34b!E12 -> 0 | F39: =SA34b!F12 -> 0 | G39: =SA34b!G12 -> 0 | H39: =SA34b!H12 -> 0 | I39: =SA34b!I12 -> 0 | J39: =SA34b!J12 -> 0 | K39: =SA34b!K12 -> 0
A40: Electrical Infrastructure | C40: =SA34b!C16 -> 0 | D40: =SA34b!D16 -> 0 | E40: =SA34b!E16 -> 0 | F40: =SA34b!F16 -> 0 | G40: =SA34b!G16 -> 0 | H40: =SA34b!H16 -> 0 | I40: =SA34b!I16 -> 0 | J40: =SA34b!J16 -> 0 | K40: =SA34b!K16 -> 0
A41: Water Supply Infrastructure | C41: =SA34b!C26 -> 0 | D41: =SA34b!D26 -> 0 | E41: =SA34b!E26 -> 0 | F41: =SA34b!F26 -> 0 | G41: =SA34b!G26 -> 0 | H41: =SA34b!H26 -> 0 | I41: =SA34b!I26 -> 0 | J41: =SA34b!J26 -> 0 | K41: =SA34b!K26 -> 0
A42: Sanitation Infrastructure | C42: =SA34b!C37 -> 0 | D42: =SA34b!D37 -> 0 | E42: =SA34b!E37 -> 0 | F42: =SA34b!F37 -> 0 | G42: =SA34b!G37 -> 0 | H42: =SA34b!H37 -> 0 | I42: =SA34b!I37 -> 0 | J42: =SA34b!J37 -> 0 | K42: =SA34b!K37 -> 0
A43: Solid Waste Infrastructure | C43: =SA34b!C44 -> 0 | D43: =SA34b!D44 -> 0 | E43: =SA34b!E44 -> 0 | F43: =SA34b!F44 -> 0 | G43: =SA34b!G44 -> 0 | H43: =SA34b!H44 -> 0 | I43: =SA34b!I44 -> 0 | J43: =SA34b!J44 -> 0 | K43: =SA34b!K44 -> 0
A44: Rail Infrastructure | C44: =SA34b!C52 -> 0 | D44: =SA34b!D52 -> 0 | E44: =SA34b!E52 -> 0 | F44: =SA34b!F52 -> 0 | G44: =SA34b!G52 -> 0 | H44: =SA34b!H52 -> 0 | I44: =SA34b!I52 -> 0 | J44: =SA34b!J52 -> 0 | K44: =SA34b!K52 -> 0
A45: Coastal Infrastructure | C45: =SA34b!C62 -> 0 | D45: =SA34b!D62 -> 0 | E45: =SA34b!E62 -> 0 | F45: =SA34b!F62 -> 0 | G45: =SA34b!G62 -> 0 | H45: =SA34b!H62 -> 0 | I45: =SA34b!I62 -> 0 | J45: =SA34b!J62 -> 0 | K45: =SA34b!K62 -> 0
A46: Information and Communication Infrastructure | C46: =SA34b!C68 -> 0 | D46: =SA34b!D68 -> 0 | E46: =SA34b!E68 -> 0 | F46: =SA34b!F68 -> 0 | G46: =SA34b!G68 -> 0 | H46: =SA34b!H68 -> 0 | I46: =SA34b!I68 -> 0 | J46: =SA34b!J68 -> 0 | K46: =SA34b!K68 -> 0
A47: Infrastructure | C47: =SUM(C38:C46) -> 0 | D47: =SUM(D38:D46) -> 0 | E47: 0 | F47: 0 | G47: 0 | H47: 0 | I47: 0 | J47: 0 | K47: 0
A48: Community Facilities | C48: =SA34b!C75 -> 0 | D48: =SA34b!D75 -> 0 | E48: =SA34b!E75 -> 0 | F48: =SA34b!F75 -> 0 | G48: =SA34b!G75 -> 0 | H48: =SA34b!H75 -> 0 | I48: =SA34b!I75 -> 0 | J48: =SA34b!J75 -> 0 | K48: =SA34b!K75 -> 0
A49: Sport and Recreation Facilities | C49: =SA34b!C98 -> 0 | D49: =SA34b!D98 -> 0 | E49: =SA34b!E98 -> 0 | F49: =SA34b!F98 -> 0 | G49: =SA34b!G98 -> 0 | H49: =SA34b!H98 -> 0 | I49: =SA34b!I98 -> 0 | J49: =SA34b!J98 -> 0 | K49: =SA34b!K98 -> 0
A50: Community Assets | C50: =SUM(C48:C49) -> 0 | D50: =SUM(D48:D49) -> 0 | E50: 0 | F50: 0 | G50: 0 | H50: 0 | I50: 0 | J50: 0 | K50: 0
A51: Heritage Assets | C51: =SA34b!C103 -> 0 | D51: =SA34b!D103 -> 0 | E51: =SA34b!E103 -> 0 | F51: =SA34b!F103 -> 0 | G51: =SA34b!G103 -> 0 | H51: =SA34b!H103 -> 0 | I51: =SA34b!I103 -> 0 | J51: =SA34b!J103 -> 0 | K51: =SA34b!K103 -> 0
A52: Revenue Generating | C52: =SA34b!C111 -> 0 | D52: =SA34b!D111 -> 0 | E52: =SA34b!E111 -> 0 | F52: =SA34b!F111 -> 0 | G52: =SA34b!G111 -> 0 | H52: =SA34b!H111 -> 0 | I52: =SA34b!I111 -> 0 | J52: =SA34b!J111 -> 0 | K52: =SA34b!K111 -> 0
A53: Non-revenue Generating | C53: =SA34b!C114 -> 0 | D53: =SA34b!D114 -> 0 | E53: =SA34b!E114 -> 0 | F53: =SA34b!F114 -> 0 | G53: =SA34b!G114 -> 0 | H53: =SA34b!H114 -> 0 | I53: =SA34b!I114 -> 0 | J53: =SA34b!J114 -> 0 | K53: =SA34b!K114 -> 0
A54: Investment properties | C54: =SUM(C52:C53) -> 0 | D54: =SUM(D52:D53) -> 0 | E54: 0 | F54: 0 | G54: 0 | H54: 0 | I54: 0 | J54: 0 | K54: 0
A55: Operational Buildings | C55: =SA34b!C119 -> 0 | D55: =SA34b!D119 -> 0 | E55: =SA34b!E119 -> 0 | F55: =SA34b!F119 -> 0 | G55: =SA34b!G119 -> 0 | H55: =SA34b!H119 -> 0 | I55: =SA34b!I119 -> 0 | J55: =SA34b!J119 -> 0 | K55: =SA34b!K119 -> 0
A56: Housing | C56: =SA34b!C131 -> 0 | D56: =SA34b!D131 -> 0 | E56: =SA34b!E131 -> 0 | F56: =SA34b!F131 -> 0 | G56: =SA34b!G131 -> 0 | H56: =SA34b!H131 -> 0 | I56: =SA34b!I131 -> 0 | J56: =SA34b!J131 -> 0 | K56: =SA34b!K131 -> 0
A57: Other Assets | C57: =SUM(C55:C56) -> 0 | D57: =SUM(D55:D56) -> 0 | E57: 0 | F57: 0 | G57: 0 | H57: 0 | I57: 0 | J57: 0 | K57: 0
A58: Biological or Cultivated Assets | C58: =SA34b!C136 -> 0 | D58: =SA34b!D136 -> 0 | E58: =SA34b!E136 -> 0 | F58: =SA34b!F136 -> 0 | G58: =SA34b!G136 -> 0 | H58: =SA34b!H136 -> 0 | I58: =SA34b!I136 -> 0 | J58: =SA34b!J136 -> 0 | K58: =SA34b!K136 -> 0
A59: Servitudes | C59: =SA34b!C140 -> 0 | D59: =SA34b!D140 -> 0 | E59: =SA34b!E140 -> 0 | F59: =SA34b!F140 -> 0 | G59: =SA34b!G140 -> 0 | H59: =SA34b!H140 -> 0 | I59: =SA34b!I140 -> 0 | J59: =SA34b!J140 -> 0 | K59: =SA34b!K140 -> 0
A60: Licences and Rights | C60: =SA34b!C141 -> 0 | D60: =SA34b!D141 -> 0 | E60: =SA34b!E141 -> 0 | F60: =SA34b!F141 -> 0 | G60: =SA34b!G141 -> 0 | H60: =SA34b!H141 -> 0 | I60: =SA34b!I141 -> 0 | J60: =SA34b!J141 -> 0 | K60: =SA34b!K141 -> 0
A61: Intangible Assets | C61: =SUM(C59:C60) -> 0 | D61: =SUM(D59:D60) -> 0 | E61: 0 | F61: 0 | G61: 0 | H61: 0 | I61: 0 | J61: 0 | K61: 0
A62: Computer Equipment | C62: =SA34b!C149 -> 0 | D62: =SA34b!D149 -> 0 | E62: =SA34b!E149 -> 0 | F62: =SA34b!F149 -> 0 | G62: =SA34b!G149 -> 0 | H62: =SA34b!H149 -> 0 | I62: =SA34b!I149 -> 0 | J62: =SA34b!J149 -> 0 | K62: =SA34b!K149 -> 0
A63: Furniture and Office Equipment | C63: =SA34b!C152 -> 0 | D63: =SA34b!D152 -> 0 | E63: =SA34b!E152 -> 0 | F63: =SA34b!F152 -> 0 | G63: =SA34b!G152 -> 0 | H63: =SA34b!H152 -> 0 | I63: =SA34b!I152 -> 0 | J63: =SA34b!J152 -> 0 | K63: =SA34b!K152 -> 0
A64: Machinery and Equipment | C64: =SA34b!C155 -> 0 | D64: =SA34b!D155 -> 0 | E64: =SA34b!E155 -> 0 | F64: =SA34b!F155 -> 0 | G64: =SA34b!G155 -> 0 | H64: =SA34b!H155 -> 0 | I64: =SA34b!I155 -> 0 | J64: =SA34b!J155 -> 0 | K64: =SA34b!K155 -> 0
A65: Transport Assets | C65: =SA34b!C158 -> 0 | D65: =SA34b!D158 -> 0 | E65: =SA34b!E158 -> 0 | F65: =SA34b!F158 -> 0 | G65: =SA34b!G158 -> 0 | H65: =SA34b!H158 -> 0 | I65: =SA34b!I158 -> 0 | J65: =SA34b!J158 -> 0 | K65: =SA34b!K158 -> 0
A66: Libraries | C66: =SA34b!C161 -> 0 | D66: =SA34b!D161 -> 0 | E66: =SA34b!E161 -> 0 | F66: =SA34b!F161 -> 0 | G66: =SA34b!G161 -> 0 | H66: =SA34b!H161 -> 0 | I66: =SA34b!I161 -> 0 | J66: =SA34b!J161 -> 0 | K66: =SA34b!K161 -> 0
A67: Zoo's, Marine and Non-biological Animals | C67: =SA34b!C164 -> 0 | D67: =SA34b!D164 -> 0 | E67: =SA34b!E164 -> 0 | F67: =SA34b!F164 -> 0 | G67: =SA34b!G164 -> 0 | H67: =SA34b!H164 -> 0 | I67: =SA34b!I164 -> 0 | J67: =SA34b!J164 -> 0 | K67: =SA34b!K164 -> 0
A69: Total Upgrading of Existing Assets | B69: 6 | C69: =C79+C82+C83+C86+C89+C90+SUM(C93:C99) -> 0 | D69: =D79+D82+D83+D86+D89+D90+SUM(D93:D99) -> 0 | E69: 0 | F69: 0 | G69: 0 | H69: 0 | I69: 0 | J69: 0 | K69: 0
A70: Roads Infrastructure | C70: =SA34e!C7 -> 0 | D70: =SA34e!D7 -> 0 | E70: =SA34e!E7 -> 0 | F70: =SA34e!F7 -> 0 | G70: =SA34e!G7 -> 0 | H70: =SA34e!H7 -> 0 | I70: =SA34e!I7 -> 0 | J70: =SA34e!J7 -> 0 | K70: =SA34e!K7 -> 0
A71: Storm water Infrastructure | C71: =SA34e!C12 -> 0 | D71: =SA34e!D12 -> 0 | E71: =SA34e!E12 -> 0 | F71: =SA34e!F12 -> 0 | G71: =SA34e!G12 -> 0 | H71: =SA34e!H12 -> 0 | I71: =SA34e!I12 -> 0 | J71: =SA34e!J12 -> 0 | K71: =SA34e!K12 -> 0
A72: Electrical Infrastructure | C72: =SA34e!C16 -> 0 | D72: =SA34e!D16 -> 0 | E72: =SA34e!E16 -> 0 | F72: =SA34e!F16 -> 0 | G72: =SA34e!G16 -> 0 | H72: =SA34e!H16 -> 0 | I72: =SA34e!I16 -> 0 | J72: =SA34e!J16 -> 0 | K72: =SA34e!K16 -> 0
A73: Water Supply Infrastructure | C73: =SA34e!C26 -> 0 | D73: =SA34e!D26 -> 0 | E73: =SA34e!E26 -> 0 | F73: =SA34e!F26 -> 0 | G73: =SA34e!G26 -> 0 | H73: =SA34e!H26 -> 0 | I73: =SA34e!I26 -> 0 | J73: =SA34e!J26 -> 0 | K73: =SA34e!K26 -> 0
A74: Sanitation Infrastructure | C74: =SA34e!C37 -> 0 | D74: =SA34e!D37 -> 0 | E74: =SA34e!E37 -> 0 | F74: =SA34e!F37 -> 0 | G74: =SA34e!G37 -> 0 | H74: =SA34e!H37 -> 0 | I74: =SA34e!I37 -> 0 | J74: =SA34e!J37 -> 0 | K74: =SA34e!K37 -> 0
A75: Solid Waste Infrastructure | C75: =SA34e!C44 -> 0 | D75: =SA34e!D44 -> 0 | E75: =SA34e!E44 -> 0 | F75: =SA34e!F44 -> 0 | G75: =SA34e!G44 -> 0 | H75: =SA34e!H44 -> 0 | I75: =SA34e!I44 -> 0 | J75: =SA34e!J44 -> 0 | K75: =SA34e!K44 -> 0
A76: Rail Infrastructure | C76: =SA34e!C52 -> 0 | D76: =SA34e!D52 -> 0 | E76: =SA34e!E52 -> 0 | F76: =SA34e!F52 -> 0 | G76: =SA34e!G52 -> 0 | H76: =SA34e!H52 -> 0 | I76: =SA34e!I52 -> 0 | J76: =SA34e!J52 -> 0 | K76: =SA34e!K52 -> 0
A77: Coastal Infrastructure | C77: =SA34e!C62 -> 0 | D77: =SA34e!D62 -> 0 | E77: =SA34e!E62 -> 0 | F77: =SA34e!F62 -> 0 | G77: =SA34e!G62 -> 0 | H77: =SA34e!H62 -> 0 | I77: =SA34e!I62 -> 0 | J77: =SA34e!J62 -> 0 | K77: =SA34e!K62 -> 0
A78: Information and Communication Infrastructure | C78: =SA34e!C68 -> 0 | D78: =SA34e!D68 -> 0 | E78: =SA34e!E68 -> 0 | F78: =SA34e!F68 -> 0 | G78: =SA34e!G68 -> 0 | H78: =SA34e!H68 -> 0 | I78: =SA34e!I68 -> 0 | J78: =SA34e!J68 -> 0 | K78: =SA34e!K68 -> 0
A79: Infrastructure | C79: =SUM(C70:C78) -> 0 | D79: 0 | E79: 0 | F79: 0 | G79: 0 | H79: 0 | I79: 0 | J79: 0 | K79: 0
A80: Community Facilities | C80: =SA34e!C75 -> 0 | D80: =SA34e!D75 -> 0 | E80: =SA34e!E75 -> 0 | F80: =SA34e!F75 -> 0 | G80: =SA34e!G75 -> 0 | H80: =SA34e!H75 -> 0 | I80: =SA34e!I75 -> 0 | J80: =SA34e!J75 -> 0 | K80: =SA34e!K75 -> 0
A81: Sport and Recreation Facilities | C81: =SA34e!C98 -> 0 | D81: =SA34e!D98 -> 0 | E81: =SA34e!E98 -> 0 | F81: =SA34e!F98 -> 0 | G81: =SA34e!G98 -> 0 | H81: =SA34e!H98 -> 0 | I81: =SA34e!I98 -> 0 | J81: =SA34e!J98 -> 0 | K81: =SA34e!K98 -> 0
A82: Community Assets | C82: =SUM(C80:C81) -> 0 | D82: 0 | E82: 0 | F82: 0 | G82: 0 | H82: 0 | I82: 0 | J82: 0 | K82: 0
A83: Heritage Assets | C83: =SA34e!C103 -> 0 | D83: =SA34e!D103 -> 0 | E83: =SA34e!E103 -> 0 | F83: =SA34e!F103 -> 0 | G83: =SA34e!G103 -> 0 | H83: =SA34e!H103 -> 0 | I83: =SA34e!I103 -> 0 | J83: =SA34e!J103 -> 0 | K83: =SA34e!K103 -> 0
A84: Revenue Generating | C84: =SA34e!C111 -> 0 | D84: =SA34e!D111 -> 0 | E84: =SA34e!E111 -> 0 | F84: =SA34e!F111 -> 0 | G84: =SA34e!G111 -> 0 | H84: =SA34e!H111 -> 0 | I84: =SA34e!I111 -> 0 | J84: =SA34e!J111 -> 0 | K84: =SA34e!K111 -> 0
A85: Non-revenue Generating | C85: =SA34e!C114 -> 0 | D85: =SA34e!D114 -> 0 | E85: =SA34e!E114 -> 0 | F85: =SA34e!F114 -> 0 | G85: =SA34e!G114 -> 0 | H85: =SA34e!H114 -> 0 | I85: =SA34e!I114 -> 0 | J85: =SA34e!J114 -> 0 | K85: =SA34e!K114 -> 0
A86: Investment properties | C86: =SUM(C84:C85) -> 0 | D86: 0 | E86: 0 | F86: 0 | G86: 0 | H86: 0 | I86: 0 | J86: 0 | K86: 0
A87: Operational Buildings | C87: =SA34e!C119 -> 0 | D87: =SA34e!D119 -> 0 | E87: =SA34e!E119 -> 0 | F87: =SA34e!F119 -> 0 | G87: =SA34e!G119 -> 0 | H87: =SA34e!H119 -> 0 | I87: =SA34e!I119 -> 0 | J87: =SA34e!J119 -> 0 | K87: =SA34e!K119 -> 0
A88: Housing | C88: =SA34e!C131 -> 0 | D88: =SA34e!D131 -> 0 | E88: =SA34e!E131 -> 0 | F88: =SA34e!F131 -> 0 | G88: =SA34e!G131 -> 0 | H88: =SA34e!H131 -> 0 | I88: =SA34e!I131 -> 0 | J88: =SA34e!J131 -> 0 | K88: =SA34e!K131 -> 0
A89: Other Assets | C89: =SUM(C87:C88) -> 0 | D89: 0 | E89: 0 | F89: 0 | G89: 0 | H89: 0 | I89: 0 | J89: 0 | K89: 0
A90: Biological or Cultivated Assets | C90: =SA34e!C136 -> 0 | D90: =SA34e!D136 -> 0 | E90: =SA34e!E136 -> 0 | F90: =SA34e!F136 -> 0 | G90: =SA34e!G136 -> 0 | H90: =SA34e!H136 -> 0 | I90: =SA34e!I136 -> 0 | J90: =SA34e!J136 -> 0 | K90: =SA34e!K136 -> 0
A91: Servitudes | C91: =SA34e!C140 -> 0 | D91: =SA34e!D140 -> 0 | E91: =SA34e!E140 -> 0 | F91: =SA34e!F140 -> 0 | G91: =SA34e!G140 -> 0 | H91: =SA34e!H140 -> 0 | I91: =SA34e!I140 -> 0 | J91: =SA34e!J140 -> 0 | K91: =SA34e!K140 -> 0
A92: Licences and Rights | C92: =SA34e!C141 -> 0 | D92: =SA34e!D141 -> 0 | E92: =SA34e!E141 -> 0 | F92: =SA34e!F141 -> 0 | G92: =SA34e!G141 -> 0 | H92: =SA34e!H141 -> 0 | I92: =SA34e!I141 -> 0 | J92: =SA34e!J141 -> 0 | K92: =SA34e!K141 -> 0
A93: Intangible Assets | C93: =SUM(C91:C92) -> 0 | D93: 0 | E93: 0 | F93: 0 | G93: 0 | H93: 0 | I93: 0 | J93: 0 | K93: 0
A94: Computer Equipment | C94: =SA34e!C149 -> 0 | D94: =SA34e!D149 -> 0 | E94: =SA34e!E149 -> 0 | F94: =SA34e!F149 -> 0 | G94: =SA34e!G149 -> 0 | H94: =SA34e!H149 -> 0 | I94: =SA34e!I149 -> 0 | J94: =SA34e!J149 -> 0 | K94: =SA34e!K149 -> 0
A95: Furniture and Office Equipment | C95: =SA34e!C152 -> 0 | D95: =SA34e!D152 -> 0 | E95: =SA34e!E152 -> 0 | F95: =SA34e!F152 -> 0 | G95: =SA34e!G152 -> 0 | H95: =SA34e!H152 -> 0 | I95: =SA34e!I152 -> 0 | J95: =SA34e!J152 -> 0 | K95: =SA34e!K152 -> 0
A96: Machinery and Equipment | C96: =SA34e!C155 -> 0 | D96: =SA34e!D155 -> 0 | E96: =SA34e!E155 -> 0 | F96: =SA34e!F155 -> 0 | G96: =SA34e!G155 -> 0 | H96: =SA34e!H155 -> 0 | I96: =SA34e!I155 -> 0 | J96: =SA34e!J155 -> 0 | K96: =SA34e!K155 -> 0
A97: Transport Assets | C97: =SA34e!C158 -> 0 | D97: =SA34e!D158 -> 0 | E97: =SA34e!E158 -> 0 | F97: =SA34e!F158 -> 0 | G97: =SA34e!G158 -> 0 | H97: =SA34e!H158 -> 0 | I97: =SA34e!I158 -> 0 | J97: =SA34e!J158 -> 0 | K97: =SA34e!K158 -> 0
A98: Libraries | C98: =SA34e!C161 -> 0 | D98: =SA34e!D161 -> 0 | E98: =SA34e!E161 -> 0 | F98: =SA34e!F161 -> 0 | G98: =SA34e!G161 -> 0 | H98: =SA34e!H161 -> 0 | I98: =SA34e!I161 -> 0 | J98: =SA34e!J161 -> 0 | K98: =SA34e!K161 -> 0
A99: Zoo's, Marine and Non-biological Animals | C99: =SA34e!C164 -> 0 | D99: =SA34e!D164 -> 0 | E99: =SA34e!E164 -> 0 | F99: =SA34e!F164 -> 0 | G99: =SA34e!G164 -> 0 | H99: =SA34e!H164 -> 0 | I99: =SA34e!I164 -> 0 | J99: =SA34e!J164 -> 0 | K99: =SA34e!K164 -> 0
A101: Total Capital Expenditure | B101: 4
A102: Roads Infrastructure | C102: =+C6+C38+C70 -> 0 | D102: =+D6+D38+D70 -> 0 | E102: 13368568 | F102: 8567100 | G102: 7692100 | H102: 7692100 | I102: 9056350 | J102: 9308751 | K102: 9605704.3
A103: Storm water Infrastructure | C103: =+C7+C39+C71 -> 0 | D103: 0 | E103: 0 | F103: 0 | G103: 0 | H103: 0 | I103: 0 | J103: 0 | K103: 0
A104: Electrical Infrastructure | C104: 1080666 | D104: 1053994 | E104: 0 | F104: 0 | G104: 0 | H104: 0 | I104: 0 | J104: 0 | K104: 0
A105: Water Supply Infrastructure | C105: 1273678 | D105: 18682611 | E105: 12646763 | F105: 5716000 | G105: 6281000 | H105: 6281000 | I105: 4000000 | J105: 4240000 | K105: 4494400
A106: Sanitation Infrastructure | C106: 681543 | D106: 11164 | E106: 0 | F106: 0 | G106: 0 | H106: 0 | I106: 0 | J106: 0 | K106: 0
A107: Solid Waste Infrastructure | C107: 11164 | D107: 0 | E107: 0 | F107: 0 | G107: 0 | H107: 0 | I107: 0 | J107: 0 | K107: 0
A108: Rail Infrastructure | C108: 0 | D108: 0 | E108: 0 | F108: 0 | G108: 0 | H108: 0 | I108: 0 | J108: 0 | K108: 0
A109: Coastal Infrastructure | C109: 0 | D109: 0 | E109: 0 | F109: 0 | G109: 0 | H109: 0 | I109: 0 | J109: 0 | K109: 0
A110: Information and Communication Infrastructure | C110: 0 | D110: 0 | E110: 0 | F110: 0 | G110: 0 | H110: 0 | I110: 0 | J110: 0 | K110: 0
A111: Infrastructure | C111: =SUM(C102:C110) -> 3047051 | D111: =SUM(D102:D110) -> 19747769 | E111: 26015331 | F111: 14283100 | G111: 13973100 | H111: 13973100 | I111: 13056350 | J111: 13548751 | K111: 14100104.3
A112: Community Facilities | C112: =+C16+C48+C80 -> 0 | D112: =+D16+D48+D80 -> 0 | E112: 0 | F112: 0 | G112: 0 | H112: 0 | I112: 0 | J112: 0 | K112: 0
A113: Sport and Recreation Facilities | C113: =+C17+C49+C81 -> 0 | D113: =+D17+D49+D81 -> 0 | E113: 0 | F113: 0 | G113: 0 | H113: 0 | I113: 0 | J113: 0 | K113: 0
A114: Community Assets | C114: =SUM(C112:C113) -> 0 | D114: =SUM(D112:D113) -> 0 | E114: 0 | F114: 0 | G114: 0 | H114: 0 | I114: 0 | J114: 0 | K114: 0
A115: Heritage Assets | C115: =+C19+C51+C83 -> 0 | D115: =+D19+D51+D83 -> 0 | E115: 0 | F115: 0 | G115: 0 | H115: 0 | I115: 0 | J115: 0 | K115: 0
A116: Revenue Generating | C116: =+C20+C52+C84 -> 0 | D116: =+D20+D52+D84 -> 0 | E116: 0 | F116: 0 | G116: 0 | H116: 0 | I116: 0 | J116: 0 | K116: 0
A117: Non-revenue Generating | C117: =+C21+C53+C85 -> 0 | D117: =+D21+D53+D85 -> 0 | E117: 0 | F117: 0 | G117: 0 | H117: 0 | I117: 0 | J117: 0 | K117: 0
A118: Investment properties | C118: =SUM(C116:C117) -> 0 | D118: =SUM(D116:D117) -> 0 | E118: 0 | F118: 0 | G118: 0 | H118: 0 | I118: 0 | J118: 0 | K118: 0
A119: Operational Buildings | C119: =+C23+C55+C87 -> 0 | D119: =+D23+D55+D87 -> 0 | E119: 0 | F119: 0 | G119: 0 | H119: 0 | I119: 0 | J119: 0 | K119: 0
A120: Housing | C120: =+C24+C56+C88 -> 0 | D120: =+D24+D56+D88 -> 0 | E120: 0 | F120: 0 | G120: 0 | H120: 0 | I120: 0 | J120: 0 | K120: 0
A121: Other Assets | C121: =SUM(C119:C120) -> 0 | D121: 0 | E121: 0 | F121: 0 | G121: 0 | H121: 0 | I121: 0 | J121: 0 | K121: 0
A122: Biological or Cultivated Assets | C122: =+C26+C58+C90 -> 0 | D122: =+D26+D58+D90 -> 0 | E122: 0 | F122: 0 | G122: 0 | H122: 0 | I122: 0 | J122: 0 | K122: 0
A123: Servitudes | C123: =+C27+C59+C91 -> 0 | D123: =+D27+D59+D91 -> 0 | E123: 0 | F123: 0 | G123: 0 | H123: 0 | I123: 0 | J123: 0 | K123: 0
A124: Licences and Rights | C124: =+C28+C60+C92 -> 0 | D124: =+D28+D60+D92 -> 86787 | E124: 0 | F124: 0 | G124: 0 | H124: 0 | I124: 0 | J124: 0 | K124: 0
A125: Intangible Assets | C125: =SUM(C123:C124) -> 0 | D125: =SUM(D123:D124) -> 86787 | E125: 0 | F125: 0 | G125: 0 | H125: 0 | I125: 0 | J125: 0 | K125: 0
A126: Computer Equipment | C126: =+C30+C62+C94 -> 0 | D126: =+D30+D62+D94 -> 0 | E126: 0 | F126: 40000 | G126: -40000 | H126: 0 | I126: 0 | J126: 0 | K126: 0
A127: Furniture and Office Equipment | C127: =+C31+C63+C95 -> 0 | D127: 0 | E127: 0 | F127: 0 | G127: 0 | H127: 0 | I127: 0 | J127: 0 | K127: 0
A128: Machinery and Equipment | C128: 0 | D128: 0 | E128: 0 | F128: 0 | G128: 0 | H128: 0 | I128: 0 | J128: 0 | K128: 0
A129: Transport Assets | C129: 0 | D129: 0 | E129: 0 | F129: 0 | G129: 0 | H129: 0 | I129: 0 | J129: 0 | K129: 0
A130: Libraries | C130: 0 | D130: 0 | E130: 0 | F130: 0 | G130: 0 | H130: 0 | I130: 0 | J130: 0 | K130: 0
A131: Zoo's, Marine and Non-biological Animals | C131: 0 | D131: 0 | E131: 0 | F131: 0 | G131: 0 | H131: 0 | I131: 0 | J131: 0 | K131: 0
A132: TOTAL CAPITAL EXPENDITURE - Asset class | C132: =+C5+C37+C69 -> 3047051 | D132: =+D5+D37+D69 -> 19834556 | E132: 26015331 | F132: 14323100 | G132: 13933100 | H132: 13973100 | I132: 13056350 | J132: 13548751 | K132: 14100104.3
A134: ASSET REGISTER SUMMARY - PPE (WDV) | B134: 5
A135: Roads Infrastructure | C135: 49459697 | D135: 30441224 | E135: 32399382.66 | F135: 46135044 | G135: 44599048.47 | H135: 44599048.47 | I135: =F135*1.051 -> 48487931.24 | J135: =I135*1.049 -> 50863839.87 | K135: =J135*1.048 -> 53305304.19
A136: Storm water Infrastructure | I136: =F136*1.051 -> 0 | J136: =I136*1.049 -> 0 | K136: =J136*1.048 -> 0
A137: Electrical Infrastructure | C137: 22485300 | D137: 15812226 | E137: 16146033.6 | F137: 11825091 | G137: 11431392.73 | H137: 11431392.73 | I137: 12428170.64 | J137: 13037151 | K137: 13662934.25
A138: Water Supply Infrastructure | C138: 54715747 | D138: 119377899 | E138: 100755805.8 | F138: 132691092 | G138: 128273345.6 | H138: 128273345.6 | I138: 139458337.7 | J138: 146291796.2 | K138: 153313802.5
A139: Sanitation Infrastructure | C139: 52139218 | D139: 32300085 | E139: 32976378.01 | F139: 31312326 | G139: 30269830.13 | H139: 30269830.13 | I139: 32909254.63 | J139: 34521808.1 | K139: 36178854.89
A140: Solid Waste Infrastructure | F140: 2675291 | G140: 2586221.29 | H140: 2586221.29 | I140: 2811730.841 | J140: 2949505.652 | K140: 3091081.924
A141: Rail Infrastructure
A142: Coastal Infrastructure
A143: Information and Communication Infrastructure
A144: Infrastructure | C144: =SUM(C135:C143) -> 178799962 | D144: =SUM(D135:D143) -> 197931434 | E144: 182277600 | F144: 224638844 | G144: 217159838.2 | H144: 217159838.2 | I144: 236095425 | J144: 247664100.9 | K144: 259551977.7
A145: Community Facilities | C145: 12869688 | D145: 9991642 | E145: 9769690.954 | F145: 9211642 | G145: 8904954.508 | H145: 8904954.508 | I145: =F145*1.051 -> 9681435.742 | J145: =I145*1.049 -> 10155826.09 | K145: =J145*1.048 -> 10643305.75
A146: Sport and Recreation Facilities
A147: Community Assets | C147: =SUM(C145:C146) -> 12869688 | D147: 9991642 | E147: 9769690.954 | F147: 9211642 | G147: 8904954.508 | H147: 8904954.508 | I147: 9681435.742 | J147: 10155826.09 | K147: 10643305.75
A148: Heritage Assets
A149: Revenue Generating
A150: Non-revenue Generating
A151: Investment properties | C151: =SUM(C149:C150) -> 0 | D151: 0 | E151: 0 | F151: 0 | G151: 0 | H151: 0 | I151: 0 | J151: 0 | K151: 0
A152: Operational Buildings
A153: Housing
A154: Other Assets | C154: =SUM(C152:C153) -> 0 | D154: 0 | E154: 0 | F154: 0 | G154: 0 | H154: 0 | I154: 0 | J154: 0 | K154: 0
A155: Biological or Cultivated Assets
A156: Servitudes
A157: Licences and Rights
A158: Intangible Assets | C158: =SUM(C156:C157) -> 0 | D158: 0 | E158: 0 | F158: 0 | G158: 0 | H158: 0 | I158: 0 | J158: 0 | K158: 0
A159: Computer Equipment
A160: Furniture and Office Equipment
A161: Machinery and Equipment
A162: Transport Assets
A163: Libraries
A164: Zoo's, Marine and Non-biological Animals
A165: TOTAL ASSET REGISTER SUMMARY - PPE (WDV) | B165: 5 | C165: =C144+C147+C151+C154+C155+C158+C159+C160+C161+C162+C163+C164 -> 191669650 | D165: =D144+D147+D151+D154+D155+D158+D159+D160+D161+D162+D163+D164 -> 207923076 | E165: 192047291 | F165: 233850486 | G165: 226064792.7 | H165: 226064792.7 | I165: 245776860.8 | J165: 257819927 | K165: 270195283.5
A167: EXPENDITURE OTHER ITEMS
A168: Depreciation | B168: 7 | C168: =SA34d!C167 -> 6989870 | D168: =SA34d!D167 -> 7628704 | E168: =SA34d!E167 -> 8029265.89 | F168: =SA34d!F167 -> 6781705 | G168: =SA34d!G167 -> 7781705 | H168: =SA34d!H167 -> 7781705 | I168: =SA34d!I167 -> 8291362 | J168: =SA34d!J167 -> 9110955 | K168: =SA34d!K167 -> 8829446
A169: Repairs and Maintenance by Asset Class | B169: 3 | C169: =C179+C182+C183+C186+C189+C190+SUM(C193:C199) -> 837974 | D169: =D179+D182+D183+D186+D189+D190+SUM(D193:D199) -> 754782 | E169: 505963 | F169: 1796029 | G169: 2364400 | H169: 2218758 | I169: 1198749.691 | J169: 1269475.923 | K169: 1343105.526
A170: Roads Infrastructure | C170: =SA34c!C7 -> 2938 | D170: =SA34c!D7 -> 93924 | E170: =SA34c!E7 -> 0 | F170: =SA34c!F7 -> 5189 | G170: =SA34c!G7 -> 6102 | H170: =SA34c!H7 -> 10620 | I170: =SA34c!I7 -> 5505.834568 | J170: =SA34c!J7 -> 5830.678808 | K170: =SA34c!K7 -> 6168.858178
A171: Storm water Infrastructure | C171: =SA34c!C12 -> 0 | D171: =SA34c!D12 -> 0 | E171: =SA34c!E12 -> 0 | F171: =SA34c!F12 -> 0 | G171: =SA34c!G12 -> 0 | H171: =SA34c!H12 -> 0 | I171: =SA34c!I12 -> 0 | J171: =SA34c!J12 -> 0 | K171: =SA34c!K12 -> 0
A172: Electrical Infrastructure | C172: =SA34c!C16 -> 270364 | D172: =SA34c!D16 -> 147558 | E172: =SA34c!E16 -> 24487 | F172: =SA34c!F16 -> 449240 | G172: =SA34c!G16 -> 569014 | H172: =SA34c!H16 -> 131110 | I172: =SA34c!I16 -> 372559.1051 | J172: =SA34c!J16 -> 394540.0923 | K172: =SA34c!K16 -> 417423.4176
A173: Water Supply Infrastructure | C173: =SA34c!C26 -> 509281 | D173: =SA34c!D26 -> 199026 | E173: =SA34c!E26 -> 374188 | F173: =SA34c!F26 -> 270000 | G173: =SA34c!G26 -> -178204 | H173: =SA34c!H26 -> 97788 | I173: =SA34c!I26 -> 274575 | J173: =SA34c!J26 -> 290774.925 | K173: =SA34c!K26 -> 307639.8706
A174: Sanitation Infrastructure | C174: =SA34c!C37 -> 55391 | D174: =SA34c!D37 -> 314274 | E174: =SA34c!E37 -> 0 | F174: =SA34c!F37 -> 0 | G174: =SA34c!G37 -> 0 | H174: =SA34c!H37 -> 7666 | I174: =SA34c!I37 -> 46657.08455 | J174: =SA34c!J37 -> 49409.85254 | K174: =SA34c!K37 -> 52275.62399
A175: Solid Waste Infrastructure | C175: =SA34c!C44 -> 0 | D175: =SA34c!D44 -> 0 | E175: =SA34c!E44 -> 0 | F175: =SA34c!F44 -> 167690 | G175: =SA34c!G44 -> 444 | H175: =SA34c!H44 -> 0 | I175: =SA34c!I44 -> 129571.6275 | J175: =SA34c!J44 -> 137216.3535 | K175: =SA34c!K44 -> 145174.902
A176: Rail Infrastructure | C176: =SA34c!C52 -> 0 | D176: =SA34c!D52 -> 0 | E176: =SA34c!E52 -> 0 | F176: =SA34c!F52 -> 0 | G176: =SA34c!G52 -> 0 | H176: =SA34c!H52 -> 0 | I176: =SA34c!I52 -> 0 | J176: =SA34c!J52 -> 0 | K176: =SA34c!K52 -> 0
A177: Coastal Infrastructure | C177: =SA34c!C62 -> 0 | D177: =SA34c!D62 -> 0 | E177: =SA34c!E62 -> 0 | F177: =SA34c!F62 -> 0 | G177: =SA34c!G62 -> 0 | H177: =SA34c!H62 -> 0 | I177: =SA34c!I62 -> 0 | J177: =SA34c!J62 -> 0 | K177: =SA34c!K62 -> 0
A178: Information and Communication Infrastructure | C178: =SA34c!C68 -> 0 | D178: =SA34c!D68 -> 0 | E178: =SA34c!E68 -> 0 | F178: =SA34c!F68 -> 0 | G178: =SA34c!G68 -> 0 | H178: =SA34c!H68 -> 0 | I178: =SA34c!I68 -> 0 | J178: =SA34c!J68 -> 0 | K178: =SA34c!K68 -> 0
A179: Infrastructure | C179: =SUM(C170:C178) -> 837974 | D179: =SUM(D170:D178) -> 754782 | E179: 398675 | F179: 892119 | G179: 397356 | H179: 247184 | I179: 828868.6517 | J179: 877771.9021 | K179: 928682.6725
A180: Community Facilities | C180: =SA34c!C75 -> 0 | D180: =SA34c!D75 -> 0 | E180: =SA34c!E75 -> 0 | F180: =SA34c!F75 -> 3121 | G180: =SA34c!G75 -> 13494 | H180: =SA34c!H75 -> 15930 | I180: =SA34c!I75 -> 3311.644128 | J180: =SA34c!J75 -> 3507.031132 | K180: =SA34c!K75 -> 3710.438937
A181: Sport and Recreation Facilities | C181: =SA34c!C98 -> 0 | D181: =SA34c!D98 -> 0 | E181: =SA34c!E98 -> 0 | F181: =SA34c!F98 -> 0 | G181: =SA34c!G98 -> 0 | H181: =SA34c!H98 -> 0 | I181: =SA34c!I98 -> 0 | J181: =SA34c!J98 -> 0 | K181: =SA34c!K98 -> 0
A182: Community Assets | C182: =SUM(C180:C181) -> 0 | D182: 0 | E182: 0 | F182: 3121 | G182: 13494 | H182: 15930 | I182: 3311.644128 | J182: 3507.031132 | K182: 3710.438937
A183: Heritage Assets | C183: =SA34c!C103 -> 0 | D183: =SA34c!D103 -> 0 | E183: =SA34c!E103 -> 0 | F183: =SA34c!F103 -> 0 | G183: =SA34c!G103 -> 0 | H183: =SA34c!H103 -> 0 | I183: =SA34c!I103 -> 0 | J183: =SA34c!J103 -> 0 | K183: =SA34c!K103 -> 0
A184: Revenue Generating | C184: =SA34c!C111 -> 0 | D184: =SA34c!D111 -> 0 | E184: =SA34c!E111 -> 0 | F184: =SA34c!F111 -> 0 | G184: =SA34c!G111 -> 0 | H184: =SA34c!H111 -> 0 | I184: =SA34c!I111 -> 0 | J184: =SA34c!J111 -> 0 | K184: =SA34c!K111 -> 0
A185: Non-revenue Generating | C185: =SA34c!C114 -> 0 | D185: =SA34c!D114 -> 0 | E185: =SA34c!E114 -> 0 | F185: =SA34c!F114 -> 0 | G185: =SA34c!G114 -> 0 | H185: =SA34c!H114 -> 0 | I185: =SA34c!I114 -> 0 | J185: =SA34c!J114 -> 0 | K185: =SA34c!K114 -> 0
A186: Investment properties | C186: =SUM(C184:C185) -> 0 | D186: 0 | E186: 0 | F186: 0 | G186: 0 | H186: 0 | I186: 0 | J186: 0 | K186: 0
A187: Operational Buildings | C187: =SA34c!C119 -> 0 | D187: =SA34c!D119 -> 0 | E187: =SA34c!E119 -> 93338 | F187: =SA34c!F119 -> 900789 | G187: =SA34c!G119 -> 1953550 | H187: =SA34c!H119 -> 999318 | I187: =SA34c!I119 -> 311890.7177 | J187: =SA34c!J119 -> 330292.27 | K187: =SA34c!K119 -> 349449.2217
A188: Housing | C188: =SA34c!C131 -> 0 | D188: =SA34c!D131 -> 0 | E188: =SA34c!E131 -> 0 | F188: =SA34c!F131 -> 0 | G188: =SA34c!G131 -> 0 | H188: =SA34c!H131 -> 0 | I188: =SA34c!I131 -> 0 | J188: =SA34c!J131 -> 0 | K188: =SA34c!K131 -> 0
A189: Other Assets | C189: =SUM(C187:C188) -> 0 | D189: 0 | E189: 93338 | F189: 900789 | G189: 1953550 | H189: 999318 | I189: 311890.7177 | J189: 330292.27 | K189: 349449.2217
A190: Biological or Cultivated Assets | C190: =SA34c!C136 -> 0 | D190: =SA34c!D136 -> 0 | E190: =SA34c!E136 -> 0 | F190: =SA34c!F136 -> 0 | G190: =SA34c!G136 -> 0 | H190: =SA34c!H136 -> 0 | I190: =SA34c!I136 -> 0 | J190: =SA34c!J136 -> 0 | K190: =SA34c!K136 -> 0
A191: Servitudes | C191: =SA34c!C140 -> 0 | D191: =SA34c!D140 -> 0 | E191: =SA34c!E140 -> 0 | F191: =SA34c!F140 -> 0 | G191: =SA34c!G140 -> 0 | H191: =SA34c!H140 -> 0 | I191: =SA34c!I140 -> 0 | J191: =SA34c!J140 -> 0 | K191: =SA34c!K140 -> 0
A192: Licences and Rights | C192: =SA34c!C141 -> 0 | D192: =SA34c!D141 -> 0 | E192: =SA34c!E141 -> 13950 | F192: =SA34c!F141 -> 0 | G192: =SA34c!G141 -> 0 | H192: =SA34c!H141 -> 1970 | I192: =SA34c!I141 -> 0 | J192: =SA34c!J141 -> 0 | K192: =SA34c!K141 -> 0
A193: Intangible Assets | C193: =SUM(C191:C192) -> 0 | D193: 0 | E193: 13950 | F193: 0 | G193: 0 | H193: 1970 | I193: 0 | J193: 0 | K193: 0
A194: Computer Equipment | C194: =SA34c!C149 -> 0 | D194: =SA34c!D149 -> 0 | E194: =SA34c!E149 -> 0 | F194: =SA34c!F149 -> 0 | G194: =SA34c!G149 -> 0 | H194: =SA34c!H149 -> 4278 | I194: =SA34c!I149 -> 0 | J194: =SA34c!J149 -> 0 | K194: =SA34c!K149 -> 0
A195: Furniture and Office Equipment | C195: =SA34c!C152 -> 0 | D195: =SA34c!D152 -> 0 | E195: =SA34c!E152 -> 0 | F195: =SA34c!F152 -> 0 | G195: =SA34c!G152 -> 0 | H195: =SA34c!H152 -> 568024 | I195: =SA34c!I152 -> 1628.67744 | J195: =SA34c!J152 -> 1724.769409 | K195: =SA34c!K152 -> 1824.806035
A196: Machinery and Equipment | C196: =SA34c!C155 -> 0 | D196: =SA34c!D155 -> 0 | E196: =SA34c!E155 -> 0 | F196: =SA34c!F155 -> 0 | G196: =SA34c!G155 -> 0 | H196: =SA34c!H155 -> 0 | I196: =SA34c!I155 -> 0 | J196: =SA34c!J155 -> 0 | K196: =SA34c!K155 -> 0
A197: Transport Assets | C197: =SA34c!C158 -> 0 | D197: =SA34c!D158 -> 0 | E197: =SA34c!E158 -> 0 | F197: =SA34c!F158 -> 0 | G197: =SA34c!G158 -> 0 | H197: =SA34c!H158 -> 382054 | I197: =SA34c!I158 -> 53050 | J197: =SA34c!J158 -> 56179.95 | K197: =SA34c!K158 -> 59438.3871
A198: Libraries | C198: =SA34c!C161 -> 0 | D198: =SA34c!D161 -> 0 | E198: =SA34c!E161 -> 0 | F198: =SA34c!F161 -> 0 | G198: =SA34c!G161 -> 0 | H198: =SA34c!H161 -> 0 | I198: =SA34c!I161 -> 0 | J198: =SA34c!J161 -> 0 | K198: =SA34c!K161 -> 0
A199: Zoo's, Marine and Non-biological Animals | C199: =SA34c!C164 -> 0 | D199: =SA34c!D164 -> 0 | E199: =SA34c!E164 -> 0 | F199: =SA34c!F164 -> 0 | G199: =SA34c!G164 -> 0 | H199: =SA34c!H164 -> 0 | I199: =SA34c!I164 -> 0 | J199: =SA34c!J164 -> 0 | K199: =SA34c!K164 -> 0
A201: TOTAL EXPENDITURE OTHER ITEMS | C201: =SUM(C168:C169) -> 7827844 | D201: 8383486 | E201: 8535228.89 | F201: 8577734 | G201: 10146105 | H201: 10000463 | I201: 9490111.691 | J201: 10380430.92 | K201: 10172551.53
A203: Renewal and upgrading of Existing Assets as % of total capex | C203: =IF(ISERROR((C37+C69)/C132),0,((C37+C69)/C132)) -> 0 | D203: =IF(ISERROR((D37+D69)/D132),0,((D37+D69)/D132)) -> 0 | E203: 0 | F203: 0 | G203: 0 | H203: 0 | I203: 0 | J203: 0 | K203: 0
A204: Renewal and upgrading of Existing Assets as % of deprecn | C204: =IF(ISERROR((C37+C69)/C168),0,((C37+C69)/C168)) -> 0 | D204: =IF(ISERROR((D37+D69)/D168),0,((D37+D69)/D168)) -> 0 | E204: 0 | F204: 0 | G204: 0 | H204: 0 | I204: 0 | J204: 0 | K204: 0
A205: R&M as a % of PPE | C205: =IF(ISERROR(ROUND(C169/'A6-FinPos'!C19,3)),0,(ROUND(C169/'A6-FinPos'!C19,3))) -> 0.004 | D205: =IF(ISERROR(ROUND(D169/'A6-FinPos'!D19,3)),0,(ROUND(D169/'A6-FinPos'!D19,3))) -> 0.003 | E205: =IF(ISERROR(ROUND(E169/'A6-FinPos'!E19,3)),0,(ROUND(E169/'A6-FinPos'!E19,3))) -> 0.002 | F205: =IF(ISERROR(ROUND(F169/'A6-FinPos'!F19,3)),0,(ROUND(F169/'A6-FinPos'!F19,3))) -> 0.008 | G205: =IF(ISERROR(ROUND(G169/'A6-FinPos'!G19,3)),0,(ROUND(G169/'A6-FinPos'!G19,3))) -> 0.01 | H205: =IF(ISERROR(ROUND(H169/'A6-FinPos'!H19,3)),0,(ROUND(H169/'A6-FinPos'!H19,3))) -> 0.009 | I205: =IF(ISERROR(ROUND(I169/'A6-FinPos'!J19,3)),0,(ROUND(I169/'A6-FinPos'!J19,3))) -> 0.005 | J205: =IF(ISERROR(ROUND(J169/'A6-FinPos'!K19,3)),0,(ROUND(J169/'A6-FinPos'!K19,3))) -> 0.005 | K205: =IF(ISERROR(ROUND(K169/'A6-FinPos'!L19,3)),0,(ROUND(K169/'A6-FinPos'!L19,3))) -> 0.005
A206: Renewal and upgrading and R&M as a % of PPE | C206: =IF(ISERROR(ROUND((C37+C69+C169)/C165,2)),0,(ROUND((C37+C69+C169)/C165,2))) -> 0 | D206: =IF(ISERROR(ROUND((D37+D69+D169)/D165,2)),0,(ROUND((D37+D69+D169)/D165,2))) -> 0 | E206: 0 | F206: 0.01 | G206: 0.01 | H206: 0.01 | I206: 0 | J206: 0 | K206: 0
A208: =head27a -> References
... 8 more rows

Sheet A10-SerDel
A1: =muni&" - "&Approve10 -> NC076 Thembelihle - Table A10 Basic service delivery measurement
A2: =desc -> Description | B2: =head27 -> Ref | C2: =head1b -> 2013/14 | D2: =head1A -> 2014/15 | E2: =Head1 -> 2015/16 | F2: =Head2 -> Current Year 2016/17 | I2: =Head3 -> 2017/18 Medium Term Revenue & Expenditure Framework
C3: =Head5A -> Outcome | D3: =Head5A -> Outcome | E3: =Head5A -> Outcome | F3: =Head6 -> Original Budget | G3: =Head7 -> Adjusted Budget | H3: =Head8 -> Full Year Forecast | I3: =Head9 -> Budget Year 2017/18 | J3: =Head10 -> Budget Year +1 2018/19 | K3: =Head11 -> Budget Year +2 2019/20
A4: Household service targets | B4: 1
A5: Water:
A6: Piped water inside dwelling | C6: ='SA9'!E67 -> 1946 | D6: ='SA9'!F67 -> 2560 | E6: ='SA9'!G67 -> 2728.96 | F6: ='SA9'!H67 -> 2560 | G6: ='SA9'!I67 -> 2560 | H6: ='SA9'!J67 -> 2560 | I6: ='SA9'!K67 -> 2560 | J6: ='SA9'!L67 -> 2560 | K6: ='SA9'!M67 -> 2560
A7: Piped water inside yard (but not in dwelling) | C7: ='SA9'!E68 -> 455 | D7: ='SA9'!F68 -> 0 | E7: ='SA9'!G68 -> 0 | F7: ='SA9'!H68 -> 0 | G7: ='SA9'!I68 -> 0 | H7: ='SA9'!J68 -> 0 | I7: ='SA9'!K68 -> 0 | J7: ='SA9'!L68 -> 0 | K7: ='SA9'!M68 -> 0
A8: Using public tap (at least min.service level) | B8: 2 | C8: ='SA9'!E69 -> 200 | D8: ='SA9'!F69 -> 1501 | E8: ='SA9'!G69 -> 1600.066 | F8: ='SA9'!H69 -> 1501 | G8: ='SA9'!I69 -> 1501 | H8: ='SA9'!J69 -> 1501 | I8: ='SA9'!K69 -> 1501 | J8: ='SA9'!L69 -> 1501 | K8: ='SA9'!M69 -> 1501
A9: Other water supply (at least min.service level) | B9: 4 | C9: ='SA9'!E70 -> 0 | D9: ='SA9'!F70 -> 0 | E9: ='SA9'!G70 -> 0 | F9: ='SA9'!H70 -> 0 | G9: ='SA9'!I70 -> 0 | H9: ='SA9'!J70 -> 0 | I9: ='SA9'!K70 -> 0 | J9: ='SA9'!L70 -> 0 | K9: ='SA9'!M70 -> 0
A10: Minimum Service Level and Above sub-total | C10: =SUM(C6:C9) -> 2601 | D10: =SUM(D6:D9) -> 4061 | E10: 4329.026 | F10: 4061 | G10: 4061 | H10: 4061 | I10: 4061 | J10: 4061 | K10: 4061
A11: Using public tap (< min.service level) | B11: 3 | C11: ='SA9'!E72 -> 0 | D11: ='SA9'!F72 -> 0 | E11: ='SA9'!G72 -> 0 | F11: ='SA9'!H72 -> 0 | G11: ='SA9'!I72 -> 0 | H11: ='SA9'!J72 -> 0 | I11: ='SA9'!K72 -> 0 | J11: ='SA9'!L72 -> 0 | K11: ='SA9'!M72 -> 0
A12: Other water supply (< min.service level) | B12: =B9 -> 4 | C12: ='SA9'!E73 -> 0 | D12: ='SA9'!F73 -> 0 | E12: ='SA9'!G73 -> 0 | F12: ='SA9'!H73 -> 0 | G12: ='SA9'!I73 -> 0 | H12: ='SA9'!J73 -> 0 | I12: ='SA9'!K73 -> 0 | J12: ='SA9'!L73 -> 0 | K12: ='SA9'!M73 -> 0
A13: No water supply | C13: ='SA9'!E74 -> 0 | D13: ='SA9'!F74 -> 0 | E13: ='SA9'!G74 -> 0 | F13: ='SA9'!H74 -> 0 | G13: ='SA9'!I74 -> 0 | H13: ='SA9'!J74 -> 0 | I13: ='SA9'!K74 -> 0 | J13: ='SA9'!L74 -> 0 | K13: ='SA9'!M74 -> 0
A14: Below Minimum Service Level sub-total | C14: =SUM(C11:C13) -> 0 | D14: =SUM(D11:D13) -> 0 | E14: 0 | F14: 0 | G14: 0 | H14: 0 | I14: 0 | J14: 0 | K14: 0
A15: Total number of households | B15: 5 | C15: =C10+C14 -> 2601 | D15: =D10+D14 -> 4061 | E15: 4329.026 | F15: 4061 | G15: 4061 | H15: 4061 | I15: 4061 | J15: 4061 | K15: 4061
A16: Sanitation/sewerage:
A17: Flush toilet (connected to sewerage) | C17: ='SA9'!E78 -> 0 | D17: ='SA9'!F78 -> 0 | E17: ='SA9'!G78 -> 0 | F17: ='SA9'!H78 -> 2229 | G17: ='SA9'!I78 -> 2229 | H17: ='SA9'!J78 -> 2229 | I17: ='SA9'!K78 -> 2229 | J17: ='SA9'!L78 -> 2229 | K17: ='SA9'!M78 -> 2229
A18: Flush toilet (with septic tank) | C18: ='SA9'!E79 -> 0 | D18: ='SA9'!F79 -> 0 | E18: ='SA9'!G79 -> 0 | F18: ='SA9'!H79 -> 0 | G18: ='SA9'!I79 -> 0 | H18: ='SA9'!J79 -> 0 | I18: ='SA9'!K79 -> 0 | J18: ='SA9'!L79 -> 0 | K18: ='SA9'!M79 -> 0
A19: Chemical toilet | C19: ='SA9'!E80 -> 0 | D19: ='SA9'!F80 -> 0 | E19: ='SA9'!G80 -> 0 | F19: ='SA9'!H80 -> 0 | G19: ='SA9'!I80 -> 0 | H19: ='SA9'!J80 -> 0 | I19: ='SA9'!K80 -> 0 | J19: ='SA9'!L80 -> 0 | K19: ='SA9'!M80 -> 0
A20: Pit toilet (ventilated) | C20: ='SA9'!E81 -> 0 | D20: ='SA9'!F81 -> 0 | E20: ='SA9'!G81 -> 0 | F20: ='SA9'!H81 -> 731 | G20: ='SA9'!I81 -> 731 | H20: ='SA9'!J81 -> 731 | I20: ='SA9'!K81 -> 731 | J20: ='SA9'!L81 -> 731 | K20: ='SA9'!M81 -> 731
A21: Other toilet provisions (> min.service level) | C21: ='SA9'!E82 -> 0 | D21: ='SA9'!F82 -> 0 | E21: ='SA9'!G82 -> 0 | F21: ='SA9'!H82 -> 0 | G21: ='SA9'!I82 -> 0 | H21: ='SA9'!J82 -> 0 | I21: ='SA9'!K82 -> 0 | J21: ='SA9'!L82 -> 0 | K21: ='SA9'!M82 -> 0
A22: =$A$10 -> Minimum Service Level and Above sub-total | C22: =SUM(C17:C21) -> 0 | D22: =SUM(D17:D21) -> 0 | E22: 0 | F22: 2960 | G22: 2960 | H22: 2960 | I22: 2960 | J22: 2960 | K22: 2960
A23: Bucket toilet | C23: ='SA9'!E84 -> 0 | D23: ='SA9'!F84 -> 0 | E23: ='SA9'!G84 -> 0 | F23: ='SA9'!H84 -> 0 | G23: ='SA9'!I84 -> 0 | H23: ='SA9'!J84 -> 0 | I23: ='SA9'!K84 -> 0 | J23: ='SA9'!L84 -> 0 | K23: ='SA9'!M84 -> 0
A24: Other toilet provisions (< min.service level) | C24: ='SA9'!E85 -> 0 | D24: ='SA9'!F85 -> 0 | E24: ='SA9'!G85 -> 0 | F24: ='SA9'!H85 -> 0 | G24: ='SA9'!I85 -> 0 | H24: ='SA9'!J85 -> 0 | I24: ='SA9'!K85 -> 0 | J24: ='SA9'!L85 -> 0 | K24: ='SA9'!M85 -> 0
A25: No toilet provisions | C25: ='SA9'!E86 -> 0 | D25: ='SA9'!F86 -> 0 | E25: ='SA9'!G86 -> 0 | F25: ='SA9'!H86 -> 1101 | G25: ='SA9'!I86 -> 1101 | H25: ='SA9'!J86 -> 1101 | I25: ='SA9'!K86 -> 1101 | J25: ='SA9'!L86 -> 1101 | K25: ='SA9'!M86 -> 1101
A26: =$A$14 -> Below Minimum Service Level sub-total | C26: =SUM(C23:C25) -> 0 | D26: =SUM(D23:D25) -> 0 | E26: 0 | F26: 1101 | G26: 1101 | H26: 1101 | I26: 1101 | J26: 1101 | K26: 1101
A27: =$A$15 -> Total number of households | B27: =$B$15 -> 5 | C27: =C22+C26 -> 0 | D27: =D22+D26 -> 0 | E27: 0 | F27: 4061 | G27: 4061 | H27: 4061 | I27: 4061 | J27: 4061 | K27: 4061
A28: Energy:
A29: Electricity (at least min.service level) | C29: ='SA9'!E90 -> 0 | D29: ='SA9'!F90 -> 0 | E29: ='SA9'!G90 -> 0 | F29: ='SA9'!H90 -> 740 | G29: ='SA9'!I90 -> 740 | H29: ='SA9'!J90 -> 740 | I29: ='SA9'!K90 -> 740 | J29: ='SA9'!L90 -> 740 | K29: ='SA9'!M90 -> 740
A30: Electricity - prepaid (min.service level) | C30: ='SA9'!E91 -> 0 | D30: ='SA9'!F91 -> 0 | E30: ='SA9'!G91 -> 0 | F30: ='SA9'!H91 -> 1820 | G30: ='SA9'!I91 -> 1820 | H30: ='SA9'!J91 -> 1820 | I30: ='SA9'!K91 -> 1820 | J30: ='SA9'!L91 -> 1820 | K30: ='SA9'!M91 -> 1820
A31: =$A$10 -> Minimum Service Level and Above sub-total | C31: =SUM(C29:C30) -> 0 | D31: =SUM(D29:D30) -> 0 | E31: 0 | F31: 2560 | G31: 2560 | H31: 2560 | I31: 2560 | J31: 2560 | K31: 2560
A32: Electricity (< min.service level) | C32: ='SA9'!E93 -> 0 | D32: ='SA9'!F93 -> 0 | E32: ='SA9'!G93 -> 0 | F32: ='SA9'!H93 -> 0 | G32: ='SA9'!I93 -> 0 | H32: ='SA9'!J93 -> 0 | I32: ='SA9'!K93 -> 0 | J32: ='SA9'!L93 -> 0 | K32: ='SA9'!M93 -> 0
A33: Electricity - prepaid (< min. service level) | C33: ='SA9'!E94 -> 0 | D33: ='SA9'!F94 -> 0 | E33: ='SA9'!G94 -> 0 | F33: ='SA9'!H94 -> 0 | G33: ='SA9'!I94 -> 0 | H33: ='SA9'!J94 -> 0 | I33: ='SA9'!K94 -> 0 | J33: ='SA9'!L94 -> 0 | K33: ='SA9'!M94 -> 0
A34: Other energy sources | C34: ='SA9'!E95 -> 0 | D34: ='SA9'!F95 -> 0 | E34: ='SA9'!G95 -> 0 | F34: ='SA9'!H95 -> 1875 | G34: ='SA9'!I95 -> 1875 | H34: ='SA9'!J95 -> 1875 | I34: ='SA9'!K95 -> 1875 | J34: ='SA9'!L95 -> 1875 | K34: ='SA9'!M95 -> 1875
A35: =$A$14 -> Below Minimum Service Level sub-total | C35: =SUM(C32:C34) -> 0 | D35: =SUM(D32:D34) -> 0 | E35: 0 | F35: 1875 | G35: 1875 | H35: 1875 | I35: 1875 | J35: 1875 | K35: 1875
A36: =$A$15 -> Total number of households | B36: =$B$15 -> 5 | C36: =C31+C35 -> 0 | D36: =D31+D35 -> 0 | E36: 0 | F36: 4435 | G36: 4435 | H36: 4435 | I36: 4435 | J36: 4435 | K36: 4435
A37: Refuse:
A38: Removed at least once a week | C38: ='SA9'!E99 -> 0 | D38: ='SA9'!F99 -> 0 | E38: ='SA9'!G99 -> 0 | F38: ='SA9'!H99 -> 4061 | G38: ='SA9'!I99 -> 4061 | H38: ='SA9'!J99 -> 4061 | I38: ='SA9'!K99 -> 4061 | J38: ='SA9'!L99 -> 4061 | K38: ='SA9'!M99 -> 4061
A39: =$A$10 -> Minimum Service Level and Above sub-total | C39: =SUM(C38) -> 0 | D39: =SUM(D38) -> 0 | E39: 0 | F39: 4061 | G39: 4061 | H39: 4061 | I39: 4061 | J39: 4061 | K39: 4061
A40: Removed less frequently than once a week | C40: ='SA9'!E101 -> 0 | D40: ='SA9'!F101 -> 0 | E40: ='SA9'!G101 -> 0 | F40: ='SA9'!H101 -> 0 | G40: ='SA9'!I101 -> 0 | H40: ='SA9'!J101 -> 0 | I40: ='SA9'!K101 -> 0 | J40: ='SA9'!L101 -> 0 | K40: ='SA9'!M101 -> 0
A41: Using communal refuse dump | C41: ='SA9'!E102 -> 0 | D41: ='SA9'!F102 -> 0 | E41: ='SA9'!G102 -> 0 | F41: ='SA9'!H102 -> 0 | G41: ='SA9'!I102 -> 0 | H41: ='SA9'!J102 -> 0 | I41: ='SA9'!K102 -> 0 | J41: ='SA9'!L102 -> 0 | K41: ='SA9'!M102 -> 0
A42: Using own refuse dump | C42: ='SA9'!E103 -> 0 | D42: ='SA9'!F103 -> 0 | E42: ='SA9'!G103 -> 0 | F42: ='SA9'!H103 -> 0 | G42: ='SA9'!I103 -> 0 | H42: ='SA9'!J103 -> 0 | I42: ='SA9'!K103 -> 0 | J42: ='SA9'!L103 -> 0 | K42: ='SA9'!M103 -> 0
A43: Other rubbish disposal | C43: ='SA9'!E104 -> 0 | D43: ='SA9'!F104 -> 0 | E43: ='SA9'!G104 -> 0 | F43: ='SA9'!H104 -> 0 | G43: ='SA9'!I104 -> 0 | H43: ='SA9'!J104 -> 0 | I43: ='SA9'!K104 -> 0 | J43: ='SA9'!L104 -> 0 | K43: ='SA9'!M104 -> 0
A44: No rubbish disposal | C44: ='SA9'!E105 -> 0 | D44: ='SA9'!F105 -> 0 | E44: ='SA9'!G105 -> 0 | F44: ='SA9'!H105 -> 0 | G44: ='SA9'!I105 -> 0 | H44: ='SA9'!J105 -> 0 | I44: ='SA9'!K105 -> 0 | J44: ='SA9'!L105 -> 0 | K44: ='SA9'!M105 -> 0
A45: =$A$14 -> Below Minimum Service Level sub-total | C45: =SUM(C40:C44) -> 0 | D45: 0 | E45: 0 | F45: 0 | G45: 0 | H45: 0 | I45: 0 | J45: 0 | K45: 0
A46: =$A$15 -> Total number of households | B46: =$B$15 -> 5 | C46: =C39+C45 -> 0 | D46: =D39+D45 -> 0 | E46: 0 | F46: 4061 | G46: 4061 | H46: 4061 | I46: 4061 | J46: 4061 | K46: 4061
A48: Households receiving Free Basic Service | B48: 7
A49: Water (6 kilolitres per household per month) | C49: ='SA9'!E263 -> 0 | D49: ='SA9'!F263 -> 0 | E49: ='SA9'!G263 -> 0 | F49: ='SA9'!H263 -> 0 | G49: ='SA9'!I263 -> 0 | H49: ='SA9'!J263 -> 0 | I49: ='SA9'!K263 -> 0 | J49: ='SA9'!L263 -> 0 | K49: ='SA9'!M263 -> 0
A50: Sanitation (free minimum level service) | C50: ='SA9'!E275 -> 0 | D50: ='SA9'!F275 -> 0 | E50: ='SA9'!G275 -> 0 | F50: ='SA9'!H275 -> 0 | G50: ='SA9'!I275 -> 0 | H50: ='SA9'!J275 -> 0 | I50: ='SA9'!K275 -> 0 | J50: ='SA9'!L275 -> 0 | K50: ='SA9'!M275 -> 0
A51: Electricity/other energy (50kwh per household per month) | C51: ='SA9'!E251 -> 0 | D51: ='SA9'!F251 -> 0 | E51: ='SA9'!G251 -> 0 | F51: ='SA9'!H251 -> 0 | G51: ='SA9'!I251 -> 0 | H51: ='SA9'!J251 -> 0 | I51: ='SA9'!K251 -> 0 | J51: ='SA9'!L251 -> 0 | K51: ='SA9'!M251 -> 0
A52: Refuse (removed at least once a week) | C52: ='SA9'!E287 -> 0 | D52: ='SA9'!F287 -> 0 | E52: ='SA9'!G287 -> 0 | F52: ='SA9'!H287 -> 0 | G52: ='SA9'!I287 -> 0 | H52: ='SA9'!J287 -> 0 | I52: ='SA9'!K287 -> 0 | J52: ='SA9'!L287 -> 0 | K52: ='SA9'!M287 -> 0
A54: Cost of Free Basic Services provided - Formal Settlements (R'000) | B54: 8
A55: Water (6 kilolitres per indigent household per month) | C55: ='SA1'!C20 -> 0 | D55: ='SA1'!D20 -> 0 | E55: ='SA1'!E20 -> 0 | F55: ='SA1'!F20 -> 622203 | G55: ='SA1'!G20 -> 0 | H55: ='SA1'!H20 -> 0 | I55: ='SA1'!J20 -> 0 | J55: ='SA1'!K20 -> 0 | K55: ='SA1'!L20 -> 0
A56: Sanitation (free sanitation service to indigent households) | C56: ='SA1'!C26 -> 0 | D56: ='SA1'!D26 -> 0 | E56: ='SA1'!E26 -> 0 | F56: ='SA1'!F26 -> 0 | G56: ='SA1'!G26 -> 0 | H56: ='SA1'!H26 -> 0 | I56: ='SA1'!J26 -> 0 | J56: ='SA1'!K26 -> 0 | K56: ='SA1'!L26 -> 0
A57: Electricity/other energy (50kwh per indigent household per month) | C57: ='SA1'!C14 -> 0 | D57: ='SA1'!D14 -> 0 | E57: ='SA1'!E14 -> 0 | F57: ='SA1'!F14 -> 437972 | G57: ='SA1'!G14 -> 0 | H57: ='SA1'!H14 -> 0 | I57: ='SA1'!J14 -> 0 | J57: ='SA1'!K14 -> 0 | K57: ='SA1'!L14 -> 0
A58: Refuse (removed once a week for indigent households) | C58: ='SA1'!C33 -> 0 | D58: ='SA1'!D33 -> 0 | E58: ='SA1'!E33 -> 0 | F58: ='SA1'!F33 -> 670812 | G58: ='SA1'!G33 -> 0 | H58: ='SA1'!H33 -> 0 | I58: ='SA1'!J33 -> 0 | J58: ='SA1'!K33 -> 0 | K58: ='SA1'!L33 -> 0
A59: Cost of Free Basic Services provided - Informal Formal Settlements (R'000) | C59: ='SA9'!E260+'SA9'!E272+'SA9'!E284+'SA9'!E296 -> 0 | D59: ='SA9'!F260+'SA9'!F272+'SA9'!F284+'SA9'!F296 -> 0 | E59: ='SA9'!G260+'SA9'!G272+'SA9'!G284+'SA9'!G296 -> 0 | F59: ='SA9'!H260+'SA9'!H272+'SA9'!H284+'SA9'!H296 -> 0 | G59: ='SA9'!I260+'SA9'!I272+'SA9'!I284+'SA9'!I296 -> 0 | H59: ='SA9'!J260+'SA9'!J272+'SA9'!J284+'SA9'!J296 -> 0 | I59: ='SA9'!K260+'SA9'!K272+'SA9'!K284+'SA9'!K296 -> 0 | J59: ='SA9'!L260+'SA9'!L272+'SA9'!L284+'SA9'!L296 -> 0 | K59: ='SA9'!M260+'SA9'!M272+'SA9'!M284+'SA9'!M296 -> 0
A60: Total cost of FBS provided | C60: =SUM(C55:C59) -> 0 | D60: 0 | E60: 0 | F60: 1730987 | G60: 0 | H60: 0 | I60: 0 | J60: 0 | K60: 0
A62: Highest level of free service provided per household
A63: Property rates (R value threshold) | F63: 15000 | G63: 15000 | H63: 15000 | I63: 15000 | J63: 15000 | K63: 15000
A64: Water (kilolitres per household per month) | F64: 6 | G64: 6 | H64: 6 | I64: 6 | J64: 6 | K64: 6
A65: Sanitation (kilolitres per household per month) | G65: 0 | H65: 0
A66: Sanitation (Rand per household per month) | F66: 21.9 | G66: 21.9 | H66: 21.9 | I66: 21.9 | J66: 21.9 | K66: 21.9
A67: Electricity (kwh per household per month) | F67: 50 | G67: 50 | H67: 50 | I67: 50 | J67: 50 | K67: 50
A68: Refuse (average litres per week) | F68: 200 | G68: 200 | H68: 200 | I68: 200 | J68: 200 | K68: 200
A69: Revenue cost of subsidised services provided (R'000) | B69: 9
A70: Property rates (tariff adjustment) ( impermissable values per section 17 of MPRA)
A71: Property rates exemptions, reductions and rebates and impermissable values in excess of section 17 of MPRA) | C71: ='SA1'!C8 -> 596040 | D71: ='SA1'!D8 -> 376389 | E71: ='SA1'!E8 -> 356091 | F71: ='SA1'!F8 -> 386734 | G71: ='SA1'!G8 -> 305802.53 | H71: ='SA1'!H8 -> 305802.53 | I71: ='SA1'!J8 -> 410324.9225 | J71: ='SA1'!K8 -> 434534.093 | K71: ='SA1'!L8 -> 459737.0704
A72: Water (in excess of 6 kilolitres per indigent household per month) | C72: ='SA1'!C19 -> 0 | D72: ='SA1'!D19 -> 0 | E72: ='SA1'!E19 -> 0 | F72: ='SA1'!F19 -> 200000 | G72: ='SA1'!G19 -> 851076.22 | H72: ='SA1'!H19 -> 851076.22 | I72: ='SA1'!J19 -> 660157.383 | J72: ='SA1'!K19 -> 699106.6686 | K72: ='SA1'!L19 -> 739654.8554
A73: Sanitation (in excess of free sanitation service to indigent households) | C73: ='SA1'!C25 -> 0 | D73: ='SA1'!D25 -> 0 | E73: ='SA1'!E25 -> 0 | F73: ='SA1'!F25 -> 1145652 | G73: ='SA1'!G25 -> 1121610.2 | H73: ='SA1'!H25 -> 1121610.2 | I73: ='SA1'!J25 -> 1215536.772 | J73: ='SA1'!K25 -> 1287253.442 | K73: ='SA1'!L25 -> 1361914.141
A74: Electricity/other energy (in excess of 50 kwh per indigent household per month) | C74: ='SA1'!C13 -> 0 | D74: ='SA1'!D13 -> 0 | E74: ='SA1'!E13 -> 0 | F74: ='SA1'!F13 -> 0 | G74: ='SA1'!G13 -> 498619.04 | H74: ='SA1'!H13 -> 498619.04 | I74: ='SA1'!J13 -> 464688.292 | J74: ='SA1'!K13 -> 492104.9012 | K74: ='SA1'!L13 -> 520646.9855
A75: Refuse (in excess of one removal a week for indigent households) | C75: ='SA1'!C32 -> 0 | D75: ='SA1'!D32 -> 0 | E75: ='SA1'!E32 -> 0 | F75: ='SA1'!F32 -> 0 | G75: ='SA1'!G32 -> 646377.84 | H75: ='SA1'!H32 -> 646377.84 | I75: ='SA1'!J32 -> 711731.532 | J75: ='SA1'!K32 -> 753723.6924 | K75: ='SA1'!L32 -> 797439.6665
A76: Municipal Housing - rental rebates
A77: Housing - top structure subsidies | B77: 6
A78: Other
A79: Total revenue cost of subsidised services provided | C79: =SUM(C70:C78) -> 596040 | D79: =SUM(D70:D78) -> 376389 | E79: 356091 | F79: 1732386 | G79: 3423485.83 | H79: 3423485.83 | I79: 3462438.902 | J79: =SUM(J70:J78) -> 3666722.797 | K79: =SUM(K70:K78) -> 3879392.719
A80: =head27a -> References
A81: 1. Include services provided by another entity; e.g. Eskom
A82: 2. Stand distance <= 200m from dwelling
A83: 3. Stand distance > 200m from dwelling
A84: 4. Borehole, spring, rain-water tank etc.
A85: 5. Must agree to total number of households in municipal area (informal settlements receiving services must be included)
A86: 6. Include value of subsidy provided by municipality above provincial subsidy level
A87: 7. Show number of households receiving at least these levels of services completely free (informal settlements must be included)
A88: 8. Must reflect the cost to the municipality of providing the Free Basic Service
A89: 9. Reflect the cost to the municipality in terms of 'revenue foregone' of providing free services (note this will not equal 'Revenue Foregone' on SA1)

Sheet SA1
A1: =muni&" - "&TableA1 -> NC076 Thembelihle - Supporting Table SA1 Supportinging detail to 'Budgeted Financial Performance'
A2: =desc -> Description | B2: =head27 -> Ref | C2: =head1b -> 2013/14 | D2: =head1A -> 2014/15 | E2: =Head1 -> 2015/16 | F2: =Head2 -> Current Year 2016/17 | J2: =Head3 -> 2017/18 Medium Term Revenue & Expenditure Framework
C3: =Head5 -> Audited Outcome | D3: =Head5 -> Audited Outcome | E3: =Head5 -> Audited Outcome | F3: =Head6 -> Original Budget | G3: =Head7 -> Adjusted Budget | H3: =Head8 -> Full Year Forecast | I3: =Head5b -> Pre-audit outcome | J3: =Head9 -> Budget Year 2017/18 | K3: =Head10 -> Budget Year +1 2018/19 | L3: =Head11 -> Budget Year +2 2019/20
A4: R thousand
A5: REVENUE ITEMS:
A6: ='A4-FinPerf RE'!A5 -> Property rates | B6: 6
A7: Total Property Rates | C7: 2884889 | D7: 2975052 | E7: 3493128 | F7: 3965146 | G7: 7828354 | H7: 7828354 | I7: 7828354 | J7: 7981427.11 | K7: 8452331.309 | L7: 8942566.525
A8: less Revenue Foregone (exemptions, reductions and rebates and impermissable values in excess of section 17 of MPRA) | C8: 596040 | D8: 376389 | E8: 356091 | F8: 386734 | G8: 305802.53 | H8: 305802.53 | I8: 305802.53 | J8: 410324.9225 | K8: 434534.093 | L8: 459737.0704
A9: Net Property Rates | C9: =C7-C8 -> 2288849 | D9: =D7-D8 -> 2598663 | E9: 3137037 | F9: 3578412 | G9: 7522551.47 | H9: 7522551.47 | I9: 7522551.47 | J9: 7571102.187 | K9: 8017797.216 | L9: 8482829.455
A11: ='A4-FinPerf RE'!A6 -> Service charges - electricity revenue | B11: 6
A12: ="Total "&A11 -> Total Service charges - electricity revenue | C12: 8729140 | D12: 10795362 | E12: 12106030 | F12: 12184267 | G12: 12691176 | H12: 12691176 | I12: 12691176 | J12: 13725883.34 | K12: 15425893.04 | L12: 17336553.37
A13: less Revenue Foregone (in excess of 50 kwh per indigent household per month) | G13: 498619.04 | H13: 498619.04 | I13: 498619.04 | J13: 464688.292 | K13: 492104.9012 | L13: 520646.9855
A14: less Cost of Free Basis Services (50 kwh per indigent household per month) | C14: ='SA9'!E250 -> 0 | D14: ='SA9'!F250 -> 0 | E14: ='SA9'!G250 -> 0 | F14: ='SA9'!H250 -> 437972 | G14: ='SA9'!I250 -> 0 | H14: ='SA9'!J250 -> 0 | J14: ='SA9'!K250 -> 0 | K14: ='SA9'!L250 -> 0 | L14: ='SA9'!M250 -> 0
A15: ="Net "& A11 -> Net Service charges - electricity revenue | C15: =C12-C13-C14 -> 8729140 | D15: =D12-D13-D14 -> 10795362 | E15: 12106030 | F15: 11746295 | G15: 12192556.96 | H15: 12192556.96 | I15: 12192556.96 | J15: 13261195.05 | K15: 14933788.14 | L15: 16815906.39
A17: ='A4-FinPerf RE'!A7 -> Service charges - water revenue | B17: 6
A18: ="Total "&A17 -> Total Service charges - water revenue | C18: 3007067 | D18: 2069661 | E18: 3742162 | F18: 5884320 | G18: 4736031.61 | H18: 4736031.61 | I18: 4736031.61 | J18: 6264377.513 | K18: 7046031.179 | L18: 7925286.975
A19: less Revenue Foregone (in excess of 6 kilolitres per indigent household per month) | F19: 200000 | G19: 851076.22 | H19: 851076.22 | I19: 851076.22 | J19: 660157.383 | K19: 699106.6686 | L19: 739654.8554
A20: less Cost of Free Basis Services (6 kilolitres per indigent household per month) | C20: ='SA9'!E262 -> 0 | D20: ='SA9'!F262 -> 0 | E20: ='SA9'!G262 -> 0 | F20: ='SA9'!H262 -> 622203 | G20: ='SA9'!I262 -> 0 | H20: ='SA9'!J262 -> 0 | J20: ='SA9'!K262 -> 0 | K20: ='SA9'!L262 -> 0 | L20: ='SA9'!M262 -> 0
A21: ="Net "& A17 -> Net Service charges - water revenue | C21: =C18-C19-C20 -> 3007067 | D21: =D18-D19-D20 -> 2069661 | E21: 3742162 | F21: 5062117 | G21: 3884955.39 | H21: 3884955.39 | I21: 3884955.39 | J21: 5604220.13 | K21: 6346924.51 | L21: 7185632.12
A23: ='A4-FinPerf RE'!A8 -> Service charges - sanitation revenue
A24: ="Total "&A23 -> Total Service charges - sanitation revenue | C24: 2244953 | D24: 2249844 | E24: 2695917 | F24: 2742236 | G24: 4734302.53 | H24: 4734302.53 | I24: 4734302.53 | J24: 3787399.529 | K24: 4260334.034 | L24: 4507433.408
A25: less Revenue Foregone (in excess of free sanitation service to indigent households) | F25: 1145652 | G25: 1121610.2 | H25: 1121610.2 | I25: 1121610.2 | J25: 1215536.772 | K25: 1287253.442 | L25: 1361914.141
A26: less Cost of Free Basis Services (free sanitation service to indigent households) | C26: ='SA9'!E274 -> 0 | D26: ='SA9'!F274 -> 0 | E26: ='SA9'!G274 -> 0 | F26: ='SA9'!H274 -> 0 | G26: ='SA9'!I274 -> 0 | H26: ='SA9'!J274 -> 0 | J26: ='SA9'!K274 -> 0 | K26: ='SA9'!L274 -> 0 | L26: ='SA9'!M274 -> 0
A27: ="Net "& A23 -> Net Service charges - sanitation revenue | C27: =C24-C25-C26 -> 2244953 | D27: =D24-D25-D26 -> 2249844 | E27: 2695917 | F27: 1596584 | G27: 3612692.33 | H27: 3612692.33 | I27: 3612692.33 | J27: 2571862.757 | K27: 2973080.593 | L27: 3145519.267
A29: ='A4-FinPerf RE'!A9 -> Service charges - refuse revenue | B29: 6
A30: Total refuse removal revenue | C30: 1193347 | D30: 1115236 | E30: 1395621 | F30: 1429730 | G30: 2585181.16 | H30: 2585181.16 | I30: 2585181.16 | J30: 2026016.701 | K30: 2279268.789 | L30: 2564177.388
A31: Total landfill revenue | G31: 0 | H31: 0 | I31: 0
A32: less Revenue Foregone (in excess of one removal a week to indigent households) | G32: 646377.84 | H32: 646377.84 | I32: 646377.84 | J32: 711731.532 | K32: 753723.6924 | L32: 797439.6665
A33: less Cost of Free Basis Services (removed once a week to indigent households) | C33: ='SA9'!E286 -> 0 | D33: ='SA9'!F286 -> 0 | E33: ='SA9'!G286 -> 0 | F33: ='SA9'!H286 -> 670812 | G33: ='SA9'!I286 -> 0 | H33: ='SA9'!J286 -> 0 | J33: ='SA9'!K286 -> 0 | K33: ='SA9'!L286 -> 0 | L33: ='SA9'!M286 -> 0
A34: ="Net "& A29 -> Net Service charges - refuse revenue | C34: =SUM(C30:C31)-C32-C33 -> 1193347 | D34: =SUM(D30:D31)-D32-D33 -> 1115236 | E34: 1395621 | F34: 758918 | G34: 1938803.32 | H34: 1938803.32 | I34: 1938803.32 | J34: 1314285.169 | K34: 1525545.097 | L34: 1766737.721
A36: Other Revenue by source
A37: Fuel Levy
A38: Other Revenue | C38: 673714 | D38: 1527485 | F38: 2367649 | G38: 1983541 | H38: 1983541 | I38: 1983541
A39: less revenue foregone | F39: -198708 | G39: -198708 | H39: -198708 | I39: -198708
B48: 3
A49: Total 'Other' Revenue | B49: 1 | C49: =SUM(C37:C48) -> 673714 | D49: =SUM(D37:D48) -> 1527485 | E49: 0 | F49: 2168941 | G49: 1784833 | H49: 1784833 | I49: 1784833 | J49: 0 | K49: 0 | L49: 0
A51: EXPENDITURE ITEMS:
A52: ='A4-FinPerf RE'!A24 -> Employee related costs
A53: Basic Salaries and Wages | B53: 2 | C53: 11911179 | D53: 14635059 | E53: 17708197 | F53: 17353014 | G53: 20596771.96 | H53: 23040262.16 | I53: 23040262.16 | J53: ='SA22'!I33+'SA22'!I17 -> 18608444.42 | K53: ='SA22'!J33+'SA22'!J17 -> 19949158.09 | L53: ='SA22'!K33+'SA22'!K17 -> 21369376.55
A54: Pension and UIF Contributions | C54: 2800308 | D54: 3147128 | E54: 2598175 | F54: 2655965 | G54: 2854205.32 | H54: 2944457.32 | I54: 2944457.32 | J54: ='SA22'!I18+'SA22'!I34 -> 2911048.397 | K54: ='SA22'!J34+'SA22'!J18 -> 3083731.124 | L54: ='SA22'!K34+'SA22'!K18 -> 3263582.451
A55: Medical Aid Contributions | C55: 573013 | D55: 619396 | E55: 883243 | F55: 752924 | G55: 708326 | H55: 738696 | I55: 738696 | J55: ='SA22'!I19+'SA22'!I35 -> 1595749.846 | K55: ='SA22'!J35+'SA22'!J19 -> 1689899.087 | L55: ='SA22'!K35+'SA22'!K19 -> 1787913.234
A56: Overtime | C56: 1096730 | D56: 1705614 | E56: 1203514 | F56: 1061183 | G56: 1035672 | H56: 1035672 | I56: 1035672 | J56: ='SA22'!I36 -> 1188452.232 | K56: ='SA22'!J36+'SA22'!J20 -> 1270455.436 | L56: ='SA22'!K36+'SA22'!K20 -> 1356846.406
A57: Performance Bonus | C57: 824190 | D57: 1050716 | E57: 960222 | F57: 1104304 | G57: 1432713 | H57: 1379807 | I57: 1379807 | J57: ='SA22'!I37 -> 1182709.702 | K57: ='SA22'!J37+'SA22'!J21 -> 1268396.301 | L57: ='SA22'!K37+'SA22'!K21 -> 1359183.154
A58: Motor Vehicle Allowance | C58: 522840 | D58: 405993 | E58: 569388 | F58: 552254 | G58: 236451.96 | H58: 336715.96 | I58: 336715.96 | J58: ='SA22'!I22+'SA22'!I38 -> 340338 | K58: ='SA22'!J38+'SA22'!J22 -> 363821.322 | L58: ='SA22'!K38+'SA22'!K22 -> 388561.1719
A59: Cellphone Allowance | C59: 39376 | D59: 70631 | E59: 200286 | F59: 50000 | G59: 36816 | H59: 180552 | I59: 180552 | J59: ='SA22'!I23+'SA22'!I39 -> 45126 | K59: ='SA22'!J39+'SA22'!J23 -> 48263.661 | L59: ='SA22'!K39+'SA22'!K23 -> 51583.78195
A60: Housing Allowances | C60: 18451 | D60: 29103 | E60: 46666 | F60: 49933 | G60: 32970 | H60: 32970 | I60: 32970 | J60: ='SA22'!I24+'SA22'!I40 -> 53477.83602 | K60: ='SA22'!J40+'SA22'!J24 -> 57167.80671 | L60: ='SA22'!K40+'SA22'!K24 -> 61055.21756
A61: Other benefits and allowances | C61: 169506 | D61: 13245 | E61: 23166 | F61: 85073 | G61: 85450.04 | H61: 85450.04 | I61: 85450.04 | J61: ='SA22'!I25+'SA22'!I41 -> 247593.4077 | K61: ='SA22'!J41+'SA22'!J25 -> 264277.4512 | L61: ='SA22'!K41+'SA22'!K25 -> 281824.822
A62: Payments in lieu of leave | C62: 359995 | D62: 487833 | E62: 622930 | F62: 666535 | G62: 310032 | H62: 310032 | I62: 310032 | J62: ='SA22'!I42 -> 713859.0921 | K62: ='SA22'!J42+'SA22'!J26 -> 763115.3695 | L62: ='SA22'!K42+'SA22'!K26 -> 815007.2146
A63: Long service awards | C63: 396669 | D63: 22903 | E63: 0 | F63: 3574 | G63: 0 | H63: 0 | I63: 0 | J63: ='SA22'!I43 -> 3827.5398 | K63: ='SA22'!J43+'SA22'!J27 -> 4091.640046 | L63: ='SA22'!K43+'SA22'!K27 -> 4369.871569
A64: Post-retirement benefit obligations | B64: 4 | C64: 20 | E64: 701945 | F64: 789940 | G64: 62608 | H64: 62608 | I64: 62608 | J64: ='SA22'!I44 -> 70399.64176 | K64: ='SA22'!J44+'SA22'!J28 -> 74553.22062 | L64: ='SA22'!K44+'SA22'!K28 -> 78877.30742
A65: sub-total | B65: 5 | C65: =SUM(C53:C64) -> 18712277 | D65: =SUM(D53:D64) -> 22187621 | E65: 25517732 | F65: 25124699 | G65: 27392016.28 | H65: 30147222.48 | I65: 30147222.48 | J65: 26961026.11 | K65: 28836930.51 | L65: 30818181.18
A66: Less: Employees costs capitalised to PPE
A67: ="Total "&A52 -> Total Employee related costs | B67: 1 | C67: =C65-C66 -> 18712277 | D67: =D65-D66 -> 22187621 | E67: 25517732 | F67: 25124699 | G67: 27392016.28 | H67: 30147222.48 | I67: 30147222.48 | J67: 26961026.11 | K67: 28836930.51 | L67: 30818181.18
A69: Contributions recognised - capital
A70: List contributions by contract
A76: ="Total "&A69 -> Total Contributions recognised - capital | C76: =SUM(C70:C75) -> 0 | D76: 0 | E76: 0 | F76: 0 | G76: 0 | H76: 0 | I76: 0 | J76: 0 | K76: 0 | L76: 0
A78: ='A4-FinPerf RE'!A27 -> Depreciation & asset impairment
A79: Depreciation of Property, Plant & Equipment | C79: 8220930 | D79: 8936295 | E79: 8142078 | F79: 7781705 | G79: 8142078 | H79: 8142078 | I79: 8142078 | J79: 8256388.721 | K79: 8743515.655 | L79: 9250639.563
A80: Lease amortisation
A81: Capital asset impairment
A82: Depreciation resulting from revaluation of PPE | B82: 10
A83: ="Total "&LEFT(A78,35) -> Total Depreciation & asset impairment | B83: 1 | C83: =SUM(C79:C81)-C82 -> 8220930 | D83: =SUM(D79:D81)-D82 -> 8936295 | E83: 8142078 | F83: 7781705 | G83: 8142078 | H83: 8142078 | I83: 8142078 | J83: =SUM(J79:J81)-J82 -> 8256388.721 | K83: 8743515.655 | L83: 9250639.563
A85: ='A4-FinPerf RE'!A29 -> Bulk purchases
A86: Electricity Bulk Purchases | C86: 9203138 | D86: 10031367 | E86: 11397415 | F86: 11760080 | G86: 11760080 | H86: 11760080 | I86: 11760080 | J86: 12092657.31 | K86: 12806124.1 | L86: 13548879.29
A87: Water Bulk Purchases | C87: 368648 | D87: 340642 | E87: 407780 | F87: 372735 | G87: 372735 | H87: 372735 | I87: 372735 | J87: 395472.2891 | K87: 418805.1542 | L87: 443095.8531
A88: Total bulk purchases | B88: 1 | C88: =SUM(C86:C87) -> 9571786 | D88: =SUM(D86:D87) -> 10372009 | E88: 11805195 | F88: 12132815 | G88: 12132815 | H88: 12132815 | I88: 12132815 | J88: 12488129.6 | K88: 13224929.25 | L88: 13991975.15
A90: Transfers and grants
A91: Cash transfers and grants | C91: ='SA21'!C32 -> 0 | D91: ='SA21'!D32 -> 0 | E91: ='SA21'!E32 -> 0 | F91: ='SA21'!F32 -> 0 | G91: ='SA21'!G32 -> 0 | H91: ='SA21'!H32 -> 0 | I91: ='SA21'!I32 -> 0 | J91: ='SA21'!J32 -> 0 | K91: ='SA21'!K32 -> 0 | L91: ='SA21'!L32 -> 0
A92: Non-cash transfers and grants | C92: ='SA21'!C63 -> 128500 | D92: ='SA21'!D63 -> 163500 | E92: ='SA21'!E63 -> 0 | F92: ='SA21'!F63 -> 0 | G92: ='SA21'!G63 -> 162000 | H92: ='SA21'!H63 -> 81000 | I92: ='SA21'!I63 -> 0 | J92: ='SA21'!J63 -> 894957.744 | K92: ='SA21'!K63 -> 947760.2509 | L92: ='SA21'!L63 -> 1002730.345
A93: Total transfers and grants | B93: 1 | C93: =SUM(C91:C92) -> 128500 | D93: =SUM(D91:D92) -> 163500 | E93: 0 | F93: 0 | G93: 162000 | H93: 81000 | I93: 0 | J93: 894957.744 | K93: 947760.2509 | L93: 1002730.345
A95: ='A4-FinPerf RE'!A31 -> Contracted services
A96: Consultant fees | C96: 63811 | D96: 91531 | E96: 50731 | F96: 221204 | G96: 756210 | H96: 756210 | I96: 756210 | J96: 234696.9432 | K96: 248544.0629 | L96: 262959.6185
A97: Legal Cost | G97: 74502 | H97: 74502 | I97: 74502
A98: Rental | G98: 0 | H98: 0 | I98: 0
A99: Valuation | G99: 0 | H99: 0 | I99: 0
A100: License Software | G100: 234430 | H100: 234430 | I100: 234430 | J100: 305377.02 | K100: 323394.2642 | L100: 342151.1315
A101: Sebata | G101: 710338 | H101: 710338 | I101: 710338 | J101: 37135 | K101: 39325.965 | L101: 41606.87097
A121: sub-total | B121: 1 | C121: =SUM(C96:C120) -> 63811 | D121: 91531 | E121: 50731 | F121: 221204 | G121: 1775480 | H121: 1775480 | I121: 1775480 | J121: 577208.9632 | K121: 611264.292 | L121: 646717.621
A122: Allocations to organs of state:
A123: Electricity
A124: Water
A125: Sanitation
A126: Other
A127: Total contracted services | C127: =SUM(C121:C126) -> 63811 | D127: =SUM(D121:D126) -> 91531 | E127: 50731 | F127: 221204 | G127: 1775480 | H127: 1775480 | I127: 1775480 | J127: 577208.9632 | K127: 611264.292 | L127: 646717.621
A129: Other Expenditure By Type
A130: Collection costs
A131: Contributions to 'other' provisions
A132: Consultant fees | C132: 1835415 | D132: 2617432 | E132: 2494416 | F132: 221204 | H132: 1447310 | I132: 1447310
A133: Audit fees | C133: 1284284 | D133: 2481291 | E133: 2420062 | F133: 586300 | G133: 586300 | H133: 586300 | I133: 586300 | J133: 622064.3 | K133: 658766.0937 | L133: 696974.5271
A134: General expenses | B134: 3 | C134: 3808830 | D134: 5974667 | E134: =17165629-E132-E133 -> 12251151 | F134: 6265341 | G134: 7643522 | H134: 7643522 | I134: 7643522 | J134: 7606774.207 | K134: 7922600.928 | L134: 8346746.873
A135: Interest External Borrowing | F135: 270000 | G135: 270000 | H135: 270000 | I135: 270000
A136: Redembtion
A137: Subsistance & Travelling | C137: 1357730 | D137: 1544549 | F137: 1026440
A138: Surveying fees
A139: Telephone and fax | C139: 231715 | D139: 312863 | F139: 269578
A140: Training | C140: 277751 | D140: 67000 | F140: 168578 | G140: 168578 | H140: 168578 | I140: 168578
A157: Total 'Other' Expenditure | B157: 1 | C157: =SUM(C130:C156) -> 8795725 | D157: =SUM(D130:D156) -> 12997802 | E157: 17165629 | F157: 8807441 | G157: 8668400 | H157: 10115710 | I157: 10115710 | J157: 8228838.507 | K157: 8581367.022 | L157: 9043721.4
A159: Repairs and Maintenance by Expenditure Item | B159: 8
A160: Employee related costs
A161: Other materials | C161: 1089495 | D161: 1191139 | E161: 505963 | F161: 1836029 | G161: 2363487 | H161: 2363487 | I161: 2363487 | J161: 1202549.938 | K161: 1273500.385 | L161: 1347363.407
A162: Contracted Services
A163: Other Expenditure
A164: Total Repairs and Maintenance Expenditure | B164: 9 | C164: =SUM(C160:C163) -> 1089495 | D164: =SUM(D160:D163) -> 1191139 | E164: 505963 | F164: 1836029 | G164: 2363487 | H164: 2363487 | I164: 2363487 | J164: 1202549.938 | K164: 1273500.385 | L164: 1347363.407
A166: check | C166: =C164-SA34c!C77 -> 1089495 | D166: =D164-SA34c!D77 -> 1191139 | E166: =E164-SA34c!E77 -> 505963 | F166: =F164-SA34c!F77 -> 1836029 | G166: =G164-SA34c!G77 -> 2363487 | H166: =H164-SA34c!H77 -> 2363487 | J166: =J164-SA34c!I77 -> 1202549.938 | K166: =K164-SA34c!J77 -> 1273500.385 | L166: =L164-SA34c!K77 -> 1347363.407
A169: =head27a -> References
A170: 1. Must reconcile with 'Budgeted Financial Performance (Revenue and Expenditure)
A171: 2. Must reconcile to supporting documentation on staff salaries
A172: 3. Insert other categories where revenue or expenditure is of a material nature (list separate items until 'General expenses' is not > 10% of Total Expenditure)
A173: 4. Expenditure to meet any 'unfunded obligations'
A174: 5 This sub-total must agree with the total on SA22, but excluding councillor and board member items
A175: 6. Include a note for each revenue item that is affected by 'revenue foregone'
A176: 7. Special consideration may have to be given to including 'goodwill arising' or 'joint venture' budgets where circumstances require this (include separately under relevant notes)
A177: 8. Repairs and Maintenance is not a GRAP item. However to facilitate transparency, municipalities must provide a breakdown of the amounts included in the relevant GRAP items that will be spent on Repairs and Maintenance.
A178: 9. Must reconcile with Repairs and Maintenance by Asset Class (Total Repairs and Maintenance) on Table SA34c.
A179: 10. Only applicable to municipalities that have adopted the 'revaluation method' in GRAP 17. The aim is to prevent overstating 'depreciation and asset impairment'

Sheet SA2
A1: =muni&" - "&TableA2 -> NC076 Thembelihle - Supporting Table SA2 Matrix Financial Performance Budget (revenue source/expenditure type and dept.)
A2: =desc -> Description | B2: =head27 -> Ref | C2: ='A3-FinPerf V'!A5 -> Vote 1 - Executive Council | D2: ='A3-FinPerf V'!A6 -> Vote 2 - Budget & Treasury | E2: ='A3-FinPerf V'!A7 -> Vote 3 - Corporate Service | F2: ='A3-FinPerf V'!A8 -> Vote 4 - Community & Social Service | G2: ='A3-FinPerf V'!A9 -> Vote 5 - Public Safety | H2: ='A3-FinPerf V'!A10 -> Vote 6 - Planning & Development | I2: ='A3-FinPerf V'!A11 -> Vote 7 - Road Transport | J2: ='A3-FinPerf V'!A12 -> Vote 8 - Electricity | K2: ='A3-FinPerf V'!A13 -> Vote 9 - Water | L2: ='A3-FinPerf V'!A14 -> Vote 10 - Waste Water Management | M2: ='A3-FinPerf V'!A15 -> Vote 11 - Waste Management | N2: ='A3-FinPerf V'!A16 -> 0 | O2: ='A3-FinPerf V'!A17 -> 0 | P2: ='A3-FinPerf V'!A18 -> Vote 14 - [NAME OF VOTE 14] | Q2: ='A3-FinPerf V'!A19 -> Vote 15 - [NAME OF VOTE 15] | R2: Total
A3: R thousand | B3: 1 | C3: R'000 | D3: R'000 | E3: R'000 | F3: R'000 | G3: R'000 | H3: R'000 | Q3: R'000 | R3: R'000
A4: ='A4-FinPerf RE'!A4 -> Revenue By Source
A5: ='A4-FinPerf RE'!A5 -> Property rates | D5: 4207019.73 | R5: =SUM(C5:Q5) -> 4207019.73
A6: ='A4-FinPerf RE'!A6 -> Service charges - electricity revenue | J6: 12768245.73 | R6: =SUM(C6:Q6) -> 12768245.73
A7: ='A4-FinPerf RE'!A7 -> Service charges - water revenue | K7: 12431282.04 | R7: 12431282.04
A8: ='A4-FinPerf RE'!A8 -> Service charges - sanitation revenue | L8: 4042276.744 | R8: 4042276.744
A9: ='A4-FinPerf RE'!A9 -> Service charges - refuse revenue | R9: 0
A10: ='A4-FinPerf RE'!A10 -> Service charges - other | R10: 0
A11: ='A4-FinPerf RE'!A11 -> Rental of facilities and equipment | E11: 266998.528 | F11: 56913.74 | H11: 7952.36 | R11: 331864.628
A12: ='A4-FinPerf RE'!A12 -> Interest earned - external investments | R12: 0
A13: ='A4-FinPerf RE'!A13 -> Interest earned - outstanding debtors | R13: 0
A14: ='A4-FinPerf RE'!A14 -> Dividends received | R14: 0
A15: ='A4-FinPerf RE'!A15 -> Fines, penalties and forfeits | R15: 0
A16: ='A4-FinPerf RE'!A16 -> Licences and permits | R16: 0
A17: ='A4-FinPerf RE'!A17 -> Agency services | R17: 0
A18: ='A4-FinPerf RE'!A19 -> Other revenue | C18: 19367000 | D18: 2703224.284 | E18: 565457.568 | F18: 1357492.172 | H18: 10041068.24 | I18: 2854997.188 | M18: 2122004.704 | R18: 39011244.16
A19: ='A4-FinPerf RE'!A18 -> Transfers and subsidies | F19: 1204000 | R19: 1204000
A20: ='A4-FinPerf RE'!A20 -> Gains on disposal of PPE | E20: 5000000 | R20: 5000000
A21: ='A4-FinPerf RE'!A21 -> Total Revenue (excluding capital transfers and contributions) | C21: =SUM(C5:C20) -> 19367000 | D21: 6910244.014 | E21: 5832456.096 | F21: 2618405.912 | G21: 0 | H21: 10049020.6 | I21: 2854997.188 | J21: 12768245.73 | K21: 12431282.04 | L21: 4042276.744 | M21: 2122004.704 | N21: 0 | O21: 0 | P21: 0 | Q21: 0 | R21: 78995933.03
A23: ='A4-FinPerf RE'!A23 -> Expenditure By Type
A24: ='A4-FinPerf RE'!A24 -> Employee related costs | C24: 1024769 | D24: =6148987+152953 -> 6301940 | E24: =3857112+152953 -> 4010065 | F24: =1314699 -> 1314699 | H24: =5469031+321838+436176+152953 -> 6379998 | I24: =1755016 -> 1755016 | J24: =900807 -> 900807 | K24: =3322966 -> 3322966 | L24: =927495 -> 927495 | M24: =1023646 -> 1023646 | R24: =SUM(C24:Q24) -> 26961401
A25: ='A4-FinPerf RE'!A25 -> Remuneration of councillors | C25: =2639699 -> 2639699 | R25: =SUM(C25:Q25) -> 2639699
A26: ='A4-FinPerf RE'!A26 -> Debt impairment | R26: 0
A27: ='A4-FinPerf RE'!A27 -> Depreciation & asset impairment | F27: 390000 | H27: 2261716 | J27: 1987125 | K27: 1113207 | L27: 509656.732 | M27: 400000 | R27: 6661704.732
A28: ='A4-FinPerf RE'!A28 -> Finance charges | D28: 270000 | R28: 270000
A29: ='A4-FinPerf RE'!A29 -> Bulk purchases | E29: 14379.536 | J29: 11397415 | K29: 372735.428 | R29: 11784529.96
A30: ='A4-FinPerf RE'!A30 -> Other materials | R30: 0
A31: ='A4-FinPerf RE'!A31 -> Contracted services | R31: 0
A32: ='A4-FinPerf RE'!A32 -> Transfers and subsidies | H32: 640000 | R32: 640000
A33: ='A4-FinPerf RE'!A33 -> Other expenditure | C33: 1572941.95 | D33: 8797825.127 | E33: 2074225.829 | F33: 229843.4672 | G33: 35275.2192 | H33: 1236495.416 | I33: 444295.0648 | J33: 1379369.575 | K33: 2017319.419 | L33: 1618405.157 | M33: 917676.9636 | R33: 20323673.19
A34: ='A4-FinPerf RE'!A34 -> Loss on disposal of PPE | R34: 0
A35: Total Expenditure | C35: =SUM(C24:C34) -> 5237409.95 | D35: 15369765.13 | E35: 6098670.365 | F35: 1934542.467 | G35: 35275.2192 | H35: 10518209.42 | I35: 2199311.065 | J35: 15664716.57 | K35: 6826227.847 | L35: 3055556.889 | M35: 2341322.964 | N35: 0 | O35: 0 | P35: 0 | Q35: 0 | R35: 69281007.88
A37: ='A4-FinPerf RE'!A37 -> Surplus/(Deficit) | C37: =C21-C35 -> 14129590.05 | D37: -8459521.113 | E37: -266214.2692 | F37: 683863.4448 | G37: -35275.2192 | H37: -469188.816 | I37: =I21-I35 -> 655686.1232 | J37: -2896470.849 | K37: 5605054.197 | L37: 986719.8548 | M37: -219318.2596 | N37: 0 | O37: 0 | P37: 0 | Q37: 0 | R37: =R21-R35 -> 9714925.144
A38: ='A4-FinPerf RE'!A38 -> Transfers and subsidies - capital (monetary allocations) (National / Provincial and District) | R38: =SUM(C38:Q38) -> 0
A39: ='A4-FinPerf RE'!A39 -> Transfers and subsidies - capital (monetary allocations) (National / Provincial Departmental Agencies, Households, Non-profit Institutions, Private Enterprises, Public Corporatons, Higher Educational Institutions) | R39: =SUM(C39:Q39) -> 0
A40: ='A4-FinPerf RE'!A40 -> Transfers and subsidies - capital (in-kind - all) | R40: =SUM(C40:Q40) -> 0
A41: ='A4-FinPerf RE'!A41 -> Surplus/(Deficit) after capital transfers & contributions | C41: =SUM(C37:C40) -> 14129590.05 | D41: -8459521.113 | E41: -266214.2692 | F41: 683863.4448 | G41: -35275.2192 | H41: -469188.816 | I41: 655686.1232 | J41: -2896470.849 | K41: 5605054.197 | L41: 986719.8548 | M41: -219318.2596 | N41: 0 | O41: 0 | P41: 0 | Q41: =SUM(Q37:Q40) -> 0 | R41: =SUM(R37:R40) -> 9714925.144
A42: =head27a -> References
A43: 1. Departmental columns to be based on municipal organisation structure
A44: check balance | R44: ='A4-FinPerf RE'!J41-'SA2'!R41 -> 6052773.094

Sheet SA3
A1: =muni&" - "&TableA3 -> NC076 Thembelihle - Supporting Table SA3 Supportinging detail to 'Budgeted Financial Position'
A2: =desc -> Description | B2: =head27 -> Ref | C2: =head1b -> 2013/14 | D2: =head1A -> 2014/15 | E2: =Head1 -> 2015/16 | F2: =Head2 -> Current Year 2016/17 | J2: =Head3 -> 2017/18 Medium Term Revenue & Expenditure Framework
C3: =Head5 -> Audited Outcome | D3: =Head5 -> Audited Outcome | E3: =Head5 -> Audited Outcome | F3: =Head6 -> Original Budget | G3: =Head7 -> Adjusted Budget | H3: =Head8 -> Full Year Forecast | I3: =Head5b -> Pre-audit outcome | J3: =Head9 -> Budget Year 2017/18 | K3: =Head10 -> Budget Year +1 2018/19 | L3: =Head11 -> Budget Year +2 2019/20
A4: R thousand
A5: ASSETS
A6: ='A6-FinPos'!A7 -> Call investment deposits
A7: Call deposits
A8: Other current investments
A9: ="Total "&A6 -> Total Call investment deposits | B9: 2 | C9: =SUM(C7:C8) -> 0 | D9: =SUM(D7:D8) -> 0 | E9: 0 | F9: 0 | G9: 0 | H9: 0 | I9: 0 | J9: 0 | K9: 0 | L9: 0
A11: ='A6-FinPos'!A8 -> Consumer debtors
A12: =A11 -> Consumer debtors | C12: 46608077 | D12: 49276996 | E12: 33295900 | F12: 51700000 | G12: 67210000 | H12: 67210000 | I12: 67210000 | J12: 51700000 | K12: 55605284 | L12: 58941600
A13: Less: Provision for debt impairment | C13: -43859572 | D13: -46295973 | E13: -29105997 | F13: -39011658 | G13: -57405133.63 | H13: -57405133.63 | I13: -57405133.63 | J13: -39011658 | K13: -40511658 | L13: -42011658
A14: ="Total "&A11 -> Total Consumer debtors | B14: 2 | C14: =SUM(C12:C13) -> 2748505 | D14: =SUM(D12:D13) -> 2981023 | E14: 4189903 | F14: =SUM(F12:F13) -> 12688342 | G14: 9804866.374 | H14: 9804866.374 | I14: 9804866.374 | J14: 12688342 | K14: 15093626 | L14: 16929942
A16: Debt impairment provision
A17: Balance at the beginning of the year | C17: 39376253 | D17: 43859572 | E17: 46295973 | F17: 35000000 | G17: 52189978.23 | H17: 52189978.23 | I17: 52189978.23 | J17: 35000000 | K17: 39011658 | L17: 40511658
A18: Contributions to the provision | C18: 4483319 | D18: 2436401 | F18: 4011658 | G18: 5215155.4 | H18: 5215155.4 | I18: 5215155.4 | J18: 4011658 | K18: 1500000 | L18: 1500000
A19: Bad debts written off | E19: -18585892
A20: Balance at end of year | C20: =SUM(C17:C19) -> 43859572 | D20: =SUM(D17:D19) -> 46295973 | E20: 27710081 | F20: 39011658 | G20: 57405133.63 | H20: 57405133.63 | I20: 57405133.63 | J20: 39011658 | K20: 40511658 | L20: 42011658
A22: ='A6-FinPos'!A19&" (PPE)" -> Property, plant and equipment (PPE)
A23: PPE at cost/valuation (excl. finance leases) | C23: 209778838 | D23: 221339162 | E23: =335589669-2333179 -> 333256490 | F23: 244554831 | G23: 244554831 | H23: 244554831 | I23: 244554831 | J23: 244554831 | K23: 245070275 | L23: 246168670
A24: Leases recognised as PPE | B24: 3 | E24: 2333179
A25: Less: Accumulated depreciation | E25: 104975647 | F25: 7781705 | G25: 8142078 | H25: 8142078 | I25: 8142078
A26: ="Total "&A22 -> Total Property, plant and equipment (PPE) | B26: 2 | C26: =SUM(C23:C24)-C25 -> 209778838 | D26: =SUM(D23:D24)-D25 -> 221339162 | E26: 230614022 | F26: 236773126 | G26: 236412753 | H26: 236412753 | I26: 236412753 | J26: 244554831 | K26: 245070275 | L26: 246168670
A28: LIABILITIES
A29: ='A6-FinPos'!A28&" - "&'A6-FinPos'!A30 -> Current liabilities - Borrowing
A30: Short term loans (other than bank overdraft)
A31: Current portion of long-term liabilities | C31: 698272 | D31: 1087166 | E31: =893834+19149 -> 912983 | F31: 270000 | G31: 286200 | H31: 286200 | I31: 286200 | J31: 270000 | K31: 270000 | L31: 270000
A32: ="Total "&A29 -> Total Current liabilities - Borrowing | C32: =SUM(C30:C31) -> 698272 | D32: =SUM(D30:D31) -> 1087166 | E32: 912983 | F32: 270000 | G32: 286200 | H32: 286200 | I32: 286200 | J32: 270000 | K32: 270000 | L32: 270000
A34: ='A6-FinPos'!A32 -> Trade and other payables
A35: Trade and other creditors | C35: 24481430 | D35: 34523991 | E35: 50758398 | F35: 24000000 | G35: 24000000 | H35: 24000000 | I35: 24000000 | J35: 45000000 | K35: 22000000 | L35: 22000000
A36: Unspent conditional transfers | C36: 11620201 | D36: 6785456 | E36: 1389682
A37: VAT | C37: 2490894 | D37: 111760 | E37: 0
A38: ="Total "&A34 -> Total Trade and other payables | B38: 2 | C38: =SUM(C35:C37) -> 38592525 | D38: 41421207 | E38: 52148080 | F38: 24000000 | G38: 24000000 | H38: 24000000 | I38: 24000000 | J38: 45000000 | K38: 22000000 | L38: =SUM(L35:L37) -> 22000000
A40: ='A6-FinPos'!A36&" - "&'A6-FinPos'!A37 -> Non current liabilities - Borrowing
A41: Borrowing | B41: 4 | C41: 5537753 | D41: 4729714 | E41: 3817470 | F41: 4432385 | G41: 3699470 | H41: 3699470 | I41: 3699470 | J41: 4432385 | K41: 3722385 | L41: 3012385
A42: Finance leases (including PPP asset element) | C42: 644659 | D42: 19364 | E42: 214 | F42: 552000 | G42: 486000 | H42: 486000 | I42: 486000 | J42: 552000 | K42: 502000 | L42: 492000
A43: ="Total "&A40 -> Total Non current liabilities - Borrowing | C43: =SUM(C41:C42) -> 6182412 | D43: =SUM(D41:D42) -> 4749078 | E43: 3817684 | F43: 4984385 | G43: 4185470 | H43: 4185470 | I43: 4185470 | J43: 4984385 | K43: 4224385 | L43: 3504385
A45: ='A6-FinPos'!A38&" - non-current" -> Provisions - non-current
A46: Retirement benefits | C46: 4347000 | D46: 3857853 | E46: =4280259+888950 -> 5169209 | F46: 5347000 | G46: 5774760 | H46: 5774760 | I46: 5774760 | J46: 5347000 | K46: 3857853 | L46: 5572148
A47: List other major provision items
A48: Refuse landfill site rehabilitation | F48: 1054100 | G48: 1117346 | H48: 1117346 | I48: 1117346 | J48: 1054100 | K48: 1054100 | L48: 1054100
A49: Other | D49: 888950 | F49: 801475 | G49: 849563.5 | H49: 849563.5 | I49: 849563.5 | J49: 801475 | K49: 801475 | L49: 801475
A50: ="Total "&A45 -> Total Provisions - non-current | C50: =SUM(C46:C49) -> 4347000 | D50: 4746803 | E50: 5169209 | F50: 7202575 | G50: 7741669.5 | H50: 7741669.5 | I50: 7741669.5 | J50: 7202575 | K50: 5713428 | L50: 7427723
A52: CHANGES IN NET ASSETS
A53: ='A6-FinPos'!A45 -> Accumulated Surplus/(Deficit)
A54: =A53&" - opening balance" -> Accumulated Surplus/(Deficit) - opening balance | E54: 176819778 | F54: 218039651 | G54: 218039651 | H54: 218039651 | I54: 218039651 | J54: 218039651 | K54: 231982238 | L54: 231719967
A55: GRAP adjustments | E55: -16386
A56: Restated balance | C56: =SUM(C54:C55) -> 0 | D56: =SUM(D54:D55) -> 0 | E56: =SUM(E54:E55) -> 176803392 | F56: =SUM(F54:F55) -> 218039651 | G56: 218039651 | H56: 218039651 | I56: 218039651 | J56: 218039651 | K56: 231982238 | L56: 231719967
A57: ='A4-FinPerf RE'!A37 -> Surplus/(Deficit) | C57: ='A4-FinPerf RE'!C45 -> 991531 | D57: ='A4-FinPerf RE'!D45 -> 2876366 | E57: ='A4-FinPerf RE'!E45 -> 6291616 | F57: ='A4-FinPerf RE'!F45 -> 8722503 | G57: ='A4-FinPerf RE'!G45 -> 5150055.96 | H57: ='A4-FinPerf RE'!H45 -> 3164648.99 | I57: ='A4-FinPerf RE'!I45 -> 3245648.99 | J57: ='A4-FinPerf RE'!J45 -> 15767698.24 | K57: ='A4-FinPerf RE'!K45 -> 9899414.049 | L57: ='A4-FinPerf RE'!L45 -> 10069245.83
A58: Appropriations to Reserves
A59: Transfers from Reserves
A60: Depreciation offsets
A61: Other adjustments
A62: Accumulated Surplus/(Deficit) | B62: 1 | C62: =SUM(C56:C61) -> 991531 | D62: =SUM(D56:D61) -> 2876366 | E62: =SUM(E56:E61) -> 183095008 | F62: 226762154 | G62: 223189707 | H62: 221204300 | I62: 221285300 | J62: 233807349.2 | K62: 241881652 | L62: 241789212.8
A63: Reserves
A64: Housing Development Fund
A65: Capital replacement
A66: Self-insurance
A67: Other reserves
A68: Revaluation
A69: Total Reserves | B69: 2 | C69: =SUM(C64:C68) -> 0 | D69: 0 | E69: 0 | F69: 0 | G69: 0 | H69: 0 | I69: 0 | J69: 0 | K69: 0 | L69: 0
A70: ='A6-FinPos'!A48 -> TOTAL COMMUNITY WEALTH/EQUITY | B70: 2 | C70: =C62+C69 -> 991531 | D70: 2876366 | E70: 183095008 | F70: 226762154 | G70: 223189707 | H70: 221204300 | I70: 221285300 | J70: 233807349.2 | K70: 241881652 | L70: 241789212.8
A72: Total capital expenditure includes expenditure on nationally significant priorities:
A73: Provision of basic services
A76: =head27a -> References
A77: ="1. Must reconcile with "&'Template names'!F103 -> 1. Must reconcile with Table A4 Budgeted Financial Performance (revenue and expenditure)
A78: ="2. Must reconcile with "&'Template names'!F105 -> 2. Must reconcile with Table A6 Budgeted Financial Position
A79: 3. Leases treated as assets to be depreciated as the same as purchased/constructed assets. Includes PPP asset element accounted for as finance leases
A80: 4. Borrowing must reconcile to Table A17
